Workbook

Sheet Home
C4: Welcome to the tool Green District Heating Systems (open). This tool is developed as a Master's Thesis project and the purpose of the tool is to make it easier to analyse future investments in renewable district heating production. In the figure on the right, the general idea of the tool is illustrated. The tool is intended to be used for preliminary evaluation of several combinations of different production technologies and at different heating demands. Its functionality will enable you to quickly obtain an overview of the heat production, cash flows and heat price for any given system you design. Aside from these results, the tool also determines the optimal solution with the lowest cost. The output from the tool can then be used to understand different relevant heating systems and you can then, based on this information, proceed with the most attractive solutions and analyse them further. The foundation of the tool are results from energyPRO simulations comprised with data for state of the art heat production technologies and today's and future prices, levies, emissions, etc. The energyPRO results have been analysed in order to determine correlations for different combinations of technologies. These correlations constitute the foundation of tool. We hope, that you find the tool useful and if you have any questions or comments for the tool, please don't hesitate to contacts us. For more information, follow the link below, where you can also download the thesis.
C32: Disclaimer The authors of this thesis and the creators of the tool are not responsible for any decisions made based on the tool. The tool is intended as a way of analysing various heating systems and various opportunities to implement renewable heat production into an existing system or to expand an existing system. Any investment decision or operation strategy should be based on more detailed analyses and investigations.

Sheet Input
C4: In this sheet, you select the input parameters for the tool. First, the energy resources available for heat production are chosen. When two production technologies, in a combination allowed by the tool, is chosen, it is possible to enter the annual district heating demand and how large a share of the peak demand each technology should have. These shares must add up to 100 percent. Furthermore, you have the option to add an annual heat production from an independant production system consiting of solar heat panels and a large-scale heat storage.
C12: District Heating Demand
C13: The system is based on the annual district heating demand. This can be entered below, either by typing the value or by using the up and down buttons. From the annual demand, the peak capacity for the system is determined based on the load duration curve on the right.
C21: Annual heating demand: | F21: 100000 | G21: 240000
C23: Peak consumption: | F23: ='Back, Results'!D17 -> 32.03767423
N29: ='Back, Additional Data'!$AX$14 -> 
C31: Available Energy Resources
C32: To determine the energy resources available in the system, to produce the annual demand entered above, click the boxes below. As the recoures are chosen, the resource and it's conversion technology will appear in the system illustration on the right. As two energy resources are selected, the system is complete and the fuel consumption and production capacities will appear in the illustration. In the next section, the capacities can be varied.
M33: ='Back, Additional Data'!$AX$15 ->  | P33: ='Back, Additional Data'!$AX$13 -> 16.01883712
N36: ='Back, Additional Data'!$AX$23 -> 
D38: Excess heat at a constant temperature of 25 ˚C. | BA38: =IF(BB38=TRUE,1,"") ->  | BB38: FALSE
D39: Ambient air at an average temperature of 7.5 ˚C. | S39: ='Back, Additional Data'!$AX$11 -> 100000 | BA39: =IF(BB39=TRUE,2,"") ->  | BB39: FALSE
D40: Excess heat at a constant temperature of 80 to 90 ˚C. | BA40: =IF(BB40=TRUE,3,"") ->  | BB40: FALSE
D41: Straw as fuel input. | M41: ='Back, Additional Data'!$AX$19 ->  | P41: ='Back, Additional Data'!$AX$17 -> 16.01883712 | BA41: =IF(BB41=TRUE,4,"") ->  | BB41: FALSE
D42: Wood chips as fuel input. | N42: ='Back, Additional Data'!$AX$25 ->  | BA42: =IF(BB42=TRUE,5,"") ->  | BB42: FALSE
D43: RDF (Residual Derived Fuel) as fuel input. | BA43: =IF(BB43=TRUE,6,"") ->  | BB43: FALSE
BA44: =COUNT(BA38:BA43) -> 0 | BB44: code: | BC44: =IF(COUNTIF(BB38:BB43,TRUE)>=2,1,0)+IF(COUNTIF(BB38:BB43,TRUE)>2,1,0) -> 0
BB45: =BA38&BA39&BA40&BA41&BA42&BA43 -> 
BB46: =_xlfn.NUMBERVALUE(BB45) -> 0
BC48: =IF(BB45="14",1,0)+IF(BB45="15",2,0)+IF(BB45="16",3,0)+IF(BB45="24",4,0)+IF(BB45="25",5,0)+IF(BB45="26",6,0)+IF(BB45="34",7,0)+IF(BB45="35",8,0)+IF(BB45="36",9,0)+IF(BB45="45",10,0)+IF(BB45="46",11,0)+IF(BB45="56",12,0) -> 0
C49: Production Technologies
C50: The energy resources selected above corresponds to the two production technologies below. Their respective share of the peak capacity in the system can be altered by either typing the desired percentage for the first production technology or by using the increase and decrease buttons. The net heat production cost (NHPC) for each technology is illustrated in the figure on the right. As fuel prices, taxes and levies can vary each year, the NHPC might not be the same for the entire 20-year period.
C57: =IF(D57="","",1) ->  | D57: =IF(BB45="1","Heat Pump","")&IF(BB45="2","Heat Pump","")&IF(BB45="3","Heat Exchanger","")&IF(BB45="14","Heat Pump","")&IF(BB45="15","Heat Pump","")&IF(BB45="16","Heat Pump","")&IF(BB45="24","Heat Pump","")&IF(BB45="25","Heat Pump","")&IF(BB45="26","Heat Pump","")&IF(BB45="34","Heat Exchanger","")&IF(BB45="35","Heat Exchanger","")&IF(BB45="36","Heat Exchanger","")&IF(BB45="45","Straw Boiler","")&IF(BB45="46","Straw Boiler","")&IF(BB45="56","Wood Chip Boiler","") ->  | F57: 50 | G57: corresponding to | H57: ='Back, Results'!D24 -> 16.01883712
C59: =IF(D59="","",2) ->  | D59: =IF(BB45="4","Straw Boiler","")&IF(BB45="5","Wood Chips Boiler","")&IF(BB45="6","Waste Boiler","")&IF(BB45="14","Straw Boiler","")&IF(BB45="15","Wood Chips Boiler","")&IF(BB45="16","Waste Boiler","")&IF(BB45="24","Straw Boiler","")&IF(BB45="25","Wood Chips Boiler","")&IF(BB45="26","Waste Boiler","")&IF(BB45="34","Straw Boiler","")&IF(BB45="35","Wood Chip Boiler","")&IF(BB45="36","Waste Boiler","")&IF(BB45="45","Wood Chip Boiler","")&IF(BB45="46","Waste Boiler","")&IF(BB45="56","Waste Boiler","") ->  | F59: =100-F57 -> 50 | G59: corresponding to | H59: ='Back, Results'!D25 -> 16.01883712
C66: Solar Heat Panels & Heat Storage
C67: You have the option to include solar heat panels and a large-scale heat storage in the system. To do so, click the box below and change the annual production from the solar heat panels by clicking the up and down buttons. This will decrease the production from the other to production technologies selected above, which makes the total annual district heating demand remain the same. Please note that this system is modeled as a system operating in island mode, so the heat storage cannot be utilised by the two technologies selected above.
D73: Include solar heat panels and heat storage in DH system. | R73: ='Back, Additional Data'!$AX$21 -> 0 | BB73: FALSE
C75: =IF(BB73=TRUE,"Annual solar production is","") ->  | F75: ='Back, Results'!E16 -> 0 | H75: 20 | BB75: =IF(BB73=TRUE,1,IF(BB73=FALSE,0,"n/a")) -> 0
BH77: =F21 -> 100000 | BI77: =IF(BB73=TRUE,H75/100,0) -> 0

Sheet Results
C4: On this page, the results are found. The results are based on the input parameters, which can be altered on the input-page. On the input-page, the annual district heating demand and the share of each production technology can also be varied. The results are seperated into four sections: technical results, emission-results, financial results and damage cost. Click the desired section in the contents list below to navigate to the results you want to see.
C10: Contents
C11: Technical Results
C12: Emission Results
C13: Fincancial Results
C14: Damage Cost
C18: Technical Results
C19: The technical results for the system designed on the input-page are presented here. The main results for capacity, heat production and fuel consumption for the 20 years are presented below along with the district heating demand profile for the first year. This profile is the same for all 20 years, but the total annual demand decreases over the years. To see more about this, please go to the page on background data. Here you can find more information on the data used to determine the results.
C24: ='Back, Results'!D8 ->  | J24: ='Back, Results'!D9 -> 
D25: Capacity
C26: ='Back, Results'!D24 -> 16.01883712 | J26: ='Back, Results'!D25 -> 16.01883712
D29: Heat Production
C30: ='Back, Results'!D31 ->  | J30: ='Back, Results'!D32 -> 
D33: Fuel Consumption
C34: ='Back, Results'!D37 ->  | J34: ='Back, Results'!D38 -> 
B38: =IF(Input!BB75=1,"Show","Hide") -> Hide
C39: The solar heat panels and the heat storage operate in island mode. Therefore, the heat production from the solar panels depends only on the share of the total heat demand entered on the input page. The total production from the panels is given below.
D42: Solar panels heat production: | H42: ='Back, Results'!D33 -> 0
C45: The profile for the heat production from the solar panels is illustrated below along with the heat content in the storage. The heat storage shifts the heat production from the panels to the hours, where the panels cannot cover the demand. Therefore, it must begin the year with a heat content that ensures that the heat storage never, in theory, goes below 0 MWh, and thereby ensures that the heat storage is dimensioned to be able to, in system with the solar panels, cover the demand.
T66: Back To Top ↑
C69: Emission Results
C70: The emission results are based on the fuel consumption for the two technologies in the system and the emissions presented here, are for the total 20-year period. The figure on the right-side illustrates the change in emission factors throughout the 20 years. For CO2 on the first y-axis, the unit is kg per MWh heat produced and for SO2 and NOx on the second y-axis, the unit is g per MWh produced. To see more about the conversion factors, the efficiencies and the resulting emissions for the two production technologies, please go to the page on background data.
C75: ='Back, Results'!D8 ->  | J75: ='Back, Results'!D9 -> 
D76: CO2-emissions
C77: ='Back, Results'!D40 ->  | J77: ='Back, Results'!D41 -> 
D80: SO2-emissions
C81: ='Back, Results'!D44 ->  | J81: ='Back, Results'!D45 -> 
D84: NOx-emission
C85: ='Back, Results'!D48 ->  | J85: ='Back, Results'!D49 -> 
T93: Back To Top ↑
C96: Financial Results
C97: The net heat production cost (NHPC) for the two technologies are presented in the figures below.
C116: The financial results are aggregated for the 20-year period. The cost is seperated into operation cost and investment cost and includes the cost for the two production technologies. A heat price is determined from the operation cost, the investment cost with an interest rate of 4 percent and the total heat production. This is illustrated in the cash flow figure for the 20-year period below.
D121: ="Heat price for the "&'Back, Results'!D8&":" ->  | I121: ='Back, Results'!D70 -> 
D123: ="Heat price for the "&'Back, Results'!D9&":" ->  | I123: ='Back, Results'!D71 -> 
D125: Total heat price: | I125: ='Back, Results'!D73 -> 
C130: ='Back, Results'!D8 ->  | J130: ='Back, Results'!D9 -> 
D131: Operation Cost
C132: ='Back, Results'!D52 ->  | J132: ='Back, Results'!D53 -> 
D135: Investment Cost
C136: ='Back, Results'!D58 ->  | J136: ='Back, Results'!D59 -> 
D139: Total Cost
C140: ='Back, Results'!D64 ->  | J140: ='Back, Results'!D65 -> 
C149: The financial results are aggregated for the 20-year period. The cost is separated into operation cost and investment cost and includes the cost for the two production technologies. A heat price is determined from the operation cost, the investment cost with an interest rate of x percent and the total heat production. This is illustrated in the cash flow figure for the 20-year period below.
D153: Operation cost for solar & heat storage: | I153: ='Back, Results'!D54 -> 0
D155: Investment cost for solar & heat storage: | I155: ='Back, Results'!D60 -> -1.103726255
D157: Total Cost with solar & heat storage: | I157: ='Back, Results'!D68 -> 
D160: ="Heat price for the "&'Back, Results'!D8&":" ->  | I160: ='Back, Results'!D70 -> 
D162: ="Heat price for the "&'Back, Results'!D9&":" ->  | I162: ='Back, Results'!D71 -> 
D164: Heat Price for Solar & Heat Storage: | I164: ='Back, Results'!D72 -> 
D166: Total heat price: | I166: ='Back, Results'!D74 -> 
T171: Back To Top ↑
C174: Damage Cost
C175: This section presents the damage cost to society from the heating system. The damage cost in this tool is determined based on the fuel consumption and is thereby an indicator of the emissions from the heat production.
C180: ='Back, Results'!D8 ->  | J180: ='Back, Results'!D9 -> 
D181: Damage Cost
C182: ='Back, Additional Data'!CI12 ->  | J182: ='Back, Additional Data'!CJ12 -> 
D185: Minimum Cost
C186: ='Back, Additional Data'!CI13 ->  | J186: ='Back, Additional Data'!CJ13 -> 
D189: Maximum Cost
C190: ='Back, Additional Data'!CI14 ->  | J190: ='Back, Additional Data'!CJ14 -> 
D196: Total damage cost: | I196: =C182+J182 -> 
D198: Total minimum cost: | I198: =C186+J186 -> 
D200: Total maximum cost: | I200: =C190+J190 -> 
R204: Back To Top ↑

Sheet Cost Optimiser
C4: Cost Optimiser
C6: This cost optimiser identifies the most optimal mix of the two production technologies chosen on the input page for the annual district heating demand entered. This cost optimiser does not include the solar heat system as it is an independent heating system where only the solar panels can utilise the storage. The cost optimiser determines the combination of the two technologies with lowest cost as illustrated in the figure to the right. This optimal solution found here will therefore be the optimal solution for any system with the selected annual district heating demand entered on the input page and the two production technologies selected. To see more about how the results are determined, please see the background data page. The results from the cost optimiser are presented below along with the results from the original system, which was entered and specified on the input page. First, the resulting heat prices in the two systems are presented.
D20: Original system heat price: | I20: =IF(Input!BB75=0,'Back, Results'!D73,'Back, Results'!D74) -> 
D23: Optimised system heat price: | I23: =IF(Input!BB75=0,'Back, Results'!E73,'Back, Results'!E74) -> 
C28: Original System | L28: Optimised System
C29: ='Back, Results'!D8 ->  | I29: ='Back, Results'!D9 ->  | L29: ='Back, Results'!D8 ->  | R29: ='Back, Results'!D9 -> 
D30: Capacity | M30: Capacity
C31: ='Back, Results'!D24 -> 16.01883712 | I31: ='Back, Results'!D25 -> 16.01883712 | L31: ='Back, Results'!E24 ->  | R31: ='Back, Results'!E25 -> 
D34: Heat Production | M34: Heat Production
C35: ='Back, Results'!D31 ->  | I35: ='Back, Results'!D32 ->  | L35: ='Back, Results'!E31 ->  | R35: ='Back, Results'!E32 -> 
D38: Fuel Consumption | M38: Fuel Consumption
C39: ='Back, Results'!D37 ->  | I39: ='Back, Results'!D38 ->  | L39: ='Back, Results'!E37 ->  | R39: ='Back, Results'!E38 -> 
D42: CO2-emissions | M42: CO2-emissions
C43: ='Back, Results'!D40 ->  | I43: ='Back, Results'!D41 ->  | L43: ='Back, Results'!E40 ->  | R43: ='Back, Results'!E41 -> 
D46: SO2-emissions | M46: SO2-emissions
C47: ='Back, Results'!D44 ->  | I47: ='Back, Results'!D45 ->  | L47: ='Back, Results'!E44 ->  | R47: ='Back, Results'!E45 -> 
D50: NOx-emission | M50: NOx-emission
C51: ='Back, Results'!D48 ->  | I51: ='Back, Results'!D49 ->  | L51: ='Back, Results'!E48 ->  | R51: ='Back, Results'!E49 -> 
D54: Operation Cost | M54: Operation Cost
C55: ='Back, Results'!D52 ->  | I55: ='Back, Results'!D53 ->  | L55: ='Back, Results'!E53 ->  | R55: ='Back, Results'!E52 -> 
D58: Investment Cost | M58: Investment Cost
C59: ='Back, Results'!D58 ->  | I59: ='Back, Results'!D59 ->  | L59: ='Back, Results'!E58 ->  | R59: ='Back, Results'!E59 -> 
D62: Total Cost | M62: Total Cost
C63: ='Back, Results'!D64 ->  | I63: ='Back, Results'!D65 ->  | L63: ='Back, Results'!E64 ->  | R63: ='Back, Results'!E65 -> 

Sheet Background Data
C4: Here, the background data for the tool can be found. The data is gathered in the background sheets listed below.
C7: Contents
C8: Combined Results
C9: Solar Heat & Heat Storage
C10: Cost Optimiser
C11: Peak Capacity
C12: Regression Model
C13: Data Illustrations
C14: Additional Data

Sheet Contact
C4: This is the team behind the Green District Heating Systems Tool.
F8: Emil Rysholt
F9: Cand. polyt in Energy Technology
G12: emilrysholt@hotmail.com
G14: 61 69 26 17
F18: Mathias Callø Gjøl
F19: Cand. polyt in Energy Technology
G22: mathiasgjoel@hotmail.com
G24: 31 51 34 54

Sheet -

Sheet Back, Results
B4: This sheet contains all the results from both the original system, as it is designed on the input page, and the optimised system, as it is defined by the cost optimiser.
B7: Simulation number: | D7: =VLOOKUP(Input!BB46,'Back, Additional Data'!G12:H23,2,FALSE) -> 
B8: Prod 1: | D8: =VLOOKUP(D7,'Back, Additional Data'!B12:D23,2,FALSE) -> 
B9: Prod 2: | D9: =VLOOKUP(D7,'Back, Additional Data'!B12:D23,3,FALSE) -> 
B10: Prod 1 code: | D10: =$D$7&", "&$D$20 -> 
B11: Prod 2 code: | D11: =$D$7&", "&$D$19 -> 
B12: Prod 1 ID: | D12: =INDEX('Back, Additional Data'!K12:K17,MATCH(D8,'Back, Additional Data'!L12:L17,0)) -> 
B13: Prod 2 ID: | D13: =INDEX('Back, Additional Data'!K12:K17,MATCH(D9,'Back, Additional Data'!L12:L17,0)) -> 
B15: Annual heat demand: | D15: =Input!F21 -> 100000
B16: Solar heat & storage share: | D16: =Input!BI77 -> 0 | E16: =D15*D16 -> 0
B17: Peak capacity incl. solar heat: | D17: =('Back, Peak Capacity'!V15*D15+'Back, Peak Capacity'!V16)*1.1 -> 32.03767423
B18: Peak capacity excl. solar heat: | D18: =('Back, Peak Capacity'!V15*(D15-E16)+'Back, Peak Capacity'!V16)*1.1 -> 32.03767423
B19: Prod 1 capacity: | D19: =Input!F57/100 -> 0.5
B20: Prod 2 capacity: | D20: =1-D19 -> 0.5
C22: Unit | D22: Original System | E22: Optimised System
B23: Capacity
B24: Prod 1 | C24: [MW] | D24: =D19*$D$18 -> 16.01883712 | E24: ='Back, Optimiser'!D12 -> 
B25: Prod 2 | C25: [MW] | D25: =D20*$D$18 -> 16.01883712 | E25: ='Back, Optimiser'!D13 -> 
B26: Total | C26: [MW] | D26: =SUM(D24:D25) -> 32.03767423 | E26: =SUM(E24:E25) -> 
B27: Efficiency
B28: Prod 1 | C28: [%] | D28: =VLOOKUP(D12,'Back, Additional Data'!O12:Q17,3,FALSE) ->  | E28: =VLOOKUP(D12,'Back, Additional Data'!O12:Q17,3,FALSE) -> 
B29: Prod 2 | C29: [%] | D29: =VLOOKUP(D13,'Back, Additional Data'!O12:Q17,3,FALSE) ->  | E29: =VLOOKUP(D13,'Back, Additional Data'!O12:Q17,3,FALSE) -> 
B30: Heat Production
B31: Prod 1 | C31: [MWh] | D31: =IF(VLOOKUP(D10,prod_1_heat_production_table,4,FALSE)*D25+VLOOKUP(D10,prod_1_heat_production_table,5,FALSE)<0,0,VLOOKUP(D10,prod_1_heat_production_table,4,FALSE)*D25+VLOOKUP(D10,prod_1_heat_production_table,5,FALSE)) ->  | E31: ='Back, Optimiser'!D16 -> 
B32: Prod 2 | C32: [MWh] | D32: =IF(VLOOKUP(D11,prod_2_heat_production_table,4,FALSE)*D24+VLOOKUP(D11,prod_2_heat_production_table,5,FALSE)<0,0,VLOOKUP(D11,prod_2_heat_production_table,4,FALSE)*D24+VLOOKUP(D11,prod_2_heat_production_table,5,FALSE)) ->  | E32: ='Back, Optimiser'!D17 -> 
B33: Solar Heat | C33: [MWh] | D33: ='Back, Solar'!AB12 -> 0 | E33: ='Back, Solar'!AB12 -> 0
B34: Total excl. solar | C34: [MWh] | D34: =D31+D32 ->  | E34: =E31+E32 -> 
B35: Total incl. solar | D35: =D34+D33 ->  | E35: =E34+E33 -> 
B36: Fuel Consumption
B37: Prod 1 | C37: [MWh] | D37: =D31/(D28/100) ->  | E37: =E31/(E28/100) -> 
B38: Prod 2 | C38: [MWh] | D38: =D32/(D29/100) ->  | E38: =E32/(E29/100) -> 
B39: CO2-emission
B40: Prod 1 | C40: [kg] | D40: =VLOOKUP(D12,'Back, Additional Data'!S13:W18,3,FALSE)*D37 ->  | E40: =VLOOKUP(D12,'Back, Additional Data'!S13:W18,3,FALSE)*E37 -> 
B41: Prod 2 | C41: [kg] | D41: =VLOOKUP(D13,'Back, Additional Data'!S13:W18,3,FALSE)*D38 ->  | E41: =VLOOKUP(D13,'Back, Additional Data'!S13:W18,3,FALSE)*E38 -> 
B42: Total | C42: [kg] | D42: =D40+D41 ->  | E42: =E40+E41 -> 
B43: SO2-emission
B44: Prod 1 | C44: [kg] | D44: =VLOOKUP(D12,'Back, Additional Data'!S13:W18,4,FALSE)*D37/1000 ->  | E44: =VLOOKUP(D12,'Back, Additional Data'!S13:W18,4,FALSE)*E37/1000 -> 
B45: Prod 2 | C45: [kg] | D45: =VLOOKUP(D13,'Back, Additional Data'!S13:W18,4,FALSE)*D38/1000 ->  | E45: =VLOOKUP(D13,'Back, Additional Data'!S13:W18,4,FALSE)*E38/1000 -> 
B46: Total | C46: [kg] | D46: =D44+D45 ->  | E46: =E44+E45 -> 
B47: NOx-emission
B48: Prod 1 | C48: [kg] | D48: =VLOOKUP(D12,'Back, Additional Data'!S13:W18,5,FALSE)*D37/1000 ->  | E48: =VLOOKUP(D12,'Back, Additional Data'!S13:W18,5,FALSE)*E37/1000 -> 
B49: Prod 2 | C49: [kg] | D49: =VLOOKUP(D13,'Back, Additional Data'!S13:W18,5,FALSE)*D38/1000 ->  | E49: =VLOOKUP(D13,'Back, Additional Data'!S13:W18,5,FALSE)*E38/1000 -> 
B50: Total | C50: [kg] | D50: =D48+D49 ->  | E50: =E48+E49 -> 
B51: Operation Cost
B52: Prod 1 | C52: [DKK] | D52: =IF(VLOOKUP(D10,prod_1_operation_cost_table,4,FALSE)*D25+VLOOKUP(D10,prod_1_operation_cost_table,5,FALSE)<0,0,VLOOKUP(D10,prod_1_operation_cost_table,4,FALSE)*D25+VLOOKUP(D10,prod_1_operation_cost_table,5,FALSE))+'Back, Additional Data'!AU20 ->  | E52: ='Back, Optimiser'!D20 -> 
B53: Prod 2 | C53: [DKK] | D53: =IF(VLOOKUP(D11,prod_2_operation_cost_table,4,FALSE)*D24+VLOOKUP(D11,prod_2_operation_cost_table,5,FALSE)<0,0,VLOOKUP(D11,prod_2_operation_cost_table,4,FALSE)*D24+VLOOKUP(D11,prod_2_operation_cost_table,5,FALSE))+'Back, Additional Data'!AU21 ->  | E53: ='Back, Optimiser'!D21 -> 
B54: Solar Heat | C54: [DKK] | D54: ='Back, Solar'!AB14 -> 0 | E54: ='Back, Solar'!AB14 -> 0
B55: Total excl. solar | C55: [DKK] | D55: =D52+D53 ->  | E55: =E52+E53 -> 
B56: Total incl. solar | C56: [DKK] | D56: =D55+D54 ->  | E56: =E55+E54 -> 
B57: Investment Cost
B58: Prod 1 | C58: [DKK] | D58: ='Back, Additional Data'!BI13 ->  | E58: ='Back, Optimiser'!D24 -> 
B59: Prod 2 | C59: [DKK] | D59: ='Back, Additional Data'!BL13 ->  | E59: ='Back, Optimiser'!D25 -> 
B60: Solar Heat | C60: [DKK] | D60: ='Back, Additional Data'!BS13 -> -1.103726255 | E60: ='Back, Solar'!AB15 -> -1.103726255
B61: Total excl. solar | C61: [DKK] | D61: =D58+D59 ->  | E61: =E58+E59 -> 
B62: Total incl. solar | C62: [DKK] | D62: =D61+D60 ->  | E62: =E61+E60 -> 
B63: Total Cost
B64: Prod 1 | C64: [DKK] | D64: =D52+D58 -> 
B65: Prod 2 | C65: [DKK]
B66: Solar Heat | C66: [DKK] | D66: -1.103726255 | E66: -1.103726255
B67: Total excl. solar | C67: [DKK] | D67: =D64+D65 ->  | E67: =E64+E65 -> 
B68: Total incl. solar | D68: =D67+D66 ->  | E68: =E67+E66 -> 
B69: Heat Price
B70: Prod 1 | C70: [DKK/MWh] | D70: =D64/D31 ->  | E70: =E64/E31 -> 
B71: Prod 2 | C71: [DKK/MWh] | D71: =D65/D32 ->  | E71: =E65/E32 -> 
B72: Solar Heat | C72: [DKK/MWh] | D72: =D66/D33 ->  | E72: =D66/D33 -> 
B73: Total excl. solar | C73: [DKK/MWh] | D73: =D67/D34 ->  | E73: =E67/E34 -> 
B74: Total incl. solar | C74: [DKK/MWh] | D74: =D68/D35 ->  | E74: =E68/E35 -> 

Sheet Back, Solar
B4: This sheet contains the data for the system with the solar heat panels and the heat storage.
B10: Solar Heat | E10: Solar Heat | G10: Thermal Storage | J10: Hour | K10: Normalised Demand | L10: Demand Profile | M10: Normalised Solar | N10: Solar Production | O10: Solar delivery | P10: Excess solar production | Q10: Storage delivery | R10: Storage Content (no start) | S10: Storage Content | U10: Year | V10: Variable O&M | X10: Fixed O&M | AA10: Annual demand: | AB10: ='Back, Results'!E16 -> 0 | AC10: MWh | AE10: System | AF10: Storage | AG10: Solar | AH10: Relation | AI10: Number of
B11: [m2] | C11: [MWh] | E11: [m2] | F11: [MWh] | G11: [m3] | H11: [MWh] | W11: [DKK] | Y11: [DKK] | AA11: Lifetime: | AB11: 20 | AC11: years | AF11: [m3] | AG11: [m2] | AH11: [m3/m2] | AI11: football fields
B12: 25000 | C12: 9982 | E12: 1000 | F12: =$C$16*E12+$C$17 -> 399.3113333 | G12: 2000 | H12: =$C$26*G12+$C$27 -> 92.70805714 | L12: [MWh] | N12: [MWh] | O12: [MWh] | P12: [MWh] | Q12: [MWh] | R12: [MWh] | S12: [MWh] | U12: 1 | V12: 1.61 | W12: =V12*$AB$20 -> 0 | X12: 0.67 | Y12: =X12*$AB$20 -> 0 | AA12: Heat production: | AB12: =AB10*AB11 -> 0 | AC12: MWh | AE12: Your system | AF12: =AB31 -> -0.005 | AG12: =AB22 -> -0.03333333333 | AH12: =AF12/AG12 -> 0.15 | AI12: =AG12/7140 -> -4.66853408e-06
B13: 50000 | C13: 19963.9 | E13: 2000 | F13: 798.5893333 | G13: 4000 | H13: 185.4111143 | J13: 1 | K13: 0.0002032321978 | L13: =K13*$AB$10 -> 0 | M13: 0 | N13: =M13*$AB$10 -> 0 | O13: =IF(N13>L13,L13,N13) -> 0 | P13: =IF(L13<N13,N13-L13,0) -> 0 | Q13: =L13-N13 -> 0 | R13: =0-Q13 -> 0 | S13: =ABS(MIN(R13:R8797)) -> 0 | U13: 2 | V13: 1.66 | W13: 0 | X13: 0.66 | Y13: 0 | AA13: Operation hours: | AB13: =COUNTIF(N13:N8772,">0")*AB11 -> 0 | AC13: hours | AE13: Vojens | AF13: 203000 | AG13: 70000 | AH13: 2.9 | AI13: 9.803921569
B14: 75000 | C14: 29945.9 | E14: 3000 | F14: 1197.867333 | G14: 6000 | H14: 278.1141714 | J14: 2 | K14: 0.0002011322216 | L14: 0 | M14: 0 | N14: 0 | O14: 0 | P14: 0 | Q14: 0 | R14: =R13-Q14 -> 0 | S14: =S13-Q14 -> 0 | U14: 3 | V14: 1.72 | W14: 0 | X14: 0.65 | Y14: 0 | AA14: Operation cost: | AB14: =AB23+AB24+AB32+AB33 -> 0 | AC14: DKK | AE14: Gram | AF14: 122000 | AG14: 44836 | AH14: 2.721027746 | AI14: 6.279551821
E15: 4000 | F15: 1597.145333 | G15: 8000 | H15: 370.8172286 | J15: 3 | K15: 0.0001990322454 | L15: 0 | M15: 0 | N15: 0 | O15: 0 | P15: 0 | Q15: 0 | R15: 0 | S15: 0 | U15: 4 | V15: 1.77 | W15: 0 | X15: 0.65 | Y15: 0 | AA15: Investment cost: | AB15: =AB26+AB35 -> -1.103726255 | AC15: DKK | AE15: Toftlund | AF15: 85000 | AG15: 26000 | AH15: 3.269230769 | AI15: 3.641456583
B16: a: | C16: =SLOPE(C12:C14,B12:B14) -> 0.399278 | E16: 5000 | F16: 1996.423333 | G16: 10000 | H16: 463.5202857 | J16: 4 | K16: 0.0001955322851 | L16: 0 | M16: 0 | N16: 0 | O16: 0 | P16: 0 | Q16: 0 | R16: 0 | S16: 0 | U16: 5 | V16: 1.82 | W16: 0 | X16: 0.64 | Y16: 0 | AA16: Total cost: | AB16: =AB14+AB15 -> -1.103726255 | AC16: DKK | AE16: Dronninglund | AF16: 62000 | AG16: 37573 | AH16: 1.650121098 | AI16: 5.26232493
B17: b: | C17: =INTERCEPT(C12:C14,B12:B14) -> 0.03333333333 | E17: 6000 | F17: 2395.701333 | G17: 12000 | H17: 556.2233429 | J17: 5 | K17: 0.0001871323803 | L17: 0 | M17: 0 | N17: 0 | O17: 0 | P17: 0 | Q17: 0 | R17: 0 | S17: 0 | U17: 6 | V17: 1.87 | W17: 0 | X17: 0.63 | Y17: 0 | AA17: Heat Price: | AB17: =AB16/(AB10*AB11) ->  | AC17: DKK/MWh | AE17: Marstal | AF17: 75000 | AG17: 33000 | AH17: 2.272727273 | AI17: 4.621848739
B18: R2: | C18: =1-(SUM((C12-F36)^2+(C13-F61)^2+(C14-F86)^2)/((COUNT(B12:B14)-1)*_xlfn.VAR.S(C12:C14))) -> 1 | E18: 7000 | F18: 2794.979333 | G18: 14000 | H18: 648.9264 | J18: 6 | K18: 0.0001808324517 | L18: 0 | M18: 0 | N18: 0 | O18: 0 | P18: 0 | Q18: 0 | R18: 0 | S18: 0 | U18: 7 | V18: 1.92 | W18: 0 | X18: 0.62 | Y18: 0
E19: 8000 | F19: 3194.257333 | G19: 16000 | H19: 741.6294571 | J19: 7 | K19: 0.0001752325152 | L19: 0 | M19: 0 | N19: 0 | O19: 0 | P19: 0 | Q19: 0 | R19: 0 | S19: 0 | U19: 8 | V19: 1.98 | W19: 0 | X19: 0.62 | Y19: 0 | AA19: Solar Heat
B20: Heat Storage | E20: 9000 | F20: 3593.535333 | G20: 18000 | H20: 834.3325143 | J20: 8 | K20: 0.0001717325549 | L20: 0 | M20: 0 | N20: 0 | O20: 0 | P20: 0 | Q20: 0 | R20: 0 | S20: 0 | U20: 9 | V20: 2.03 | W20: 0 | X20: 0.61 | Y20: 0 | AA20: Solar production: | AB20: =SUM(N13:N8797) -> 0 | AC20: MWh
B21: [m3] | C21: [MWh] | E21: 10000 | F21: 3992.813333 | G21: 20000 | H21: 927.0355714 | J21: 9 | K21: 0.000173132539 | L21: 0 | M21: 0 | N21: 0 | O21: 0 | P21: 0 | Q21: 0 | R21: 0 | S21: 0 | U21: 10 | V21: 2.08 | W21: 0 | X21: 0.6 | Y21: 0 | AA21: Capacity: | AB21: =MAX(N13:N8772) -> 0 | AC21: MW
B22: 50000 | C22: 2317.58 | E22: 11000 | F22: 4392.091333 | G22: 22000 | H22: 1019.738629 | J22: 10 | K22: 0.0001717325549 | L22: 0 | M22: 0 | N22: 0 | O22: 0 | P22: 0 | Q22: 0 | R22: 0 | S22: 0 | U22: 11 | V22: 2.13 | W22: 0 | X22: 0.6 | Y22: 0 | AA22: Solar area: | AB22: =(AB20/C16)-C17 -> -0.03333333333 | AC22: m2
B23: 100000 | C23: 4635.16 | E23: 12000 | F23: 4791.369333 | G23: 24000 | H23: 1112.441686 | J23: 11 | K23: 0.0001675326025 | L23: 0 | M23: 0 | N23: 0 | O23: 0 | P23: 0 | Q23: 0 | R23: 0 | S23: 0 | U23: 12 | V23: 2.18 | W23: 0 | X23: 0.6 | Y23: 0 | AA23: Fixed O&M: | AB23: =$Y$32 -> 0 | AC23: DKK
B24: 200000 | C24: 9270.31 | E24: 13000 | F24: 5190.647333 | G24: 26000 | H24: 1205.144743 | J24: 12 | K24: 0.000161232674 | L24: 0 | M24: 0.0002582111735 | N24: 0 | O24: 0 | P24: 0 | Q24: 0 | R24: 0 | S24: 0 | U24: 13 | V24: 2.24 | W24: 0 | X24: 0.6 | Y24: 0 | AA24: Variable O&M: | AB24: =$W$32 -> 0 | AC24: DKK
E25: 14000 | F25: 5589.925333 | G25: 28000 | H25: 1297.8478 | J25: 13 | K25: 0.0001549327454 | L25: 0 | M25: 0 | N25: 0 | O25: 0 | P25: 0 | Q25: 0 | R25: 0 | S25: 0 | U25: 14 | V25: 2.29 | W25: 0 | X25: 0.6 | Y25: 0 | AA25: Investment cost: | AB25: 2942 | AC25: DKK/MWh/year
B26: a: | C26: =SLOPE(C22:C24,B22:B24) -> 0.04635152857 | E26: 15000 | F26: 5989.203333 | G26: 30000 | H26: 1390.550857 | J26: 14 | K26: 0.0001528327692 | L26: 0 | M26: 0 | N26: 0 | O26: 0 | P26: 0 | Q26: 0 | R26: 0 | S26: 0 | U26: 15 | V26: 2.34 | W26: 0 | X26: 0.6 | Y26: 0 | AB26: =PMT(AB38,AB39,-1*AB25*AB20,0)*AB39 -> 0 | AC26: DKK
B27: b: | C27: =INTERCEPT(C22:C24,B22:B24) -> 0.005 | E27: 16000 | F27: 6388.481333 | G27: 32000 | H27: 1483.253914 | J27: 15 | K27: 0.0001528327692 | L27: 0 | M27: 0 | N27: 0 | O27: 0 | P27: 0 | Q27: 0 | R27: 0 | S27: 0 | U27: 16 | V27: 2.39 | W27: 0 | X27: 0.6 | Y27: 0 | AA27: Total cost: | AB27: =AB26+AB24+AB23 -> 0 | AC27: DKK
B28: R2: | C28: =1-(SUM((C22-H36)^2+(C23-H61)^2+(C24-H111)^2)/((COUNT(B22:B24)-1)*_xlfn.VAR.S(C22:C24))) -> 1 | E28: 17000 | F28: 6787.759333 | G28: 34000 | H28: 1575.956971 | J28: 16 | K28: 0.0001521327771 | L28: 0 | M28: 0 | N28: 0 | O28: 0 | P28: 0 | Q28: 0 | R28: 0 | S28: 0 | U28: 17 | V28: 2.45 | W28: 0 | X28: 0.6 | Y28: 0
E29: 18000 | F29: 7187.037333 | G29: 36000 | H29: 1668.660029 | J29: 17 | K29: 0.0001514327851 | L29: 0 | M29: 0 | N29: 0 | O29: 0 | P29: 0 | Q29: 0 | R29: 0 | S29: 0 | U29: 18 | V29: 2.5 | W29: 0 | X29: 0.6 | Y29: 0 | AA29: Thermal Storage
E30: 19000 | F30: 7586.315333 | G30: 38000 | H30: 1761.363086 | J30: 18 | K30: 0.000150032801 | L30: 0 | M30: 0 | N30: 0 | O30: 0 | P30: 0 | Q30: 0 | R30: 0 | S30: 0 | U30: 19 | V30: 2.55 | W30: 0 | X30: 0.6 | Y30: 0 | AA30: Storage capacity: | AB30: =MAX(S13:S8797) -> 0 | AC30: MWh
E31: 20000 | F31: 7985.593333 | G31: 40000 | H31: 1854.066143 | J31: 19 | K31: 0.000150032801 | L31: 0 | M31: 0 | N31: 0 | O31: 0 | P31: 0 | Q31: 0 | R31: 0 | S31: 0 | U31: 20 | V31: 2.6 | W31: 0 | X31: 0.6 | Y31: 0 | AA31: Storage size: | AB31: =(AB30/C26)-C27 -> -0.005 | AC31: m3
E32: 21000 | F32: 8384.871333 | G32: 42000 | H32: 1946.7692 | J32: 20 | K32: 0.0001556327375 | L32: 0 | M32: 0 | N32: 0 | O32: 0 | P32: 0 | Q32: 0 | R32: 0 | S32: 0 | U32: Total: | W32: =SUM(W12:W31) -> 0 | Y32: =SUM(Y12:Y31) -> 0 | AA32: Fixed O&M: | AB32: 0 | AC32: DKK/MWh
E33: 22000 | F33: 8784.149333 | G33: 44000 | H33: 2039.472257 | J33: 21 | K33: 0.0001570327216 | L33: 0 | M33: 0 | N33: 0 | O33: 0 | P33: 0 | Q33: 0 | R33: 0 | S33: 0 | AA33: Variable O&M | AB33: 0 | AC33: DKK/MW-th
E34: 23000 | F34: 9183.427333 | G34: 46000 | H34: 2132.175314 | J34: 22 | K34: 0.0001528327692 | L34: 0 | M34: 0 | N34: 0 | O34: 0 | P34: 0 | Q34: 0 | R34: 0 | S34: 0 | AA34: Investment cost: | AB34: 150 | AC34: DKK/m3
E35: 24000 | F35: 9582.705333 | G35: 48000 | H35: 2224.878371 | J35: 23 | K35: 0.0001451328565 | L35: 0 | M35: 0 | N35: 0 | O35: 0 | P35: 0 | Q35: 0 | R35: 0 | S35: 0 | AB35: =PMT(AB38,AB39,-1*AB34*AB31,0)*AB39 -> -1.103726255 | AC35: DKK
E36: 25000 | F36: 9981.983333 | G36: 50000 | H36: 2317.581429 | J36: 24 | K36: 0.0001472328327 | L36: 0 | M36: 0 | N36: 0 | O36: 0 | P36: 0 | Q36: 0 | R36: 0 | S36: 0 | AA36: Total cost: | AB36: =AB35+AB33+AB32 -> -1.103726255 | AC36: DKK
E37: 26000 | F37: 10381.26133 | G37: 52000 | H37: 2410.284486 | J37: 25 | K37: 0.000150032801 | L37: 0 | M37: 0 | N37: 0 | O37: 0 | P37: 0 | Q37: 0 | R37: 0 | S37: 0
E38: 27000 | F38: 10780.53933 | G38: 54000 | H38: 2502.987543 | J38: 26 | K38: 0.0001542327533 | L38: 0 | M38: 0 | N38: 0 | O38: 0 | P38: 0 | Q38: 0 | R38: 0 | S38: 0 | AA38: Interest rate: | AB38: ='Back, Additional Data'!BF14 -> 0.04
E39: 28000 | F39: 11179.81733 | G39: 56000 | H39: 2595.6906 | J39: 27 | K39: 0.0001591326978 | L39: 0 | M39: 0 | N39: 0 | O39: 0 | P39: 0 | Q39: 0 | R39: 0 | S39: 0 | AA39: Years: | AB39: 20 | AC39: years
E40: 29000 | F40: 11579.09533 | G40: 58000 | H40: 2688.393657 | J40: 28 | K40: 0.000161232674 | L40: 0 | M40: 0 | N40: 0 | O40: 0 | P40: 0 | Q40: 0 | R40: 0 | S40: 0
E41: 30000 | F41: 11978.37333 | G41: 60000 | H41: 2781.096714 | J41: 29 | K41: 0.0001654326263 | L41: 0 | M41: 0 | N41: 0 | O41: 0 | P41: 0 | Q41: 0 | R41: 0 | S41: 0
E42: 31000 | F42: 12377.65133 | G42: 62000 | H42: 2873.799771 | J42: 30 | K42: 0.000172432547 | L42: 0 | M42: 0 | N42: 0 | O42: 0 | P42: 0 | Q42: 0 | R42: 0 | S42: 0
E43: 32000 | F43: 12776.92933 | G43: 64000 | H43: 2966.502829 | J43: 31 | K43: 0.000173132539 | L43: 0 | M43: 0 | N43: 0 | O43: 0 | P43: 0 | Q43: 0 | R43: 0 | S43: 0
E44: 33000 | F44: =$C$16*E44+$C$17 -> 13176.20733 | G44: 66000 | H44: =$C$26*G44+$C$27 -> 3059.205886 | J44: 32 | K44: 0.0001773324914 | L44: 0 | M44: 0 | N44: 0 | O44: 0 | P44: 0 | Q44: 0 | R44: 0 | S44: 0
E45: 34000 | F45: 13575.48533 | G45: 68000 | H45: 3151.908943 | J45: 33 | K45: 0.00018363242 | L45: 0 | M45: 0 | N45: 0 | O45: 0 | P45: 0 | Q45: 0 | R45: 0 | S45: 0
E46: 35000 | F46: 13974.76333 | G46: 70000 | H46: 3244.612 | J46: 34 | K46: 0.0001829324279 | L46: 0 | M46: 0 | N46: 0 | O46: 0 | P46: 0 | Q46: 0 | R46: 0 | S46: 0
E47: 36000 | F47: 14374.04133 | G47: 72000 | H47: 3337.315057 | J47: 35 | K47: 0.0001738325311 | L47: 0 | M47: 0.0001792144609 | N47: 0 | O47: 0 | P47: 0 | Q47: 0 | R47: 0 | S47: 0
E48: 37000 | F48: 14773.31933 | G48: 74000 | H48: 3430.018114 | J48: 36 | K48: 0.0001654326263 | L48: 0 | M48: 0.0004853527235 | N48: 0 | O48: 0 | P48: 0 | Q48: 0 | R48: 0 | S48: 0
E49: 38000 | F49: 15172.59733 | G49: 76000 | H49: 3522.721171 | J49: 37 | K49: 0.000161232674 | L49: 0 | M49: 0.0006030179155 | N49: 0 | O49: 0 | P49: 0 | Q49: 0 | R49: 0 | S49: 0
E50: 39000 | F50: 15571.87533 | G50: 78000 | H50: 3615.424229 | J50: 38 | K50: 0.0001605326819 | L50: 0 | M50: 0.0005195734488 | N50: 0 | O50: 0 | P50: 0 | Q50: 0 | R50: 0 | S50: 0
E51: 40000 | F51: 15971.15333 | G51: 80000 | H51: 3708.127286 | J51: 39 | K51: 0.000161932666 | L51: 0 | M51: 0.0002368306875 | N51: 0 | O51: 0 | P51: 0 | Q51: 0 | R51: 0 | S51: 0
E52: 41000 | F52: 16370.43133 | G52: 82000 | H52: 3800.830343 | J52: 40 | K52: 0.0001766324994 | L52: 0 | M52: 0 | N52: 0 | O52: 0 | P52: 0 | Q52: 0 | R52: 0 | S52: 0
E53: 42000 | F53: 16769.70933 | G53: 84000 | H53: 3893.5334 | J53: 41 | K53: 0.0001976322612 | L53: 0 | M53: 0 | N53: 0 | O53: 0 | P53: 0 | Q53: 0 | R53: 0 | S53: 0
E54: 43000 | F54: 17168.98733 | G54: 86000 | H54: 3986.236457 | J54: 42 | K54: 0.0001990322454 | L54: 0 | M54: 0 | N54: 0 | O54: 0 | P54: 0 | Q54: 0 | R54: 0 | S54: 0
E55: 44000 | F55: 17568.26533 | G55: 88000 | H55: 4078.939514 | J55: 43 | K55: 0.0001962322771 | L55: 0 | M55: 0 | N55: 0 | O55: 0 | P55: 0 | Q55: 0 | R55: 0 | S55: 0
E56: 45000 | F56: 17967.54333 | G56: 90000 | H56: 4171.642571 | J56: 44 | K56: 0.0001927323168 | L56: 0 | M56: 0 | N56: 0 | O56: 0 | P56: 0 | Q56: 0 | R56: 0 | S56: 0
E57: 46000 | F57: 18366.82133 | G57: 92000 | H57: 4264.345629 | J57: 45 | K57: 0.0002025322057 | L57: 0 | M57: 0 | N57: 0 | O57: 0 | P57: 0 | Q57: 0 | R57: 0 | S57: 0
E58: 47000 | F58: 18766.09933 | G58: 94000 | H58: 4357.048686 | J58: 46 | K58: 0.0002088321343 | L58: 0 | M58: 0 | N58: 0 | O58: 0 | P58: 0 | Q58: 0 | R58: 0 | S58: 0
E59: 48000 | F59: 19165.37733 | G59: 96000 | H59: 4449.751743 | J59: 47 | K59: 0.0002102321184 | L59: 0 | M59: 0 | N59: 0 | O59: 0 | P59: 0 | Q59: 0 | R59: 0 | S59: 0
E60: 49000 | F60: 19564.65533 | G60: 98000 | H60: 4542.4548 | J60: 48 | K60: 0.0002130320866 | L60: 0 | M60: 0 | N60: 0 | O60: 0 | P60: 0 | Q60: 0 | R60: 0 | S60: 0
E61: 50000 | F61: 19963.93333 | G61: 100000 | H61: 4635.157857 | J61: 49 | K61: 0.0002102321184 | L61: 0 | M61: 0 | N61: 0 | O61: 0 | P61: 0 | Q61: 0 | R61: 0 | S61: 0
E62: 51000 | F62: 20363.21133 | G62: 102000 | H62: 4727.860914 | J62: 50 | K62: 0.0002074321501 | L62: 0 | M62: 0 | N62: 0 | O62: 0 | P62: 0 | Q62: 0 | R62: 0 | S62: 0
E63: 52000 | F63: 20762.48933 | G63: 104000 | H63: 4820.563971 | J63: 51 | K63: 0.0002067321581 | L63: 0 | M63: 0 | N63: 0 | O63: 0 | P63: 0 | Q63: 0 | R63: 0 | S63: 0
E64: 53000 | F64: 21161.76733 | G64: 106000 | H64: 4913.267029 | J64: 52 | K64: 0.0002046321819 | L64: 0 | M64: 0 | N64: 0 | O64: 0 | P64: 0 | Q64: 0 | R64: 0 | S64: 0
E65: 54000 | F65: 21561.04533 | G65: 108000 | H65: 5005.970086 | J65: 53 | K65: 0.0001990322454 | L65: 0 | M65: 0 | N65: 0 | O65: 0 | P65: 0 | Q65: 0 | R65: 0 | S65: 0
E66: 55000 | F66: 21960.32333 | G66: 110000 | H66: 5098.673143 | J66: 54 | K66: 0.0001906323406 | L66: 0 | M66: 0 | N66: 0 | O66: 0 | P66: 0 | Q66: 0 | R66: 0 | S66: 0
E67: 56000 | F67: 22359.60133 | G67: 112000 | H67: 5191.3762 | J67: 55 | K67: 0.0001801324597 | L67: 0 | M67: 0 | N67: 0 | O67: 0 | P67: 0 | Q67: 0 | R67: 0 | S67: 0
E68: 57000 | F68: 22758.87933 | G68: 114000 | H68: 5284.079257 | J68: 56 | K68: 0.0001703325708 | L68: 0 | M68: 0 | N68: 0 | O68: 0 | P68: 0 | Q68: 0 | R68: 0 | S68: 0
E69: 58000 | F69: 23158.15733 | G69: 116000 | H69: 5376.782314 | J69: 57 | K69: 0.0001640326422 | L69: 0 | M69: 0 | N69: 0 | O69: 0 | P69: 0 | Q69: 0 | R69: 0 | S69: 0
E70: 59000 | F70: 23557.43533 | G70: 118000 | H70: 5469.485371 | J70: 58 | K70: 0.0001528327692 | L70: 0 | M70: 0 | N70: 0 | O70: 0 | P70: 0 | Q70: 0 | R70: 0 | S70: 0
E71: 60000 | F71: 23956.71333 | G71: 120000 | H71: 5562.188429 | J71: 59 | K71: 0.000150732793 | L71: 0 | M71: 0 | N71: 0 | O71: 0 | P71: 0 | Q71: 0 | R71: 0 | S71: 0
E72: 61000 | F72: 24355.99133 | G72: 122000 | H72: 5654.891486 | J72: 60 | K72: 0.0001430328803 | L72: 0 | M72: 0 | N72: 0 | O72: 0 | P72: 0 | Q72: 0 | R72: 0 | S72: 0
E73: 62000 | F73: 24755.26933 | G73: 124000 | H73: 5747.594543 | J73: 61 | K73: 0.0001374329438 | L73: 0 | M73: 0 | N73: 0 | O73: 0 | P73: 0 | Q73: 0 | R73: 0 | S73: 0
E74: 63000 | F74: 25154.54733 | G74: 126000 | H74: 5840.2976 | J74: 62 | K74: 0.0001353329676 | L74: 0 | M74: 0 | N74: 0 | O74: 0 | P74: 0 | Q74: 0 | R74: 0 | S74: 0
E75: 64000 | F75: 25553.82533 | G75: 128000 | H75: 5933.000657 | J75: 63 | K75: 0.0001346329756 | L75: 0 | M75: 0 | N75: 0 | O75: 0 | P75: 0 | Q75: 0 | R75: 0 | S75: 0
E76: 65000 | F76: =$C$16*E76+$C$17 -> 25953.10333 | G76: 130000 | H76: =$C$26*G76+$C$27 -> 6025.703714 | J76: 64 | K76: 0.0001339329835 | L76: 0 | M76: 0 | N76: 0 | O76: 0 | P76: 0 | Q76: 0 | R76: 0 | S76: 0
E77: 66000 | F77: 26352.38133 | G77: 132000 | H77: 6118.406771 | J77: 65 | K77: 0.0001318330073 | L77: =K77*$AB$10 -> 0 | M77: 0 | N77: =M77*$AB$10 -> 0 | O77: =IF(N77>L77,L77,N77) -> 0 | P77: =IF(L77<N77,N77-L77,0) -> 0 | Q77: =L77-N77 -> 0 | R77: 0 | S77: 0
E78: 67000 | F78: 26751.65933 | G78: 134000 | H78: 6211.109829 | J78: 66 | K78: 0.0001318330073 | L78: 0 | M78: 0 | N78: 0 | O78: 0 | P78: 0 | Q78: 0 | R78: =R77-Q78 -> 0 | S78: =S77-Q78 -> 0
E79: 68000 | F79: 27150.93733 | G79: 136000 | H79: 6303.812886 | J79: 67 | K79: 0.0001311330153 | L79: 0 | M79: 0 | N79: 0 | O79: 0 | P79: 0 | Q79: 0 | R79: 0 | S79: 0
E80: 69000 | F80: 27550.21533 | G80: 138000 | H80: 6396.515943 | J80: 68 | K80: 0.0001297330311 | L80: 0 | M80: 0 | N80: 0 | O80: 0 | P80: 0 | Q80: 0 | R80: 0 | S80: 0
E81: 70000 | F81: 27949.49333 | G81: 140000 | H81: 6489.219 | J81: 69 | K81: 0.0001297330311 | L81: 0 | M81: 0 | N81: 0 | O81: 0 | P81: 0 | Q81: 0 | R81: 0 | S81: 0
E82: 71000 | F82: 28348.77133 | G82: 142000 | H82: 6581.922057 | J82: 70 | K82: 0.0001304330232 | L82: 0 | M82: 0 | N82: 0 | O82: 0 | P82: 0 | Q82: 0 | R82: 0 | S82: 0
E83: 72000 | F83: 28748.04933 | G83: 144000 | H83: 6674.625114 | J83: 71 | K83: 0.0001304330232 | L83: 0 | M83: 0 | N83: 0 | O83: 0 | P83: 0 | Q83: 0 | R83: 0 | S83: 0
E84: 73000 | F84: 29147.32733 | G84: 146000 | H84: 6767.328171 | J84: 72 | K84: 0.0001325329994 | L84: 0 | M84: 0 | N84: 0 | O84: 0 | P84: 0 | Q84: 0 | R84: 0 | S84: 0
E85: 74000 | F85: 29546.60533 | G85: 148000 | H85: 6860.031229 | J85: 73 | K85: 0.0001353329676 | L85: 0 | M85: 0 | N85: 0 | O85: 0 | P85: 0 | Q85: 0 | R85: 0 | S85: 0
E86: 75000 | F86: 29945.88333 | G86: 150000 | H86: 6952.734286 | J86: 74 | K86: 0.0001374329438 | L86: 0 | M86: 0 | N86: 0 | O86: 0 | P86: 0 | Q86: 0 | R86: 0 | S86: 0
E87: 76000 | F87: 30345.16133 | G87: 152000 | H87: 7045.437343 | J87: 75 | K87: 0.0001353329676 | L87: 0 | M87: 0 | N87: 0 | O87: 0 | P87: 0 | Q87: 0 | R87: 0 | S87: 0
E88: 77000 | F88: 30744.43933 | G88: 154000 | H88: 7138.1404 | J88: 76 | K88: 0.0001332329914 | L88: 0 | M88: 0 | N88: 0 | O88: 0 | P88: 0 | Q88: 0 | R88: 0 | S88: 0
E89: 78000 | F89: 31143.71733 | G89: 156000 | H89: 7230.843457 | J89: 77 | K89: 0.0001311330153 | L89: 0 | M89: 0 | N89: 0 | O89: 0 | P89: 0 | Q89: 0 | R89: 0 | S89: 0
E90: 79000 | F90: 31542.99533 | G90: 158000 | H90: 7323.546514 | J90: 78 | K90: 0.0001304330232 | L90: 0 | M90: 0 | N90: 0 | O90: 0 | P90: 0 | Q90: 0 | R90: 0 | S90: 0
E91: 80000 | F91: 31942.27333 | G91: 160000 | H91: 7416.249571 | J91: 79 | K91: 0.0001311330153 | L91: 0 | M91: 0 | N91: 0 | O91: 0 | P91: 0 | Q91: 0 | R91: 0 | S91: 0
E92: 81000 | F92: 32341.55133 | G92: 162000 | H92: 7508.952629 | J92: 80 | K92: 0.0001339329835 | L92: 0 | M92: 0 | N92: 0 | O92: 0 | P92: 0 | Q92: 0 | R92: 0 | S92: 0
E93: 82000 | F93: 32740.82933 | G93: 164000 | H93: 7601.655686 | J93: 81 | K93: 0.0001381329359 | L93: 0 | M93: 0 | N93: 0 | O93: 0 | P93: 0 | Q93: 0 | R93: 0 | S93: 0
E94: 83000 | F94: 33140.10733 | G94: 166000 | H94: 7694.358743 | J94: 82 | K94: 0.000138832928 | L94: 0 | M94: 0 | N94: 0 | O94: 0 | P94: 0 | Q94: 0 | R94: 0 | S94: 0
E95: 84000 | F95: 33539.38533 | G95: 168000 | H95: 7787.0618 | J95: 83 | K95: 0.0001339329835 | L95: 0 | M95: 0.0001199854075 | N95: 0 | O95: 0 | P95: 0 | Q95: 0 | R95: 0 | S95: 0
E96: 85000 | F96: 33938.66333 | G96: 170000 | H96: 7879.764857 | J96: 84 | K96: 0.0001304330232 | L96: 0 | M96: 0.0004096367131 | N96: 0 | O96: 0 | P96: 0 | Q96: 0 | R96: 0 | S96: 0
E97: 86000 | F97: 34337.94133 | G97: 172000 | H97: 7972.467914 | J97: 85 | K97: 0.0001290330391 | L97: 0 | M97: 0.0003281876871 | N97: 0 | O97: 0 | P97: 0 | Q97: 0 | R97: 0 | S97: 0
E98: 87000 | F98: 34737.21933 | G98: 174000 | H98: 8065.170971 | J98: 86 | K98: 0.0001290330391 | L98: 0 | M98: 0 | N98: 0 | O98: 0 | P98: 0 | Q98: 0 | R98: 0 | S98: 0
E99: 88000 | F99: 35136.49733 | G99: 176000 | H99: 8157.874029 | J99: 87 | K99: 0.0001297330311 | L99: 0 | M99: 0 | N99: 0 | O99: 0 | P99: 0 | Q99: 0 | R99: 0 | S99: 0
E100: 89000 | F100: 35535.77533 | G100: 178000 | H100: 8250.577086 | J100: 88 | K100: 0.0001304330232 | L100: 0 | M100: 0 | N100: 0 | O100: 0 | P100: 0 | Q100: 0 | R100: 0 | S100: 0
E101: 90000 | F101: 35935.05333 | G101: 180000 | H101: 8343.280143 | J101: 89 | K101: 0.0001318330073 | L101: 0 | M101: 0 | N101: 0 | O101: 0 | P101: 0 | Q101: 0 | R101: 0 | S101: 0
E102: 91000 | F102: 36334.33133 | G102: 182000 | H102: 8435.9832 | J102: 90 | K102: 0.0001318330073 | L102: 0 | M102: 0 | N102: 0 | O102: 0 | P102: 0 | Q102: 0 | R102: 0 | S102: 0
E103: 92000 | F103: 36733.60933 | G103: 184000 | H103: 8528.686257 | J103: 91 | K103: 0.0001325329994 | L103: 0 | M103: 0 | N103: 0 | O103: 0 | P103: 0 | Q103: 0 | R103: 0 | S103: 0
E104: 93000 | F104: 37132.88733 | G104: 186000 | H104: 8621.389314 | J104: 92 | K104: 0.0001332329914 | L104: 0 | M104: 0 | N104: 0 | O104: 0 | P104: 0 | Q104: 0 | R104: 0 | S104: 0
E105: 94000 | F105: 37532.16533 | G105: 188000 | H105: 8714.092371 | J105: 93 | K105: 0.0001339329835 | L105: 0 | M105: 0 | N105: 0 | O105: 0 | P105: 0 | Q105: 0 | R105: 0 | S105: 0
E106: 95000 | F106: 37931.44333 | G106: 190000 | H106: 8806.795429 | J106: 94 | K106: 0.0001339329835 | L106: 0 | M106: 0 | N106: 0 | O106: 0 | P106: 0 | Q106: 0 | R106: 0 | S106: 0
E107: 96000 | F107: 38330.72133 | G107: 192000 | H107: 8899.498486 | J107: 95 | K107: 0.0001339329835 | L107: 0 | M107: 0 | N107: 0 | O107: 0 | P107: 0 | Q107: 0 | R107: 0 | S107: 0
E108: 97000 | F108: =$C$16*E108+$C$17 -> 38729.99933 | G108: 194000 | H108: =$C$26*G108+$C$27 -> 8992.201543 | J108: 96 | K108: 0.0001339329835 | L108: 0 | M108: 0 | N108: 0 | O108: 0 | P108: 0 | Q108: 0 | R108: 0 | S108: 0
E109: 98000 | F109: =$C$16*E109+$C$17 -> 39129.27733 | G109: 196000 | H109: =$C$26*G109+$C$27 -> 9084.9046 | J109: 97 | K109: 0.0001346329756 | L109: 0 | M109: 0 | N109: 0 | O109: 0 | P109: 0 | Q109: 0 | R109: 0 | S109: 0
E110: 99000 | F110: =$C$16*E110+$C$17 -> 39528.55533 | G110: 198000 | H110: =$C$26*G110+$C$27 -> 9177.607657 | J110: 98 | K110: 0.0001360329597 | L110: 0 | M110: 0 | N110: 0 | O110: 0 | P110: 0 | Q110: 0 | R110: 0 | S110: 0
E111: 100000 | F111: =$C$16*E111+$C$17 -> 39927.83333 | G111: 200000 | H111: =$C$26*G111+$C$27 -> 9270.310714 | J111: 99 | K111: 0.0001374329438 | L111: 0 | M111: 0 | N111: 0 | O111: 0 | P111: 0 | Q111: 0 | R111: 0 | S111: 0
J112: 100 | K112: 0.0001374329438 | L112: 0 | M112: 0 | N112: 0 | O112: 0 | P112: 0 | Q112: 0 | R112: 0 | S112: 0
J113: 101 | K113: 0.000138832928 | L113: 0 | M113: 0 | N113: 0 | O113: 0 | P113: 0 | Q113: 0 | R113: 0 | S113: 0
J114: 102 | K114: 0.0001402329121 | L114: 0 | M114: 0 | N114: 0 | O114: 0 | P114: 0 | Q114: 0 | R114: 0 | S114: 0
J115: 103 | K115: 0.0001430328803 | L115: 0 | M115: 0 | N115: 0 | O115: 0 | P115: 0 | Q115: 0 | R115: 0 | S115: 0
J116: 104 | K116: 0.0001437328724 | L116: 0 | M116: 0 | N116: 0 | O116: 0 | P116: 0 | Q116: 0 | R116: 0 | S116: 0
J117: 105 | K117: 0.0001451328565 | L117: 0 | M117: 0 | N117: 0 | O117: 0 | P117: 0 | Q117: 0 | R117: 0 | S117: 0
J118: 106 | K118: 0.0001451328565 | L118: 0 | M118: 0 | N118: 0 | O118: 0 | P118: 0 | Q118: 0 | R118: 0 | S118: 0
J119: 107 | K119: 0.0001444328645 | L119: 0 | M119: 0 | N119: 0 | O119: 0 | P119: 0 | Q119: 0 | R119: 0 | S119: 0
J120: 108 | K120: 0.0001423328883 | L120: 0 | M120: 0 | N120: 0 | O120: 0 | P120: 0 | Q120: 0 | R120: 0 | S120: 0
J121: 109 | K121: 0.0001409329041 | L121: 0 | M121: 0 | N121: 0 | O121: 0 | P121: 0 | Q121: 0 | R121: 0 | S121: 0
J122: 110 | K122: 0.0001381329359 | L122: 0 | M122: 0 | N122: 0 | O122: 0 | P122: 0 | Q122: 0 | R122: 0 | S122: 0
J123: 111 | K123: 0.0001381329359 | L123: 0 | M123: 0 | N123: 0 | O123: 0 | P123: 0 | Q123: 0 | R123: 0 | S123: 0
J124: 112 | K124: 0.00013953292 | L124: 0 | M124: 0 | N124: 0 | O124: 0 | P124: 0 | Q124: 0 | R124: 0 | S124: 0
J125: 113 | K125: 0.0001430328803 | L125: 0 | M125: 0 | N125: 0 | O125: 0 | P125: 0 | Q125: 0 | R125: 0 | S125: 0
J126: 114 | K126: 0.0001479328248 | L126: 0 | M126: 0 | N126: 0 | O126: 0 | P126: 0 | Q126: 0 | R126: 0 | S126: 0
J127: 115 | K127: 0.000150732793 | L127: 0 | M127: 0 | N127: 0 | O127: 0 | P127: 0 | Q127: 0 | R127: 0 | S127: 0
J128: 116 | K128: 0.0001563327295 | L128: 0 | M128: 0 | N128: 0 | O128: 0 | P128: 0 | Q128: 0 | R128: 0 | S128: 0
J129: 117 | K129: 0.0001633326502 | L129: 0 | M129: 0 | N129: 0 | O129: 0 | P129: 0 | Q129: 0 | R129: 0 | S129: 0
J130: 118 | K130: 0.0001647326343 | L130: 0 | M130: 0 | N130: 0 | O130: 0 | P130: 0 | Q130: 0 | R130: 0 | S130: 0
J131: 119 | K131: 0.0001647326343 | L131: 0 | M131: 0 | N131: 0 | O131: 0 | P131: 0 | Q131: 0 | R131: 0 | S131: 0
J132: 120 | K132: 0.0001661326184 | L132: 0 | M132: 0 | N132: 0 | O132: 0 | P132: 0 | Q132: 0 | R132: 0 | S132: 0
J133: 121 | K133: 0.0001668326105 | L133: 0 | M133: 0 | N133: 0 | O133: 0 | P133: 0 | Q133: 0 | R133: 0 | S133: 0
J134: 122 | K134: 0.0001696325787 | L134: 0 | M134: 0 | N134: 0 | O134: 0 | P134: 0 | Q134: 0 | R134: 0 | S134: 0
J135: 123 | K135: 0.0001668326105 | L135: 0 | M135: 0 | N135: 0 | O135: 0 | P135: 0 | Q135: 0 | R135: 0 | S135: 0
J136: 124 | K136: 0.0001584327057 | L136: 0 | M136: 0 | N136: 0 | O136: 0 | P136: 0 | Q136: 0 | R136: 0 | S136: 0
J137: 125 | K137: 0.0001549327454 | L137: 0 | M137: 0 | N137: 0 | O137: 0 | P137: 0 | Q137: 0 | R137: 0 | S137: 0
J138: 126 | K138: 0.0001556327375 | L138: 0 | M138: 0 | N138: 0 | O138: 0 | P138: 0 | Q138: 0 | R138: 0 | S138: 0
J139: 127 | K139: 0.0001528327692 | L139: 0 | M139: 0 | N139: 0 | O139: 0 | P139: 0 | Q139: 0 | R139: 0 | S139: 0
J140: 128 | K140: 0.0001493328089 | L140: 0 | M140: 0 | N140: 0 | O140: 0 | P140: 0 | Q140: 0 | R140: 0 | S140: 0
J141: 129 | K141: 0.0001465328406 | L141: =K141*$AB$10 -> 0 | M141: 0 | N141: =M141*$AB$10 -> 0 | O141: =IF(N141>L141,L141,N141) -> 0 | P141: =IF(L141<N141,N141-L141,0) -> 0 | Q141: =L141-N141 -> 0 | R141: 0 | S141: 0
J142: 130 | K142: 0.0001437328724 | L142: 0 | M142: 0 | N142: 0 | O142: 0 | P142: 0 | Q142: 0 | R142: =R141-Q142 -> 0 | S142: =S141-Q142 -> 0
J143: 131 | K143: 0.0001409329041 | L143: 0 | M143: 0 | N143: 0 | O143: 0 | P143: 0 | Q143: 0 | R143: 0 | S143: 0
J144: 132 | K144: 0.0001374329438 | L144: 0 | M144: 0 | N144: 0 | O144: 0 | P144: 0 | Q144: 0 | R144: 0 | S144: 0
J145: 133 | K145: 0.0001346329756 | L145: 0 | M145: 0.0001007716015 | N145: 0 | O145: 0 | P145: 0 | Q145: 0 | R145: 0 | S145: 0
J146: 134 | K146: 0.0001367329518 | L146: 0 | M146: 0 | N146: 0 | O146: 0 | P146: 0 | Q146: 0 | R146: 0 | S146: 0
J147: 135 | K147: 0.0001402329121 | L147: 0 | M147: 0 | N147: 0 | O147: 0 | P147: 0 | Q147: 0 | R147: 0 | S147: 0
J148: 136 | K148: 0.0001374329438 | L148: 0 | M148: 0 | N148: 0 | O148: 0 | P148: 0 | Q148: 0 | R148: 0 | S148: 0
J149: 137 | K149: 0.0001297330311 | L149: 0 | M149: 0 | N149: 0 | O149: 0 | P149: 0 | Q149: 0 | R149: 0 | S149: 0
J150: 138 | K150: 0.0001255330788 | L150: 0 | M150: 0 | N150: 0 | O150: 0 | P150: 0 | Q150: 0 | R150: 0 | S150: 0
J151: 139 | K151: 0.0001206331343 | L151: 0 | M151: 0 | N151: 0 | O151: 0 | P151: 0 | Q151: 0 | R151: 0 | S151: 0
J152: 140 | K152: 0.0001213331264 | L152: 0 | M152: 0 | N152: 0 | O152: 0 | P152: 0 | Q152: 0 | R152: 0 | S152: 0
J153: 141 | K153: 0.0001220331184 | L153: 0 | M153: 0 | N153: 0 | O153: 0 | P153: 0 | Q153: 0 | R153: 0 | S153: 0
J154: 142 | K154: 0.0001234331026 | L154: 0 | M154: 0 | N154: 0 | O154: 0 | P154: 0 | Q154: 0 | R154: 0 | S154: 0
J155: 143 | K155: 0.0001241330946 | L155: 0 | M155: 0 | N155: 0 | O155: 0 | P155: 0 | Q155: 0 | R155: 0 | S155: 0
J156: 144 | K156: 0.0001248330867 | L156: 0 | M156: 0 | N156: 0 | O156: 0 | P156: 0 | Q156: 0 | R156: 0 | S156: 0
J157: 145 | K157: 0.0001269330629 | L157: 0 | M157: 0 | N157: 0 | O157: 0 | P157: 0 | Q157: 0 | R157: 0 | S157: 0
J158: 146 | K158: 0.0001290330391 | L158: 0 | M158: 0 | N158: 0 | O158: 0 | P158: 0 | Q158: 0 | R158: 0 | S158: 0
J159: 147 | K159: 0.0001304330232 | L159: 0 | M159: 0 | N159: 0 | O159: 0 | P159: 0 | Q159: 0 | R159: 0 | S159: 0
J160: 148 | K160: 0.0001290330391 | L160: 0 | M160: 0 | N160: 0 | O160: 0 | P160: 0 | Q160: 0 | R160: 0 | S160: 0
J161: 149 | K161: 0.0001304330232 | L161: 0 | M161: 0 | N161: 0 | O161: 0 | P161: 0 | Q161: 0 | R161: 0 | S161: 0
J162: 150 | K162: 0.0001311330153 | L162: 0 | M162: 0 | N162: 0 | O162: 0 | P162: 0 | Q162: 0 | R162: 0 | S162: 0
J163: 151 | K163: 0.0001332329914 | L163: 0 | M163: 0 | N163: 0 | O163: 0 | P163: 0 | Q163: 0 | R163: 0 | S163: 0
J164: 152 | K164: 0.0001339329835 | L164: 0 | M164: 0 | N164: 0 | O164: 0 | P164: 0 | Q164: 0 | R164: 0 | S164: 0
J165: 153 | K165: 0.0001339329835 | L165: 0 | M165: 0 | N165: 0 | O165: 0 | P165: 0 | Q165: 0 | R165: 0 | S165: 0
J166: 154 | K166: 0.0001311330153 | L166: 0 | M166: 0 | N166: 0 | O166: 0 | P166: 0 | Q166: 0 | R166: 0 | S166: 0
J167: 155 | K167: 0.0001290330391 | L167: 0 | M167: 7.197118324e-05 | N167: 0 | O167: 0 | P167: 0 | Q167: 0 | R167: 0 | S167: 0
J168: 156 | K168: 0.0001304330232 | L168: 0 | M168: 0 | N168: 0 | O168: 0 | P168: 0 | Q168: 0 | R168: 0 | S168: 0
J169: 157 | K169: 0.0001325329994 | L169: 0 | M169: 0 | N169: 0 | O169: 0 | P169: 0 | Q169: 0 | R169: 0 | S169: 0
J170: 158 | K170: 0.0001325329994 | L170: 0 | M170: 0 | N170: 0 | O170: 0 | P170: 0 | Q170: 0 | R170: 0 | S170: 0
J171: 159 | K171: 0.0001325329994 | L171: 0 | M171: 0 | N171: 0 | O171: 0 | P171: 0 | Q171: 0 | R171: 0 | S171: 0
J172: 160 | K172: 0.0001332329914 | L172: 0 | M172: 0 | N172: 0 | O172: 0 | P172: 0 | Q172: 0 | R172: 0 | S172: 0
J173: 161 | K173: 0.0001318330073 | L173: 0 | M173: 0 | N173: 0 | O173: 0 | P173: 0 | Q173: 0 | R173: 0 | S173: 0
J174: 162 | K174: 0.0001304330232 | L174: 0 | M174: 0 | N174: 0 | O174: 0 | P174: 0 | Q174: 0 | R174: 0 | S174: 0
J175: 163 | K175: 0.0001297330311 | L175: 0 | M175: 0 | N175: 0 | O175: 0 | P175: 0 | Q175: 0 | R175: 0 | S175: 0
J176: 164 | K176: 0.0001304330232 | L176: 0 | M176: 0 | N176: 0 | O176: 0 | P176: 0 | Q176: 0 | R176: 0 | S176: 0
J177: 165 | K177: 0.0001332329914 | L177: 0 | M177: 0 | N177: 0 | O177: 0 | P177: 0 | Q177: 0 | R177: 0 | S177: 0
J178: 166 | K178: 0.0001353329676 | L178: 0 | M178: 0 | N178: 0 | O178: 0 | P178: 0 | Q178: 0 | R178: 0 | S178: 0
J179: 167 | K179: 0.0001367329518 | L179: 0 | M179: 0 | N179: 0 | O179: 0 | P179: 0 | Q179: 0 | R179: 0 | S179: 0
J180: 168 | K180: 0.0001374329438 | L180: 0 | M180: 0 | N180: 0 | O180: 0 | P180: 0 | Q180: 0 | R180: 0 | S180: 0
J181: 169 | K181: 0.0001367329518 | L181: 0 | M181: 0 | N181: 0 | O181: 0 | P181: 0 | Q181: 0 | R181: 0 | S181: 0
J182: 170 | K182: 0.0001360329597 | L182: 0 | M182: 0 | N182: 0 | O182: 0 | P182: 0 | Q182: 0 | R182: 0 | S182: 0
J183: 171 | K183: 0.0001346329756 | L183: 0 | M183: 0 | N183: 0 | O183: 0 | P183: 0 | Q183: 0 | R183: 0 | S183: 0
J184: 172 | K184: 0.0001332329914 | L184: 0 | M184: 0 | N184: 0 | O184: 0 | P184: 0 | Q184: 0 | R184: 0 | S184: 0
J185: 173 | K185: 0.0001318330073 | L185: 0 | M185: 0 | N185: 0 | O185: 0 | P185: 0 | Q185: 0 | R185: 0 | S185: 0
J186: 174 | K186: 0.0001304330232 | L186: 0 | M186: 0 | N186: 0 | O186: 0 | P186: 0 | Q186: 0 | R186: 0 | S186: 0
J187: 175 | K187: 0.0001290330391 | L187: 0 | M187: 0 | N187: 0 | O187: 0 | P187: 0 | Q187: 0 | R187: 0 | S187: 0
J188: 176 | K188: 0.0001262330708 | L188: 0 | M188: 0 | N188: 0 | O188: 0 | P188: 0 | Q188: 0 | R188: 0 | S188: 0
J189: 177 | K189: 0.0001255330788 | L189: 0 | M189: 0 | N189: 0 | O189: 0 | P189: 0 | Q189: 0 | R189: 0 | S189: 0
J190: 178 | K190: 0.0001262330708 | L190: 0 | M190: 0 | N190: 0 | O190: 0 | P190: 0 | Q190: 0 | R190: 0 | S190: 0
J191: 179 | K191: 0.0001248330867 | L191: 0 | M191: 0 | N191: 0 | O191: 0 | P191: 0 | Q191: 0 | R191: 0 | S191: 0
J192: 180 | K192: 0.0001241330946 | L192: 0 | M192: 0 | N192: 0 | O192: 0 | P192: 0 | Q192: 0 | R192: 0 | S192: 0
J193: 181 | K193: 0.0001227331105 | L193: 0 | M193: 0 | N193: 0 | O193: 0 | P193: 0 | Q193: 0 | R193: 0 | S193: 0
J194: 182 | K194: 0.0001227331105 | L194: 0 | M194: 0 | N194: 0 | O194: 0 | P194: 0 | Q194: 0 | R194: 0 | S194: 0
J195: 183 | K195: 0.0001241330946 | L195: 0 | M195: 0 | N195: 0 | O195: 0 | P195: 0 | Q195: 0 | R195: 0 | S195: 0
J196: 184 | K196: 0.0001269330629 | L196: 0 | M196: 0 | N196: 0 | O196: 0 | P196: 0 | Q196: 0 | R196: 0 | S196: 0
J197: 185 | K197: 0.000128333047 | L197: 0 | M197: 0 | N197: 0 | O197: 0 | P197: 0 | Q197: 0 | R197: 0 | S197: 0
J198: 186 | K198: 0.0001290330391 | L198: 0 | M198: 0 | N198: 0 | O198: 0 | P198: 0 | Q198: 0 | R198: 0 | S198: 0
J199: 187 | K199: 0.0001297330311 | L199: 0 | M199: 0 | N199: 0 | O199: 0 | P199: 0 | Q199: 0 | R199: 0 | S199: 0
J200: 188 | K200: 0.0001297330311 | L200: 0 | M200: 0 | N200: 0 | O200: 0 | P200: 0 | Q200: 0 | R200: 0 | S200: 0
J201: 189 | K201: 0.0001276330549 | L201: 0 | M201: 0 | N201: 0 | O201: 0 | P201: 0 | Q201: 0 | R201: 0 | S201: 0
J202: 190 | K202: 0.000128333047 | L202: 0 | M202: 0 | N202: 0 | O202: 0 | P202: 0 | Q202: 0 | R202: 0 | S202: 0
J203: 191 | K203: 0.0001290330391 | L203: 0 | M203: 0 | N203: 0 | O203: 0 | P203: 0 | Q203: 0 | R203: 0 | S203: 0
J204: 192 | K204: 0.0001297330311 | L204: 0 | M204: 0 | N204: 0 | O204: 0 | P204: 0 | Q204: 0 | R204: 0 | S204: 0
J205: 193 | K205: 0.0001304330232 | L205: =K205*$AB$10 -> 0 | M205: 0 | N205: =M205*$AB$10 -> 0 | O205: =IF(N205>L205,L205,N205) -> 0 | P205: =IF(L205<N205,N205-L205,0) -> 0 | Q205: =L205-N205 -> 0 | R205: 0 | S205: 0
J206: 194 | K206: 0.0001339329835 | L206: 0 | M206: 0 | N206: 0 | O206: 0 | P206: 0 | Q206: 0 | R206: =R205-Q206 -> 0 | S206: =S205-Q206 -> 0
J207: 195 | K207: 0.0001374329438 | L207: 0 | M207: 0 | N207: 0 | O207: 0 | P207: 0 | Q207: 0 | R207: 0 | S207: 0
J208: 196 | K208: 0.0001353329676 | L208: 0 | M208: 0 | N208: 0 | O208: 0 | P208: 0 | Q208: 0 | R208: 0 | S208: 0
... 4292 more rows

Sheet Back, Optimiser
B4: This sheet contains the data and results for the cost optimiser.
C10: Unit | D10: Optimised System | F10: Prod 1 Total Cost | M10: Prod 2 Total Cost | T10: Total cost | W10: Optimiser Results | AA10: Indicator line
B11: Capacity | F11: Code | G11: Prod 1 Percent | H11: Prod 1 capacity (x-value) | I11: Operation cost | J11: Fixed | K11: Investment | L11: Prod 1 Cost | M11: Code | N11: Prod 2 percent | O11: Prod 2 capacity (x-value) | P11: Operation | Q11: Fixed | R11: Investment | S11: Prod 2 Cost | W11: Minimum cost: | X11: =MIN(T14:T104) ->  | Y11: DKK | AA11: x: | AB11: =D12 ->  | AC11: =D12 -> 
B12: Prod 1 | C12: [MW] | D12: =INDEX(H14:H104,MATCH(X11,T14:T104,0)) ->  | AA12: y: | AB12: 0 | AC12: =X11/1000000 -> 
B13: Prod 2 | C13: [MW] | D13: =INDEX(O14:O104,MATCH(X11,T14:T104,0)) ->  | G13: [%] | H13: [MW] | I13: [DKK] | J13: [DKK] | K13: [DKK] | L13: [DKK] | N13: [%] | O13: [MW] | P13: [DKK] | Q13: [DKK] | R13: [DKK] | S13: [DKK] | T13: [DKK] | U13: [million DKK] | W13: Prod 1 code: | X13: =INDEX(F14:F104,MATCH(X11,T14:T104,0)) -> 
B14: Total | C14: [MW] | D14: =D12+D13 ->  | F14: 1, 0.05 | G14: 0.95 | H14: =G14*'Back, Results'!$D$18 -> 30.43579052 | I14: =IF(VLOOKUP(F14,prod_1_operation_cost_table,4,FALSE)*O14+VLOOKUP(F14,prod_1_operation_cost_table,5,FALSE)<0,0,VLOOKUP(F14,prod_1_operation_cost_table,4,FALSE)*H14+VLOOKUP(F14,prod_1_operation_cost_table,5,FALSE)) -> 6884971584 | J14: =(H14-1)*VLOOKUP('Back, Results'!$D$12,'Back, Additional Data'!$Y$13:$AU$18,23,FALSE) ->  | K14: =PMT($C$36,$C$37,VLOOKUP('Back, Results'!$D$12,Table_investment_cost,3)*H14*-1,0)*$C$37 ->  | L14: =I14+J14+K14 ->  | M14: 1, 0.95 | N14: 0.05 | O14: =N14*'Back, Results'!$D$18 -> 1.601883712 | P14: =IF(VLOOKUP(M14,prod_2_operation_cost_table,4,FALSE)*H14+VLOOKUP(M14,prod_2_operation_cost_table,5,FALSE)<0,0,VLOOKUP(M14,prod_2_operation_cost_table,4,FALSE)*O14+VLOOKUP(M14,prod_2_operation_cost_table,5,FALSE)) -> 9896625.44 | Q14: =(O14-1)*VLOOKUP('Back, Results'!$D$13,'Back, Additional Data'!$Y$13:$AU$18,23,FALSE) ->  | R14: =PMT($C$36,$C$37,VLOOKUP('Back, Results'!$D$13,Table_investment_cost,3)*O14*-1,0)*$C$37 ->  | S14: =P14+Q14+R14 ->  | T14: =(S14+L14)/1 ->  | U14: =T14/1000000 ->  | W14: Prod 2 code: | X14: =INDEX(M14:M104,MATCH(X11,T14:T104,0)) ->  | AA14: x: | AB14: 0 | AC14: =D12 -> 
B15: Heat Production | F15: 1, 0.06 | G15: 0.94 | H15: =G15*'Back, Results'!$D$18 -> 30.11541378 | I15: 5519216295 | J15: =(H15-1)*VLOOKUP('Back, Results'!$D$12,'Back, Additional Data'!$Y$13:$AU$18,23,FALSE) ->  | K15: =PMT($C$36,$C$37,VLOOKUP('Back, Results'!$D$12,Table_investment_cost,3)*H15*-1,0)*$C$37 ->  | L15: =I15+J15+K15 ->  | M15: 1, 0.94 | N15: 0.06 | O15: =N15*'Back, Results'!$D$18 -> 1.922260454 | P15: 10854347.17 | Q15: =(O15-1)*VLOOKUP('Back, Results'!$D$13,'Back, Additional Data'!$Y$13:$AU$18,23,FALSE) ->  | R15: =PMT($C$36,$C$37,VLOOKUP('Back, Results'!$D$13,Table_investment_cost,3)*O15*-1,0)*$C$37 ->  | S15: =P15+Q15+R15 ->  | T15: =(S15+L15)/1 ->  | U15: =T15/1000000 ->  | AA15: y: | AB15: =X11/1000000 ->  | AC15: =X11/1000000 -> 
B16: Prod 1 | C16: [MWh] | D16: =IF(VLOOKUP(X13,prod_1_heat_production_table,4,FALSE)*D13+VLOOKUP(X13,prod_1_heat_production_table,5,FALSE)<0,0,VLOOKUP(X13,prod_1_heat_production_table,4,FALSE)*D13+VLOOKUP(X13,prod_1_heat_production_table,5,FALSE)) ->  | F16: 1, 0.07 | G16: 0.93 | H16: =G16*'Back, Results'!$D$18 -> 29.79503704 | I16: 4550271373 | J16: =(H16-1)*VLOOKUP('Back, Results'!$D$12,'Back, Additional Data'!$Y$13:$AU$18,23,FALSE) ->  | K16: =PMT($C$36,$C$37,VLOOKUP('Back, Results'!$D$12,Table_investment_cost,3)*H16*-1,0)*$C$37 ->  | M16: 1, 0.93 | N16: 0.07 | O16: =N16*'Back, Results'!$D$18 -> 2.242637196 | P16: 12007783.32 | Q16: =(O16-1)*VLOOKUP('Back, Results'!$D$13,'Back, Additional Data'!$Y$13:$AU$18,23,FALSE) ->  | R16: =PMT($C$36,$C$37,VLOOKUP('Back, Results'!$D$13,Table_investment_cost,3)*O16*-1,0)*$C$37 -> 
B17: Prod 2 | C17: [MWh] | D17: =IF(VLOOKUP(X14,prod_2_heat_production_table,4,FALSE)*D12+VLOOKUP(X14,prod_2_heat_production_table,5,FALSE)<0,0,VLOOKUP(X14,prod_2_heat_production_table,4,FALSE)*D12+VLOOKUP(X14,prod_2_heat_production_table,5,FALSE)) ->  | F17: 1, 0.08 | G17: 0.92 | H17: =G17*'Back, Results'!$D$18 -> 29.47466029 | I17: 3829173333 | J17: =(H17-1)*VLOOKUP('Back, Results'!$D$12,'Back, Additional Data'!$Y$13:$AU$18,23,FALSE) ->  | K17: =PMT($C$36,$C$37,VLOOKUP('Back, Results'!$D$12,Table_investment_cost,3)*H17*-1,0)*$C$37 ->  | M17: 1, 0.92 | N17: 0.08 | O17: =N17*'Back, Results'!$D$18 -> 2.563013939 | P17: 13355595.97 | Q17: =(O17-1)*VLOOKUP('Back, Results'!$D$13,'Back, Additional Data'!$Y$13:$AU$18,23,FALSE) ->  | R17: =PMT($C$36,$C$37,VLOOKUP('Back, Results'!$D$13,Table_investment_cost,3)*O17*-1,0)*$C$37 -> 
B18: Total | C18: [MWh] | D18: =D16+D17 ->  | F18: 1, 0.09 | G18: 0.91 | H18: =G18*'Back, Results'!$D$18 -> 29.15428355 | I18: 3273166790 | J18: =(H18-1)*VLOOKUP('Back, Results'!$D$12,'Back, Additional Data'!$Y$13:$AU$18,23,FALSE) ->  | K18: =PMT($C$36,$C$37,VLOOKUP('Back, Results'!$D$12,Table_investment_cost,3)*H18*-1,0)*$C$37 ->  | M18: 1, 0.91 | N18: 0.09 | O18: =N18*'Back, Results'!$D$18 -> 2.883390681 | P18: 14896584.16 | Q18: =(O18-1)*VLOOKUP('Back, Results'!$D$13,'Back, Additional Data'!$Y$13:$AU$18,23,FALSE) ->  | R18: =PMT($C$36,$C$37,VLOOKUP('Back, Results'!$D$13,Table_investment_cost,3)*O18*-1,0)*$C$37 -> 
B19: Operation Cost | F19: 1, 0.1 | G19: 0.9 | H19: =G19*'Back, Results'!$D$18 -> 28.83390681 | I19: 2832600408 | J19: =(H19-1)*VLOOKUP('Back, Results'!$D$12,'Back, Additional Data'!$Y$13:$AU$18,23,FALSE) ->  | K19: =PMT($C$36,$C$37,VLOOKUP('Back, Results'!$D$12,Table_investment_cost,3)*H19*-1,0)*$C$37 ->  | M19: 1, 0.9 | N19: 0.1 | O19: =N19*'Back, Results'!$D$18 -> 3.203767423 | P19: 16629691.56 | Q19: =(O19-1)*VLOOKUP('Back, Results'!$D$13,'Back, Additional Data'!$Y$13:$AU$18,23,FALSE) ->  | R19: =PMT($C$36,$C$37,VLOOKUP('Back, Results'!$D$13,Table_investment_cost,3)*O19*-1,0)*$C$37 -> 
B20: Prod 1 | C20: [DKK] | D20: =IF(VLOOKUP(X13,prod_1_operation_cost_table,4,FALSE)*D13+VLOOKUP(X13,prod_1_operation_cost_table,5,FALSE)<0,0,VLOOKUP(X13,prod_1_operation_cost_table,4,FALSE)*D13+VLOOKUP(X13,prod_1_operation_cost_table,5,FALSE))+(D12-1)*VLOOKUP('Back, Results'!$D$12,'Back, Additional Data'!$Y$13:$AU$18,23,FALSE) ->  | F20: 1, 0.11 | G20: 0.89 | H20: =G20*'Back, Results'!$D$18 -> 28.51353007 | I20: 2475879606 | J20: =(H20-1)*VLOOKUP('Back, Results'!$D$12,'Back, Additional Data'!$Y$13:$AU$18,23,FALSE) ->  | K20: =PMT($C$36,$C$37,VLOOKUP('Back, Results'!$D$12,Table_investment_cost,3)*H20*-1,0)*$C$37 ->  | M20: 1, 0.89 | N20: 0.11 | O20: =N20*'Back, Results'!$D$18 -> 3.524144166 | P20: 18554014.55 | Q20: =(O20-1)*VLOOKUP('Back, Results'!$D$13,'Back, Additional Data'!$Y$13:$AU$18,23,FALSE) ->  | R20: =PMT($C$36,$C$37,VLOOKUP('Back, Results'!$D$13,Table_investment_cost,3)*O20*-1,0)*$C$37 -> 
B21: Prod 2 | C21: [DKK] | D21: =IF(VLOOKUP(X14,prod_2_operation_cost_table,4,FALSE)*D12+VLOOKUP(X14,prod_2_operation_cost_table,5,FALSE)<0,0,VLOOKUP(X14,prod_2_operation_cost_table,4,FALSE)*D13+VLOOKUP(X14,prod_2_operation_cost_table,5,FALSE))+(D13-1)*VLOOKUP('Back, Results'!$D$13,'Back, Additional Data'!$Y$13:$AU$18,23,FALSE) ->  | F21: 1, 0.12 | G21: 0.88 | H21: =G21*'Back, Results'!$D$18 -> 28.19315332 | I21: 2181942909 | J21: =(H21-1)*VLOOKUP('Back, Results'!$D$12,'Back, Additional Data'!$Y$13:$AU$18,23,FALSE) ->  | K21: =PMT($C$36,$C$37,VLOOKUP('Back, Results'!$D$12,Table_investment_cost,3)*H21*-1,0)*$C$37 ->  | M21: 1, 0.88 | N21: 0.12 | O21: =N21*'Back, Results'!$D$18 -> 3.844520908 | P21: 20668810.91 | Q21: =(O21-1)*VLOOKUP('Back, Results'!$D$13,'Back, Additional Data'!$Y$13:$AU$18,23,FALSE) ->  | R21: =PMT($C$36,$C$37,VLOOKUP('Back, Results'!$D$13,Table_investment_cost,3)*O21*-1,0)*$C$37 -> 
B22: Total | C22: [DKK] | D22: =D20+D21 ->  | F22: 1, 0.13 | G22: 0.87 | H22: =G22*'Back, Results'!$D$18 -> 27.87277658 | I22: 1936210756 | J22: =(H22-1)*VLOOKUP('Back, Results'!$D$12,'Back, Additional Data'!$Y$13:$AU$18,23,FALSE) ->  | K22: =PMT($C$36,$C$37,VLOOKUP('Back, Results'!$D$12,Table_investment_cost,3)*H22*-1,0)*$C$37 ->  | M22: 1, 0.87 | N22: 0.13 | O22: =N22*'Back, Results'!$D$18 -> 4.16489765 | P22: 22973509.1 | Q22: =(O22-1)*VLOOKUP('Back, Results'!$D$13,'Back, Additional Data'!$Y$13:$AU$18,23,FALSE) ->  | R22: =PMT($C$36,$C$37,VLOOKUP('Back, Results'!$D$13,Table_investment_cost,3)*O22*-1,0)*$C$37 -> 
B23: Investment Cost | F23: 1, 0.14 | G23: 0.86 | H23: =G23*'Back, Results'!$D$18 -> 27.55239984 | I23: 1728270527 | J23: =(H23-1)*VLOOKUP('Back, Results'!$D$12,'Back, Additional Data'!$Y$13:$AU$18,23,FALSE) ->  | K23: =PMT($C$36,$C$37,VLOOKUP('Back, Results'!$D$12,Table_investment_cost,3)*H23*-1,0)*$C$37 ->  | M23: 1, 0.86 | N23: 0.14 | O23: =N23*'Back, Results'!$D$18 -> 4.485274393 | P23: 25467718.18 | Q23: =(O23-1)*VLOOKUP('Back, Results'!$D$13,'Back, Additional Data'!$Y$13:$AU$18,23,FALSE) ->  | R23: =PMT($C$36,$C$37,VLOOKUP('Back, Results'!$D$13,Table_investment_cost,3)*O23*-1,0)*$C$37 -> 
B24: Prod 1 | C24: [DKK] | D24: =(PMT($C$36,$C$37,VLOOKUP('Back, Results'!$D$12,Table_investment_cost,3)*D12*-1,0))*$C$37 ->  | F24: 1, 0.15 | G24: 0.85 | H24: =G24*'Back, Results'!$D$18 -> 27.2320231 | I24: 1550487566 | J24: =(H24-1)*VLOOKUP('Back, Results'!$D$12,'Back, Additional Data'!$Y$13:$AU$18,23,FALSE) ->  | K24: =PMT($C$36,$C$37,VLOOKUP('Back, Results'!$D$12,Table_investment_cost,3)*H24*-1,0)*$C$37 ->  | M24: 1, 0.85 | N24: 0.15 | O24: =N24*'Back, Results'!$D$18 -> 4.805651135 | P24: 28151238.44 | Q24: =(O24-1)*VLOOKUP('Back, Results'!$D$13,'Back, Additional Data'!$Y$13:$AU$18,23,FALSE) ->  | R24: =PMT($C$36,$C$37,VLOOKUP('Back, Results'!$D$13,Table_investment_cost,3)*O24*-1,0)*$C$37 -> 
B25: Prod 2 | C25: [DKK] | D25: =PMT($C$36,$C$37,VLOOKUP('Back, Results'!$D$13,Table_investment_cost,3)*D13*-1,0)*$C$37 ->  | F25: 1, 0.16 | G25: 0.84 | H25: =G25*'Back, Results'!$D$18 -> 26.91164636 | I25: 1397137065 | J25: =(H25-1)*VLOOKUP('Back, Results'!$D$12,'Back, Additional Data'!$Y$13:$AU$18,23,FALSE) ->  | K25: =PMT($C$36,$C$37,VLOOKUP('Back, Results'!$D$12,Table_investment_cost,3)*H25*-1,0)*$C$37 ->  | M25: 1, 0.84 | N25: 0.16 | O25: =N25*'Back, Results'!$D$18 -> 5.126027877 | P25: 31024072.77 | Q25: =(O25-1)*VLOOKUP('Back, Results'!$D$13,'Back, Additional Data'!$Y$13:$AU$18,23,FALSE) ->  | R25: =PMT($C$36,$C$37,VLOOKUP('Back, Results'!$D$13,Table_investment_cost,3)*O25*-1,0)*$C$37 -> 
B26: Total | C26: [DKK] | D26: =D24+D25 ->  | F26: 1, 0.17 | G26: 0.83 | H26: =G26*'Back, Results'!$D$18 -> 26.59126961 | I26: 1263842345 | J26: =(H26-1)*VLOOKUP('Back, Results'!$D$12,'Back, Additional Data'!$Y$13:$AU$18,23,FALSE) ->  | K26: =PMT($C$36,$C$37,VLOOKUP('Back, Results'!$D$12,Table_investment_cost,3)*H26*-1,0)*$C$37 ->  | M26: 1, 0.83 | N26: 0.17 | O26: =N26*'Back, Results'!$D$18 -> 5.44640462 | P26: 34086438.87 | Q26: =(O26-1)*VLOOKUP('Back, Results'!$D$13,'Back, Additional Data'!$Y$13:$AU$18,23,FALSE) ->  | R26: =PMT($C$36,$C$37,VLOOKUP('Back, Results'!$D$13,Table_investment_cost,3)*O26*-1,0)*$C$37 -> 
B27: Total Cost | F27: 1, 0.18 | G27: 0.82 | H27: =G27*'Back, Results'!$D$18 -> 26.27089287 | I27: 1147200375 | J27: =(H27-1)*VLOOKUP('Back, Results'!$D$12,'Back, Additional Data'!$Y$13:$AU$18,23,FALSE) ->  | K27: =PMT($C$36,$C$37,VLOOKUP('Back, Results'!$D$12,Table_investment_cost,3)*H27*-1,0)*$C$37 ->  | M27: 1, 0.82 | N27: 0.18 | O27: =N27*'Back, Results'!$D$18 -> 5.766781362 | P27: 37338782.37 | Q27: =(O27-1)*VLOOKUP('Back, Results'!$D$13,'Back, Additional Data'!$Y$13:$AU$18,23,FALSE) ->  | R27: =PMT($C$36,$C$37,VLOOKUP('Back, Results'!$D$13,Table_investment_cost,3)*O27*-1,0)*$C$37 -> 
B28: Prod 1 | C28: [DKK] | D28: =D20+D24 ->  | F28: 1, 0.19 | G28: 0.81 | H28: =G28*'Back, Results'!$D$18 -> 25.95051613 | I28: 1044525550 | J28: =(H28-1)*VLOOKUP('Back, Results'!$D$12,'Back, Additional Data'!$Y$13:$AU$18,23,FALSE) ->  | K28: =PMT($C$36,$C$37,VLOOKUP('Back, Results'!$D$12,Table_investment_cost,3)*H28*-1,0)*$C$37 ->  | M28: 1, 0.81 | N28: 0.19 | O28: =N28*'Back, Results'!$D$18 -> 6.087158104 | P28: 40781790.84 | Q28: =(O28-1)*VLOOKUP('Back, Results'!$D$13,'Back, Additional Data'!$Y$13:$AU$18,23,FALSE) ->  | R28: =PMT($C$36,$C$37,VLOOKUP('Back, Results'!$D$13,Table_investment_cost,3)*O28*-1,0)*$C$37 -> 
B29: Prod 2 | C29: [DKK] | D29: =D21+D25 ->  | F29: 1, 0.2 | G29: 0.8 | H29: =G29*'Back, Results'!$D$18 -> 25.63013939 | I29: 953670334.1 | J29: =(H29-1)*VLOOKUP('Back, Results'!$D$12,'Back, Additional Data'!$Y$13:$AU$18,23,FALSE) ->  | K29: =PMT($C$36,$C$37,VLOOKUP('Back, Results'!$D$12,Table_investment_cost,3)*H29*-1,0)*$C$37 ->  | M29: 1, 0.8 | N29: 0.2 | O29: =N29*'Back, Results'!$D$18 -> 6.407534846 | P29: 44416409 | Q29: =(O29-1)*VLOOKUP('Back, Results'!$D$13,'Back, Additional Data'!$Y$13:$AU$18,23,FALSE) ->  | R29: =PMT($C$36,$C$37,VLOOKUP('Back, Results'!$D$13,Table_investment_cost,3)*O29*-1,0)*$C$37 -> 
B30: Total | C30: [DKK] | D30: =D28+D29 ->  | F30: 1, 0.21 | G30: 0.79 | H30: =G30*'Back, Results'!$D$18 -> 25.30976264 | I30: 872897148.1 | J30: =(H30-1)*VLOOKUP('Back, Results'!$D$12,'Back, Additional Data'!$Y$13:$AU$18,23,FALSE) ->  | K30: =PMT($C$36,$C$37,VLOOKUP('Back, Results'!$D$12,Table_investment_cost,3)*H30*-1,0)*$C$37 ->  | M30: 1, 0.79 | N30: 0.21 | O30: =N30*'Back, Results'!$D$18 -> 6.727911589 | P30: 48243854.9 | Q30: =(O30-1)*VLOOKUP('Back, Results'!$D$13,'Back, Additional Data'!$Y$13:$AU$18,23,FALSE) ->  | R30: =PMT($C$36,$C$37,VLOOKUP('Back, Results'!$D$13,Table_investment_cost,3)*O30*-1,0)*$C$37 -> 
B31: Heat Price | F31: 1, 0.22 | G31: 0.78 | H31: =G31*'Back, Results'!$D$18 -> 24.9893859 | I31: 800785198.1 | J31: =(H31-1)*VLOOKUP('Back, Results'!$D$12,'Back, Additional Data'!$Y$13:$AU$18,23,FALSE) ->  | K31: =PMT($C$36,$C$37,VLOOKUP('Back, Results'!$D$12,Table_investment_cost,3)*H31*-1,0)*$C$37 ->  | M31: 1, 0.78 | N31: 0.22 | O31: =N31*'Back, Results'!$D$18 -> 7.048288331 | P31: 52265637.51 | Q31: =(O31-1)*VLOOKUP('Back, Results'!$D$13,'Back, Additional Data'!$Y$13:$AU$18,23,FALSE) ->  | R31: =PMT($C$36,$C$37,VLOOKUP('Back, Results'!$D$13,Table_investment_cost,3)*O31*-1,0)*$C$37 -> 
B32: Prod 1 | C32: [DKK/MWh] | D32: =D28/D16 ->  | F32: 1, 0.23 | G32: 0.77 | H32: =G32*'Back, Results'!$D$18 -> 24.66900916 | I32: 736161609.1 | J32: =(H32-1)*VLOOKUP('Back, Results'!$D$12,'Back, Additional Data'!$Y$13:$AU$18,23,FALSE) ->  | K32: =PMT($C$36,$C$37,VLOOKUP('Back, Results'!$D$12,Table_investment_cost,3)*H32*-1,0)*$C$37 ->  | M32: 1, 0.77 | N32: 0.23 | O32: =N32*'Back, Results'!$D$18 -> 7.368665073 | P32: 56483575.6 | Q32: =(O32-1)*VLOOKUP('Back, Results'!$D$13,'Back, Additional Data'!$Y$13:$AU$18,23,FALSE) ->  | R32: =PMT($C$36,$C$37,VLOOKUP('Back, Results'!$D$13,Table_investment_cost,3)*O32*-1,0)*$C$37 -> 
B33: Prod 2 | C33: [DKK/MWh] | D33: =D29/D17 ->  | F33: 1, 0.24 | G33: 0.76 | H33: =G33*'Back, Results'!$D$18 -> 24.34863242 | I33: 678049775 | J33: =(H33-1)*VLOOKUP('Back, Results'!$D$12,'Back, Additional Data'!$Y$13:$AU$18,23,FALSE) ->  | K33: =PMT($C$36,$C$37,VLOOKUP('Back, Results'!$D$12,Table_investment_cost,3)*H33*-1,0)*$C$37 ->  | M33: 1, 0.76 | N33: 0.24 | O33: =N33*'Back, Results'!$D$18 -> 7.689041816 | P33: 60899818.08 | Q33: =(O33-1)*VLOOKUP('Back, Results'!$D$13,'Back, Additional Data'!$Y$13:$AU$18,23,FALSE) ->  | R33: =PMT($C$36,$C$37,VLOOKUP('Back, Results'!$D$13,Table_investment_cost,3)*O33*-1,0)*$C$37 -> 
B34: Total | C34: [DKK/MWh] | D34: =D30/D18 ->  | F34: 1, 0.25 | G34: 0.75 | H34: =G34*'Back, Results'!$D$18 -> 24.02825567 | I34: 625630105.3 | J34: =(H34-1)*VLOOKUP('Back, Results'!$D$12,'Back, Additional Data'!$Y$13:$AU$18,23,FALSE) ->  | K34: =PMT($C$36,$C$37,VLOOKUP('Back, Results'!$D$12,Table_investment_cost,3)*H34*-1,0)*$C$37 ->  | M34: 1, 0.75 | N34: 0.25 | O34: =N34*'Back, Results'!$D$18 -> 8.009418558 | P34: 65516866.07 | Q34: =(O34-1)*VLOOKUP('Back, Results'!$D$13,'Back, Additional Data'!$Y$13:$AU$18,23,FALSE) ->  | R34: =PMT($C$36,$C$37,VLOOKUP('Back, Results'!$D$13,Table_investment_cost,3)*O34*-1,0)*$C$37 -> 
F35: 1, 0.26 | G35: 0.74 | H35: =G35*'Back, Results'!$D$18 -> 23.70787893 | I35: 578209829.2 | J35: =(H35-1)*VLOOKUP('Back, Results'!$D$12,'Back, Additional Data'!$Y$13:$AU$18,23,FALSE) ->  | K35: =PMT($C$36,$C$37,VLOOKUP('Back, Results'!$D$12,Table_investment_cost,3)*H35*-1,0)*$C$37 ->  | M35: 1, 0.74 | N35: 0.26 | O35: =N35*'Back, Results'!$D$18 -> 8.3297953 | P35: 70337596.65 | Q35: =(O35-1)*VLOOKUP('Back, Results'!$D$13,'Back, Additional Data'!$Y$13:$AU$18,23,FALSE) ->  | R35: =PMT($C$36,$C$37,VLOOKUP('Back, Results'!$D$13,Table_investment_cost,3)*O35*-1,0)*$C$37 -> 
B36: Interest rate: | C36: ='Back, Additional Data'!$BF$14 -> 0.04 | F36: 1, 0.27 | G36: 0.73 | H36: =G36*'Back, Results'!$D$18 -> 23.38750219 | I36: 535199510.9 | J36: =(H36-1)*VLOOKUP('Back, Results'!$D$12,'Back, Additional Data'!$Y$13:$AU$18,23,FALSE) ->  | K36: =PMT($C$36,$C$37,VLOOKUP('Back, Results'!$D$12,Table_investment_cost,3)*H36*-1,0)*$C$37 ->  | M36: 1, 0.73 | N36: 0.27 | O36: =N36*'Back, Results'!$D$18 -> 8.650172043 | P36: 75365288.62 | Q36: =(O36-1)*VLOOKUP('Back, Results'!$D$13,'Back, Additional Data'!$Y$13:$AU$18,23,FALSE) ->  | R36: =PMT($C$36,$C$37,VLOOKUP('Back, Results'!$D$13,Table_investment_cost,3)*O36*-1,0)*$C$37 -> 
B37: Years: | C37: 20 | F37: 1, 0.28 | G37: 0.72 | H37: =G37*'Back, Results'!$D$18 -> 23.06712545 | I37: 496094596.6 | J37: =(H37-1)*VLOOKUP('Back, Results'!$D$12,'Back, Additional Data'!$Y$13:$AU$18,23,FALSE) ->  | K37: =PMT($C$36,$C$37,VLOOKUP('Back, Results'!$D$12,Table_investment_cost,3)*H37*-1,0)*$C$37 ->  | M37: 1, 0.72 | N37: 0.28 | O37: =N37*'Back, Results'!$D$18 -> 8.970548785 | P37: 80603650.42 | Q37: =(O37-1)*VLOOKUP('Back, Results'!$D$13,'Back, Additional Data'!$Y$13:$AU$18,23,FALSE) ->  | R37: =PMT($C$36,$C$37,VLOOKUP('Back, Results'!$D$13,Table_investment_cost,3)*O37*-1,0)*$C$37 -> 
F38: 1, 0.29 | G38: 0.71 | H38: =G38*'Back, Results'!$D$18 -> 22.74674871 | I38: 460460780.1 | J38: =(H38-1)*VLOOKUP('Back, Results'!$D$12,'Back, Additional Data'!$Y$13:$AU$18,23,FALSE) ->  | K38: =PMT($C$36,$C$37,VLOOKUP('Back, Results'!$D$12,Table_investment_cost,3)*H38*-1,0)*$C$37 ->  | M38: 1, 0.71 | N38: 0.29 | O38: =N38*'Back, Results'!$D$18 -> 9.290925527 | P38: 86056850.37 | Q38: =(O38-1)*VLOOKUP('Back, Results'!$D$13,'Back, Additional Data'!$Y$13:$AU$18,23,FALSE) ->  | R38: =PMT($C$36,$C$37,VLOOKUP('Back, Results'!$D$13,Table_investment_cost,3)*O38*-1,0)*$C$37 -> 
F39: 1, 0.3 | G39: 0.7 | H39: =G39*'Back, Results'!$D$18 -> 22.42637196 | I39: 427922294.3 | J39: =(H39-1)*VLOOKUP('Back, Results'!$D$12,'Back, Additional Data'!$Y$13:$AU$18,23,FALSE) ->  | K39: =PMT($C$36,$C$37,VLOOKUP('Back, Results'!$D$12,Table_investment_cost,3)*H39*-1,0)*$C$37 ->  | M39: 1, 0.7 | N39: 0.3 | O39: =N39*'Back, Results'!$D$18 -> 9.61130227 | P39: 91729549.51 | Q39: =(O39-1)*VLOOKUP('Back, Results'!$D$13,'Back, Additional Data'!$Y$13:$AU$18,23,FALSE) ->  | R39: =PMT($C$36,$C$37,VLOOKUP('Back, Results'!$D$13,Table_investment_cost,3)*O39*-1,0)*$C$37 -> 
F40: 1, 0.31 | G40: 0.69 | H40: =G40*'Back, Results'!$D$18 -> 22.10599522 | I40: 398152469.9 | J40: =(H40-1)*VLOOKUP('Back, Results'!$D$12,'Back, Additional Data'!$Y$13:$AU$18,23,FALSE) ->  | K40: =PMT($C$36,$C$37,VLOOKUP('Back, Results'!$D$12,Table_investment_cost,3)*H40*-1,0)*$C$37 ->  | M40: 1, 0.69 | N40: 0.31 | O40: =N40*'Back, Results'!$D$18 -> 9.931679012 | P40: 97626937.33 | Q40: =(O40-1)*VLOOKUP('Back, Results'!$D$13,'Back, Additional Data'!$Y$13:$AU$18,23,FALSE) ->  | R40: =PMT($C$36,$C$37,VLOOKUP('Back, Results'!$D$13,Table_investment_cost,3)*O40*-1,0)*$C$37 -> 
F41: 1, 0.32 | G41: 0.68 | H41: =G41*'Back, Results'!$D$18 -> 21.78561848 | I41: 370866063.7 | J41: =(H41-1)*VLOOKUP('Back, Results'!$D$12,'Back, Additional Data'!$Y$13:$AU$18,23,FALSE) ->  | K41: =PMT($C$36,$C$37,VLOOKUP('Back, Results'!$D$12,Table_investment_cost,3)*H41*-1,0)*$C$37 ->  | M41: 1, 0.68 | N41: 0.32 | O41: =N41*'Back, Results'!$D$18 -> 10.25205575 | P41: 103754770.6 | Q41: =(O41-1)*VLOOKUP('Back, Results'!$D$13,'Back, Additional Data'!$Y$13:$AU$18,23,FALSE) ->  | R41: =PMT($C$36,$C$37,VLOOKUP('Back, Results'!$D$13,Table_investment_cost,3)*O41*-1,0)*$C$37 -> 
F42: 1, 0.33 | G42: 0.67 | H42: =G42*'Back, Results'!$D$18 -> 21.46524174 | I42: 345812981.9 | J42: =(H42-1)*VLOOKUP('Back, Results'!$D$12,'Back, Additional Data'!$Y$13:$AU$18,23,FALSE) ->  | K42: =PMT($C$36,$C$37,VLOOKUP('Back, Results'!$D$12,Table_investment_cost,3)*H42*-1,0)*$C$37 ->  | M42: 1, 0.67 | N42: 0.33 | O42: =N42*'Back, Results'!$D$18 -> 10.5724325 | P42: 110119415.7 | Q42: =(O42-1)*VLOOKUP('Back, Results'!$D$13,'Back, Additional Data'!$Y$13:$AU$18,23,FALSE) ->  | R42: =PMT($C$36,$C$37,VLOOKUP('Back, Results'!$D$13,Table_investment_cost,3)*O42*-1,0)*$C$37 -> 
F43: 1, 0.34 | G43: 0.66 | H43: =G43*'Back, Results'!$D$18 -> 21.14486499 | I43: 322773111 | J43: =(H43-1)*VLOOKUP('Back, Results'!$D$12,'Back, Additional Data'!$Y$13:$AU$18,23,FALSE) ->  | K43: =PMT($C$36,$C$37,VLOOKUP('Back, Results'!$D$12,Table_investment_cost,3)*H43*-1,0)*$C$37 ->  | M43: 1, 0.66 | N43: 0.34 | O43: =N43*'Back, Results'!$D$18 -> 10.89280924 | P43: 116727894.9 | Q43: =(O43-1)*VLOOKUP('Back, Results'!$D$13,'Back, Additional Data'!$Y$13:$AU$18,23,FALSE) ->  | R43: =PMT($C$36,$C$37,VLOOKUP('Back, Results'!$D$13,Table_investment_cost,3)*O43*-1,0)*$C$37 -> 
F44: 1, 0.35 | G44: 0.65 | H44: =G44*'Back, Results'!$D$18 -> 20.82448825 | I44: 301552035 | J44: =(H44-1)*VLOOKUP('Back, Results'!$D$12,'Back, Additional Data'!$Y$13:$AU$18,23,FALSE) ->  | K44: =PMT($C$36,$C$37,VLOOKUP('Back, Results'!$D$12,Table_investment_cost,3)*H44*-1,0)*$C$37 ->  | M44: 1, 0.65 | N44: 0.35 | O44: =N44*'Back, Results'!$D$18 -> 11.21318598 | P44: 123587936.6 | Q44: =(O44-1)*VLOOKUP('Back, Results'!$D$13,'Back, Additional Data'!$Y$13:$AU$18,23,FALSE) ->  | R44: =PMT($C$36,$C$37,VLOOKUP('Back, Results'!$D$13,Table_investment_cost,3)*O44*-1,0)*$C$37 -> 
F45: 1, 0.36 | G45: 0.64 | H45: =G45*'Back, Results'!$D$18 -> 20.50411151 | I45: 281977466.2 | J45: =(H45-1)*VLOOKUP('Back, Results'!$D$12,'Back, Additional Data'!$Y$13:$AU$18,23,FALSE) ->  | K45: =PMT($C$36,$C$37,VLOOKUP('Back, Results'!$D$12,Table_investment_cost,3)*H45*-1,0)*$C$37 ->  | M45: 1, 0.64 | N45: 0.36 | O45: =N45*'Back, Results'!$D$18 -> 11.53356272 | P45: 130708030.7 | Q45: =(O45-1)*VLOOKUP('Back, Results'!$D$13,'Back, Additional Data'!$Y$13:$AU$18,23,FALSE) ->  | R45: =PMT($C$36,$C$37,VLOOKUP('Back, Results'!$D$13,Table_investment_cost,3)*O45*-1,0)*$C$37 -> 
F46: 1, 0.37 | G46: 0.63 | H46: =G46*'Back, Results'!$D$18 -> 20.18373477 | I46: =IF(VLOOKUP(F46,prod_1_operation_cost_table,4,FALSE)*O46+VLOOKUP(F46,prod_1_operation_cost_table,5,FALSE)<0,0,VLOOKUP(F46,prod_1_operation_cost_table,4,FALSE)*H46+VLOOKUP(F46,prod_1_operation_cost_table,5,FALSE)) -> 263896255.3 | J46: =(H46-1)*VLOOKUP('Back, Results'!$D$12,'Back, Additional Data'!$Y$13:$AU$18,23,FALSE) ->  | K46: =PMT($C$36,$C$37,VLOOKUP('Back, Results'!$D$12,Table_investment_cost,3)*H46*-1,0)*$C$37 ->  | M46: 1, 0.63 | N46: 0.37 | O46: =N46*'Back, Results'!$D$18 -> 11.85393947 | P46: =IF(VLOOKUP(M46,prod_2_operation_cost_table,4,FALSE)*H46+VLOOKUP(M46,prod_2_operation_cost_table,5,FALSE)<0,0,VLOOKUP(M46,prod_2_operation_cost_table,4,FALSE)*O46+VLOOKUP(M46,prod_2_operation_cost_table,5,FALSE)) -> 138097488.9 | Q46: =(O46-1)*VLOOKUP('Back, Results'!$D$13,'Back, Additional Data'!$Y$13:$AU$18,23,FALSE) ->  | R46: =PMT($C$36,$C$37,VLOOKUP('Back, Results'!$D$13,Table_investment_cost,3)*O46*-1,0)*$C$37 -> 
F47: 1, 0.38 | G47: 0.62 | H47: =G47*'Back, Results'!$D$18 -> 19.86335802 | I47: 247171872.4 | J47: =(H47-1)*VLOOKUP('Back, Results'!$D$12,'Back, Additional Data'!$Y$13:$AU$18,23,FALSE) ->  | K47: =PMT($C$36,$C$37,VLOOKUP('Back, Results'!$D$12,Table_investment_cost,3)*H47*-1,0)*$C$37 ->  | M47: 1, 0.62 | N47: 0.38 | O47: =N47*'Back, Results'!$D$18 -> 12.17431621 | P47: 145766511.3 | Q47: =(O47-1)*VLOOKUP('Back, Results'!$D$13,'Back, Additional Data'!$Y$13:$AU$18,23,FALSE) ->  | R47: =PMT($C$36,$C$37,VLOOKUP('Back, Results'!$D$13,Table_investment_cost,3)*O47*-1,0)*$C$37 -> 
F48: 1, 0.39 | G48: 0.61 | H48: =G48*'Back, Results'!$D$18 -> 19.54298128 | I48: 231682277 | J48: =(H48-1)*VLOOKUP('Back, Results'!$D$12,'Back, Additional Data'!$Y$13:$AU$18,23,FALSE) ->  | K48: =PMT($C$36,$C$37,VLOOKUP('Back, Results'!$D$12,Table_investment_cost,3)*H48*-1,0)*$C$37 ->  | M48: 1, 0.61 | N48: 0.39 | O48: =N48*'Back, Results'!$D$18 -> 12.49469295 | P48: 153726258.5 | Q48: =(O48-1)*VLOOKUP('Back, Results'!$D$13,'Back, Additional Data'!$Y$13:$AU$18,23,FALSE) ->  | R48: =PMT($C$36,$C$37,VLOOKUP('Back, Results'!$D$13,Table_investment_cost,3)*O48*-1,0)*$C$37 -> 
F49: 1, 0.4 | G49: 0.6 | H49: =G49*'Back, Results'!$D$18 -> 19.22260454 | I49: 217318106.6 | J49: =(H49-1)*VLOOKUP('Back, Results'!$D$12,'Back, Additional Data'!$Y$13:$AU$18,23,FALSE) ->  | K49: =PMT($C$36,$C$37,VLOOKUP('Back, Results'!$D$12,Table_investment_cost,3)*H49*-1,0)*$C$37 ->  | M49: 1, 0.6 | N49: 0.4 | O49: =N49*'Back, Results'!$D$18 -> 12.81506969 | P49: 161988932.5 | Q49: =(O49-1)*VLOOKUP('Back, Results'!$D$13,'Back, Additional Data'!$Y$13:$AU$18,23,FALSE) ->  | R49: =PMT($C$36,$C$37,VLOOKUP('Back, Results'!$D$13,Table_investment_cost,3)*O49*-1,0)*$C$37 -> 
F50: 1, 0.41 | G50: 0.59 | H50: =G50*'Back, Results'!$D$18 -> 18.9022278 | I50: 203981130.6 | J50: =(H50-1)*VLOOKUP('Back, Results'!$D$12,'Back, Additional Data'!$Y$13:$AU$18,23,FALSE) ->  | K50: =PMT($C$36,$C$37,VLOOKUP('Back, Results'!$D$12,Table_investment_cost,3)*H50*-1,0)*$C$37 ->  | M50: 1, 0.59 | N50: 0.41 | O50: =N50*'Back, Results'!$D$18 -> 13.13544644 | P50: 170567864.4 | Q50: =(O50-1)*VLOOKUP('Back, Results'!$D$13,'Back, Additional Data'!$Y$13:$AU$18,23,FALSE) ->  | R50: =PMT($C$36,$C$37,VLOOKUP('Back, Results'!$D$13,Table_investment_cost,3)*O50*-1,0)*$C$37 -> 
F51: 1, 0.42 | G51: 0.58 | H51: =G51*'Back, Results'!$D$18 -> 18.58185105 | I51: 191582924.9 | J51: =(H51-1)*VLOOKUP('Back, Results'!$D$12,'Back, Additional Data'!$Y$13:$AU$18,23,FALSE) ->  | K51: =PMT($C$36,$C$37,VLOOKUP('Back, Results'!$D$12,Table_investment_cost,3)*H51*-1,0)*$C$37 ->  | M51: 1, 0.58 | N51: 0.42 | O51: =N51*'Back, Results'!$D$18 -> 13.45582318 | P51: 179477611.9 | Q51: =(O51-1)*VLOOKUP('Back, Results'!$D$13,'Back, Additional Data'!$Y$13:$AU$18,23,FALSE) ->  | R51: =PMT($C$36,$C$37,VLOOKUP('Back, Results'!$D$13,Table_investment_cost,3)*O51*-1,0)*$C$37 -> 
F52: 1, 0.43 | G52: 0.57 | H52: =G52*'Back, Results'!$D$18 -> 18.26147431 | I52: 180043732.1 | J52: =(H52-1)*VLOOKUP('Back, Results'!$D$12,'Back, Additional Data'!$Y$13:$AU$18,23,FALSE) ->  | K52: =PMT($C$36,$C$37,VLOOKUP('Back, Results'!$D$12,Table_investment_cost,3)*H52*-1,0)*$C$37 ->  | M52: 1, 0.57 | N52: 0.43 | O52: =N52*'Back, Results'!$D$18 -> 13.77619992 | P52: 188734066.8 | Q52: =(O52-1)*VLOOKUP('Back, Results'!$D$13,'Back, Additional Data'!$Y$13:$AU$18,23,FALSE) ->  | R52: =PMT($C$36,$C$37,VLOOKUP('Back, Results'!$D$13,Table_investment_cost,3)*O52*-1,0)*$C$37 -> 
F53: 1, 0.44 | G53: 0.56 | H53: =G53*'Back, Results'!$D$18 -> 17.94109757 | I53: 169291475.9 | J53: =(H53-1)*VLOOKUP('Back, Results'!$D$12,'Back, Additional Data'!$Y$13:$AU$18,23,FALSE) ->  | K53: =PMT($C$36,$C$37,VLOOKUP('Back, Results'!$D$12,Table_investment_cost,3)*H53*-1,0)*$C$37 ->  | M53: 1, 0.56 | N53: 0.44 | O53: =N53*'Back, Results'!$D$18 -> 14.09657666 | P53: 198354574.3 | Q53: =(O53-1)*VLOOKUP('Back, Results'!$D$13,'Back, Additional Data'!$Y$13:$AU$18,23,FALSE) ->  | R53: =PMT($C$36,$C$37,VLOOKUP('Back, Results'!$D$13,Table_investment_cost,3)*O53*-1,0)*$C$37 -> 
F54: 1, 0.45 | G54: 0.55 | H54: =G54*'Back, Results'!$D$18 -> 17.62072083 | I54: 159260908.4 | J54: =(H54-1)*VLOOKUP('Back, Results'!$D$12,'Back, Additional Data'!$Y$13:$AU$18,23,FALSE) ->  | K54: =PMT($C$36,$C$37,VLOOKUP('Back, Results'!$D$12,Table_investment_cost,3)*H54*-1,0)*$C$37 ->  | M54: 1, 0.55 | N54: 0.45 | O54: =N54*'Back, Results'!$D$18 -> 14.4169534 | P54: 208358065.1 | Q54: =(O54-1)*VLOOKUP('Back, Results'!$D$13,'Back, Additional Data'!$Y$13:$AU$18,23,FALSE) ->  | R54: =PMT($C$36,$C$37,VLOOKUP('Back, Results'!$D$13,Table_investment_cost,3)*O54*-1,0)*$C$37 -> 
F55: 1, 0.46 | G55: 0.54 | H55: =G55*'Back, Results'!$D$18 -> 17.30034409 | I55: 149892867.3 | J55: =(H55-1)*VLOOKUP('Back, Results'!$D$12,'Back, Additional Data'!$Y$13:$AU$18,23,FALSE) ->  | K55: =PMT($C$36,$C$37,VLOOKUP('Back, Results'!$D$12,Table_investment_cost,3)*H55*-1,0)*$C$37 ->  | M55: 1, 0.54 | N55: 0.46 | O55: =N55*'Back, Results'!$D$18 -> 14.73733015 | P55: 218765202 | Q55: =(O55-1)*VLOOKUP('Back, Results'!$D$13,'Back, Additional Data'!$Y$13:$AU$18,23,FALSE) ->  | R55: =PMT($C$36,$C$37,VLOOKUP('Back, Results'!$D$13,Table_investment_cost,3)*O55*-1,0)*$C$37 -> 
F56: 1, 0.47 | G56: 0.53 | H56: =G56*'Back, Results'!$D$18 -> 16.97996734 | I56: 141133629.1 | J56: =(H56-1)*VLOOKUP('Back, Results'!$D$12,'Back, Additional Data'!$Y$13:$AU$18,23,FALSE) ->  | K56: =PMT($C$36,$C$37,VLOOKUP('Back, Results'!$D$12,Table_investment_cost,3)*H56*-1,0)*$C$37 ->  | M56: 1, 0.53 | N56: 0.47 | O56: =N56*'Back, Results'!$D$18 -> 15.05770689 | P56: 229598543.5 | Q56: =(O56-1)*VLOOKUP('Back, Results'!$D$13,'Back, Additional Data'!$Y$13:$AU$18,23,FALSE) ->  | R56: =PMT($C$36,$C$37,VLOOKUP('Back, Results'!$D$13,Table_investment_cost,3)*O56*-1,0)*$C$37 -> 
F57: 1, 0.48 | G57: 0.52 | H57: =G57*'Back, Results'!$D$18 -> 16.6595906 | I57: 132934341.8 | J57: =(H57-1)*VLOOKUP('Back, Results'!$D$12,'Back, Additional Data'!$Y$13:$AU$18,23,FALSE) ->  | K57: =PMT($C$36,$C$37,VLOOKUP('Back, Results'!$D$12,Table_investment_cost,3)*H57*-1,0)*$C$37 ->  | M57: 1, 0.52 | N57: 0.48 | O57: =N57*'Back, Results'!$D$18 -> 15.37808363 | P57: 240882726 | Q57: =(O57-1)*VLOOKUP('Back, Results'!$D$13,'Back, Additional Data'!$Y$13:$AU$18,23,FALSE) ->  | R57: =PMT($C$36,$C$37,VLOOKUP('Back, Results'!$D$13,Table_investment_cost,3)*O57*-1,0)*$C$37 -> 
F58: 1, 0.49 | G58: 0.51 | H58: =G58*'Back, Results'!$D$18 -> 16.33921386 | I58: 125250528.5 | J58: =(H58-1)*VLOOKUP('Back, Results'!$D$12,'Back, Additional Data'!$Y$13:$AU$18,23,FALSE) ->  | K58: =PMT($C$36,$C$37,VLOOKUP('Back, Results'!$D$12,Table_investment_cost,3)*H58*-1,0)*$C$37 ->  | M58: 1, 0.51 | N58: 0.49 | O58: =N58*'Back, Results'!$D$18 -> 15.69846037 | P58: 252644667.5 | Q58: =(O58-1)*VLOOKUP('Back, Results'!$D$13,'Back, Additional Data'!$Y$13:$AU$18,23,FALSE) ->  | R58: =PMT($C$36,$C$37,VLOOKUP('Back, Results'!$D$13,Table_investment_cost,3)*O58*-1,0)*$C$37 -> 
F59: 1, 0.5 | G59: 0.5 | H59: =G59*'Back, Results'!$D$18 -> 16.01883712 | I59: 118041649.4 | J59: =(H59-1)*VLOOKUP('Back, Results'!$D$12,'Back, Additional Data'!$Y$13:$AU$18,23,FALSE) ->  | K59: =PMT($C$36,$C$37,VLOOKUP('Back, Results'!$D$12,Table_investment_cost,3)*H59*-1,0)*$C$37 ->  | M59: 1, 0.5 | N59: 0.5 | O59: =N59*'Back, Results'!$D$18 -> 16.01883712 | P59: 264913796 | Q59: =(O59-1)*VLOOKUP('Back, Results'!$D$13,'Back, Additional Data'!$Y$13:$AU$18,23,FALSE) ->  | R59: =PMT($C$36,$C$37,VLOOKUP('Back, Results'!$D$13,Table_investment_cost,3)*O59*-1,0)*$C$37 -> 
F60: 1, 0.51 | G60: 0.49 | H60: =G60*'Back, Results'!$D$18 -> 15.69846037 | I60: 111270716.1 | J60: =(H60-1)*VLOOKUP('Back, Results'!$D$12,'Back, Additional Data'!$Y$13:$AU$18,23,FALSE) ->  | K60: =PMT($C$36,$C$37,VLOOKUP('Back, Results'!$D$12,Table_investment_cost,3)*H60*-1,0)*$C$37 ->  | M60: 1, 0.49 | N60: 0.51 | O60: =N60*'Back, Results'!$D$18 -> 16.33921386 | P60: 277722305 | Q60: =(O60-1)*VLOOKUP('Back, Results'!$D$13,'Back, Additional Data'!$Y$13:$AU$18,23,FALSE) ->  | R60: =PMT($C$36,$C$37,VLOOKUP('Back, Results'!$D$13,Table_investment_cost,3)*O60*-1,0)*$C$37 -> 
F61: 1, 0.52 | G61: 0.48 | H61: =G61*'Back, Results'!$D$18 -> 15.37808363 | I61: 104903950.1 | J61: =(H61-1)*VLOOKUP('Back, Results'!$D$12,'Back, Additional Data'!$Y$13:$AU$18,23,FALSE) ->  | K61: =PMT($C$36,$C$37,VLOOKUP('Back, Results'!$D$12,Table_investment_cost,3)*H61*-1,0)*$C$37 ->  | M61: 1, 0.48 | N61: 0.52 | O61: =N61*'Back, Results'!$D$18 -> 16.6595906 | P61: 291105442.5 | Q61: =(O61-1)*VLOOKUP('Back, Results'!$D$13,'Back, Additional Data'!$Y$13:$AU$18,23,FALSE) ->  | R61: =PMT($C$36,$C$37,VLOOKUP('Back, Results'!$D$13,Table_investment_cost,3)*O61*-1,0)*$C$37 -> 
F62: 1, 0.53 | G62: 0.47 | H62: =G62*'Back, Results'!$D$18 -> 15.05770689 | I62: 98910479.86 | J62: =(H62-1)*VLOOKUP('Back, Results'!$D$12,'Back, Additional Data'!$Y$13:$AU$18,23,FALSE) ->  | K62: =PMT($C$36,$C$37,VLOOKUP('Back, Results'!$D$12,Table_investment_cost,3)*H62*-1,0)*$C$37 ->  | M62: 1, 0.47 | N62: 0.53 | O62: =N62*'Back, Results'!$D$18 -> 16.97996734 | P62: 305101835.1 | Q62: =(O62-1)*VLOOKUP('Back, Results'!$D$13,'Back, Additional Data'!$Y$13:$AU$18,23,FALSE) ->  | R62: =PMT($C$36,$C$37,VLOOKUP('Back, Results'!$D$13,Table_investment_cost,3)*O62*-1,0)*$C$37 -> 
F63: 1, 0.54 | G63: 0.46 | H63: =G63*'Back, Results'!$D$18 -> 14.73733015 | I63: 93262071.6 | J63: =(H63-1)*VLOOKUP('Back, Results'!$D$12,'Back, Additional Data'!$Y$13:$AU$18,23,FALSE) ->  | K63: =PMT($C$36,$C$37,VLOOKUP('Back, Results'!$D$12,Table_investment_cost,3)*H63*-1,0)*$C$37 ->  | M63: 1, 0.46 | N63: 0.54 | O63: =N63*'Back, Results'!$D$18 -> 17.30034409 | P63: 319753855.6 | Q63: =(O63-1)*VLOOKUP('Back, Results'!$D$13,'Back, Additional Data'!$Y$13:$AU$18,23,FALSE) ->  | R63: =PMT($C$36,$C$37,VLOOKUP('Back, Results'!$D$13,Table_investment_cost,3)*O63*-1,0)*$C$37 -> 
F64: 1, 0.55 | G64: 0.45 | H64: =G64*'Back, Results'!$D$18 -> 14.4169534 | I64: 87932889.69 | J64: =(H64-1)*VLOOKUP('Back, Results'!$D$12,'Back, Additional Data'!$Y$13:$AU$18,23,FALSE) ->  | K64: =PMT($C$36,$C$37,VLOOKUP('Back, Results'!$D$12,Table_investment_cost,3)*H64*-1,0)*$C$37 ->  | M64: 1, 0.45 | N64: 0.55 | O64: =N64*'Back, Results'!$D$18 -> 17.62072083 | P64: 335108039.3 | Q64: =(O64-1)*VLOOKUP('Back, Results'!$D$13,'Back, Additional Data'!$Y$13:$AU$18,23,FALSE) ->  | R64: =PMT($C$36,$C$37,VLOOKUP('Back, Results'!$D$13,Table_investment_cost,3)*O64*-1,0)*$C$37 -> 
F65: 1, 0.56 | G65: 0.44 | H65: =G65*'Back, Results'!$D$18 -> 14.09657666 | I65: 82899282.39 | J65: =(H65-1)*VLOOKUP('Back, Results'!$D$12,'Back, Additional Data'!$Y$13:$AU$18,23,FALSE) ->  | K65: =PMT($C$36,$C$37,VLOOKUP('Back, Results'!$D$12,Table_investment_cost,3)*H65*-1,0)*$C$37 ->  | M65: 1, 0.44 | N65: 0.56 | O65: =N65*'Back, Results'!$D$18 -> 17.94109757 | P65: 351215556.9 | Q65: =(O65-1)*VLOOKUP('Back, Results'!$D$13,'Back, Additional Data'!$Y$13:$AU$18,23,FALSE) ->  | R65: =PMT($C$36,$C$37,VLOOKUP('Back, Results'!$D$13,Table_investment_cost,3)*O65*-1,0)*$C$37 -> 
F66: 1, 0.57 | G66: 0.43 | H66: =G66*'Back, Results'!$D$18 -> 13.77619992 | I66: 78139590.35 | J66: =(H66-1)*VLOOKUP('Back, Results'!$D$12,'Back, Additional Data'!$Y$13:$AU$18,23,FALSE) ->  | K66: =PMT($C$36,$C$37,VLOOKUP('Back, Results'!$D$12,Table_investment_cost,3)*H66*-1,0)*$C$37 ->  | M66: 1, 0.43 | N66: 0.57 | O66: =N66*'Back, Results'!$D$18 -> 18.26147431 | P66: 368132753.7 | Q66: =(O66-1)*VLOOKUP('Back, Results'!$D$13,'Back, Additional Data'!$Y$13:$AU$18,23,FALSE) ->  | R66: =PMT($C$36,$C$37,VLOOKUP('Back, Results'!$D$13,Table_investment_cost,3)*O66*-1,0)*$C$37 -> 
F67: 1, 0.58 | G67: 0.42 | H67: =G67*'Back, Results'!$D$18 -> 13.45582318 | I67: 73633974.78 | J67: =(H67-1)*VLOOKUP('Back, Results'!$D$12,'Back, Additional Data'!$Y$13:$AU$18,23,FALSE) ->  | K67: =PMT($C$36,$C$37,VLOOKUP('Back, Results'!$D$12,Table_investment_cost,3)*H67*-1,0)*$C$37 ->  | M67: 1, 0.42 | N67: 0.58 | O67: =N67*'Back, Results'!$D$18 -> 18.58185105 | P67: 385921765.2 | Q67: =(O67-1)*VLOOKUP('Back, Results'!$D$13,'Back, Additional Data'!$Y$13:$AU$18,23,FALSE) ->  | R67: =PMT($C$36,$C$37,VLOOKUP('Back, Results'!$D$13,Table_investment_cost,3)*O67*-1,0)*$C$37 -> 
F68: 1, 0.59 | G68: 0.41 | H68: =G68*'Back, Results'!$D$18 -> 13.13544644 | I68: 69364263.25 | J68: =(H68-1)*VLOOKUP('Back, Results'!$D$12,'Back, Additional Data'!$Y$13:$AU$18,23,FALSE) ->  | K68: =PMT($C$36,$C$37,VLOOKUP('Back, Results'!$D$12,Table_investment_cost,3)*H68*-1,0)*$C$37 ->  | M68: 1, 0.41 | N68: 0.59 | O68: =N68*'Back, Results'!$D$18 -> 18.9022278 | P68: 404651223.6 | Q68: =(O68-1)*VLOOKUP('Back, Results'!$D$13,'Back, Additional Data'!$Y$13:$AU$18,23,FALSE) ->  | R68: =PMT($C$36,$C$37,VLOOKUP('Back, Results'!$D$13,Table_investment_cost,3)*O68*-1,0)*$C$37 -> 
F69: 1, 0.6 | G69: 0.4 | H69: =G69*'Back, Results'!$D$18 -> 12.81506969 | I69: 65313810.75 | J69: =(H69-1)*VLOOKUP('Back, Results'!$D$12,'Back, Additional Data'!$Y$13:$AU$18,23,FALSE) ->  | K69: =PMT($C$36,$C$37,VLOOKUP('Back, Results'!$D$12,Table_investment_cost,3)*H69*-1,0)*$C$37 ->  | M69: 1, 0.4 | N69: 0.6 | O69: =N69*'Back, Results'!$D$18 -> 19.22260454 | P69: 424397069.6 | Q69: =(O69-1)*VLOOKUP('Back, Results'!$D$13,'Back, Additional Data'!$Y$13:$AU$18,23,FALSE) ->  | R69: =PMT($C$36,$C$37,VLOOKUP('Back, Results'!$D$13,Table_investment_cost,3)*O69*-1,0)*$C$37 -> 
F70: 1, 0.61 | G70: 0.39 | H70: =G70*'Back, Results'!$D$18 -> 12.49469295 | I70: 61467374.55 | J70: =(H70-1)*VLOOKUP('Back, Results'!$D$12,'Back, Additional Data'!$Y$13:$AU$18,23,FALSE) ->  | K70: =PMT($C$36,$C$37,VLOOKUP('Back, Results'!$D$12,Table_investment_cost,3)*H70*-1,0)*$C$37 ->  | M70: 1, 0.39 | N70: 0.61 | O70: =N70*'Back, Results'!$D$18 -> 19.54298128 | P70: 445243490 | Q70: =(O70-1)*VLOOKUP('Back, Results'!$D$13,'Back, Additional Data'!$Y$13:$AU$18,23,FALSE) ->  | R70: =PMT($C$36,$C$37,VLOOKUP('Back, Results'!$D$13,Table_investment_cost,3)*O70*-1,0)*$C$37 -> 
F71: 1, 0.62 | G71: 0.38 | H71: =G71*'Back, Results'!$D$18 -> 12.17431621 | I71: 57811001.07 | J71: =(H71-1)*VLOOKUP('Back, Results'!$D$12,'Back, Additional Data'!$Y$13:$AU$18,23,FALSE) ->  | K71: =PMT($C$36,$C$37,VLOOKUP('Back, Results'!$D$12,Table_investment_cost,3)*H71*-1,0)*$C$37 ->  | M71: 1, 0.38 | N71: 0.62 | O71: =N71*'Back, Results'!$D$18 -> 19.86335802 | P71: 467284001.7 | Q71: =(O71-1)*VLOOKUP('Back, Results'!$D$13,'Back, Additional Data'!$Y$13:$AU$18,23,FALSE) ->  | R71: =PMT($C$36,$C$37,VLOOKUP('Back, Results'!$D$13,Table_investment_cost,3)*O71*-1,0)*$C$37 -> 
F72: 1, 0.63 | G72: 0.37 | H72: =G72*'Back, Results'!$D$18 -> 11.85393947 | I72: 54331923.61 | J72: =(H72-1)*VLOOKUP('Back, Results'!$D$12,'Back, Additional Data'!$Y$13:$AU$18,23,FALSE) ->  | K72: =PMT($C$36,$C$37,VLOOKUP('Back, Results'!$D$12,Table_investment_cost,3)*H72*-1,0)*$C$37 ->  | M72: 1, 0.37 | N72: 0.63 | O72: =N72*'Back, Results'!$D$18 -> 20.18373477 | P72: 490622713.6 | Q72: =(O72-1)*VLOOKUP('Back, Results'!$D$13,'Back, Additional Data'!$Y$13:$AU$18,23,FALSE) ->  | R72: =PMT($C$36,$C$37,VLOOKUP('Back, Results'!$D$13,Table_investment_cost,3)*O72*-1,0)*$C$37 -> 
F73: 1, 0.64 | G73: 0.36 | H73: =G73*'Back, Results'!$D$18 -> 11.53356272 | I73: 51018469.57 | J73: =(H73-1)*VLOOKUP('Back, Results'!$D$12,'Back, Additional Data'!$Y$13:$AU$18,23,FALSE) ->  | K73: =PMT($C$36,$C$37,VLOOKUP('Back, Results'!$D$12,Table_investment_cost,3)*H73*-1,0)*$C$37 ->  | M73: 1, 0.36 | N73: 0.64 | O73: =N73*'Back, Results'!$D$18 -> 20.50411151 | P73: 515375796.7 | Q73: =(O73-1)*VLOOKUP('Back, Results'!$D$13,'Back, Additional Data'!$Y$13:$AU$18,23,FALSE) ->  | R73: =PMT($C$36,$C$37,VLOOKUP('Back, Results'!$D$13,Table_investment_cost,3)*O73*-1,0)*$C$37 -> 
F74: 1, 0.65 | G74: 0.35 | H74: =G74*'Back, Results'!$D$18 -> 11.21318598 | I74: 47859976.35 | J74: =(H74-1)*VLOOKUP('Back, Results'!$D$12,'Back, Additional Data'!$Y$13:$AU$18,23,FALSE) ->  | K74: =PMT($C$36,$C$37,VLOOKUP('Back, Results'!$D$12,Table_investment_cost,3)*H74*-1,0)*$C$37 ->  | M74: 1, 0.35 | N74: 0.65 | O74: =N74*'Back, Results'!$D$18 -> 20.82448825 | P74: 541673208.2 | Q74: =(O74-1)*VLOOKUP('Back, Results'!$D$13,'Back, Additional Data'!$Y$13:$AU$18,23,FALSE) ->  | R74: =PMT($C$36,$C$37,VLOOKUP('Back, Results'!$D$13,Table_investment_cost,3)*O74*-1,0)*$C$37 -> 
F75: 1, 0.66 | G75: 0.34 | H75: =G75*'Back, Results'!$D$18 -> 10.89280924 | I75: 44846714.79 | J75: =(H75-1)*VLOOKUP('Back, Results'!$D$12,'Back, Additional Data'!$Y$13:$AU$18,23,FALSE) ->  | K75: =PMT($C$36,$C$37,VLOOKUP('Back, Results'!$D$12,Table_investment_cost,3)*H75*-1,0)*$C$37 ->  | M75: 1, 0.34 | N75: 0.66 | O75: =N75*'Back, Results'!$D$18 -> 21.14486499 | P75: 569660718.2 | Q75: =(O75-1)*VLOOKUP('Back, Results'!$D$13,'Back, Additional Data'!$Y$13:$AU$18,23,FALSE) ->  | R75: =PMT($C$36,$C$37,VLOOKUP('Back, Results'!$D$13,Table_investment_cost,3)*O75*-1,0)*$C$37 -> 
F76: 1, 0.67 | G76: 0.33 | H76: =G76*'Back, Results'!$D$18 -> 10.5724325 | I76: 41969819.51 | J76: =(H76-1)*VLOOKUP('Back, Results'!$D$12,'Back, Additional Data'!$Y$13:$AU$18,23,FALSE) ->  | K76: =PMT($C$36,$C$37,VLOOKUP('Back, Results'!$D$12,Table_investment_cost,3)*H76*-1,0)*$C$37 ->  | M76: 1, 0.33 | N76: 0.67 | O76: =N76*'Back, Results'!$D$18 -> 21.46524174 | P76: 599502306 | Q76: =(O76-1)*VLOOKUP('Back, Results'!$D$13,'Back, Additional Data'!$Y$13:$AU$18,23,FALSE) ->  | R76: =PMT($C$36,$C$37,VLOOKUP('Back, Results'!$D$13,Table_investment_cost,3)*O76*-1,0)*$C$37 -> 
F77: 1, 0.68 | G77: 0.32 | H77: =G77*'Back, Results'!$D$18 -> 10.25205575 | I77: 39221225.44 | J77: =(H77-1)*VLOOKUP('Back, Results'!$D$12,'Back, Additional Data'!$Y$13:$AU$18,23,FALSE) ->  | K77: =PMT($C$36,$C$37,VLOOKUP('Back, Results'!$D$12,Table_investment_cost,3)*H77*-1,0)*$C$37 ->  | M77: 1, 0.32 | N77: 0.68 | O77: =N77*'Back, Results'!$D$18 -> 21.78561848 | P77: 631383004.8 | Q77: =(O77-1)*VLOOKUP('Back, Results'!$D$13,'Back, Additional Data'!$Y$13:$AU$18,23,FALSE) ->  | R77: =PMT($C$36,$C$37,VLOOKUP('Back, Results'!$D$13,Table_investment_cost,3)*O77*-1,0)*$C$37 -> 
F78: 1, 0.69 | G78: 0.31 | H78: =G78*'Back, Results'!$D$18 -> 9.931679012 | I78: =IF(VLOOKUP(F78,prod_1_operation_cost_table,4,FALSE)*O78+VLOOKUP(F78,prod_1_operation_cost_table,5,FALSE)<0,0,VLOOKUP(F78,prod_1_operation_cost_table,4,FALSE)*H78+VLOOKUP(F78,prod_1_operation_cost_table,5,FALSE)) -> 36593609.77 | J78: =(H78-1)*VLOOKUP('Back, Results'!$D$12,'Back, Additional Data'!$Y$13:$AU$18,23,FALSE) ->  | K78: =PMT($C$36,$C$37,VLOOKUP('Back, Results'!$D$12,Table_investment_cost,3)*H78*-1,0)*$C$37 ->  | M78: 1, 0.31 | N78: 0.69 | O78: =N78*'Back, Results'!$D$18 -> 22.10599522 | P78: =IF(VLOOKUP(M78,prod_2_operation_cost_table,4,FALSE)*H78+VLOOKUP(M78,prod_2_operation_cost_table,5,FALSE)<0,0,VLOOKUP(M78,prod_2_operation_cost_table,4,FALSE)*O78+VLOOKUP(M78,prod_2_operation_cost_table,5,FALSE)) -> 665512298.2 | Q78: =(O78-1)*VLOOKUP('Back, Results'!$D$13,'Back, Additional Data'!$Y$13:$AU$18,23,FALSE) ->  | R78: =PMT($C$36,$C$37,VLOOKUP('Back, Results'!$D$13,Table_investment_cost,3)*O78*-1,0)*$C$37 -> 
F79: 1, 0.7 | G79: 0.3 | H79: =G79*'Back, Results'!$D$18 -> 9.61130227 | I79: 34080338.98 | J79: =(H79-1)*VLOOKUP('Back, Results'!$D$12,'Back, Additional Data'!$Y$13:$AU$18,23,FALSE) ->  | K79: =PMT($C$36,$C$37,VLOOKUP('Back, Results'!$D$12,Table_investment_cost,3)*H79*-1,0)*$C$37 ->  | L79: =I79+J79+K79 ->  | M79: 1, 0.3 | N79: 0.7 | O79: =N79*'Back, Results'!$D$18 -> 22.42637196 | P79: 702128194.7 | Q79: =(O79-1)*VLOOKUP('Back, Results'!$D$13,'Back, Additional Data'!$Y$13:$AU$18,23,FALSE) ->  | R79: =PMT($C$36,$C$37,VLOOKUP('Back, Results'!$D$13,Table_investment_cost,3)*O79*-1,0)*$C$37 ->  | S79: =P79+Q79+R79 ->  | T79: =(S79+L79)/1 ->  | U79: =T79/1000000 -> 
F80: 1, 0.71 | G80: 0.29 | H80: =G80*'Back, Results'!$D$18 -> 9.290925527 | I80: 31675420.26 | J80: =(H80-1)*VLOOKUP('Back, Results'!$D$12,'Back, Additional Data'!$Y$13:$AU$18,23,FALSE) ->  | K80: =PMT($C$36,$C$37,VLOOKUP('Back, Results'!$D$12,Table_investment_cost,3)*H80*-1,0)*$C$37 ->  | M80: 1, 0.29 | N80: 0.71 | O80: =N80*'Back, Results'!$D$18 -> 22.74674871 | P80: 741502145.9 | Q80: =(O80-1)*VLOOKUP('Back, Results'!$D$13,'Back, Additional Data'!$Y$13:$AU$18,23,FALSE) ->  | R80: =PMT($C$36,$C$37,VLOOKUP('Back, Results'!$D$13,Table_investment_cost,3)*O80*-1,0)*$C$37 -> 
F81: 1, 0.72 | G81: 0.28 | H81: =G81*'Back, Results'!$D$18 -> 8.970548785 | I81: 29373457.05 | J81: =(H81-1)*VLOOKUP('Back, Results'!$D$12,'Back, Additional Data'!$Y$13:$AU$18,23,FALSE) ->  | K81: =PMT($C$36,$C$37,VLOOKUP('Back, Results'!$D$12,Table_investment_cost,3)*H81*-1,0)*$C$37 ->  | M81: 1, 0.28 | N81: 0.72 | O81: =N81*'Back, Results'!$D$18 -> 23.06712545 | P81: 783945018.7 | Q81: =(O81-1)*VLOOKUP('Back, Results'!$D$13,'Back, Additional Data'!$Y$13:$AU$18,23,FALSE) ->  | R81: =PMT($C$36,$C$37,VLOOKUP('Back, Results'!$D$13,Table_investment_cost,3)*O81*-1,0)*$C$37 -> 
F82: 1, 0.73 | G82: 0.27 | H82: =G82*'Back, Results'!$D$18 -> 8.650172043 | I82: 27169608.17 | J82: =(H82-1)*VLOOKUP('Back, Results'!$D$12,'Back, Additional Data'!$Y$13:$AU$18,23,FALSE) ->  | K82: =PMT($C$36,$C$37,VLOOKUP('Back, Results'!$D$12,Table_investment_cost,3)*H82*-1,0)*$C$37 ->  | M82: 1, 0.27 | N82: 0.73 | O82: =N82*'Back, Results'!$D$18 -> 23.38750219 | P82: 829814394.1 | Q82: =(O82-1)*VLOOKUP('Back, Results'!$D$13,'Back, Additional Data'!$Y$13:$AU$18,23,FALSE) ->  | R82: =PMT($C$36,$C$37,VLOOKUP('Back, Results'!$D$13,Table_investment_cost,3)*O82*-1,0)*$C$37 -> 
F83: 1, 0.74 | G83: 0.26 | H83: =G83*'Back, Results'!$D$18 -> 8.3297953 | I83: 25059550.33 | J83: =(H83-1)*VLOOKUP('Back, Results'!$D$12,'Back, Additional Data'!$Y$13:$AU$18,23,FALSE) ->  | K83: =PMT($C$36,$C$37,VLOOKUP('Back, Results'!$D$12,Table_investment_cost,3)*H83*-1,0)*$C$37 ->  | M83: 1, 0.26 | N83: 0.74 | O83: =N83*'Back, Results'!$D$18 -> 23.70787893 | P83: 879523551.1 | Q83: =(O83-1)*VLOOKUP('Back, Results'!$D$13,'Back, Additional Data'!$Y$13:$AU$18,23,FALSE) ->  | R83: =PMT($C$36,$C$37,VLOOKUP('Back, Results'!$D$13,Table_investment_cost,3)*O83*-1,0)*$C$37 -> 
F84: 1, 0.75 | G84: 0.25 | H84: =G84*'Back, Results'!$D$18 -> 8.009418558 | I84: 23039443.55 | J84: =(H84-1)*VLOOKUP('Back, Results'!$D$12,'Back, Additional Data'!$Y$13:$AU$18,23,FALSE) ->  | K84: =PMT($C$36,$C$37,VLOOKUP('Back, Results'!$D$12,Table_investment_cost,3)*H84*-1,0)*$C$37 ->  | M84: 1, 0.25 | N84: 0.75 | O84: =N84*'Back, Results'!$D$18 -> 24.02825567 | P84: 933552605.9 | Q84: =(O84-1)*VLOOKUP('Back, Results'!$D$13,'Back, Additional Data'!$Y$13:$AU$18,23,FALSE) ->  | R84: =PMT($C$36,$C$37,VLOOKUP('Back, Results'!$D$13,Table_investment_cost,3)*O84*-1,0)*$C$37 -> 
F85: 1, 0.76 | G85: 0.24 | H85: =G85*'Back, Results'!$D$18 -> 7.689041816 | I85: 21105899.42 | J85: =(H85-1)*VLOOKUP('Back, Results'!$D$12,'Back, Additional Data'!$Y$13:$AU$18,23,FALSE) ->  | K85: =PMT($C$36,$C$37,VLOOKUP('Back, Results'!$D$12,Table_investment_cost,3)*H85*-1,0)*$C$37 ->  | M85: 1, 0.24 | N85: 0.76 | O85: =N85*'Back, Results'!$D$18 -> 24.34863242 | P85: 992462436.3 | Q85: =(O85-1)*VLOOKUP('Back, Results'!$D$13,'Back, Additional Data'!$Y$13:$AU$18,23,FALSE) ->  | R85: =PMT($C$36,$C$37,VLOOKUP('Back, Results'!$D$13,Table_investment_cost,3)*O85*-1,0)*$C$37 -> 
F86: 1, 0.77 | G86: 0.23 | H86: =G86*'Back, Results'!$D$18 -> 7.368665073 | I86: 19255951.75 | J86: =(H86-1)*VLOOKUP('Back, Results'!$D$12,'Back, Additional Data'!$Y$13:$AU$18,23,FALSE) ->  | K86: =PMT($C$36,$C$37,VLOOKUP('Back, Results'!$D$12,Table_investment_cost,3)*H86*-1,0)*$C$37 ->  | M86: 1, 0.23 | N86: 0.77 | O86: =N86*'Back, Results'!$D$18 -> 24.66900916 | P86: 1056912239 | Q86: =(O86-1)*VLOOKUP('Back, Results'!$D$13,'Back, Additional Data'!$Y$13:$AU$18,23,FALSE) ->  | R86: =PMT($C$36,$C$37,VLOOKUP('Back, Results'!$D$13,Table_investment_cost,3)*O86*-1,0)*$C$37 -> 
F87: 1, 0.78 | G87: 0.22 | H87: =G87*'Back, Results'!$D$18 -> 7.048288331 | I87: 17487029.51 | J87: =(H87-1)*VLOOKUP('Back, Results'!$D$12,'Back, Additional Data'!$Y$13:$AU$18,23,FALSE) ->  | K87: =PMT($C$36,$C$37,VLOOKUP('Back, Results'!$D$12,Table_investment_cost,3)*H87*-1,0)*$C$37 ->  | M87: 1, 0.22 | N87: 0.78 | O87: =N87*'Back, Results'!$D$18 -> 24.9893859 | P87: 1127681875 | Q87: =(O87-1)*VLOOKUP('Back, Results'!$D$13,'Back, Additional Data'!$Y$13:$AU$18,23,FALSE) ->  | R87: =PMT($C$36,$C$37,VLOOKUP('Back, Results'!$D$13,Table_investment_cost,3)*O87*-1,0)*$C$37 -> 
F88: 1, 0.79 | G88: 0.21 | H88: =G88*'Back, Results'!$D$18 -> 6.727911589 | I88: 15796931.82 | J88: =(H88-1)*VLOOKUP('Back, Results'!$D$12,'Back, Additional Data'!$Y$13:$AU$18,23,FALSE) ->  | K88: =PMT($C$36,$C$37,VLOOKUP('Back, Results'!$D$12,Table_investment_cost,3)*H88*-1,0)*$C$37 ->  | M88: 1, 0.21 | N88: 0.79 | O88: =N88*'Back, Results'!$D$18 -> 25.30976264 | P88: 1205700597 | Q88: =(O88-1)*VLOOKUP('Back, Results'!$D$13,'Back, Additional Data'!$Y$13:$AU$18,23,FALSE) ->  | R88: =PMT($C$36,$C$37,VLOOKUP('Back, Results'!$D$13,Table_investment_cost,3)*O88*-1,0)*$C$37 -> 
F89: 1, 0.8 | G89: 0.2 | H89: =G89*'Back, Results'!$D$18 -> 6.407534846 | I89: 14183804.79 | J89: =(H89-1)*VLOOKUP('Back, Results'!$D$12,'Back, Additional Data'!$Y$13:$AU$18,23,FALSE) ->  | K89: =PMT($C$36,$C$37,VLOOKUP('Back, Results'!$D$12,Table_investment_cost,3)*H89*-1,0)*$C$37 ->  | M89: 1, 0.2 | N89: 0.8 | O89: =N89*'Back, Results'!$D$18 -> 25.63013939 | P89: 1292084402 | Q89: =(O89-1)*VLOOKUP('Back, Results'!$D$13,'Back, Additional Data'!$Y$13:$AU$18,23,FALSE) ->  | R89: =PMT($C$36,$C$37,VLOOKUP('Back, Results'!$D$13,Table_investment_cost,3)*O89*-1,0)*$C$37 -> 
F90: 1, 0.81 | G90: 0.19 | H90: =G90*'Back, Results'!$D$18 -> 6.087158104 | I90: 12646120.15 | J90: =(H90-1)*VLOOKUP('Back, Results'!$D$12,'Back, Additional Data'!$Y$13:$AU$18,23,FALSE) ->  | K90: =PMT($C$36,$C$37,VLOOKUP('Back, Results'!$D$12,Table_investment_cost,3)*H90*-1,0)*$C$37 ->  | M90: 1, 0.19 | N90: 0.81 | O90: =N90*'Back, Results'!$D$18 -> 25.95051613 | P90: 1388185169 | Q90: =(O90-1)*VLOOKUP('Back, Results'!$D$13,'Back, Additional Data'!$Y$13:$AU$18,23,FALSE) ->  | R90: =PMT($C$36,$C$37,VLOOKUP('Back, Results'!$D$13,Table_investment_cost,3)*O90*-1,0)*$C$37 -> 
F91: 1, 0.82 | G91: 0.18 | H91: =G91*'Back, Results'!$D$18 -> 5.766781362 | I91: 11182655.37 | J91: =(H91-1)*VLOOKUP('Back, Results'!$D$12,'Back, Additional Data'!$Y$13:$AU$18,23,FALSE) ->  | K91: =PMT($C$36,$C$37,VLOOKUP('Back, Results'!$D$12,Table_investment_cost,3)*H91*-1,0)*$C$37 ->  | M91: 1, 0.18 | N91: 0.82 | O91: =N91*'Back, Results'!$D$18 -> 26.27089287 | P91: 1495656185 | Q91: =(O91-1)*VLOOKUP('Back, Results'!$D$13,'Back, Additional Data'!$Y$13:$AU$18,23,FALSE) ->  | R91: =PMT($C$36,$C$37,VLOOKUP('Back, Results'!$D$13,Table_investment_cost,3)*O91*-1,0)*$C$37 -> 
F92: 1, 0.83 | G92: 0.17 | H92: =G92*'Back, Results'!$D$18 -> 5.44640462 | I92: 9792475.222 | J92: =(H92-1)*VLOOKUP('Back, Results'!$D$12,'Back, Additional Data'!$Y$13:$AU$18,23,FALSE) ->  | K92: =PMT($C$36,$C$37,VLOOKUP('Back, Results'!$D$12,Table_investment_cost,3)*H92*-1,0)*$C$37 ->  | M92: 1, 0.17 | N92: 0.83 | O92: =N92*'Back, Results'!$D$18 -> 26.59126961 | P92: 1616540794 | Q92: =(O92-1)*VLOOKUP('Back, Results'!$D$13,'Back, Additional Data'!$Y$13:$AU$18,23,FALSE) ->  | R92: =PMT($C$36,$C$37,VLOOKUP('Back, Results'!$D$13,Table_investment_cost,3)*O92*-1,0)*$C$37 -> 
F93: 1, 0.84 | G93: 0.16 | H93: =G93*'Back, Results'!$D$18 -> 5.126027877 | I93: 8474914.716 | J93: =(H93-1)*VLOOKUP('Back, Results'!$D$12,'Back, Additional Data'!$Y$13:$AU$18,23,FALSE) ->  | K93: =PMT($C$36,$C$37,VLOOKUP('Back, Results'!$D$12,Table_investment_cost,3)*H93*-1,0)*$C$37 ->  | M93: 1, 0.16 | N93: 0.84 | O93: =N93*'Back, Results'!$D$18 -> 26.91164636 | P93: 1753394290 | Q93: =(O93-1)*VLOOKUP('Back, Results'!$D$13,'Back, Additional Data'!$Y$13:$AU$18,23,FALSE) ->  | R93: =PMT($C$36,$C$37,VLOOKUP('Back, Results'!$D$13,Table_investment_cost,3)*O93*-1,0)*$C$37 -> 
F94: 1, 0.85 | G94: 0.15 | H94: =G94*'Back, Results'!$D$18 -> 4.805651135 | I94: 7229563.178 | J94: =(H94-1)*VLOOKUP('Back, Results'!$D$12,'Back, Additional Data'!$Y$13:$AU$18,23,FALSE) ->  | K94: =PMT($C$36,$C$37,VLOOKUP('Back, Results'!$D$12,Table_investment_cost,3)*H94*-1,0)*$C$37 ->  | M94: 1, 0.15 | N94: 0.85 | O94: =N94*'Back, Results'!$D$18 -> 27.2320231 | P94: 1909454567 | Q94: =(O94-1)*VLOOKUP('Back, Results'!$D$13,'Back, Additional Data'!$Y$13:$AU$18,23,FALSE) ->  | R94: =PMT($C$36,$C$37,VLOOKUP('Back, Results'!$D$13,Table_investment_cost,3)*O94*-1,0)*$C$37 -> 
F95: 1, 0.86 | G95: 0.14 | H95: =G95*'Back, Results'!$D$18 -> 4.485274393 | I95: 6056249.474 | J95: =(H95-1)*VLOOKUP('Back, Results'!$D$12,'Back, Additional Data'!$Y$13:$AU$18,23,FALSE) ->  | K95: =PMT($C$36,$C$37,VLOOKUP('Back, Results'!$D$12,Table_investment_cost,3)*H95*-1,0)*$C$37 ->  | M95: 1, 0.14 | N95: 0.86 | O95: =N95*'Back, Results'!$D$18 -> 27.55239984 | P95: 2088885902 | Q95: =(O95-1)*VLOOKUP('Back, Results'!$D$13,'Back, Additional Data'!$Y$13:$AU$18,23,FALSE) ->  | R95: =PMT($C$36,$C$37,VLOOKUP('Back, Results'!$D$13,Table_investment_cost,3)*O95*-1,0)*$C$37 -> 
F96: 1, 0.87 | G96: 0.13 | H96: =G96*'Back, Results'!$D$18 -> 4.16489765 | I96: 4955028.24 | J96: =(H96-1)*VLOOKUP('Back, Results'!$D$12,'Back, Additional Data'!$Y$13:$AU$18,23,FALSE) ->  | K96: =PMT($C$36,$C$37,VLOOKUP('Back, Results'!$D$12,Table_investment_cost,3)*H96*-1,0)*$C$37 ->  | M96: 1, 0.13 | N96: 0.87 | O96: =N96*'Back, Results'!$D$18 -> 27.87277658 | P96: 2297135262 | Q96: =(O96-1)*VLOOKUP('Back, Results'!$D$13,'Back, Additional Data'!$Y$13:$AU$18,23,FALSE) ->  | R96: =PMT($C$36,$C$37,VLOOKUP('Back, Results'!$D$13,Table_investment_cost,3)*O96*-1,0)*$C$37 -> 
F97: 1, 0.88 | G97: 0.12 | H97: =G97*'Back, Results'!$D$18 -> 3.844520908 | I97: 3926167.057 | J97: =(H97-1)*VLOOKUP('Back, Results'!$D$12,'Back, Additional Data'!$Y$13:$AU$18,23,FALSE) ->  | K97: =PMT($C$36,$C$37,VLOOKUP('Back, Results'!$D$12,Table_investment_cost,3)*H97*-1,0)*$C$37 ->  | M97: 1, 0.12 | N97: 0.88 | O97: =N97*'Back, Results'!$D$18 -> 28.19315332 | P97: 2541466752 | Q97: =(O97-1)*VLOOKUP('Back, Results'!$D$13,'Back, Additional Data'!$Y$13:$AU$18,23,FALSE) ->  | R97: =PMT($C$36,$C$37,VLOOKUP('Back, Results'!$D$13,Table_investment_cost,3)*O97*-1,0)*$C$37 -> 
F98: 1, 0.89 | G98: 0.11 | H98: =G98*'Back, Results'!$D$18 -> 3.524144166 | I98: 2970134.486 | J98: =(H98-1)*VLOOKUP('Back, Results'!$D$12,'Back, Additional Data'!$Y$13:$AU$18,23,FALSE) ->  | K98: =PMT($C$36,$C$37,VLOOKUP('Back, Results'!$D$12,Table_investment_cost,3)*H98*-1,0)*$C$37 ->  | M98: 1, 0.11 | N98: 0.89 | O98: =N98*'Back, Results'!$D$18 -> 28.51353007 | P98: 2831787590 | Q98: =(O98-1)*VLOOKUP('Back, Results'!$D$13,'Back, Additional Data'!$Y$13:$AU$18,23,FALSE) ->  | R98: =PMT($C$36,$C$37,VLOOKUP('Back, Results'!$D$13,Table_investment_cost,3)*O98*-1,0)*$C$37 -> 
F99: 1, 0.9 | G99: 0.1 | H99: =G99*'Back, Results'!$D$18 -> 3.203767423 | I99: 2087588.901 | J99: =(H99-1)*VLOOKUP('Back, Results'!$D$12,'Back, Additional Data'!$Y$13:$AU$18,23,FALSE) ->  | K99: =PMT($C$36,$C$37,VLOOKUP('Back, Results'!$D$12,Table_investment_cost,3)*H99*-1,0)*$C$37 ->  | M99: 1, 0.1 | N99: 0.9 | O99: =N99*'Back, Results'!$D$18 -> 28.83390681 | P99: 3181969663 | Q99: =(O99-1)*VLOOKUP('Back, Results'!$D$13,'Back, Additional Data'!$Y$13:$AU$18,23,FALSE) ->  | R99: =PMT($C$36,$C$37,VLOOKUP('Back, Results'!$D$13,Table_investment_cost,3)*O99*-1,0)*$C$37 -> 
F100: 1, 0.91 | G100: 0.09 | H100: =G100*'Back, Results'!$D$18 -> 2.883390681 | I100: 1279368.064 | J100: =(H100-1)*VLOOKUP('Back, Results'!$D$12,'Back, Additional Data'!$Y$13:$AU$18,23,FALSE) ->  | K100: =PMT($C$36,$C$37,VLOOKUP('Back, Results'!$D$12,Table_investment_cost,3)*H100*-1,0)*$C$37 ->  | M100: 1, 0.09 | N100: 0.91 | O100: =N100*'Back, Results'!$D$18 -> 29.15428355 | P100: 3612052120 | Q100: =(O100-1)*VLOOKUP('Back, Results'!$D$13,'Back, Additional Data'!$Y$13:$AU$18,23,FALSE) ->  | R100: =PMT($C$36,$C$37,VLOOKUP('Back, Results'!$D$13,Table_investment_cost,3)*O100*-1,0)*$C$37 -> 
F101: 1, 0.92 | G101: 0.08 | H101: =G101*'Back, Results'!$D$18 -> 2.563013939 | I101: 546479.3714 | J101: =(H101-1)*VLOOKUP('Back, Results'!$D$12,'Back, Additional Data'!$Y$13:$AU$18,23,FALSE) ->  | K101: =PMT($C$36,$C$37,VLOOKUP('Back, Results'!$D$12,Table_investment_cost,3)*H101*-1,0)*$C$37 ->  | M101: 1, 0.08 | N101: 0.92 | O101: =N101*'Back, Results'!$D$18 -> 29.47466029 | P101: 4152095916 | Q101: =(O101-1)*VLOOKUP('Back, Results'!$D$13,'Back, Additional Data'!$Y$13:$AU$18,23,FALSE) ->  | R101: =PMT($C$36,$C$37,VLOOKUP('Back, Results'!$D$13,Table_investment_cost,3)*O101*-1,0)*$C$37 -> 
F102: 1, 0.93 | G102: 0.07 | H102: =G102*'Back, Results'!$D$18 -> 2.242637196 | I102: -109909.2631 | J102: =(H102-1)*VLOOKUP('Back, Results'!$D$12,'Back, Additional Data'!$Y$13:$AU$18,23,FALSE) ->  | K102: =PMT($C$36,$C$37,VLOOKUP('Back, Results'!$D$12,Table_investment_cost,3)*H102*-1,0)*$C$37 ->  | M102: 1, 0.07 | N102: 0.93 | O102: =N102*'Back, Results'!$D$18 -> 29.79503704 | P102: 4849342233 | Q102: =(O102-1)*VLOOKUP('Back, Results'!$D$13,'Back, Additional Data'!$Y$13:$AU$18,23,FALSE) ->  | R102: =PMT($C$36,$C$37,VLOOKUP('Back, Results'!$D$13,Table_investment_cost,3)*O102*-1,0)*$C$37 -> 
F103: 1, 0.94 | G103: 0.06 | H103: =G103*'Back, Results'!$D$18 -> 1.922260454 | I103: -688477.9488 | J103: =(H103-1)*VLOOKUP('Back, Results'!$D$12,'Back, Additional Data'!$Y$13:$AU$18,23,FALSE) ->  | K103: =PMT($C$36,$C$37,VLOOKUP('Back, Results'!$D$12,Table_investment_cost,3)*H103*-1,0)*$C$37 ->  | M103: 1, 0.06 | N103: 0.94 | O103: =N103*'Back, Results'!$D$18 -> 30.11541378 | P103: 5782529351 | Q103: =(O103-1)*VLOOKUP('Back, Results'!$D$13,'Back, Additional Data'!$Y$13:$AU$18,23,FALSE) ->  | R103: =PMT($C$36,$C$37,VLOOKUP('Back, Results'!$D$13,Table_investment_cost,3)*O103*-1,0)*$C$37 -> 
F104: 1, 0.95 | G104: 0.05 | H104: =G104*'Back, Results'!$D$18 -> 1.601883712 | I104: -1187762.816 | J104: =(H104-1)*VLOOKUP('Back, Results'!$D$12,'Back, Additional Data'!$Y$13:$AU$18,23,FALSE) ->  | K104: =PMT($C$36,$C$37,VLOOKUP('Back, Results'!$D$12,Table_investment_cost,3)*H104*-1,0)*$C$37 ->  | M104: 1, 0.05 | N104: 0.95 | O104: =N104*'Back, Results'!$D$18 -> 30.43579052 | P104: 7093389732 | Q104: =(O104-1)*VLOOKUP('Back, Results'!$D$13,'Back, Additional Data'!$Y$13:$AU$18,23,FALSE) ->  | R104: =PMT($C$36,$C$37,VLOOKUP('Back, Results'!$D$13,Table_investment_cost,3)*O104*-1,0)*$C$37 -> 
F107: 1, 0.05
F108: 1, 0.06
F109: 1, 0.07
F110: 1, 0.08
F111: 1, 0.09
F112: 1, 0.1
F113: 1, 0.11
F114: 1, 0.12
F115: 1, 0.13
F116: 1, 0.14
F117: 1, 0.15
F118: 1, 0.16
F119: 1, 0.17
F120: 1, 0.18
F121: 1, 0.19
F122: 1, 0.2
F123: 1, 0.21
F124: 1, 0.22
F125: 1, 0.23
F126: 1, 0.24
F127: 1, 0.25
F128: 1, 0.26
F129: 1, 0.27
F130: 1, 0.28
F131: 1, 0.29
F132: 1, 0.3
F133: 1, 0.31
F134: 1, 0.32
F135: 1, 0.33
F136: 1, 0.34
F137: 1, 0.35
F138: 1, 0.36
F139: 1, 0.37
F140: 1, 0.38
F141: 1, 0.39
F142: 1, 0.4
F143: 1, 0.41
F144: 1, 0.42
F145: 1, 0.43
F146: 1, 0.44
F147: 1, 0.45
F148: 1, 0.46
F149: 1, 0.47
F150: 1, 0.48
F151: 1, 0.49
F152: 1, 0.5
F153: 1, 0.51
F154: 1, 0.52
F155: 1, 0.53
F156: 1, 0.54
F157: 1, 0.55
F158: 1, 0.56
F159: 1, 0.57
F160: 1, 0.58
F161: 1, 0.59
F162: 1, 0.6
F163: 1, 0.61
F164: 1, 0.62
F165: 1, 0.63
F166: 1, 0.64
F167: 1, 0.65
F168: 1, 0.66
F169: 1, 0.67
F170: 1, 0.68
F171: 1, 0.69
F172: 1, 0.7
F173: 1, 0.71
F174: 1, 0.72
F175: 1, 0.73
F176: 1, 0.74
F177: 1, 0.75
F178: 1, 0.76
F179: 1, 0.77
F180: 1, 0.78
F181: 1, 0.79
F182: 1, 0.8
F183: 1, 0.81
F184: 1, 0.82
F185: 1, 0.83
F186: 1, 0.84
F187: 1, 0.85
F188: 1, 0.86
F189: 1, 0.87
F190: 1, 0.88
F191: 1, 0.89
F192: 1, 0.9
F193: 1, 0.91
F194: 1, 0.92
F195: 1, 0.93
F196: 1, 0.94
F197: 1, 0.95

Sheet Back, Peak Capacity
B4: This sheet is used to determine the function for the peak capacity required in the system based on the annual district heating demand in MWh. The demand profiles have been extracted from energyPRO and sorted to form the load duration profiles for annual demands of 50,000, 250,000 and 500,000 MWh. These peak capacities are then used to find the function based on linear regression. The a and b coefficients are then used to generate a function that can determine the reuiqred peak capacity at any annual district heating demand from 1 MWh and upwards. The R2 value of 1 shows that the linear regression fits perfectly. The function is y = 2.91 * 10-4 * x - 7.11 * 10-14.
B9: Hours | C9: Profile | D9: Sorted | E9: 50000 | H9: 250000 | K9: 500000 | N9: Input | R9: Demand | S9: Peak | U9: Demand | V9: Peak
E10: MW | F10: Sorted | G10: 0.1 | H10: MW | I10: Sorted | J10: 0.1 | K10: MW | L10: Sorted | M10: 0.1 | N10: MW | O10: Sorted | P10: 0.1 | R10: [MWh] | S10: [MW] | U10: [MWh] | V10: [MW]
B11: 1 | C11: 0.0002032321978 | D11: 0.0002648314993 | E11: =$E$9*C11 -> 10.16160989 | F11: 13.23870836 | G11: =F11*1.1 -> 14.5625792 | H11: =$H$9*C11 -> 50.80804944 | I11: 66.1935418 | J11: =I11*1.1 -> 72.81289598 | K11: =$K$9*C11 -> 101.6160989 | L11: 132.3870836 | M11: =L11*1.1 -> 145.625792 | N11: =Input!$F$21*C11 -> 20.32321978 | O11: =Input!$F$21*D11 -> 26.48314993 | P11: =O11*1.1 -> 29.13146492 | R11: 1000 | S11: =$V$15*R11+$V$16 -> 0.2912515839 | U11: 50000 | V11: =G11 -> 14.5625792
B12: 2 | C12: 0.0002011322216 | D12: 0.0002634315152 | E12: 10.05661108 | F12: 13.16872431 | G12: 14.48559674 | H12: 50.28305539 | I12: 65.84362154 | J12: 72.42798369 | K12: =$K$9*C12 -> 100.5661108 | L12: 131.6872431 | M12: 144.8559674 | N12: =Input!$F$21*C12 -> 20.11322216 | O12: =Input!$F$21*D12 -> 26.34315152 | P12: =O12*1.1 -> 28.97746667 | R12: 2000 | S12: 0.5825031679 | U12: 250000 | V12: =J11 -> 72.81289598
B13: 3 | C13: 0.0001990322454 | D13: 0.000261331539 | E13: 9.951612269 | F13: 13.06374823 | G13: 14.37012305 | H13: 49.75806134 | I13: 65.31874115 | J13: 71.85061526 | K13: 99.51612269 | L13: 130.6374823 | M13: 143.7012305 | N13: =Input!$F$21*C13 -> 19.90322454 | O13: =Input!$F$21*D13 -> 26.1331539 | P13: 28.74646929 | R13: 3000 | S13: 0.8737547518 | U13: 500000 | V13: =M11 -> 145.625792
B14: 4 | C14: 0.0001955322851 | D14: 0.0002578315787 | E14: 9.776614253 | F14: 12.8887881 | G14: 14.17766691 | H14: 48.88307126 | I14: 64.44394049 | J14: 70.88833454 | K14: 97.76614253 | L14: 128.887881 | M14: 141.7766691 | N14: =Input!$F$21*C14 -> 19.55322851 | O14: =Input!$F$21*D14 -> 25.78315787 | P14: 28.36147365 | R14: 4000 | S14: 1.165006336
B15: 5 | C15: 0.0001871323803 | D15: 0.0002571315866 | E15: 9.356619015 | F15: 12.85379607 | G15: 14.13917568 | H15: 46.78309508 | I15: 64.26898036 | J15: 70.69587839 | K15: 93.56619015 | L15: 128.5379607 | M15: 141.3917568 | N15: =Input!$F$21*C15 -> 18.71323803 | O15: =Input!$F$21*D15 -> 25.71315866 | P15: 28.28447453 | R15: 5000 | S15: 1.45625792 | U15: a: | V15: =SLOPE(V11:V13,U11:U13) -> 0.0002912515839
B16: 6 | C16: 0.0001808324517 | D16: 0.0002550316104 | E16: 9.041622587 | F16: 12.74881999 | G16: 14.02370199 | H16: 45.20811293 | I16: 63.74409996 | J16: 70.11850996 | K16: 90.41622587 | L16: 127.4881999 | M16: 140.2370199 | N16: =Input!$F$21*C16 -> 18.08324517 | O16: =Input!$F$21*D16 -> 25.50316104 | P16: 28.05347715 | R16: 6000 | S16: 1.747509504 | U16: b: | V16: =INTERCEPT(V11:V13,U11:U13) -> 7.105427358e-14
B17: 7 | C17: 0.0001752325152 | D17: 0.0002543316184 | E17: 8.761625762 | F17: 12.71382797 | G17: 13.98521076 | H17: 43.80812881 | I17: 63.56913983 | J17: 69.92605382 | K17: 87.61625762 | L17: 127.1382797 | M17: 139.8521076 | N17: =Input!$F$21*C17 -> 17.52325152 | O17: =Input!$F$21*D17 -> 25.43316184 | P17: 27.97647802 | R17: 7000 | S17: 2.038761088 | U17: R2: | V17: =1-(SUM((V11-S60)^2+(V12-S260)^2+(V13-S510)^2)/((COUNT(B20:B22)-1)*_xlfn.VAR.S(V11:V13))) -> 1
B18: 8 | C18: 0.0001717325549 | D18: 0.0002536316263 | E18: 8.586627746 | F18: 12.67883594 | G18: 13.94671953 | H18: 42.93313873 | I18: 63.3941797 | J18: 69.73359767 | K18: 85.86627746 | L18: 126.7883594 | M18: 139.4671953 | N18: =Input!$F$21*C18 -> 17.17325549 | O18: =Input!$F$21*D18 -> 25.36316263 | P18: 27.89947889 | R18: 8000 | S18: 2.330012671
B19: 9 | C19: 0.000173132539 | D19: 0.0002529316342 | E19: 8.656626952 | F19: 12.64384391 | G19: 13.90822831 | H19: 43.28313476 | I19: 63.21921957 | J19: 69.54114153 | K19: 86.56626952 | L19: 126.4384391 | M19: 139.0822831 | N19: =Input!$F$21*C19 -> 17.3132539 | O19: =Input!$F$21*D19 -> 25.29316342 | P19: 27.82247977 | R19: 9000 | S19: 2.621264255
B20: 10 | C20: 0.0001717325549 | D20: 0.0002529316342 | E20: 8.586627746 | F20: 12.64384391 | G20: 13.90822831 | H20: 42.93313873 | I20: 63.21921957 | J20: 69.54114153 | K20: 85.86627746 | L20: 126.4384391 | M20: 139.0822831 | N20: =Input!$F$21*C20 -> 17.17325549 | O20: =Input!$F$21*D20 -> 25.29316342 | P20: 27.82247977 | R20: 10000 | S20: 2.912515839
B21: 11 | C21: 0.0001675326025 | D21: 0.0002522316422 | E21: 8.376630127 | F21: 12.60885189 | G21: 13.86973708 | H21: 41.88315063 | I21: 63.04425944 | J21: 69.34868538 | K21: 83.76630127 | L21: 126.0885189 | M21: 138.6973708 | N21: =Input!$F$21*C21 -> 16.75326025 | O21: =Input!$F$21*D21 -> 25.22316422 | P21: 27.74548064 | R21: 11000 | S21: 3.203767423
B22: 12 | C22: 0.000161232674 | D22: 0.0002515316501 | E22: 8.061633698 | F22: 12.57385986 | G22: 13.83124585 | H22: 40.30816849 | I22: 62.86929931 | J22: 69.15622924 | K22: 80.61633698 | L22: 125.7385986 | M22: 138.3124585 | N22: =Input!$F$21*C22 -> 16.1232674 | O22: =Input!$F$21*D22 -> 25.15316501 | P22: 27.66848151 | R22: 12000 | S22: 3.495019007
B23: 13 | C23: 0.0001549327454 | D23: 0.0002515316501 | E23: 7.74663727 | F23: 12.57385986 | G23: 13.83124585 | H23: 38.73318635 | I23: 62.86929931 | J23: 69.15622924 | K23: 77.4663727 | L23: 125.7385986 | M23: 138.3124585 | N23: =Input!$F$21*C23 -> 15.49327454 | O23: =Input!$F$21*D23 -> 25.15316501 | P23: 27.66848151 | R23: 13000 | S23: 3.786270591
B24: 14 | C24: 0.0001528327692 | D24: 0.0002515316501 | E24: 7.641638461 | F24: 12.57385986 | G24: 13.83124585 | H24: 38.2081923 | I24: 62.86929931 | J24: 69.15622924 | K24: 76.41638461 | L24: 125.7385986 | M24: 138.3124585 | N24: =Input!$F$21*C24 -> 15.28327692 | O24: =Input!$F$21*D24 -> 25.15316501 | P24: 27.66848151 | R24: 14000 | S24: 4.077522175
B25: 15 | C25: 0.0001528327692 | D25: 0.0002494316739 | E25: 7.641638461 | F25: 12.46888378 | G25: 13.71577216 | H25: 38.2081923 | I25: 62.34441891 | J25: 68.57886081 | K25: 76.41638461 | L25: 124.6888378 | M25: 137.1577216 | N25: =Input!$F$21*C25 -> 15.28327692 | O25: =Input!$F$21*D25 -> 24.94316739 | P25: 27.43748413 | R25: 15000 | S25: 4.368773759
B26: 16 | C26: 0.0001521327771 | D26: 0.0002494316739 | E26: 7.606638857 | F26: 12.46888378 | G26: 13.71577216 | H26: 38.03319429 | I26: 62.34441891 | J26: 68.57886081 | K26: 76.06638857 | L26: 124.6888378 | M26: 137.1577216 | N26: =Input!$F$21*C26 -> 15.21327771 | O26: =Input!$F$21*D26 -> 24.94316739 | P26: 27.43748413 | R26: 16000 | S26: 4.660025343
B27: 17 | C27: 0.0001514327851 | D27: 0.0002487316819 | E27: 7.571639254 | F27: 12.43389176 | G27: 13.67728093 | H27: 37.85819627 | I27: 62.16945878 | J27: 68.38640466 | K27: 75.71639254 | L27: 124.3389176 | M27: 136.7728093 | N27: =Input!$F$21*C27 -> 15.14327851 | O27: =Input!$F$21*D27 -> 24.87316819 | P27: 27.360485 | R27: 17000 | S27: 4.951276927
B28: 18 | C28: 0.000150032801 | D28: 0.0002473316977 | E28: 7.501640048 | F28: 12.3639077 | G28: 13.60029847 | H28: 37.50820024 | I28: 61.81953852 | J28: 68.00149237 | K28: 75.01640048 | L28: 123.639077 | M28: 136.0029847 | N28: =Input!$F$21*C28 -> 15.0032801 | O28: =Input!$F$21*D28 -> 24.73316977 | P28: 27.20648675 | R28: 18000 | S28: 5.242528511
B29: 19 | C29: 0.000150032801 | D29: 0.0002473316977 | E29: 7.501640048 | F29: 12.3639077 | G29: 13.60029847 | H29: 37.50820024 | I29: 61.81953852 | J29: 68.00149237 | K29: 75.01640048 | L29: 123.639077 | M29: 136.0029847 | N29: =Input!$F$21*C29 -> 15.0032801 | O29: =Input!$F$21*D29 -> 24.73316977 | P29: 27.20648675 | R29: 19000 | S29: 5.533780095
B30: 20 | C30: 0.0001556327375 | D30: 0.0002459317136 | E30: 7.781636873 | F30: 12.29392365 | G30: 13.52331602 | H30: 38.90818437 | I30: 61.46961826 | J30: 67.61658008 | K30: 77.81636873 | L30: 122.9392365 | M30: 135.2331602 | N30: =Input!$F$21*C30 -> 15.56327375 | O30: =Input!$F$21*D30 -> 24.59317136 | P30: 27.0524885 | R30: 20000 | S30: 5.825031679
B31: 21 | C31: 0.0001570327216 | D31: 0.0002445317295 | E31: 7.85163608 | F31: 12.2239396 | G31: 13.44633356 | H31: 39.2581804 | I31: 61.119698 | J31: 67.23166779 | K31: 78.5163608 | L31: 122.239396 | M31: 134.4633356 | N31: =Input!$F$21*C31 -> 15.70327216 | O31: =Input!$F$21*D31 -> 24.45317295 | P31: 26.89849024 | R31: 21000 | S31: 6.116283263
B32: 22 | C32: 0.0001528327692 | D32: 0.0002431317453 | E32: 7.641638461 | F32: 12.15395555 | G32: 13.3693511 | H32: 38.2081923 | I32: 60.76977773 | J32: 66.84675551 | K32: 76.41638461 | L32: 121.5395555 | M32: 133.693511 | N32: =Input!$F$21*C32 -> 15.28327692 | O32: =Input!$F$21*D32 -> 24.31317453 | P32: 26.74449199 | R32: 22000 | S32: 6.407534846
B33: 23 | C33: 0.0001451328565 | D33: 0.0002431317453 | E33: 7.256642826 | F33: 12.15395555 | G33: 13.3693511 | H33: 36.28321413 | I33: 60.76977773 | J33: 66.84675551 | K33: 72.56642826 | L33: 121.5395555 | M33: 133.693511 | N33: =Input!$F$21*C33 -> 14.51328565 | O33: =Input!$F$21*D33 -> 24.31317453 | P33: 26.74449199 | R33: 23000 | S33: 6.69878643
B34: 24 | C34: 0.0001472328327 | D34: 0.0002424317533 | E34: 7.361641635 | F34: 12.11896352 | G34: 13.33085987 | H34: 36.80820818 | I34: 60.5948176 | J34: 66.65429936 | K34: 73.61641635 | L34: 121.1896352 | M34: 133.3085987 | N34: =Input!$F$21*C34 -> 14.72328327 | O34: =Input!$F$21*D34 -> 24.24317533 | P34: 26.66749286 | R34: 24000 | S34: 6.990038014
B35: 25 | C35: 0.000150032801 | D35: 0.0002424317533 | E35: 7.501640048 | F35: 12.11896352 | G35: 13.33085987 | H35: 37.50820024 | I35: 60.5948176 | J35: 66.65429936 | K35: 75.01640048 | L35: 121.1896352 | M35: 133.3085987 | N35: =Input!$F$21*C35 -> 15.0032801 | O35: =Input!$F$21*D35 -> 24.24317533 | P35: 26.66749286 | R35: 25000 | S35: 7.281289598
B36: 26 | C36: 0.0001542327533 | D36: 0.0002403317771 | E36: 7.711637667 | F36: 12.01398744 | G36: 13.21538619 | H36: 38.55818833 | I36: 60.06993721 | J36: 66.07693093 | K36: 77.11637667 | L36: 120.1398744 | M36: 132.1538619 | N36: =Input!$F$21*C36 -> 15.42327533 | O36: =Input!$F$21*D36 -> 24.03317771 | P36: 26.43649548 | R36: 26000 | S36: 7.572541182
B37: 27 | C37: 0.0001591326978 | D37: 0.0002403317771 | E37: 7.956634889 | F37: 12.01398744 | G37: 13.21538619 | H37: 39.78317445 | I37: 60.06993721 | J37: 66.07693093 | K37: 79.56634889 | L37: 120.1398744 | M37: 132.1538619 | N37: =Input!$F$21*C37 -> 15.91326978 | O37: =Input!$F$21*D37 -> 24.03317771 | P37: 26.43649548 | R37: 27000 | S37: 7.863792766
B38: 28 | C38: 0.000161232674 | D38: 0.000238931793 | E38: 8.061633698 | F38: 11.94400339 | G38: 13.13840373 | H38: 40.30816849 | I38: 59.72001694 | J38: 65.69201864 | K38: 80.61633698 | L38: 119.4400339 | M38: 131.3840373 | N38: =Input!$F$21*C38 -> 16.1232674 | O38: =Input!$F$21*D38 -> 23.8931793 | P38: 26.28249723 | R38: 28000 | S38: 8.15504435
B39: 29 | C39: 0.0001654326263 | D39: 0.0002382318009 | E39: 8.271631317 | F39: 11.90901136 | G39: 13.0999125 | H39: 41.35815659 | I39: 59.54505681 | J39: 65.49956249 | K39: 82.71631317 | L39: 119.0901136 | M39: 130.999125 | N39: =Input!$F$21*C39 -> 16.54326263 | O39: =Input!$F$21*D39 -> 23.82318009 | P39: 26.2054981 | R39: 29000 | S39: 8.446295934
B40: 30 | C40: 0.000172432547 | D40: 0.0002382318009 | E40: 8.621627349 | F40: 11.90901136 | G40: 13.0999125 | H40: 43.10813674 | I40: 59.54505681 | J40: 65.49956249 | K40: 86.21627349 | L40: 119.0901136 | M40: 130.999125 | N40: =Input!$F$21*C40 -> 17.2432547 | O40: =Input!$F$21*D40 -> 23.82318009 | P40: 26.2054981 | R40: 30000 | S40: 8.737547518
B41: 31 | C41: 0.000173132539 | D41: 0.0002375318088 | E41: 8.656626952 | F41: 11.87401934 | G41: 13.06142127 | H41: 43.28313476 | I41: 59.37009668 | J41: 65.30710635 | K41: 86.56626952 | L41: 118.7401934 | M41: 130.6142127 | N41: =Input!$F$21*C41 -> 17.3132539 | O41: =Input!$F$21*D41 -> 23.75318088 | P41: 26.12849897 | R41: 31000 | S41: 9.028799102
B42: 32 | C42: 0.0001773324914 | D42: 0.0002375318088 | E42: 8.866624571 | F42: 11.87401934 | G42: 13.06142127 | H42: 44.33312286 | I42: 59.37009668 | J42: 65.30710635 | K42: 88.66624571 | L42: 118.7401934 | M42: 130.6142127 | N42: =Input!$F$21*C42 -> 17.73324914 | O42: =Input!$F$21*D42 -> 23.75318088 | P42: 26.12849897 | R42: 32000 | S42: 9.320050686
B43: 33 | C43: 0.00018363242 | D43: 0.0002375318088 | E43: 9.181620999 | F43: 11.87401934 | G43: 13.06142127 | H43: 45.908105 | I43: 59.37009668 | J43: 65.30710635 | K43: 91.81620999 | L43: 118.7401934 | M43: 130.6142127 | N43: =Input!$F$21*C43 -> 18.363242 | O43: =Input!$F$21*D43 -> 23.75318088 | P43: 26.12849897 | R43: 33000 | S43: 9.61130227
B44: 34 | C44: 0.0001829324279 | D44: 0.0002368318168 | E44: 9.146621396 | F44: 11.83902731 | G44: 13.02293004 | H44: 45.73310698 | I44: 59.19513655 | J44: 65.11465021 | K44: 91.46621396 | L44: 118.3902731 | M44: 130.2293004 | N44: =Input!$F$21*C44 -> 18.29324279 | O44: =Input!$F$21*D44 -> 23.68318168 | P44: 26.05149985 | R44: 34000 | S44: 9.902553854
B45: 35 | C45: 0.0001738325311 | D45: 0.0002368318168 | E45: 8.691626555 | F45: 11.83902731 | G45: 13.02293004 | H45: 43.45813278 | I45: 59.19513655 | J45: 65.11465021 | K45: 86.91626555 | L45: 118.3902731 | M45: 130.2293004 | N45: =Input!$F$21*C45 -> 17.38325311 | O45: =Input!$F$21*D45 -> 23.68318168 | P45: 26.05149985 | R45: 35000 | S45: 10.19380544
B46: 36 | C46: 0.0001654326263 | D46: 0.0002333318565 | E46: 8.271631317 | F46: 11.66406718 | G46: 12.8304739 | H46: 41.35815659 | I46: 58.32033589 | J46: 64.15236948 | K46: 82.71631317 | L46: 116.6406718 | M46: 128.304739 | N46: =Input!$F$21*C46 -> 16.54326263 | O46: =Input!$F$21*D46 -> 23.33318565 | P46: 25.66650421 | R46: 36000 | S46: 10.48505702
B47: 37 | C47: 0.000161232674 | D47: 0.0002333318565 | E47: 8.061633698 | F47: 11.66406718 | G47: 12.8304739 | H47: 40.30816849 | I47: 58.32033589 | J47: 64.15236948 | K47: 80.61633698 | L47: 116.6406718 | M47: 128.304739 | N47: =Input!$F$21*C47 -> 16.1232674 | O47: =Input!$F$21*D47 -> 23.33318565 | P47: 25.66650421 | R47: 37000 | S47: 10.77630861
B48: 38 | C48: 0.0001605326819 | D48: 0.0002326318644 | E48: 8.026634095 | F48: 11.62907515 | G48: 12.79198267 | H48: 40.13317048 | I48: 58.14537576 | J48: 63.95991334 | K48: 80.26634095 | L48: 116.2907515 | M48: 127.9198267 | N48: =Input!$F$21*C48 -> 16.05326819 | O48: =Input!$F$21*D48 -> 23.26318644 | P48: 25.58950508 | R48: 38000 | S48: 11.06756019
B49: 39 | C49: 0.000161932666 | D49: 0.0002319318723 | E49: 8.096633302 | F49: 11.59408313 | G49: 12.75349144 | H49: 40.48316651 | I49: 57.97041563 | J49: 63.7674572 | K49: 80.96633302 | L49: 115.9408313 | M49: 127.5349144 | N49: =Input!$F$21*C49 -> 16.1932666 | O49: =Input!$F$21*D49 -> 23.19318723 | P49: 25.51250596 | R49: 39000 | S49: 11.35881177
B50: 40 | C50: 0.0001766324994 | D50: 0.0002319318723 | E50: 8.831624968 | F50: 11.59408313 | G50: 12.75349144 | H50: 44.15812484 | I50: 57.97041563 | J50: 63.7674572 | K50: 88.31624968 | L50: 115.9408313 | M50: 127.5349144 | N50: =Input!$F$21*C50 -> 17.66324994 | O50: =Input!$F$21*D50 -> 23.19318723 | P50: 25.51250596 | R50: 40000 | S50: 11.65006336
B51: 41 | C51: 0.0001976322612 | D51: 0.0002319318723 | E51: 9.881613062 | F51: 11.59408313 | G51: 12.75349144 | H51: 49.40806531 | I51: 57.97041563 | J51: 63.7674572 | K51: 98.81613062 | L51: 115.9408313 | M51: 127.5349144 | N51: =Input!$F$21*C51 -> 19.76322612 | O51: =Input!$F$21*D51 -> 23.19318723 | P51: 25.51250596 | R51: 41000 | S51: 11.94131494
B52: 42 | C52: 0.0001990322454 | D52: 0.0002312318803 | E52: 9.951612269 | F52: 11.5590911 | G52: 12.71500021 | H52: 49.75806134 | I52: 57.7954555 | J52: 63.57500105 | K52: 99.51612269 | L52: 115.590911 | M52: 127.1500021 | N52: =Input!$F$21*C52 -> 19.90322454 | O52: =Input!$F$21*D52 -> 23.12318803 | P52: 25.43550683 | R52: 42000 | S52: 12.23256653
B53: 43 | C53: 0.0001962322771 | D53: 0.0002312318803 | E53: 9.811613856 | F53: 11.5590911 | G53: 12.71500021 | H53: 49.05806928 | I53: 57.7954555 | J53: 63.57500105 | K53: 98.11613856 | L53: 115.590911 | M53: 127.1500021 | N53: =Input!$F$21*C53 -> 19.62322771 | O53: =Input!$F$21*D53 -> 23.12318803 | P53: 25.43550683 | R53: 43000 | S53: 12.52381811
B54: 44 | C54: 0.0001927323168 | D54: 0.0002305318882 | E54: 9.63661584 | F54: 11.52409907 | G54: 12.67650898 | H54: 48.1830792 | I54: 57.62049537 | J54: 63.38254491 | K54: 96.3661584 | L54: 115.2409907 | M54: 126.7650898 | N54: =Input!$F$21*C54 -> 19.27323168 | O54: =Input!$F$21*D54 -> 23.05318882 | P54: 25.3585077 | R54: 44000 | S54: 12.81506969
B55: 45 | C55: 0.0002025322057 | D55: 0.0002305318882 | E55: 10.12661028 | F55: 11.52409907 | G55: 12.67650898 | H55: 50.63305142 | I55: 57.62049537 | J55: 63.38254491 | K55: 101.2661028 | L55: 115.2409907 | M55: 126.7650898 | N55: =Input!$F$21*C55 -> 20.25322057 | O55: =Input!$F$21*D55 -> 23.05318882 | P55: 25.3585077 | R55: 45000 | S55: 13.10632128
B56: 46 | C56: 0.0002088321343 | D56: 0.0002305318882 | E56: 10.44160671 | F56: 11.52409907 | G56: 12.67650898 | H56: 52.20803356 | I56: 57.62049537 | J56: 63.38254491 | K56: 104.4160671 | L56: 115.2409907 | M56: 126.7650898 | N56: =Input!$F$21*C56 -> 20.88321343 | O56: =Input!$F$21*D56 -> 23.05318882 | P56: 25.3585077 | R56: 46000 | S56: 13.39757286
B57: 47 | C57: 0.0002102321184 | D57: 0.0002298318961 | E57: 10.51160592 | F57: 11.48910705 | G57: 12.63801775 | H57: 52.5580296 | I57: 57.44553524 | J57: 63.19008876 | K57: 105.1160592 | L57: 114.8910705 | M57: 126.3801775 | N57: =Input!$F$21*C57 -> 21.02321184 | O57: =Input!$F$21*D57 -> 22.98318961 | P57: 25.28150858 | R57: 47000 | S57: 13.68882444
B58: 48 | C58: 0.0002130320866 | D58: 0.0002298318961 | E58: 10.65160433 | F58: 11.48910705 | G58: 12.63801775 | H58: 53.25802166 | I58: 57.44553524 | J58: 63.19008876 | K58: 106.5160433 | L58: 114.8910705 | M58: 126.3801775 | N58: =Input!$F$21*C58 -> 21.30320866 | O58: =Input!$F$21*D58 -> 22.98318961 | P58: 25.28150858 | R58: 48000 | S58: 13.98007603
B59: 49 | C59: 0.0002102321184 | D59: 0.0002298318961 | E59: 10.51160592 | F59: 11.48910705 | G59: 12.63801775 | H59: 52.5580296 | I59: 57.44553524 | J59: 63.19008876 | K59: 105.1160592 | L59: 114.8910705 | M59: 126.3801775 | N59: =Input!$F$21*C59 -> 21.02321184 | O59: =Input!$F$21*D59 -> 22.98318961 | P59: 25.28150858 | R59: 49000 | S59: 14.27132761
B60: 50 | C60: 0.0002074321501 | D60: 0.0002298318961 | E60: 10.37160751 | F60: 11.48910705 | G60: 12.63801775 | H60: 51.85803753 | I60: 57.44553524 | J60: 63.19008876 | K60: 103.7160751 | L60: 114.8910705 | M60: 126.3801775 | N60: =Input!$F$21*C60 -> 20.74321501 | O60: =Input!$F$21*D60 -> 22.98318961 | P60: 25.28150858 | R60: 50000 | S60: 14.5625792
B61: 51 | C61: 0.0002067321581 | D61: 0.0002291319041 | E61: 10.3366079 | F61: 11.45411502 | G61: 12.59952652 | H61: 51.68303952 | I61: 57.27057511 | J61: 62.99763262 | K61: 103.366079 | L61: 114.5411502 | M61: 125.9952652 | N61: =Input!$F$21*C61 -> 20.67321581 | O61: =Input!$F$21*D61 -> 22.91319041 | P61: 25.20450945 | R61: 51000 | S61: 14.85383078
B62: 52 | C62: 0.0002046321819 | D62: 0.0002291319041 | E62: 10.23160909 | F62: 11.45411502 | G62: 12.59952652 | H62: 51.15804547 | I62: 57.27057511 | J62: 62.99763262 | K62: 102.3160909 | L62: 114.5411502 | M62: 125.9952652 | N62: =Input!$F$21*C62 -> 20.46321819 | O62: =Input!$F$21*D62 -> 22.91319041 | P62: 25.20450945 | R62: 52000 | S62: 15.14508236
B63: 53 | C63: 0.0001990322454 | D63: 0.0002291319041 | E63: 9.951612269 | F63: 11.45411502 | G63: 12.59952652 | H63: 49.75806134 | I63: 57.27057511 | J63: 62.99763262 | K63: 99.51612269 | L63: 114.5411502 | M63: 125.9952652 | N63: =Input!$F$21*C63 -> 19.90322454 | O63: =Input!$F$21*D63 -> 22.91319041 | P63: 25.20450945 | R63: 53000 | S63: 15.43633395
B64: 54 | C64: 0.0001906323406 | D64: 0.0002291319041 | E64: 9.531617031 | F64: 11.45411502 | G64: 12.59952652 | H64: 47.65808515 | I64: 57.27057511 | J64: 62.99763262 | K64: 95.31617031 | L64: 114.5411502 | M64: 125.9952652 | N64: =Input!$F$21*C64 -> 19.06323406 | O64: =Input!$F$21*D64 -> 22.91319041 | P64: 25.20450945 | R64: 54000 | S64: 15.72758553
B65: 55 | C65: 0.0001801324597 | D65: 0.000228431912 | E65: 9.006622984 | F65: 11.419123 | G65: 12.56103529 | H65: 45.03311492 | I65: 57.09561498 | J65: 62.80517647 | K65: 90.06622984 | L65: 114.19123 | M65: 125.6103529 | N65: =Input!$F$21*C65 -> 18.01324597 | O65: =Input!$F$21*D65 -> 22.8431912 | P65: 25.12751032 | R65: 55000 | S65: 16.01883712
B66: 56 | C66: 0.0001703325708 | D66: 0.000228431912 | E66: 8.516628539 | F66: 11.419123 | G66: 12.56103529 | H66: 42.5831427 | I66: 57.09561498 | J66: 62.80517647 | K66: 85.16628539 | L66: 114.19123 | M66: 125.6103529 | N66: =Input!$F$21*C66 -> 17.03325708 | O66: =Input!$F$21*D66 -> 22.8431912 | P66: 25.12751032 | R66: 56000 | S66: 16.3100887
B67: 57 | C67: 0.0001640326422 | D67: 0.000228431912 | E67: 8.201632111 | F67: 11.419123 | G67: 12.56103529 | H67: 41.00816056 | I67: 57.09561498 | J67: 62.80517647 | K67: 82.01632111 | L67: 114.19123 | M67: 125.6103529 | N67: =Input!$F$21*C67 -> 16.40326422 | O67: =Input!$F$21*D67 -> 22.8431912 | P67: 25.12751032 | R67: 57000 | S67: 16.60134028
B68: 58 | C68: 0.0001528327692 | D68: 0.00022773192 | E68: 7.641638461 | F68: 11.38413097 | G68: 12.52254407 | H68: 38.2081923 | I68: 56.92065484 | J68: 62.61272033 | K68: 76.41638461 | L68: 113.8413097 | M68: 125.2254407 | N68: =Input!$F$21*C68 -> 15.28327692 | O68: =Input!$F$21*D68 -> 22.773192 | P68: 25.0505112 | R68: 58000 | S68: 16.89259187
B69: 59 | C69: 0.000150732793 | D69: 0.00022773192 | E69: 7.536639651 | F69: 11.38413097 | G69: 12.52254407 | H69: 37.68319826 | I69: 56.92065484 | J69: 62.61272033 | K69: 75.36639651 | L69: 113.8413097 | M69: 125.2254407 | N69: =Input!$F$21*C69 -> 15.0732793 | O69: =Input!$F$21*D69 -> 22.773192 | P69: 25.0505112 | R69: 59000 | S69: 17.18384345
B70: 60 | C70: 0.0001430328803 | D70: 0.00022773192 | E70: 7.151644017 | F70: 11.38413097 | G70: 12.52254407 | H70: 35.75822008 | I70: 56.92065484 | J70: 62.61272033 | K70: 71.51644017 | L70: 113.8413097 | M70: 125.2254407 | N70: =Input!$F$21*C70 -> 14.30328803 | O70: =Input!$F$21*D70 -> 22.773192 | P70: 25.0505112 | R70: 60000 | S70: 17.47509504
B71: 61 | C71: 0.0001374329438 | D71: 0.00022773192 | E71: 6.871647191 | F71: 11.38413097 | G71: 12.52254407 | H71: 34.35823596 | I71: 56.92065484 | J71: 62.61272033 | K71: 68.71647191 | L71: 113.8413097 | M71: 125.2254407 | N71: =Input!$F$21*C71 -> 13.74329438 | O71: =Input!$F$21*D71 -> 22.773192 | P71: 25.0505112 | R71: 61000 | S71: 17.76634662
B72: 62 | C72: 0.0001353329676 | D72: 0.0002270319279 | E72: 6.766648382 | F72: 11.34913894 | G72: 12.48405284 | H72: 33.83324191 | I72: 56.74569471 | J72: 62.42026418 | K72: 67.66648382 | L72: 113.4913894 | M72: 124.8405284 | N72: =Input!$F$21*C72 -> 13.53329676 | O72: =Input!$F$21*D72 -> 22.70319279 | P72: 24.97351207 | R72: 62000 | S72: 18.0575982
B73: 63 | C73: 0.0001346329756 | D73: 0.0002270319279 | E73: 6.731648779 | F73: 11.34913894 | G73: 12.48405284 | H73: 33.65824389 | I73: 56.74569471 | J73: 62.42026418 | K73: 67.31648779 | L73: 113.4913894 | M73: 124.8405284 | N73: =Input!$F$21*C73 -> 13.46329756 | O73: =Input!$F$21*D73 -> 22.70319279 | P73: 24.97351207 | R73: 63000 | S73: 18.34884979
B74: 64 | C74: 0.0001339329835 | D74: 0.0002270319279 | E74: 6.696649176 | F74: 11.34913894 | G74: 12.48405284 | H74: 33.48324588 | I74: 56.74569471 | J74: 62.42026418 | K74: 66.96649176 | L74: 113.4913894 | M74: 124.8405284 | N74: =Input!$F$21*C74 -> 13.39329835 | O74: =Input!$F$21*D74 -> 22.70319279 | P74: 24.97351207 | R74: 64000 | S74: 18.64010137
B75: 65 | C75: 0.0001318330073 | D75: 0.0002263319358 | E75: =$E$9*C75 -> 6.591650366 | F75: 11.31414692 | G75: =F75*1.1 -> 12.44556161 | H75: =$H$9*C75 -> 32.95825183 | I75: 56.57073458 | J75: =I75*1.1 -> 62.22780804 | K75: =$K$9*C75 -> 65.91650366 | L75: 113.1414692 | M75: =L75*1.1 -> 124.4556161 | N75: =Input!$F$21*C75 -> 13.18330073 | O75: =Input!$F$21*D75 -> 22.63319358 | P75: 24.89651294 | R75: 65000 | S75: =$V$15*R75+$V$16 -> 18.93135296
B76: 66 | C76: 0.0001318330073 | D76: 0.0002263319358 | E76: 6.591650366 | F76: 11.31414692 | G76: 12.44556161 | H76: 32.95825183 | I76: 56.57073458 | J76: 62.22780804 | K76: 65.91650366 | L76: 113.1414692 | M76: 124.4556161 | N76: =Input!$F$21*C76 -> 13.18330073 | O76: =Input!$F$21*D76 -> 22.63319358 | P76: =O76*1.1 -> 24.89651294 | R76: 66000 | S76: 19.22260454
B77: 67 | C77: 0.0001311330153 | D77: 0.0002263319358 | E77: 6.556650763 | F77: 11.31414692 | G77: 12.44556161 | H77: 32.78325381 | I77: 56.57073458 | J77: 62.22780804 | K77: 65.56650763 | L77: 113.1414692 | M77: 124.4556161 | N77: =Input!$F$21*C77 -> 13.11330153 | O77: =Input!$F$21*D77 -> 22.63319358 | P77: 24.89651294 | R77: 67000 | S77: 19.51385612
B78: 68 | C78: 0.0001297330311 | D78: 0.0002263319358 | E78: 6.486651557 | F78: 11.31414692 | G78: 12.44556161 | H78: 32.43325778 | I78: 56.57073458 | J78: 62.22780804 | K78: 64.86651557 | L78: 113.1414692 | M78: 124.4556161 | N78: =Input!$F$21*C78 -> 12.97330311 | O78: =Input!$F$21*D78 -> 22.63319358 | P78: 24.89651294 | R78: 68000 | S78: 19.80510771
B79: 69 | C79: 0.0001297330311 | D79: 0.0002263319358 | E79: 6.486651557 | F79: 11.31414692 | G79: 12.44556161 | H79: 32.43325778 | I79: 56.57073458 | J79: 62.22780804 | K79: 64.86651557 | L79: 113.1414692 | M79: 124.4556161 | N79: =Input!$F$21*C79 -> 12.97330311 | O79: =Input!$F$21*D79 -> 22.63319358 | P79: 24.89651294 | R79: 69000 | S79: 20.09635929
B80: 70 | C80: 0.0001304330232 | D80: 0.0002263319358 | E80: 6.52165116 | F80: 11.31414692 | G80: 12.44556161 | H80: 32.6082558 | I80: 56.57073458 | J80: 62.22780804 | K80: 65.2165116 | L80: 113.1414692 | M80: 124.4556161 | N80: =Input!$F$21*C80 -> 13.04330232 | O80: =Input!$F$21*D80 -> 22.63319358 | P80: 24.89651294 | R80: 70000 | S80: 20.38761088
B81: 71 | C81: 0.0001304330232 | D81: 0.0002263319358 | E81: 6.52165116 | F81: 11.31414692 | G81: 12.44556161 | H81: 32.6082558 | I81: 56.57073458 | J81: 62.22780804 | K81: 65.2165116 | L81: 113.1414692 | M81: 124.4556161 | N81: =Input!$F$21*C81 -> 13.04330232 | O81: =Input!$F$21*D81 -> 22.63319358 | P81: 24.89651294 | R81: 71000 | S81: 20.67886246
B82: 72 | C82: 0.0001325329994 | D82: 0.0002256319438 | E82: 6.626649969 | F82: 11.27915489 | G82: 12.40707038 | H82: 33.13324985 | I82: 56.39577445 | J82: 62.0353519 | K82: 66.26649969 | L82: 112.7915489 | M82: 124.0707038 | N82: =Input!$F$21*C82 -> 13.25329994 | O82: =Input!$F$21*D82 -> 22.56319438 | P82: 24.81951381 | R82: 72000 | S82: 20.97011404
B83: 73 | C83: 0.0001353329676 | D83: 0.0002256319438 | E83: 6.766648382 | F83: 11.27915489 | G83: 12.40707038 | H83: 33.83324191 | I83: 56.39577445 | J83: 62.0353519 | K83: 67.66648382 | L83: 112.7915489 | M83: 124.0707038 | N83: =Input!$F$21*C83 -> 13.53329676 | O83: =Input!$F$21*D83 -> 22.56319438 | P83: 24.81951381 | R83: 73000 | S83: 21.26136563
B84: 74 | C84: 0.0001374329438 | D84: 0.0002256319438 | E84: 6.871647191 | F84: 11.27915489 | G84: 12.40707038 | H84: 34.35823596 | I84: 56.39577445 | J84: 62.0353519 | K84: 68.71647191 | L84: 112.7915489 | M84: 124.0707038 | N84: =Input!$F$21*C84 -> 13.74329438 | O84: =Input!$F$21*D84 -> 22.56319438 | P84: 24.81951381 | R84: 74000 | S84: 21.55261721
B85: 75 | C85: 0.0001353329676 | D85: 0.0002249319517 | E85: 6.766648382 | F85: 11.24416286 | G85: 12.36857915 | H85: 33.83324191 | I85: 56.22081432 | J85: 61.84289575 | K85: 67.66648382 | L85: 112.4416286 | M85: 123.6857915 | N85: =Input!$F$21*C85 -> 13.53329676 | O85: =Input!$F$21*D85 -> 22.49319517 | P85: 24.74251469 | R85: 75000 | S85: 21.84386879
B86: 76 | C86: 0.0001332329914 | D86: 0.0002249319517 | E86: 6.661649572 | F86: 11.24416286 | G86: 12.36857915 | H86: 33.30824786 | I86: 56.22081432 | J86: 61.84289575 | K86: 66.61649572 | L86: 112.4416286 | M86: 123.6857915 | N86: =Input!$F$21*C86 -> 13.32329914 | O86: =Input!$F$21*D86 -> 22.49319517 | P86: 24.74251469 | R86: 76000 | S86: 22.13512038
B87: 77 | C87: 0.0001311330153 | D87: 0.0002249319517 | E87: 6.556650763 | F87: 11.24416286 | G87: 12.36857915 | H87: 32.78325381 | I87: 56.22081432 | J87: 61.84289575 | K87: 65.56650763 | L87: 112.4416286 | M87: 123.6857915 | N87: =Input!$F$21*C87 -> 13.11330153 | O87: =Input!$F$21*D87 -> 22.49319517 | P87: 24.74251469 | R87: 77000 | S87: 22.42637196
B88: 78 | C88: 0.0001304330232 | D88: 0.0002249319517 | E88: 6.52165116 | F88: 11.24416286 | G88: 12.36857915 | H88: 32.6082558 | I88: 56.22081432 | J88: 61.84289575 | K88: 65.2165116 | L88: 112.4416286 | M88: 123.6857915 | N88: =Input!$F$21*C88 -> 13.04330232 | O88: =Input!$F$21*D88 -> 22.49319517 | P88: 24.74251469 | R88: 78000 | S88: 22.71762355
B89: 79 | C89: 0.0001311330153 | D89: 0.0002249319517 | E89: 6.556650763 | F89: 11.24416286 | G89: 12.36857915 | H89: 32.78325381 | I89: 56.22081432 | J89: 61.84289575 | K89: 65.56650763 | L89: 112.4416286 | M89: 123.6857915 | N89: =Input!$F$21*C89 -> 13.11330153 | O89: =Input!$F$21*D89 -> 22.49319517 | P89: 24.74251469 | R89: 79000 | S89: 23.00887513
B90: 80 | C90: 0.0001339329835 | D90: 0.0002249319517 | E90: 6.696649176 | F90: 11.24416286 | G90: 12.36857915 | H90: 33.48324588 | I90: 56.22081432 | J90: 61.84289575 | K90: 66.96649176 | L90: 112.4416286 | M90: 123.6857915 | N90: =Input!$F$21*C90 -> 13.39329835 | O90: =Input!$F$21*D90 -> 22.49319517 | P90: 24.74251469 | R90: 80000 | S90: 23.30012671
B91: 81 | C91: 0.0001381329359 | D91: 0.0002249319517 | E91: 6.906646794 | F91: 11.24416286 | G91: 12.36857915 | H91: 34.53323397 | I91: 56.22081432 | J91: 61.84289575 | K91: 69.06646794 | L91: 112.4416286 | M91: 123.6857915 | N91: =Input!$F$21*C91 -> 13.81329359 | O91: =Input!$F$21*D91 -> 22.49319517 | P91: 24.74251469 | R91: 81000 | S91: 23.5913783
B92: 82 | C92: 0.000138832928 | D92: 0.0002249319517 | E92: 6.941646398 | F92: 11.24416286 | G92: 12.36857915 | H92: 34.70823199 | I92: 56.22081432 | J92: 61.84289575 | K92: 69.41646398 | L92: 112.4416286 | M92: 123.6857915 | N92: =Input!$F$21*C92 -> 13.8832928 | O92: =Input!$F$21*D92 -> 22.49319517 | P92: 24.74251469 | R92: 82000 | S92: 23.88262988
B93: 83 | C93: 0.0001339329835 | D93: 0.0002249319517 | E93: 6.696649176 | F93: 11.24416286 | G93: 12.36857915 | H93: 33.48324588 | I93: 56.22081432 | J93: 61.84289575 | K93: 66.96649176 | L93: 112.4416286 | M93: 123.6857915 | N93: =Input!$F$21*C93 -> 13.39329835 | O93: =Input!$F$21*D93 -> 22.49319517 | P93: 24.74251469 | R93: 83000 | S93: 24.17388147
B94: 84 | C94: 0.0001304330232 | D94: 0.0002242319596 | E94: 6.52165116 | F94: 11.20917084 | G94: 12.33008792 | H94: 32.6082558 | I94: 56.04585419 | J94: 61.65043961 | K94: 65.2165116 | L94: 112.0917084 | M94: 123.3008792 | N94: =Input!$F$21*C94 -> 13.04330232 | O94: =Input!$F$21*D94 -> 22.42319596 | P94: 24.66551556 | R94: 84000 | S94: 24.46513305
B95: 85 | C95: 0.0001290330391 | D95: 0.0002242319596 | E95: 6.451651953 | F95: 11.20917084 | G95: 12.33008792 | H95: 32.25825977 | I95: 56.04585419 | J95: 61.65043961 | K95: 64.51651953 | L95: 112.0917084 | M95: 123.3008792 | N95: =Input!$F$21*C95 -> 12.90330391 | O95: =Input!$F$21*D95 -> 22.42319596 | P95: 24.66551556 | R95: 85000 | S95: 24.75638463
B96: 86 | C96: 0.0001290330391 | D96: 0.0002242319596 | E96: 6.451651953 | F96: 11.20917084 | G96: 12.33008792 | H96: 32.25825977 | I96: 56.04585419 | J96: 61.65043961 | K96: 64.51651953 | L96: 112.0917084 | M96: 123.3008792 | N96: =Input!$F$21*C96 -> 12.90330391 | O96: =Input!$F$21*D96 -> 22.42319596 | P96: 24.66551556 | R96: 86000 | S96: 25.04763622
B97: 87 | C97: 0.0001297330311 | D97: 0.0002242319596 | E97: 6.486651557 | F97: 11.20917084 | G97: 12.33008792 | H97: 32.43325778 | I97: 56.04585419 | J97: 61.65043961 | K97: 64.86651557 | L97: 112.0917084 | M97: 123.3008792 | N97: =Input!$F$21*C97 -> 12.97330311 | O97: =Input!$F$21*D97 -> 22.42319596 | P97: 24.66551556 | R97: 87000 | S97: 25.3388878
B98: 88 | C98: 0.0001304330232 | D98: 0.0002242319596 | E98: 6.52165116 | F98: 11.20917084 | G98: 12.33008792 | H98: 32.6082558 | I98: 56.04585419 | J98: 61.65043961 | K98: 65.2165116 | L98: 112.0917084 | M98: 123.3008792 | N98: =Input!$F$21*C98 -> 13.04330232 | O98: =Input!$F$21*D98 -> 22.42319596 | P98: 24.66551556 | R98: 88000 | S98: 25.63013939
B99: 89 | C99: 0.0001318330073 | D99: 0.0002235319676 | E99: 6.591650366 | F99: 11.17417881 | G99: 12.29159669 | H99: 32.95825183 | I99: 55.87089406 | J99: 61.45798346 | K99: 65.91650366 | L99: 111.7417881 | M99: 122.9159669 | N99: =Input!$F$21*C99 -> 13.18330073 | O99: =Input!$F$21*D99 -> 22.35319676 | P99: 24.58851643 | R99: 89000 | S99: 25.92139097
B100: 90 | C100: 0.0001318330073 | D100: 0.0002235319676 | E100: 6.591650366 | F100: 11.17417881 | G100: 12.29159669 | H100: 32.95825183 | I100: 55.87089406 | J100: 61.45798346 | K100: 65.91650366 | L100: 111.7417881 | M100: 122.9159669 | N100: =Input!$F$21*C100 -> 13.18330073 | O100: =Input!$F$21*D100 -> 22.35319676 | P100: 24.58851643 | R100: 90000 | S100: 26.21264255
B101: 91 | C101: 0.0001325329994 | D101: 0.0002235319676 | E101: 6.626649969 | F101: 11.17417881 | G101: 12.29159669 | H101: 33.13324985 | I101: 55.87089406 | J101: 61.45798346 | K101: 66.26649969 | L101: 111.7417881 | M101: 122.9159669 | N101: =Input!$F$21*C101 -> 13.25329994 | O101: =Input!$F$21*D101 -> 22.35319676 | P101: 24.58851643 | R101: 91000 | S101: 26.50389414
B102: 92 | C102: 0.0001332329914 | D102: 0.0002235319676 | E102: 6.661649572 | F102: 11.17417881 | G102: 12.29159669 | H102: 33.30824786 | I102: 55.87089406 | J102: 61.45798346 | K102: 66.61649572 | L102: 111.7417881 | M102: 122.9159669 | N102: =Input!$F$21*C102 -> 13.32329914 | O102: =Input!$F$21*D102 -> 22.35319676 | P102: 24.58851643 | R102: 92000 | S102: 26.79514572
B103: 93 | C103: 0.0001339329835 | D103: 0.0002235319676 | E103: 6.696649176 | F103: 11.17417881 | G103: 12.29159669 | H103: 33.48324588 | I103: 55.87089406 | J103: 61.45798346 | K103: 66.96649176 | L103: 111.7417881 | M103: 122.9159669 | N103: =Input!$F$21*C103 -> 13.39329835 | O103: =Input!$F$21*D103 -> 22.35319676 | P103: 24.58851643 | R103: 93000 | S103: 27.08639731
B104: 94 | C104: 0.0001339329835 | D104: 0.0002228319755 | E104: 6.696649176 | F104: 11.13918679 | G104: 12.25310546 | H104: 33.48324588 | I104: 55.69593393 | J104: 61.26552732 | K104: 66.96649176 | L104: 111.3918679 | M104: 122.5310546 | N104: =Input!$F$21*C104 -> 13.39329835 | O104: =Input!$F$21*D104 -> 22.28319755 | P104: 24.51151731 | R104: 94000 | S104: 27.37764889
B105: 95 | C105: 0.0001339329835 | D105: 0.0002228319755 | E105: 6.696649176 | F105: 11.13918679 | G105: 12.25310546 | H105: 33.48324588 | I105: 55.69593393 | J105: 61.26552732 | K105: 66.96649176 | L105: 111.3918679 | M105: 122.5310546 | N105: =Input!$F$21*C105 -> 13.39329835 | O105: =Input!$F$21*D105 -> 22.28319755 | P105: 24.51151731 | R105: 95000 | S105: 27.66890047
B106: 96 | C106: 0.0001339329835 | D106: 0.0002221319835 | E106: 6.696649176 | F106: 11.10419476 | G106: 12.21461423 | H106: 33.48324588 | I106: 55.52097379 | J106: 61.07307117 | K106: 66.96649176 | L106: 111.0419476 | M106: 122.1461423 | N106: =Input!$F$21*C106 -> 13.39329835 | O106: =Input!$F$21*D106 -> 22.21319835 | P106: 24.43451818 | R106: 96000 | S106: 27.96015206
B107: 97 | C107: 0.0001346329756 | D107: 0.0002221319835 | E107: 6.731648779 | F107: 11.10419476 | G107: 12.21461423 | H107: 33.65824389 | I107: 55.52097379 | J107: 61.07307117 | K107: 67.31648779 | L107: 111.0419476 | M107: 122.1461423 | N107: =Input!$F$21*C107 -> 13.46329756 | O107: =Input!$F$21*D107 -> 22.21319835 | P107: 24.43451818 | R107: 97000 | S107: 28.25140364
B108: 98 | C108: 0.0001360329597 | D108: 0.0002221319835 | E108: 6.801647985 | F108: 11.10419476 | G108: 12.21461423 | H108: 34.00823992 | I108: 55.52097379 | J108: 61.07307117 | K108: 68.01647985 | L108: 111.0419476 | M108: 122.1461423 | N108: =Input!$F$21*C108 -> 13.60329597 | O108: =Input!$F$21*D108 -> 22.21319835 | P108: 24.43451818 | R108: 98000 | S108: 28.54265523
B109: 99 | C109: 0.0001374329438 | D109: 0.0002221319835 | E109: 6.871647191 | F109: 11.10419476 | G109: 12.21461423 | H109: 34.35823596 | I109: 55.52097379 | J109: 61.07307117 | K109: 68.71647191 | L109: 111.0419476 | M109: 122.1461423 | N109: =Input!$F$21*C109 -> 13.74329438 | O109: =Input!$F$21*D109 -> 22.21319835 | P109: 24.43451818 | R109: 99000 | S109: 28.83390681
B110: 100 | C110: 0.0001374329438 | D110: 0.0002214319914 | E110: 6.871647191 | F110: 11.06920273 | G110: 12.17612301 | H110: 34.35823596 | I110: 55.34601366 | J110: 60.88061503 | K110: 68.71647191 | L110: 110.6920273 | M110: 121.7612301 | N110: =Input!$F$21*C110 -> 13.74329438 | O110: =Input!$F$21*D110 -> 22.14319914 | P110: 24.35751905 | R110: 100000 | S110: 29.12515839
B111: 101 | C111: 0.000138832928 | D111: 0.0002207319993 | E111: 6.941646398 | F111: 11.03421071 | G111: 12.13763178 | H111: 34.70823199 | I111: 55.17105353 | J111: 60.68815888 | K111: 69.41646398 | L111: 110.3421071 | M111: 121.3763178 | N111: =Input!$F$21*C111 -> 13.8832928 | O111: =Input!$F$21*D111 -> 22.07319993 | P111: 24.28051993 | R111: 101000 | S111: 29.41640998
B112: 102 | C112: 0.0001402329121 | D112: 0.0002207319993 | E112: 7.011645604 | F112: 11.03421071 | G112: 12.13763178 | H112: 35.05822802 | I112: 55.17105353 | J112: 60.68815888 | K112: 70.11645604 | L112: 110.3421071 | M112: 121.3763178 | N112: =Input!$F$21*C112 -> 14.02329121 | O112: =Input!$F$21*D112 -> 22.07319993 | P112: 24.28051993 | R112: 102000 | S112: 29.70766156
B113: 103 | C113: 0.0001430328803 | D113: 0.0002200320073 | E113: 7.151644017 | F113: 10.99921868 | G113: 12.09914055 | H113: 35.75822008 | I113: 54.9960934 | J113: 60.49570274 | K113: 71.51644017 | L113: 109.9921868 | M113: 120.9914055 | N113: =Input!$F$21*C113 -> 14.30328803 | O113: =Input!$F$21*D113 -> 22.00320073 | P113: 24.2035208 | R113: 103000 | S113: 29.99891314
B114: 104 | C114: 0.0001437328724 | D114: 0.0002200320073 | E114: 7.18664362 | F114: 10.99921868 | G114: 12.09914055 | H114: 35.9332181 | I114: 54.9960934 | J114: 60.49570274 | K114: 71.8664362 | L114: 109.9921868 | M114: 120.9914055 | N114: =Input!$F$21*C114 -> 14.37328724 | O114: =Input!$F$21*D114 -> 22.00320073 | P114: 24.2035208 | R114: 104000 | S114: 30.29016473
B115: 105 | C115: 0.0001451328565 | D115: 0.0002193320152 | E115: 7.256642826 | F115: 10.96422665 | G115: 12.06064932 | H115: 36.28321413 | I115: 54.82113327 | J115: 60.3032466 | K115: 72.56642826 | L115: 109.6422665 | M115: 120.6064932 | N115: =Input!$F$21*C115 -> 14.51328565 | O115: =Input!$F$21*D115 -> 21.93320152 | P115: 24.12652167 | R115: 105000 | S115: 30.58141631
B116: 106 | C116: 0.0001451328565 | D116: 0.0002193320152 | E116: 7.256642826 | F116: 10.96422665 | G116: 12.06064932 | H116: 36.28321413 | I116: 54.82113327 | J116: 60.3032466 | K116: 72.56642826 | L116: 109.6422665 | M116: 120.6064932 | N116: =Input!$F$21*C116 -> 14.51328565 | O116: =Input!$F$21*D116 -> 21.93320152 | P116: 24.12652167 | R116: 106000 | S116: 30.8726679
B117: 107 | C117: 0.0001444328645 | D117: 0.0002193320152 | E117: 7.221643223 | F117: 10.96422665 | G117: 12.06064932 | H117: 36.10821611 | I117: 54.82113327 | J117: 60.3032466 | K117: 72.21643223 | L117: 109.6422665 | M117: 120.6064932 | N117: =Input!$F$21*C117 -> 14.44328645 | O117: =Input!$F$21*D117 -> 21.93320152 | P117: 24.12652167 | R117: 107000 | S117: 31.16391948
B118: 108 | C118: 0.0001423328883 | D118: 0.0002193320152 | E118: 7.116644413 | F118: 10.96422665 | G118: 12.06064932 | H118: 35.58322207 | I118: 54.82113327 | J118: 60.3032466 | K118: 71.16644413 | L118: 109.6422665 | M118: 120.6064932 | N118: =Input!$F$21*C118 -> 14.23328883 | O118: =Input!$F$21*D118 -> 21.93320152 | P118: 24.12652167 | R118: 108000 | S118: 31.45517106
B119: 109 | C119: 0.0001409329041 | D119: 0.0002193320152 | E119: 7.046645207 | F119: 10.96422665 | G119: 12.06064932 | H119: 35.23322604 | I119: 54.82113327 | J119: 60.3032466 | K119: 70.46645207 | L119: 109.6422665 | M119: 120.6064932 | N119: =Input!$F$21*C119 -> 14.09329041 | O119: =Input!$F$21*D119 -> 21.93320152 | P119: 24.12652167 | R119: 109000 | S119: 31.74642265
B120: 110 | C120: 0.0001381329359 | D120: 0.0002193320152 | E120: 6.906646794 | F120: 10.96422665 | G120: 12.06064932 | H120: 34.53323397 | I120: 54.82113327 | J120: 60.3032466 | K120: 69.06646794 | L120: 109.6422665 | M120: 120.6064932 | N120: =Input!$F$21*C120 -> 13.81329359 | O120: =Input!$F$21*D120 -> 21.93320152 | P120: 24.12652167 | R120: 110000 | S120: 32.03767423
B121: 111 | C121: 0.0001381329359 | D121: 0.0002193320152 | E121: 6.906646794 | F121: 10.96422665 | G121: 12.06064932 | H121: 34.53323397 | I121: 54.82113327 | J121: 60.3032466 | K121: 69.06646794 | L121: 109.6422665 | M121: 120.6064932 | N121: =Input!$F$21*C121 -> 13.81329359 | O121: =Input!$F$21*D121 -> 21.93320152 | P121: 24.12652167 | R121: 111000 | S121: 32.32892582
B122: 112 | C122: 0.00013953292 | D122: 0.0002193320152 | E122: 6.976646001 | F122: 10.96422665 | G122: 12.06064932 | H122: 34.88323 | I122: 54.82113327 | J122: 60.3032466 | K122: 69.76646001 | L122: 109.6422665 | M122: 120.6064932 | N122: =Input!$F$21*C122 -> 13.953292 | O122: =Input!$F$21*D122 -> 21.93320152 | P122: 24.12652167 | R122: 112000 | S122: 32.6201774
B123: 113 | C123: 0.0001430328803 | D123: 0.0002193320152 | E123: 7.151644017 | F123: 10.96422665 | G123: 12.06064932 | H123: 35.75822008 | I123: 54.82113327 | J123: 60.3032466 | K123: 71.51644017 | L123: 109.6422665 | M123: 120.6064932 | N123: =Input!$F$21*C123 -> 14.30328803 | O123: =Input!$F$21*D123 -> 21.93320152 | P123: 24.12652167 | R123: 113000 | S123: 32.91142898
B124: 114 | C124: 0.0001479328248 | D124: 0.0002186320231 | E124: 7.396641239 | F124: 10.92923463 | G124: 12.02215809 | H124: 36.98320619 | I124: 54.64617314 | J124: 60.11079045 | K124: 73.96641239 | L124: 109.2923463 | M124: 120.2215809 | N124: =Input!$F$21*C124 -> 14.79328248 | O124: =Input!$F$21*D124 -> 21.86320231 | P124: 24.04952255 | R124: 114000 | S124: 33.20268057
B125: 115 | C125: 0.000150732793 | D125: 0.0002186320231 | E125: 7.536639651 | F125: 10.92923463 | G125: 12.02215809 | H125: 37.68319826 | I125: 54.64617314 | J125: 60.11079045 | K125: 75.36639651 | L125: 109.2923463 | M125: 120.2215809 | N125: =Input!$F$21*C125 -> 15.0732793 | O125: =Input!$F$21*D125 -> 21.86320231 | P125: 24.04952255 | R125: 115000 | S125: 33.49393215
B126: 116 | C126: 0.0001563327295 | D126: 0.0002186320231 | E126: 7.816636476 | F126: 10.92923463 | G126: 12.02215809 | H126: 39.08318238 | I126: 54.64617314 | J126: 60.11079045 | K126: 78.16636476 | L126: 109.2923463 | M126: 120.2215809 | N126: =Input!$F$21*C126 -> 15.63327295 | O126: =Input!$F$21*D126 -> 21.86320231 | P126: 24.04952255 | R126: 116000 | S126: 33.78518374
B127: 117 | C127: 0.0001633326502 | D127: 0.0002179320311 | E127: 8.166632508 | F127: 10.8942426 | G127: 11.98366686 | H127: 40.83316254 | I127: 54.47121301 | J127: 59.91833431 | K127: 81.66632508 | L127: 108.942426 | M127: 119.8366686 | N127: =Input!$F$21*C127 -> 16.33326502 | O127: =Input!$F$21*D127 -> 21.79320311 | P127: 23.97252342 | R127: 117000 | S127: 34.07643532
B128: 118 | C128: 0.0001647326343 | D128: 0.0002179320311 | E128: 8.236631714 | F128: 10.8942426 | G128: 11.98366686 | H128: 41.18315857 | I128: 54.47121301 | J128: 59.91833431 | K128: 82.36631714 | L128: 108.942426 | M128: 119.8366686 | N128: =Input!$F$21*C128 -> 16.47326343 | O128: =Input!$F$21*D128 -> 21.79320311 | P128: 23.97252342 | R128: 118000 | S128: 34.3676869
B129: 119 | C129: 0.0001647326343 | D129: 0.0002179320311 | E129: 8.236631714 | F129: 10.8942426 | G129: 11.98366686 | H129: 41.18315857 | I129: 54.47121301 | J129: 59.91833431 | K129: 82.36631714 | L129: 108.942426 | M129: 119.8366686 | N129: =Input!$F$21*C129 -> 16.47326343 | O129: =Input!$F$21*D129 -> 21.79320311 | P129: 23.97252342 | R129: 119000 | S129: 34.65893849
B130: 120 | C130: 0.0001661326184 | D130: 0.0002179320311 | E130: 8.306630921 | F130: 10.8942426 | G130: 11.98366686 | H130: 41.5331546 | I130: 54.47121301 | J130: 59.91833431 | K130: 83.06630921 | L130: 108.942426 | M130: 119.8366686 | N130: =Input!$F$21*C130 -> 16.61326184 | O130: =Input!$F$21*D130 -> 21.79320311 | P130: 23.97252342 | R130: 120000 | S130: 34.95019007
B131: 121 | C131: 0.0001668326105 | D131: 0.0002179320311 | E131: 8.341630524 | F131: 10.8942426 | G131: 11.98366686 | H131: 41.70815262 | I131: 54.47121301 | J131: 59.91833431 | K131: 83.41630524 | L131: 108.942426 | M131: 119.8366686 | N131: =Input!$F$21*C131 -> 16.68326105 | O131: =Input!$F$21*D131 -> 21.79320311 | P131: 23.97252342 | R131: 121000 | S131: 35.24144166
B132: 122 | C132: 0.0001696325787 | D132: 0.000217232039 | E132: 8.481628936 | F132: 10.85925057 | G132: 11.94517563 | H132: 42.40814468 | I132: 54.29625287 | J132: 59.72587816 | K132: 84.81628936 | L132: 108.5925057 | M132: 119.4517563 | N132: =Input!$F$21*C132 -> 16.96325787 | O132: =Input!$F$21*D132 -> 21.7232039 | P132: 23.89552429 | R132: 122000 | S132: 35.53269324
B133: 123 | C133: 0.0001668326105 | D133: 0.000217232039 | E133: 8.341630524 | F133: 10.85925057 | G133: 11.94517563 | H133: 41.70815262 | I133: 54.29625287 | J133: 59.72587816 | K133: 83.41630524 | L133: 108.5925057 | M133: 119.4517563 | N133: =Input!$F$21*C133 -> 16.68326105 | O133: =Input!$F$21*D133 -> 21.7232039 | P133: 23.89552429 | R133: 123000 | S133: 35.82394482
B134: 124 | C134: 0.0001584327057 | D134: 0.000217232039 | E134: 7.921635286 | F134: 10.85925057 | G134: 11.94517563 | H134: 39.60817643 | I134: 54.29625287 | J134: 59.72587816 | K134: 79.21635286 | L134: 108.5925057 | M134: 119.4517563 | N134: =Input!$F$21*C134 -> 15.84327057 | O134: =Input!$F$21*D134 -> 21.7232039 | P134: 23.89552429 | R134: 124000 | S134: 36.11519641
B135: 125 | C135: 0.0001549327454 | D135: 0.000217232039 | E135: 7.74663727 | F135: 10.85925057 | G135: 11.94517563 | H135: 38.73318635 | I135: 54.29625287 | J135: 59.72587816 | K135: 77.4663727 | L135: 108.5925057 | M135: 119.4517563 | N135: =Input!$F$21*C135 -> 15.49327454 | O135: =Input!$F$21*D135 -> 21.7232039 | P135: 23.89552429 | R135: 125000 | S135: 36.40644799
B136: 126 | C136: 0.0001556327375 | D136: 0.000217232039 | E136: 7.781636873 | F136: 10.85925057 | G136: 11.94517563 | H136: 38.90818437 | I136: 54.29625287 | J136: 59.72587816 | K136: 77.81636873 | L136: 108.5925057 | M136: 119.4517563 | N136: =Input!$F$21*C136 -> 15.56327375 | O136: =Input!$F$21*D136 -> 21.7232039 | P136: 23.89552429 | R136: 126000 | S136: 36.69769958
B137: 127 | C137: 0.0001528327692 | D137: 0.000216532047 | E137: 7.641638461 | F137: 10.82425855 | G137: 11.9066844 | H137: 38.2081923 | I137: 54.12129274 | J137: 59.53342202 | K137: 76.41638461 | L137: 108.2425855 | M137: 119.066844 | N137: =Input!$F$21*C137 -> 15.28327692 | O137: =Input!$F$21*D137 -> 21.6532047 | P137: 23.81852516 | R137: 127000 | S137: 36.98895116
B138: 128 | C138: 0.0001493328089 | D138: 0.000216532047 | E138: 7.466640445 | F138: 10.82425855 | G138: 11.9066844 | H138: 37.33320222 | I138: 54.12129274 | J138: 59.53342202 | K138: 74.66640445 | L138: 108.2425855 | M138: 119.066844 | N138: =Input!$F$21*C138 -> 14.93328089 | O138: =Input!$F$21*D138 -> 21.6532047 | P138: 23.81852516 | R138: 128000 | S138: 37.28020274
B139: 129 | C139: 0.0001465328406 | D139: 0.000216532047 | E139: =$E$9*C139 -> 7.326642032 | F139: 10.82425855 | G139: =F139*1.1 -> 11.9066844 | H139: =$H$9*C139 -> 36.63321016 | I139: 54.12129274 | J139: =I139*1.1 -> 59.53342202 | K139: =$K$9*C139 -> 73.26642032 | L139: 108.2425855 | M139: =L139*1.1 -> 119.066844 | N139: =Input!$F$21*C139 -> 14.65328406 | O139: =Input!$F$21*D139 -> 21.6532047 | P139: 23.81852516 | R139: 129000 | S139: =$V$15*R139+$V$16 -> 37.57145433
B140: 130 | C140: 0.0001437328724 | D140: 0.000216532047 | E140: 7.18664362 | F140: 10.82425855 | G140: 11.9066844 | H140: 35.9332181 | I140: 54.12129274 | J140: 59.53342202 | K140: 71.8664362 | L140: 108.2425855 | M140: 119.066844 | N140: =Input!$F$21*C140 -> 14.37328724 | O140: =Input!$F$21*D140 -> 21.6532047 | P140: =O140*1.1 -> 23.81852516 | R140: 130000 | S140: 37.86270591
B141: 131 | C141: 0.0001409329041 | D141: 0.000216532047 | E141: 7.046645207 | F141: 10.82425855 | G141: 11.9066844 | H141: 35.23322604 | I141: 54.12129274 | J141: 59.53342202 | K141: 70.46645207 | L141: 108.2425855 | M141: 119.066844 | N141: =Input!$F$21*C141 -> 14.09329041 | O141: =Input!$F$21*D141 -> 21.6532047 | P141: 23.81852516 | R141: 131000 | S141: 38.15395749
B142: 132 | C142: 0.0001374329438 | D142: 0.000216532047 | E142: 6.871647191 | F142: 10.82425855 | G142: 11.9066844 | H142: 34.35823596 | I142: 54.12129274 | J142: 59.53342202 | K142: 68.71647191 | L142: 108.2425855 | M142: 119.066844 | N142: =Input!$F$21*C142 -> 13.74329438 | O142: =Input!$F$21*D142 -> 21.6532047 | P142: 23.81852516 | R142: 132000 | S142: 38.44520908
B143: 133 | C143: 0.0001346329756 | D143: 0.000216532047 | E143: 6.731648779 | F143: 10.82425855 | G143: 11.9066844 | H143: 33.65824389 | I143: 54.12129274 | J143: 59.53342202 | K143: 67.31648779 | L143: 108.2425855 | M143: 119.066844 | N143: =Input!$F$21*C143 -> 13.46329756 | O143: =Input!$F$21*D143 -> 21.6532047 | P143: 23.81852516 | R143: 133000 | S143: 38.73646066
B144: 134 | C144: 0.0001367329518 | D144: 0.000216532047 | E144: 6.836647588 | F144: 10.82425855 | G144: 11.9066844 | H144: 34.18323794 | I144: 54.12129274 | J144: 59.53342202 | K144: 68.36647588 | L144: 108.2425855 | M144: 119.066844 | N144: =Input!$F$21*C144 -> 13.67329518 | O144: =Input!$F$21*D144 -> 21.6532047 | P144: 23.81852516 | R144: 134000 | S144: 39.02771225
B145: 135 | C145: 0.0001402329121 | D145: 0.0002158320549 | E145: 7.011645604 | F145: 10.78926652 | G145: 11.86819317 | H145: 35.05822802 | I145: 53.94633261 | J145: 59.34096587 | K145: 70.11645604 | L145: 107.8926652 | M145: 118.6819317 | N145: =Input!$F$21*C145 -> 14.02329121 | O145: =Input!$F$21*D145 -> 21.58320549 | P145: 23.74152604 | R145: 135000 | S145: 39.31896383
B146: 136 | C146: 0.0001374329438 | D146: 0.0002158320549 | E146: 6.871647191 | F146: 10.78926652 | G146: 11.86819317 | H146: 34.35823596 | I146: 53.94633261 | J146: 59.34096587 | K146: 68.71647191 | L146: 107.8926652 | M146: 118.6819317 | N146: =Input!$F$21*C146 -> 13.74329438 | O146: =Input!$F$21*D146 -> 21.58320549 | P146: 23.74152604 | R146: 136000 | S146: 39.61021541
B147: 137 | C147: 0.0001297330311 | D147: 0.0002158320549 | E147: 6.486651557 | F147: 10.78926652 | G147: 11.86819317 | H147: 32.43325778 | I147: 53.94633261 | J147: 59.34096587 | K147: 64.86651557 | L147: 107.8926652 | M147: 118.6819317 | N147: =Input!$F$21*C147 -> 12.97330311 | O147: =Input!$F$21*D147 -> 21.58320549 | P147: 23.74152604 | R147: 137000 | S147: 39.901467
B148: 138 | C148: 0.0001255330788 | D148: 0.0002158320549 | E148: 6.276653938 | F148: 10.78926652 | G148: 11.86819317 | H148: 31.38326969 | I148: 53.94633261 | J148: 59.34096587 | K148: 62.76653938 | L148: 107.8926652 | M148: 118.6819317 | N148: =Input!$F$21*C148 -> 12.55330788 | O148: =Input!$F$21*D148 -> 21.58320549 | P148: 23.74152604 | R148: 138000 | S148: 40.19271858
B149: 139 | C149: 0.0001206331343 | D149: 0.0002158320549 | E149: 6.031656716 | F149: 10.78926652 | G149: 11.86819317 | H149: 30.15828358 | I149: 53.94633261 | J149: 59.34096587 | K149: 60.31656716 | L149: 107.8926652 | M149: 118.6819317 | N149: =Input!$F$21*C149 -> 12.06331343 | O149: =Input!$F$21*D149 -> 21.58320549 | P149: 23.74152604 | R149: 139000 | S149: 40.48397017
B150: 140 | C150: 0.0001213331264 | D150: 0.0002158320549 | E150: 6.066656319 | F150: 10.78926652 | G150: 11.86819317 | H150: 30.33328159 | I150: 53.94633261 | J150: 59.34096587 | K150: 60.66656319 | L150: 107.8926652 | M150: 118.6819317 | N150: =Input!$F$21*C150 -> 12.13331264 | O150: =Input!$F$21*D150 -> 21.58320549 | P150: 23.74152604 | R150: 140000 | S150: 40.77522175
B151: 141 | C151: 0.0001220331184 | D151: 0.0002158320549 | E151: 6.101655922 | F151: 10.78926652 | G151: 11.86819317 | H151: 30.50827961 | I151: 53.94633261 | J151: 59.34096587 | K151: 61.01655922 | L151: 107.8926652 | M151: 118.6819317 | N151: =Input!$F$21*C151 -> 12.20331184 | O151: =Input!$F$21*D151 -> 21.58320549 | P151: 23.74152604 | R151: 141000 | S151: 41.06647333
B152: 142 | C152: 0.0001234331026 | D152: 0.0002151320628 | E152: 6.171655128 | F152: 10.7542745 | G152: 11.82970195 | H152: 30.85827564 | I152: 53.77137248 | J152: 59.14850973 | K152: 61.71655128 | L152: 107.542745 | M152: 118.2970195 | N152: =Input!$F$21*C152 -> 12.34331026 | O152: =Input!$F$21*D152 -> 21.51320628 | P152: 23.66452691 | R152: 142000 | S152: 41.35772492
B153: 143 | C153: 0.0001241330946 | D153: 0.0002151320628 | E153: 6.206654731 | F153: 10.7542745 | G153: 11.82970195 | H153: 31.03327366 | I153: 53.77137248 | J153: 59.14850973 | K153: 62.06654731 | L153: 107.542745 | M153: 118.2970195 | N153: =Input!$F$21*C153 -> 12.41330946 | O153: =Input!$F$21*D153 -> 21.51320628 | P153: 23.66452691 | R153: 143000 | S153: 41.6489765
B154: 144 | C154: 0.0001248330867 | D154: 0.0002151320628 | E154: 6.241654335 | F154: 10.7542745 | G154: 11.82970195 | H154: 31.20827167 | I154: 53.77137248 | J154: 59.14850973 | K154: 62.41654335 | L154: 107.542745 | M154: 118.2970195 | N154: =Input!$F$21*C154 -> 12.48330867 | O154: =Input!$F$21*D154 -> 21.51320628 | P154: 23.66452691 | R154: 144000 | S154: 41.94022809
B155: 145 | C155: 0.0001269330629 | D155: 0.0002151320628 | E155: 6.346653144 | F155: 10.7542745 | G155: 11.82970195 | H155: 31.73326572 | I155: 53.77137248 | J155: 59.14850973 | K155: 63.46653144 | L155: 107.542745 | M155: 118.2970195 | N155: =Input!$F$21*C155 -> 12.69330629 | O155: =Input!$F$21*D155 -> 21.51320628 | P155: 23.66452691 | R155: 145000 | S155: 42.23147967
B156: 146 | C156: 0.0001290330391 | D156: 0.0002151320628 | E156: 6.451651953 | F156: 10.7542745 | G156: 11.82970195 | H156: 32.25825977 | I156: 53.77137248 | J156: 59.14850973 | K156: 64.51651953 | L156: 107.542745 | M156: 118.2970195 | N156: =Input!$F$21*C156 -> 12.90330391 | O156: =Input!$F$21*D156 -> 21.51320628 | P156: 23.66452691 | R156: 146000 | S156: 42.52273125
B157: 147 | C157: 0.0001304330232 | D157: 0.0002151320628 | E157: 6.52165116 | F157: 10.7542745 | G157: 11.82970195 | H157: 32.6082558 | I157: 53.77137248 | J157: 59.14850973 | K157: 65.2165116 | L157: 107.542745 | M157: 118.2970195 | N157: =Input!$F$21*C157 -> 13.04330232 | O157: =Input!$F$21*D157 -> 21.51320628 | P157: 23.66452691 | R157: 147000 | S157: 42.81398284
B158: 148 | C158: 0.0001290330391 | D158: 0.0002151320628 | E158: 6.451651953 | F158: 10.7542745 | G158: 11.82970195 | H158: 32.25825977 | I158: 53.77137248 | J158: 59.14850973 | K158: 64.51651953 | L158: 107.542745 | M158: 118.2970195 | N158: =Input!$F$21*C158 -> 12.90330391 | O158: =Input!$F$21*D158 -> 21.51320628 | P158: 23.66452691 | R158: 148000 | S158: 43.10523442
B159: 149 | C159: 0.0001304330232 | D159: 0.0002144320708 | E159: 6.52165116 | F159: 10.71928247 | G159: 11.79121072 | H159: 32.6082558 | I159: 53.59641235 | J159: 58.95605358 | K159: 65.2165116 | L159: 107.1928247 | M159: 117.9121072 | N159: =Input!$F$21*C159 -> 13.04330232 | O159: =Input!$F$21*D159 -> 21.44320708 | P159: 23.58752778 | R159: 149000 | S159: 43.39648601
B160: 150 | C160: 0.0001311330153 | D160: 0.0002144320708 | E160: 6.556650763 | F160: 10.71928247 | G160: 11.79121072 | H160: 32.78325381 | I160: 53.59641235 | J160: 58.95605358 | K160: 65.56650763 | L160: 107.1928247 | M160: 117.9121072 | N160: =Input!$F$21*C160 -> 13.11330153 | O160: =Input!$F$21*D160 -> 21.44320708 | P160: 23.58752778 | R160: 150000 | S160: 43.68773759
B161: 151 | C161: 0.0001332329914 | D161: 0.0002144320708 | E161: 6.661649572 | F161: 10.71928247 | G161: 11.79121072 | H161: 33.30824786 | I161: 53.59641235 | J161: 58.95605358 | K161: 66.61649572 | L161: 107.1928247 | M161: 117.9121072 | N161: =Input!$F$21*C161 -> 13.32329914 | O161: =Input!$F$21*D161 -> 21.44320708 | P161: 23.58752778 | R161: 151000 | S161: 43.97898917
B162: 152 | C162: 0.0001339329835 | D162: 0.0002137320787 | E162: 6.696649176 | F162: 10.68429044 | G162: 11.75271949 | H162: 33.48324588 | I162: 53.42145222 | J162: 58.76359744 | K162: 66.96649176 | L162: 106.8429044 | M162: 117.5271949 | N162: =Input!$F$21*C162 -> 13.39329835 | O162: =Input!$F$21*D162 -> 21.37320787 | P162: 23.51052866 | R162: 152000 | S162: 44.27024076
B163: 153 | C163: 0.0001339329835 | D163: 0.0002137320787 | E163: 6.696649176 | F163: 10.68429044 | G163: 11.75271949 | H163: 33.48324588 | I163: 53.42145222 | J163: 58.76359744 | K163: 66.96649176 | L163: 106.8429044 | M163: 117.5271949 | N163: =Input!$F$21*C163 -> 13.39329835 | O163: =Input!$F$21*D163 -> 21.37320787 | P163: 23.51052866 | R163: 153000 | S163: 44.56149234
B164: 154 | C164: 0.0001311330153 | D164: 0.0002137320787 | E164: 6.556650763 | F164: 10.68429044 | G164: 11.75271949 | H164: 32.78325381 | I164: 53.42145222 | J164: 58.76359744 | K164: 65.56650763 | L164: 106.8429044 | M164: 117.5271949 | N164: =Input!$F$21*C164 -> 13.11330153 | O164: =Input!$F$21*D164 -> 21.37320787 | P164: 23.51052866 | R164: 154000 | S164: 44.85274393
B165: 155 | C165: 0.0001290330391 | D165: 0.0002137320787 | E165: 6.451651953 | F165: 10.68429044 | G165: 11.75271949 | H165: 32.25825977 | I165: 53.42145222 | J165: 58.76359744 | K165: 64.51651953 | L165: 106.8429044 | M165: 117.5271949 | N165: =Input!$F$21*C165 -> 12.90330391 | O165: =Input!$F$21*D165 -> 21.37320787 | P165: 23.51052866 | R165: 155000 | S165: 45.14399551
B166: 156 | C166: 0.0001304330232 | D166: 0.0002137320787 | E166: 6.52165116 | F166: 10.68429044 | G166: 11.75271949 | H166: 32.6082558 | I166: 53.42145222 | J166: 58.76359744 | K166: 65.2165116 | L166: 106.8429044 | M166: 117.5271949 | N166: =Input!$F$21*C166 -> 13.04330232 | O166: =Input!$F$21*D166 -> 21.37320787 | P166: 23.51052866 | R166: 156000 | S166: 45.43524709
B167: 157 | C167: 0.0001325329994 | D167: 0.0002130320866 | E167: 6.626649969 | F167: 10.64929842 | G167: 11.71422826 | H167: 33.13324985 | I167: 53.24649209 | J167: 58.5711413 | K167: 66.26649969 | L167: 106.4929842 | M167: 117.1422826 | N167: =Input!$F$21*C167 -> 13.25329994 | O167: =Input!$F$21*D167 -> 21.30320866 | P167: 23.43352953 | R167: 157000 | S167: 45.72649868
B168: 158 | C168: 0.0001325329994 | D168: 0.0002130320866 | E168: 6.626649969 | F168: 10.64929842 | G168: 11.71422826 | H168: 33.13324985 | I168: 53.24649209 | J168: 58.5711413 | K168: 66.26649969 | L168: 106.4929842 | M168: 117.1422826 | N168: =Input!$F$21*C168 -> 13.25329994 | O168: =Input!$F$21*D168 -> 21.30320866 | P168: 23.43352953 | R168: 158000 | S168: 46.01775026
B169: 159 | C169: 0.0001325329994 | D169: 0.0002130320866 | E169: 6.626649969 | F169: 10.64929842 | G169: 11.71422826 | H169: 33.13324985 | I169: 53.24649209 | J169: 58.5711413 | K169: 66.26649969 | L169: 106.4929842 | M169: 117.1422826 | N169: =Input!$F$21*C169 -> 13.25329994 | O169: =Input!$F$21*D169 -> 21.30320866 | P169: 23.43352953 | R169: 159000 | S169: 46.30900185
B170: 160 | C170: 0.0001332329914 | D170: 0.0002130320866 | E170: 6.661649572 | F170: 10.64929842 | G170: 11.71422826 | H170: 33.30824786 | I170: 53.24649209 | J170: 58.5711413 | K170: 66.61649572 | L170: 106.4929842 | M170: 117.1422826 | N170: =Input!$F$21*C170 -> 13.32329914 | O170: =Input!$F$21*D170 -> 21.30320866 | P170: 23.43352953 | R170: 160000 | S170: 46.60025343
B171: 161 | C171: 0.0001318330073 | D171: 0.0002130320866 | E171: 6.591650366 | F171: 10.64929842 | G171: 11.71422826 | H171: 32.95825183 | I171: 53.24649209 | J171: 58.5711413 | K171: 65.91650366 | L171: 106.4929842 | M171: 117.1422826 | N171: =Input!$F$21*C171 -> 13.18330073 | O171: =Input!$F$21*D171 -> 21.30320866 | P171: 23.43352953 | R171: 161000 | S171: 46.89150501
B172: 162 | C172: 0.0001304330232 | D172: 0.0002130320866 | E172: 6.52165116 | F172: 10.64929842 | G172: 11.71422826 | H172: 32.6082558 | I172: 53.24649209 | J172: 58.5711413 | K172: 65.2165116 | L172: 106.4929842 | M172: 117.1422826 | N172: =Input!$F$21*C172 -> 13.04330232 | O172: =Input!$F$21*D172 -> 21.30320866 | P172: 23.43352953 | R172: 162000 | S172: 47.1827566
B173: 163 | C173: 0.0001297330311 | D173: 0.0002123320946 | E173: 6.486651557 | F173: 10.61430639 | G173: 11.67573703 | H173: 32.43325778 | I173: 53.07153196 | J173: 58.37868515 | K173: 64.86651557 | L173: 106.1430639 | M173: 116.7573703 | N173: =Input!$F$21*C173 -> 12.97330311 | O173: =Input!$F$21*D173 -> 21.23320946 | P173: 23.3565304 | R173: 163000 | S173: 47.47400818
B174: 164 | C174: 0.0001304330232 | D174: 0.0002123320946 | E174: 6.52165116 | F174: 10.61430639 | G174: 11.67573703 | H174: 32.6082558 | I174: 53.07153196 | J174: 58.37868515 | K174: 65.2165116 | L174: 106.1430639 | M174: 116.7573703 | N174: =Input!$F$21*C174 -> 13.04330232 | O174: =Input!$F$21*D174 -> 21.23320946 | P174: 23.3565304 | R174: 164000 | S174: 47.76525976
B175: 165 | C175: 0.0001332329914 | D175: 0.0002123320946 | E175: 6.661649572 | F175: 10.61430639 | G175: 11.67573703 | H175: 33.30824786 | I175: 53.07153196 | J175: 58.37868515 | K175: 66.61649572 | L175: 106.1430639 | M175: 116.7573703 | N175: =Input!$F$21*C175 -> 13.32329914 | O175: =Input!$F$21*D175 -> 21.23320946 | P175: 23.3565304 | R175: 165000 | S175: 48.05651135
B176: 166 | C176: 0.0001353329676 | D176: 0.0002123320946 | E176: 6.766648382 | F176: 10.61430639 | G176: 11.67573703 | H176: 33.83324191 | I176: 53.07153196 | J176: 58.37868515 | K176: 67.66648382 | L176: 106.1430639 | M176: 116.7573703 | N176: =Input!$F$21*C176 -> 13.53329676 | O176: =Input!$F$21*D176 -> 21.23320946 | P176: 23.3565304 | R176: 166000 | S176: 48.34776293
B177: 167 | C177: 0.0001367329518 | D177: 0.0002123320946 | E177: 6.836647588 | F177: 10.61430639 | G177: 11.67573703 | H177: 34.18323794 | I177: 53.07153196 | J177: 58.37868515 | K177: 68.36647588 | L177: 106.1430639 | M177: 116.7573703 | N177: =Input!$F$21*C177 -> 13.67329518 | O177: =Input!$F$21*D177 -> 21.23320946 | P177: 23.3565304 | R177: 167000 | S177: 48.63901452
B178: 168 | C178: 0.0001374329438 | D178: 0.0002123320946 | E178: 6.871647191 | F178: 10.61430639 | G178: 11.67573703 | H178: 34.35823596 | I178: 53.07153196 | J178: 58.37868515 | K178: 68.71647191 | L178: 106.1430639 | M178: 116.7573703 | N178: =Input!$F$21*C178 -> 13.74329438 | O178: =Input!$F$21*D178 -> 21.23320946 | P178: 23.3565304 | R178: 168000 | S178: 48.9302661
B179: 169 | C179: 0.0001367329518 | D179: 0.0002123320946 | E179: 6.836647588 | F179: 10.61430639 | G179: 11.67573703 | H179: 34.18323794 | I179: 53.07153196 | J179: 58.37868515 | K179: 68.36647588 | L179: 106.1430639 | M179: 116.7573703 | N179: =Input!$F$21*C179 -> 13.67329518 | O179: =Input!$F$21*D179 -> 21.23320946 | P179: 23.3565304 | R179: 169000 | S179: 49.22151768
B180: 170 | C180: 0.0001360329597 | D180: 0.0002123320946 | E180: 6.801647985 | F180: 10.61430639 | G180: 11.67573703 | H180: 34.00823992 | I180: 53.07153196 | J180: 58.37868515 | K180: 68.01647985 | L180: 106.1430639 | M180: 116.7573703 | N180: =Input!$F$21*C180 -> 13.60329597 | O180: =Input!$F$21*D180 -> 21.23320946 | P180: 23.3565304 | R180: 170000 | S180: 49.51276927
B181: 171 | C181: 0.0001346329756 | D181: 0.0002123320946 | E181: 6.731648779 | F181: 10.61430639 | G181: 11.67573703 | H181: 33.65824389 | I181: 53.07153196 | J181: 58.37868515 | K181: 67.31648779 | L181: 106.1430639 | M181: 116.7573703 | N181: =Input!$F$21*C181 -> 13.46329756 | O181: =Input!$F$21*D181 -> 21.23320946 | P181: 23.3565304 | R181: 171000 | S181: 49.80402085
B182: 172 | C182: 0.0001332329914 | D182: 0.0002116321025 | E182: 6.661649572 | F182: 10.57931436 | G182: 11.6372458 | H182: 33.30824786 | I182: 52.89657182 | J182: 58.18622901 | K182: 66.61649572 | L182: 105.7931436 | M182: 116.372458 | N182: =Input!$F$21*C182 -> 13.32329914 | O182: =Input!$F$21*D182 -> 21.16321025 | P182: 23.27953128 | R182: 172000 | S182: 50.09527244
B183: 173 | C183: 0.0001318330073 | D183: 0.0002116321025 | E183: 6.591650366 | F183: 10.57931436 | G183: 11.6372458 | H183: 32.95825183 | I183: 52.89657182 | J183: 58.18622901 | K183: 65.91650366 | L183: 105.7931436 | M183: 116.372458 | N183: =Input!$F$21*C183 -> 13.18330073 | O183: =Input!$F$21*D183 -> 21.16321025 | P183: 23.27953128 | R183: 173000 | S183: 50.38652402
B184: 174 | C184: 0.0001304330232 | D184: 0.0002116321025 | E184: 6.52165116 | F184: 10.57931436 | G184: 11.6372458 | H184: 32.6082558 | I184: 52.89657182 | J184: 58.18622901 | K184: 65.2165116 | L184: 105.7931436 | M184: 116.372458 | N184: =Input!$F$21*C184 -> 13.04330232 | O184: =Input!$F$21*D184 -> 21.16321025 | P184: 23.27953128 | R184: 174000 | S184: 50.6777756
B185: 175 | C185: 0.0001290330391 | D185: 0.0002116321025 | E185: 6.451651953 | F185: 10.57931436 | G185: 11.6372458 | H185: 32.25825977 | I185: 52.89657182 | J185: 58.18622901 | K185: 64.51651953 | L185: 105.7931436 | M185: 116.372458 | N185: =Input!$F$21*C185 -> 12.90330391 | O185: =Input!$F$21*D185 -> 21.16321025 | P185: 23.27953128 | R185: 175000 | S185: 50.96902719
B186: 176 | C186: 0.0001262330708 | D186: 0.0002116321025 | E186: 6.311653541 | F186: 10.57931436 | G186: 11.6372458 | H186: 31.5582677 | I186: 52.89657182 | J186: 58.18622901 | K186: 63.11653541 | L186: 105.7931436 | M186: 116.372458 | N186: =Input!$F$21*C186 -> 12.62330708 | O186: =Input!$F$21*D186 -> 21.16321025 | P186: 23.27953128 | R186: 176000 | S186: 51.26027877
B187: 177 | C187: 0.0001255330788 | D187: 0.0002116321025 | E187: 6.276653938 | F187: 10.57931436 | G187: 11.6372458 | H187: 31.38326969 | I187: 52.89657182 | J187: 58.18622901 | K187: 62.76653938 | L187: 105.7931436 | M187: 116.372458 | N187: =Input!$F$21*C187 -> 12.55330788 | O187: =Input!$F$21*D187 -> 21.16321025 | P187: 23.27953128 | R187: 177000 | S187: 51.55153036
B188: 178 | C188: 0.0001262330708 | D188: 0.0002116321025 | E188: 6.311653541 | F188: 10.57931436 | G188: 11.6372458 | H188: 31.5582677 | I188: 52.89657182 | J188: 58.18622901 | K188: 63.11653541 | L188: 105.7931436 | M188: 116.372458 | N188: =Input!$F$21*C188 -> 12.62330708 | O188: =Input!$F$21*D188 -> 21.16321025 | P188: 23.27953128 | R188: 178000 | S188: 51.84278194
B189: 179 | C189: 0.0001248330867 | D189: 0.0002109321104 | E189: 6.241654335 | F189: 10.54432234 | G189: 11.59875457 | H189: 31.20827167 | I189: 52.72161169 | J189: 57.99377286 | K189: 62.41654335 | L189: 105.4432234 | M189: 115.9875457 | N189: =Input!$F$21*C189 -> 12.48330867 | O189: =Input!$F$21*D189 -> 21.09321104 | P189: 23.20253215 | R189: 179000 | S189: 52.13403352
B190: 180 | C190: 0.0001241330946 | D190: 0.0002109321104 | E190: 6.206654731 | F190: 10.54432234 | G190: 11.59875457 | H190: 31.03327366 | I190: 52.72161169 | J190: 57.99377286 | K190: 62.06654731 | L190: 105.4432234 | M190: 115.9875457 | N190: =Input!$F$21*C190 -> 12.41330946 | O190: =Input!$F$21*D190 -> 21.09321104 | P190: 23.20253215 | R190: 180000 | S190: 52.42528511
B191: 181 | C191: 0.0001227331105 | D191: 0.0002109321104 | E191: 6.136655525 | F191: 10.54432234 | G191: 11.59875457 | H191: 30.68327763 | I191: 52.72161169 | J191: 57.99377286 | K191: 61.36655525 | L191: 105.4432234 | M191: 115.9875457 | N191: =Input!$F$21*C191 -> 12.27331105 | O191: =Input!$F$21*D191 -> 21.09321104 | P191: 23.20253215 | R191: 181000 | S191: 52.71653669
B192: 182 | C192: 0.0001227331105 | D192: 0.0002109321104 | E192: 6.136655525 | F192: 10.54432234 | G192: 11.59875457 | H192: 30.68327763 | I192: 52.72161169 | J192: 57.99377286 | K192: 61.36655525 | L192: 105.4432234 | M192: 115.9875457 | N192: =Input!$F$21*C192 -> 12.27331105 | O192: =Input!$F$21*D192 -> 21.09321104 | P192: 23.20253215 | R192: 182000 | S192: 53.00778828
B193: 183 | C193: 0.0001241330946 | D193: 0.0002102321184 | E193: 6.206654731 | F193: 10.50933031 | G193: 11.56026334 | H193: 31.03327366 | I193: 52.54665156 | J193: 57.80131672 | K193: 62.06654731 | L193: 105.0933031 | M193: 115.6026334 | N193: =Input!$F$21*C193 -> 12.41330946 | O193: =Input!$F$21*D193 -> 21.02321184 | P193: 23.12553302 | R193: 183000 | S193: 53.29903986
B194: 184 | C194: 0.0001269330629 | D194: 0.0002102321184 | E194: 6.346653144 | F194: 10.50933031 | G194: 11.56026334 | H194: 31.73326572 | I194: 52.54665156 | J194: 57.80131672 | K194: 63.46653144 | L194: 105.0933031 | M194: 115.6026334 | N194: =Input!$F$21*C194 -> 12.69330629 | O194: =Input!$F$21*D194 -> 21.02321184 | P194: 23.12553302 | R194: 184000 | S194: 53.59029144
B195: 185 | C195: 0.000128333047 | D195: 0.0002102321184 | E195: 6.41665235 | F195: 10.50933031 | G195: 11.56026334 | H195: 32.08326175 | I195: 52.54665156 | J195: 57.80131672 | K195: 64.1665235 | L195: 105.0933031 | M195: 115.6026334 | N195: =Input!$F$21*C195 -> 12.8333047 | O195: =Input!$F$21*D195 -> 21.02321184 | P195: 23.12553302 | R195: 185000 | S195: 53.88154303
B196: 186 | C196: 0.0001290330391 | D196: 0.0002102321184 | E196: 6.451651953 | F196: 10.50933031 | G196: 11.56026334 | H196: 32.25825977 | I196: 52.54665156 | J196: 57.80131672 | K196: 64.51651953 | L196: 105.0933031 | M196: 115.6026334 | N196: =Input!$F$21*C196 -> 12.90330391 | O196: =Input!$F$21*D196 -> 21.02321184 | P196: 23.12553302 | R196: 186000 | S196: 54.17279461
B197: 187 | C197: 0.0001297330311 | D197: 0.0002102321184 | E197: 6.486651557 | F197: 10.50933031 | G197: 11.56026334 | H197: 32.43325778 | I197: 52.54665156 | J197: 57.80131672 | K197: 64.86651557 | L197: 105.0933031 | M197: 115.6026334 | N197: =Input!$F$21*C197 -> 12.97330311 | O197: =Input!$F$21*D197 -> 21.02321184 | P197: 23.12553302 | R197: 187000 | S197: 54.4640462
B198: 188 | C198: 0.0001297330311 | D198: 0.0002102321184 | E198: 6.486651557 | F198: 10.50933031 | G198: 11.56026334 | H198: 32.43325778 | I198: 52.54665156 | J198: 57.80131672 | K198: 64.86651557 | L198: 105.0933031 | M198: 115.6026334 | N198: =Input!$F$21*C198 -> 12.97330311 | O198: =Input!$F$21*D198 -> 21.02321184 | P198: 23.12553302 | R198: 188000 | S198: 54.75529778
B199: 189 | C199: 0.0001276330549 | D199: 0.0002102321184 | E199: 6.381652747 | F199: 10.50933031 | G199: 11.56026334 | H199: 31.90826374 | I199: 52.54665156 | J199: 57.80131672 | K199: 63.81652747 | L199: 105.0933031 | M199: 115.6026334 | N199: =Input!$F$21*C199 -> 12.76330549 | O199: =Input!$F$21*D199 -> 21.02321184 | P199: 23.12553302 | R199: 189000 | S199: 55.04654936
B200: 190 | C200: 0.000128333047 | D200: 0.0002102321184 | E200: 6.41665235 | F200: 10.50933031 | G200: 11.56026334 | H200: 32.08326175 | I200: 52.54665156 | J200: 57.80131672 | K200: 64.1665235 | L200: 105.0933031 | M200: 115.6026334 | N200: =Input!$F$21*C200 -> 12.8333047 | O200: =Input!$F$21*D200 -> 21.02321184 | P200: 23.12553302 | R200: 190000 | S200: 55.33780095
B201: 191 | C201: 0.0001290330391 | D201: 0.0002102321184 | E201: 6.451651953 | F201: 10.50933031 | G201: 11.56026334 | H201: 32.25825977 | I201: 52.54665156 | J201: 57.80131672 | K201: 64.51651953 | L201: 105.0933031 | M201: 115.6026334 | N201: =Input!$F$21*C201 -> 12.90330391 | O201: =Input!$F$21*D201 -> 21.02321184 | P201: 23.12553302 | R201: 191000 | S201: 55.62905253
B202: 192 | C202: 0.0001297330311 | D202: 0.0002102321184 | E202: 6.486651557 | F202: 10.50933031 | G202: 11.56026334 | H202: 32.43325778 | I202: 52.54665156 | J202: 57.80131672 | K202: 64.86651557 | L202: 105.0933031 | M202: 115.6026334 | N202: =Input!$F$21*C202 -> 12.97330311 | O202: =Input!$F$21*D202 -> 21.02321184 | P202: 23.12553302 | R202: 192000 | S202: 55.92030411
B203: 193 | C203: 0.0001304330232 | D203: 0.0002095321263 | E203: =$E$9*C203 -> 6.52165116 | F203: 10.47433829 | G203: =F203*1.1 -> 11.52177211 | H203: =$H$9*C203 -> 32.6082558 | I203: 52.37169143 | J203: =I203*1.1 -> 57.60886057 | K203: =$K$9*C203 -> 65.2165116 | L203: 104.7433829 | M203: =L203*1.1 -> 115.2177211 | N203: =Input!$F$21*C203 -> 13.04330232 | O203: =Input!$F$21*D203 -> 20.95321263 | P203: 23.0485339 | R203: 193000 | S203: =$V$15*R203+$V$16 -> 56.2115557
B204: 194 | C204: 0.0001339329835 | D204: 0.0002095321263 | E204: 6.696649176 | F204: 10.47433829 | G204: 11.52177211 | H204: 33.48324588 | I204: 52.37169143 | J204: 57.60886057 | K204: 66.96649176 | L204: 104.7433829 | M204: 115.2177211 | N204: =Input!$F$21*C204 -> 13.39329835 | O204: =Input!$F$21*D204 -> 20.95321263 | P204: =O204*1.1 -> 23.0485339 | R204: 194000 | S204: 56.50280728
B205: 195 | C205: 0.0001374329438 | D205: 0.0002095321263 | E205: 6.871647191 | F205: 10.47433829 | G205: 11.52177211 | H205: 34.35823596 | I205: 52.37169143 | J205: 57.60886057 | K205: 68.71647191 | L205: 104.7433829 | M205: 115.2177211 | N205: =Input!$F$21*C205 -> 13.74329438 | O205: =Input!$F$21*D205 -> 20.95321263 | P205: 23.0485339 | R205: 195000 | S205: 56.79405887
B206: 196 | C206: 0.0001353329676 | D206: 0.0002095321263 | E206: 6.766648382 | F206: 10.47433829 | G206: 11.52177211 | H206: 33.83324191 | I206: 52.37169143 | J206: 57.60886057 | K206: 67.66648382 | L206: 104.7433829 | M206: 115.2177211 | N206: =Input!$F$21*C206 -> 13.53329676 | O206: =Input!$F$21*D206 -> 20.95321263 | P206: 23.0485339 | R206: 196000 | S206: 57.08531045
B207: 197 | C207: 0.0001339329835 | D207: 0.0002088321343 | E207: 6.696649176 | F207: 10.43934626 | G207: 11.48328089 | H207: 33.48324588 | I207: 52.1967313 | J207: 57.41640443 | K207: 66.96649176 | L207: 104.3934626 | M207: 114.8328089 | N207: =Input!$F$21*C207 -> 13.39329835 | O207: =Input!$F$21*D207 -> 20.88321343 | P207: 22.97153477 | R207: 197000 | S207: 57.37656203
... 4293 more rows

Sheet Back, Regression Functions
B4: This sheet contains the coefficients for the regression functions used to determine the resulting output in the tool.
B10: Prod 1 Heat Production | I10: Prod 2 Heat Production | P10: Prod 1 Operation Cost | W10: Prod 2 Operation Cost
B11: Helper | C11: Simulation | D11: Percent | E11: a | F11: b | G11: R2 | I11: Helper | J11: Simulation | K11: Percent | L11: a | M11: b | N11: R2 | P11: Helper | Q11: Simulation | R11: Percent | S11: a | T11: b | U11: R2 | W11: Helper | X11: Simulation | Y11: Percent | Z11: a | AA11: b | AB11: R2
B12: =C12&", "&D12 -> 1, 0.05 | C12: 1 | D12: 0.05 | E12: 1101113.025 | F12: -4546.872434 | G12: 0.9999999895 | I12: =J12&", "&K12 -> 1, 0.05 | J12: 1 | K12: 0.05 | L12: 1180158.906 | M12: 10993.08641 | N12: 0.9999993177 | P12: =Q12&", "&R12 -> 1, 0.05 | Q12: 1 | R12: 0.05 | S12: 226236452.6 | T12: -713694.2004 | U12: 0.9999999802 | W12: =X12&", "&Y12 -> 1, 0.05 | X12: 1 | Y12: 0.05 | Z12: 232754983.5 | AA12: 9307809.715 | AB12: 0.9999993087
B13: =C13&", "&D13 -> 1, 0.06 | C13: 1 | D13: 0.06 | E13: 893617.3906 | F13: -4437.825264 | G13: 0.9999999899 | I13: =J13&", "&K13 -> 1, 0.06 | J13: 1 | K13: 0.06 | L13: 972137.4215 | M13: 10272.06359 | N13: 0.9999993263 | P13: =Q13&", "&R13 -> 1, 0.06 | Q13: 1 | R13: 0.06 | S13: 183291561.1 | T13: -684908.9036 | U13: 0.999999982 | W13: =X13&", "&Y13 -> 1, 0.06 | X13: 1 | Y13: 0.06 | Z13: 191707970.9 | AA13: 9164483.227 | AB13: 0.9999993169
B14: 1, 0.07 | C14: 1 | D14: 0.07 | E14: 745977.2481 | F14: -4322.301574 | G14: 0.9999999903 | I14: 1, 0.07 | J14: 1 | K14: 0.07 | L14: 823878.0422 | M14: 9576.163188 | N14: 0.9999993355 | P14: 1, 0.07 | Q14: 1 | R14: 0.07 | S14: 152741095.1 | T14: -655214.2085 | U14: 0.9999999837 | W14: 1, 0.07 | X14: 1 | Y14: 0.07 | Z14: 162453769.5 | AA14: 9026154.908 | AB14: 0.9999993258
B15: 1, 0.08 | C15: 1 | D15: 0.08 | E15: 635737.8552 | F15: -4200.660575 | G15: 0.9999999907 | I15: 1, 0.08 | J15: 1 | K15: 0.08 | L15: 712961.0453 | M15: 8905.026247 | N15: 0.9999993453 | P15: 1, 0.08 | Q15: 1 | R15: 0.08 | S15: 129935272.1 | T15: -624671.6394 | U15: 0.9999999854 | W15: 1, 0.08 | X15: 1 | Y15: 0.08 | Z15: 140568309.2 | AA15: 8892753.166 | AB15: 0.9999993352
B16: 1, 0.09 | C16: 1 | D16: 0.09 | E16: 550424.3546 | F16: -4073.261476 | G16: 0.9999999913 | I16: 1, 0.09 | J16: 1 | K16: 0.09 | L16: 626931.0295 | M16: 8258.293823 | N16: 0.9999993555 | P16: 1, 0.09 | Q16: 1 | R16: 0.09 | S16: 112290879.2 | T16: -593342.7207 | U16: 0.9999999872 | W16: 1, 0.09 | X16: 1 | Y16: 0.09 | Z16: 123593773.4 | AA16: 8764206.409 | AB16: 0.9999993453
B17: 1, 0.1 | C17: 1 | D17: 0.1 | E17: 482551.8322 | F17: -3940.463489 | G17: 0.9999999919 | I17: 1, 0.1 | J17: 1 | K17: 0.1 | L17: 558314.7538 | M17: 7635.60697 | N17: 0.9999993663 | P17: 1, 0.1 | Q17: 1 | R17: 0.1 | S17: 98257988.95 | T17: -561288.9769 | U17: 0.9999999889 | W17: 1, 0.1 | X17: 1 | Y17: 0.1 | Z17: 110055471.9 | AA17: 8640443.045 | AB17: 0.9999993558
B18: 1, 0.11 | C18: 1 | D18: 0.11 | E18: 427357.1607 | F18: -3802.625822 | G18: 0.9999999925 | I18: 1, 0.11 | J18: 1 | K18: 0.11 | L18: 502356.5197 | M18: 7036.60674 | N18: 0.9999993776 | P18: 1, 0.11 | Q18: 1 | R18: 0.11 | S18: 86850283.77 | T18: -528571.9321 | U18: 0.9999999905 | W18: 1, 0.11 | X18: 1 | Y18: 0.11 | Z18: 99014965.59 | AA18: 8521391.484 | AB18: 0.9999993669
B19: 1, 0.12 | C19: 1 | D19: 0.12 | E19: 381664.922 | F19: -3660.107687 | G19: 0.9999999932 | I19: 1, 0.12 | J19: 1 | K19: 0.12 | L19: 455885.8612 | M19: 6460.934187 | N19: 0.9999993893 | P19: 1, 0.12 | Q19: 1 | R19: 0.12 | S19: 77410218.62 | T19: -495253.1109 | U19: 0.9999999921 | W19: 1, 0.12 | X19: 1 | Y19: 0.12 | Z19: 89846628.46 | AA19: 8406980.134 | AB19: 0.9999993785
B20: 1, 0.13 | C20: 1 | D20: 0.13 | E20: 343276.7496 | F20: -3513.268294 | G20: 0.999999994 | I20: 1, 0.13 | J20: 1 | K20: 0.13 | L20: 416707.8405 | M20: 5908.230363 | N20: 0.9999994014 | P20: 1, 0.13 | Q20: 1 | R20: 0.13 | S20: 69482570.01 | T20: -461394.0376 | U20: 0.9999999936 | W20: 1, 0.13 | X20: 1 | Y20: 0.13 | Z20: 82117334.75 | AA20: 8297137.404 | AB20: 0.9999993905
B21: 1, 0.14 | C21: 1 | D21: 0.14 | E21: 310622.3818 | F21: -3362.466852 | G21: 0.9999999948 | I21: 1, 0.14 | J21: 1 | K21: 0.14 | L21: 383254.6448 | M21: 5378.136322 | N21: 0.999999414 | P21: 1, 0.14 | Q21: 1 | R21: 0.14 | S21: 62742178.31 | T21: -427056.2366 | U21: 0.999999995 | W21: 1, 0.14 | X21: 1 | Y21: 0.14 | Z21: 75517708.9 | AA21: 8191791.702 | AB21: 0.9999994029
B22: 1, 0.15 | C22: 1 | D22: 0.15 | E22: 282550.2933 | F22: -3208.062573 | G22: 0.9999999956 | I22: 1, 0.15 | J22: 1 | K22: 0.15 | L22: 354376.5449 | M22: 4870.293118 | N22: 0.9999994269 | P22: 1, 0.15 | Q22: 1 | R22: 0.15 | S22: 56950593.13 | T22: -392301.2322 | U22: 0.9999999963 | W22: 1, 0.15 | X22: 1 | Y22: 0.15 | Z22: 69820875.53 | AA22: 8090871.436 | AB22: 0.9999994158
B23: 1, 0.16 | C23: 1 | D23: 0.16 | E23: 258196.8402 | F23: -3050.414665 | G23: 0.9999999964 | I23: 1, 0.16 | J23: 1 | K23: 0.16 | L23: 329211.2436 | M23: 4384.341802 | N23: 0.9999994401 | P23: 1, 0.16 | Q23: 1 | R23: 0.16 | S23: 51928976.66 | T23: -357190.5487 | U23: 0.9999999974 | W23: 1, 0.16 | X23: 1 | Y23: 0.16 | Z23: 64856678.1 | AA23: 7994305.016 | AB23: 0.999999429
B24: 1, 0.17 | C24: 1 | D24: 0.17 | E24: 236901.5889 | F24: -2889.88234 | G24: 0.9999999972 | I24: 1, 0.17 | J24: 1 | K24: 0.17 | L24: 307099.3373 | M24: 3919.923429 | N24: 0.9999994536 | P24: 1, 0.17 | Q24: 1 | R24: 0.17 | S24: 47540570.6 | T24: -321785.7107 | U24: 0.9999999984 | W24: 1, 0.17 | X24: 1 | Y24: 0.17 | Z24: 60494996.9 | AA24: 7902020.849 | AB24: 0.9999994425
B25: 1, 0.18 | C25: 1 | D25: 0.18 | E25: 218150.8687 | F25: -2726.824808 | G25: 0.999999998 | I25: 1, 0.18 | J25: 1 | K25: 0.18 | L25: 287527.9567 | M25: 3476.679051 | N25: 0.9999994674 | P25: 1, 0.18 | Q25: 1 | R25: 0.18 | S25: 43679007.35 | T25: -286148.2424 | U25: 0.9999999992 | W25: 1, 0.18 | X25: 1 | Y25: 0.18 | Z25: 56634627.7 | AA25: 7813947.345 | AB25: 0.9999994563
B26: 1, 0.19 | C26: 1 | D26: 0.19 | E26: 201539.1503 | F26: -2561.601278 | G26: 0.9999999987 | I26: 1, 0.19 | J26: 1 | K26: 0.19 | L26: 270092.2047 | M26: 3054.249721 | N26: 0.9999994814 | P26: 1, 0.19 | Q26: 1 | R26: 0.19 | S26: 40260312.53 | T26: -250339.6681 | U26: 0.9999999997 | W26: 1, 0.19 | X26: 1 | Y26: 0.19 | Z26: 53195672.45 | AA26: 7730012.912 | AB26: 0.9999994704
B27: 1, 0.2 | C27: 1 | D27: 0.2 | E27: 186742.0102 | F27: -2394.570961 | G27: 0.9999999993 | I27: 1, 0.2 | J27: 1 | K27: 0.2 | L27: 254468.1638 | M27: 2652.276494 | N27: 0.9999994956 | P27: 1, 0.2 | Q27: 1 | R27: 0.2 | S27: 37217306.59 | T27: -214421.5124 | U27: 1 | W27: 1, 0.2 | X27: 1 | Y27: 0.2 | Z27: 50114212.68 | AA27: 7650145.959 | AB27: 0.9999994847
B28: 1, 0.21 | C28: 1 | D28: 0.21 | E28: 173496.8198 | F28: -2226.093067 | G28: 0.9999999997 | I28: 1, 0.21 | J28: 1 | K28: 0.21 | L28: 240393.615 | M28: 2270.400421 | N28: 0.9999995099 | P28: 1, 0.21 | Q28: 1 | R28: 0.21 | S28: 34495606.13 | T28: -178455.2995 | U28: 0.9999999999 | W28: 1, 0.21 | X28: 1 | Y28: 0.21 | Z28: 47338504.88 | AA28: 7574274.894 | AB28: 0.9999994992
B29: 1, 0.22 | C29: 1 | D29: 0.22 | E29: 161588.7011 | F29: -2056.526807 | G29: 1 | I29: 1, 0.22 | J29: 1 | K29: 0.22 | L29: 227654.0155 | M29: 1908.262556 | N29: 0.9999995244 | P29: 1, 0.22 | Q29: 1 | R29: 0.22 | S29: 32050715.6 | T29: -142502.5537 | U29: 0.9999999995 | W29: 1, 0.22 | X29: 1 | Y29: 0.22 | Z29: 44826213.47 | AA29: 7502328.125 | AB29: 0.9999995139
B30: 1, 0.23 | C30: 1 | D30: 0.23 | E30: 150840.1463 | F30: -1886.23139 | G30: 1 | I30: 1, 0.23 | J30: 1 | K30: 0.23 | L30: 216072.1343 | M30: 1565.503952 | N30: 0.999999539 | P30: 1, 0.23 | Q30: 1 | R30: 0.23 | S30: 29845877.84 | T30: -106624.7996 | U30: 0.9999999987 | W30: 1, 0.23 | X30: 1 | Y30: 0.23 | Z30: 42542365.54 | AA30: 7434234.062 | AB30: 0.9999995286
B31: 1, 0.24 | C31: 1 | D31: 0.24 | E31: 141103.2322 | F31: -1715.566026 | G31: 0.9999999997 | I31: 1, 0.24 | J31: 1 | K31: 0.24 | L31: 205500.2789 | M31: 1241.765662 | N31: 0.9999995536 | P31: 1, 0.24 | Q31: 1 | R31: 0.24 | S31: 27850461.87 | T31: -70883.56141 | U31: 0.9999999973 | W31: 1, 0.24 | X31: 1 | Y31: 0.24 | Z31: 40457817.03 | AA31: 7369921.113 | AB31: 0.9999995435
B32: 1, 0.25 | C32: 1 | D32: 0.25 | E32: 132253.7033 | F32: -1544.889927 | G32: 0.9999999991 | I32: 1, 0.25 | J32: 1 | K32: 0.25 | L32: 195814.3876 | M32: 936.6887399 | N32: 0.9999995682 | P32: 1, 0.25 | Q32: 1 | R32: 0.25 | S32: 26038737.65 | T32: -35340.36353 | U32: 0.9999999955 | W32: 1, 0.25 | X32: 1 | Y32: 0.25 | Z32: 38548086.92 | AA32: 7309317.686 | AB32: 0.9999995583
B33: 1, 0.26 | C33: 1 | D33: 0.26 | E33: 124186.4204 | F33: -1374.562301 | G33: 0.999999998 | I33: 1, 0.26 | J33: 1 | K33: 0.26 | L33: 186909.485 | M33: 649.9142382 | N33: 0.9999995829 | P33: 1, 0.26 | Q33: 1 | R33: 0.26 | S33: 24388933.64 | T33: -56.73032975 | U33: 0.9999999931 | W33: 1, 0.26 | X33: 1 | Y33: 0.26 | Z33: 36792460.49 | AA33: 7252352.19 | AB33: 0.9999995733
B34: 1, 0.27 | C34: 1 | D34: 0.27 | E34: 116811.8203 | F34: -1204.94236 | G34: 0.9999999964 | I34: 1, 0.27 | J34: 1 | K34: 0.27 | L34: 178696.1479 | M34: 381.08321 | N34: 0.9999995975 | P34: 1, 0.27 | Q34: 1 | R34: 0.27 | S34: 22882503.69 | T34: 34905.81382 | U34: 0.9999999899 | W34: 1, 0.27 | X34: 1 | Y34: 0.27 | Z34: 35173291.89 | AA34: 7198953.034 | AB34: 0.9999995881
B35: 1, 0.28 | C35: 1 | D35: 0.28 | E35: 110053.1348 | F35: -1036.389313 | G35: 0.9999999942 | I35: 1, 0.28 | J35: 1 | K35: 0.28 | L35: 171097.7276 | M35: 129.8367086 | N35: 0.9999996121 | P35: 1, 0.28 | Q35: 1 | R35: 0.28 | S35: 21503551.1 | T35: 69485.74456 | U35: 0.9999999861 | W35: 1, 0.28 | X35: 1 | Y35: 0.28 | Z35: 33675456.09 | AA35: 7149048.626 | AB35: 0.999999603
B36: 1, 0.29 | C36: 1 | D36: 0.29 | E36: 103844.1841 | F36: -869.2623714 | G36: 0.9999999913 | I36: 1, 0.29 | J36: 1 | K36: 0.29 | L36: 164048.1477 | M36: -104.1842129 | N36: 0.9999996265 | P36: 1, 0.29 | Q36: 1 | R36: 0.29 | S36: 20238371.84 | T36: 103621.5375 | U36: 0.9999999814 | W36: 1, 0.29 | X36: 1 | Y36: 0.29 | Z36: 32285914.27 | AA36: 7102567.375 | AB36: 0.9999996178
B37: 1, 0.3 | C37: 1 | D37: 0.3 | E37: 98127.61269 | F37: -703.9207441 | G37: 0.9999999877 | I37: 1, 0.3 | J37: 1 | K37: 0.3 | L37: 157490.1419 | M37: -321.3385013 | N37: 0.9999996409 | P37: 1, 0.3 | Q37: 1 | R37: 0.3 | S37: 19075089.06 | T37: 137251.6683 | U37: 0.9999999758 | W37: 1, 0.3 | X37: 1 | Y37: 0.3 | Z37: 30993366.12 | AA37: 7059437.69 | AB37: 0.9999996324
B38: 1, 0.31 | C38: 1 | D38: 0.31 | E38: 92853.46559 | F38: -540.7236418 | G38: 0.999999983 | I38: 1, 0.31 | J38: 1 | K38: 0.31 | L38: 151373.8333 | M38: -521.9851036 | N38: 0.9999996551 | P38: 1, 0.31 | Q38: 1 | R38: 0.31 | S38: 18003358.42 | T38: 170314.6126 | U38: 0.9999999691 | W38: 1, 0.31 | X38: 1 | Y38: 0.31 | Z38: 29787969.45 | AA38: 7019587.978 | AB38: 0.999999647
B39: 1, 0.32 | C39: 1 | D39: 0.32 | E39: 87978.03222 | F39: -380.0302747 | G39: 0.9999999774 | I39: 1, 0.32 | J39: 1 | K39: 0.32 | L39: 145655.5794 | M39: -706.4829665 | N39: 0.9999996692 | P39: 1, 0.32 | Q39: 1 | R39: 0.32 | S39: 17014128.62 | T39: 202748.846 | U39: 0.9999999613 | W39: 1, 0.32 | X39: 1 | Y39: 0.32 | Z39: 28661112.32 | AA39: 6982946.648 | AB39: 0.9999996614
B40: 1, 0.33 | C40: 1 | D40: 0.33 | E40: 83462.90027 | F40: -222.199853 | G40: 0.9999999705 | I40: 1, 0.33 | J40: 1 | K40: 0.33 | L40: 140297.0278 | M40: -875.191037 | N40: 0.999999683 | P40: 1, 0.33 | Q40: 1 | R40: 0.33 | S40: 16099445.48 | T40: 234492.8441 | U40: 0.9999999523 | W40: 1, 0.33 | X40: 1 | Y40: 0.33 | Z40: 27605226.68 | AA40: 6949442.11 | AB40: 0.9999996756
B41: 1, 0.34 | C41: 1 | D41: 0.34 | E41: 79274.17652 | F41: -67.59158694 | G41: 0.9999999623 | I41: 1, 0.34 | J41: 1 | K41: 0.34 | L41: 135264.3383 | M41: -1028.468262 | N41: 0.9999996967 | P41: 1, 0.34 | Q41: 1 | R41: 0.34 | S41: 15252290.61 | T41: 265485.0826 | U41: 0.9999999419 | W41: 1, 0.34 | X41: 1 | Y41: 0.34 | Z41: 26613634.83 | AA41: 6919002.772 | AB41: 0.9999996896
B42: 1, 0.35 | C42: 1 | D42: 0.35 | E42: 75381.84126 | F42: 83.4353134 | G42: 0.9999999526 | I42: 1, 0.35 | J42: 1 | K42: 0.35 | L42: 130527.5378 | M42: -1166.673588 | N42: 0.9999997101 | P42: 1, 0.35 | Q42: 1 | R42: 0.35 | S42: 14466447.74 | T42: 295664.0371 | U42: 0.9999999299 | W42: 1, 0.35 | X42: 1 | Y42: 0.35 | Z42: 25680422.24 | AA42: 6891557.041 | AB42: 0.9999997034
B43: 1, 0.36 | C43: 1 | D43: 0.36 | E43: 71759.21031 | F43: 230.5216378 | G43: 0.9999999412 | I43: 1, 0.36 | J43: 1 | K43: 0.36 | L43: 126059.9838 | M43: -1290.165962 | N43: 0.9999997233 | P43: 1, 0.36 | Q43: 1 | R43: 0.36 | S43: 13736391.26 | T43: 324968.1833 | U43: 0.9999999164 | W43: 1, 0.36 | X43: 1 | Y43: 0.36 | Z43: 24800331.54 | AA43: 6867033.328 | AB43: 0.9999997169
B44: 1, 0.37 | C44: 1 | D44: 0.37 | E44: 68382.48425 | F44: 373.308176 | G44: 0.9999999279 | I44: 1, 0.37 | J44: 1 | K44: 0.37 | L44: 121837.9141 | M44: -1399.304332 | N44: 0.9999997363 | P44: 1, 0.37 | Q44: 1 | R44: 0.37 | S44: 13057192.95 | T44: 353335.9967 | U44: 0.999999901 | W44: 1, 0.37 | X44: 1 | Y44: 0.37 | Z44: 23968673.74 | AA44: 6845360.04 | AB44: 0.9999997302
B45: 1, 0.38 | C45: 1 | D45: 0.38 | E45: 65230.36888 | F45: 511.4357179 | G45: 0.9999999126 | I45: 1, 0.38 | J45: 1 | K45: 0.38 | L45: 117840.0676 | M45: -1494.447643 | N45: 0.999999749 | P45: 1, 0.38 | Q45: 1 | R45: 0.38 | S45: 12424443.34 | T45: 380705.953 | U45: 0.9999998836 | W45: 1, 0.38 | X45: 1 | Y45: 0.38 | Z45: 23181253.42 | AA45: 6826465.585 | AB45: 0.9999997433
B46: 1, 0.39 | C46: 1 | D46: 0.39 | E46: 62283.75401 | F46: 644.5450533 | G46: 0.9999998949 | I46: 1, 0.39 | J46: 1 | K46: 0.39 | L46: 114047.3639 | M46: -1575.954843 | N46: 0.9999997614 | P46: 1, 0.39 | Q46: 1 | R46: 0.39 | S46: 11834185.23 | T46: 407016.5278 | U46: 0.9999998642 | W46: 1, 0.39 | X46: 1 | Y46: 0.39 | Z46: 22434305.46 | AA46: 6810278.374 | AB46: 0.999999756
B47: 1, 0.4 | C47: 1 | D47: 0.4 | E47: 59525.44047 | F47: 772.2769719 | G47: 0.9999998748 | I47: 1, 0.4 | J47: 1 | K47: 0.4 | L47: 110442.6307 | M47: -1644.184878 | N47: 0.9999997735 | P47: 1, 0.4 | Q47: 1 | R47: 0.4 | S47: 11282857.12 | T47: 432206.1968 | U47: 0.9999998423 | W47: 1, 0.4 | X47: 1 | Y47: 0.4 | Z47: 21724441.24 | AA47: 6796726.813 | AB47: 0.9999997685
B48: 1, 0.41 | C48: 1 | D48: 0.41 | E48: 56939.90706 | F48: 894.2722636 | G48: 0.9999998518 | I48: 1, 0.41 | J48: 1 | K48: 0.41 | L48: 107010.3711 | M48: -1699.496696 | N48: 0.9999997853 | P48: 1, 0.41 | Q48: 1 | R48: 0.41 | S48: 10767244.97 | T48: 456213.4356 | U48: 0.999999818 | W48: 1, 0.41 | X48: 1 | Y48: 0.41 | Z48: 21048602.76 | AA48: 6785739.312 | AB48: 0.9999997806
B49: 1, 0.42 | C49: 1 | D49: 0.42 | E49: 54513.11079 | F49: 1010.171718 | G49: 0.9999998258 | I49: 1, 0.42 | J49: 1 | K49: 0.42 | L49: 103736.5638 | M49: -1742.249244 | N49: 0.9999997968 | P49: 1, 0.42 | Q49: 1 | R49: 0.42 | S49: 10284440.86 | T49: 478976.7198 | U49: 0.9999997909 | W49: 1, 0.42 | X49: 1 | Y49: 0.42 | Z49: 20404023.25 | AA49: 6777244.28 | AB49: 0.9999997924
B50: 1, 0.43 | C50: 1 | D50: 0.43 | E50: 52232.315 | F50: 1119.616126 | G50: 0.9999997965 | I50: 1, 0.43 | J50: 1 | K50: 0.43 | L50: 100608.4922 | M50: -1772.801467 | N50: 0.999999808 | P50: 1, 0.43 | Q50: 1 | R50: 0.43 | S50: 9831807.36 | T50: 500434.5251 | U50: 0.9999997608 | W50: 1, 0.43 | X50: 1 | Y50: 0.43 | Z50: 19788193.3 | AA50: 6771170.124 | AB50: 0.9999998039
B51: 1, 0.44 | C51: 1 | D51: 0.44 | E51: 50085.94089 | F51: 1222.246275 | G51: 0.9999997636 | I51: 1, 0.44 | J51: 1 | K51: 0.44 | L51: 97614.59545 | M51: -1791.512314 | N51: 0.9999998188 | P51: 1, 0.44 | Q51: 1 | R51: 0.44 | S51: 9406946.81 | T51: 520525.3271 | U51: 0.9999997275 | W51: 1, 0.44 | X51: 1 | Y51: 0.44 | Z51: 19198831.64 | AA51: 6767445.254 | AB51: 0.9999998151
B52: 1, 0.45 | C52: 1 | D52: 0.45 | E52: 48063.4389 | F52: 1317.702958 | G52: 0.9999997268 | I52: 1, 0.45 | J52: 1 | K52: 0.45 | L52: 94744.34048 | M52: -1798.74073 | N52: 0.9999998294 | P52: 1, 0.45 | Q52: 1 | R52: 0.45 | S52: 9007674.675 | T52: 539187.6014 | U52: 0.9999996907 | W52: 1, 0.45 | X52: 1 | Y52: 0.45 | Z52: 18633859.78 | AA52: 6765998.078 | AB52: 0.999999826
B53: 1, 0.46 | C53: 1 | D53: 0.46 | E53: 46155.17683 | F53: 1405.626962 | G53: 0.9999996856 | I53: 1, 0.46 | J53: 1 | K53: 0.46 | L53: 91988.11009 | M53: -1794.845663 | N53: 0.9999998396 | P53: 1, 0.46 | Q53: 1 | R53: 0.46 | S53: 8631996.38 | T53: 556359.8236 | U53: 0.9999996501 | W53: 1, 0.46 | X53: 1 | Y53: 0.46 | Z53: 18091379.98 | AA53: 6766757.004 | AB53: 0.9999998365
B54: 1, 0.47 | C54: 1 | D54: 0.47 | E54: 44352.34223 | F54: 1485.659078 | G54: 0.9999996398 | I54: 1, 0.47 | J54: 1 | K54: 0.47 | L54: 89337.10559 | M54: -1780.18606 | N54: 0.9999998494 | P54: 1, 0.47 | Q54: 1 | R54: 0.47 | S54: 8278087.1 | T54: 571980.4695 | U54: 0.9999996054 | W54: 1, 0.47 | X54: 1 | Y54: 0.47 | Z54: 17569655.97 | AA54: 6769650.441 | AB54: 0.9999998466
B55: 1, 0.48 | C55: 1 | D55: 0.48 | E55: 42646.85702 | F55: 1557.440096 | G55: 0.999999589 | I55: 1, 0.48 | J55: 1 | K55: 0.48 | L55: 86783.2615 | M55: -1755.120867 | N55: 0.999999859 | P55: 1, 0.48 | Q55: 1 | R55: 0.48 | S55: 7944274.08 | T55: 585988.0145 | U55: 0.9999995563 | W55: 1, 0.48 | X55: 1 | Y55: 0.48 | Z55: 17067096.22 | AA55: 6774606.798 | AB55: 0.9999998565
B56: 1, 0.49 | C56: 1 | D56: 0.49 | E56: 41031.30256 | F56: 1620.610806 | G56: 0.9999995327 | I56: 1, 0.49 | J56: 1 | K56: 0.49 | L56: 84319.17075 | M56: -1720.009032 | N56: 0.9999998682 | P56: 1, 0.49 | Q56: 1 | R56: 0.49 | S56: 7629021.115 | T56: 598320.9344 | U56: 0.9999995024 | W56: 1, 0.49 | X56: 1 | Y56: 0.49 | Z56: 16582239.08 | AA56: 6781554.484 | AB56: 0.9999998659
B57: 1, 0.5 | C57: 1 | D57: 0.5 | E57: 39498.8537 | F57: 1674.811997 | G57: 0.9999994704 | I57: 1, 0.5 | J57: 1 | K57: 0.5 | L57: 81938.01883 | M57: -1675.209501 | N57: 0.999999877 | P57: 1, 0.5 | Q57: 1 | R57: 0.5 | S57: 7330914.898 | T57: 608917.7048 | U57: 0.9999994433 | W57: 1, 0.5 | X57: 1 | Y57: 0.5 | Z57: 16113739.85 | AA57: 6790421.906 | AB57: 0.9999998751
B58: 1, 0.51 | C58: 1 | D58: 0.51 | E58: 38043.22061 | F58: 1719.684459 | G58: 0.9999994017 | I58: 1, 0.51 | J58: 1 | K58: 0.51 | L58: 79633.52571 | M58: -1621.081221 | N58: 0.9999998856 | P58: 1, 0.51 | Q58: 1 | R58: 0.51 | S58: 7048652.968 | T58: 617716.8012 | U58: 0.9999993785 | W58: 1, 0.51 | X58: 1 | Y58: 0.51 | Z58: 15660359.31 | AA58: 6801137.474 | AB58: 0.9999998838
B59: 1, 0.52 | C59: 1 | D59: 0.52 | E59: 36658.59726 | F59: 1754.868982 | G59: 0.9999993261 | I59: 1, 0.52 | J59: 1 | K59: 0.52 | L59: 77399.89443 | M59: -1557.983139 | N59: 0.9999998938 | P59: 1, 0.52 | Q59: 1 | R59: 0.52 | S59: 6781033.055 | T59: 624656.6995 | U59: 0.9999993076 | W59: 1, 0.52 | X59: 1 | Y59: 0.52 | Z59: 15220953.53 | AA59: 6813629.596 | AB59: 0.9999998923
B60: 1, 0.53 | C60: 1 | D60: 0.53 | E60: 35339.61584 | F60: 1780.006356 | G60: 0.9999992429 | I60: 1, 0.53 | J60: 1 | K60: 0.53 | L60: 75231.76554 | M60: -1486.274202 | N60: 0.9999999017 | P60: 1, 0.53 | Q60: 1 | R60: 0.53 | S60: 6526943.625 | T60: 629675.8751 | U60: 0.9999992301 | W60: 1, 0.53 | X60: 1 | Y60: 0.53 | Z60: 14794464.95 | AA60: 6827826.68 | AB60: 0.9999999004
B61: 1, 0.54 | C61: 1 | D61: 0.54 | E61: 34081.30614 | F61: 1794.737371 | G61: 0.9999991514 | I61: 1, 0.54 | J61: 1 | K61: 0.54 | L61: 73124.1766 | M61: -1406.313356 | N61: 0.9999999092 | P61: 1, 0.54 | Q61: 1 | R61: 0.54 | S61: 6285355.48 | T61: 632712.8037 | U61: 0.9999991452 | W61: 1, 0.54 | X61: 1 | Y61: 0.54 | Z61: 14379914.32 | AA61: 6843657.136 | AB61: 0.9999999082
B62: 1, 0.55 | C62: 1 | D62: 0.55 | E62: 32879.05943 | F62: 1798.702816 | G62: 0.9999990511 | I62: 1, 0.55 | J62: 1 | K62: 0.55 | L62: 71072.52606 | M62: -1318.459549 | N62: 0.9999999165 | P62: 1, 0.55 | Q62: 1 | R62: 0.55 | S62: 6055314.273 | T62: 633705.9609 | U62: 0.9999990525 | W62: 1, 0.55 | X62: 1 | Y62: 0.55 | Z62: 13976393.63 | AA62: 6861049.371 | AB62: 0.9999999156
B63: 1, 0.56 | C63: 1 | D63: 0.56 | E63: 31728.59618 | F63: 1791.543481 | G63: 0.999998941 | I63: 1, 0.56 | J63: 1 | K63: 0.56 | L63: 69072.54104 | M63: -1223.071728 | N63: 0.9999999234 | P63: 1, 0.56 | Q63: 1 | R63: 0.56 | S63: 5835933.826 | T63: 632593.8224 | U63: 0.9999989511 | W63: 1, 0.56 | X63: 1 | Y63: 0.56 | Z63: 13583059.71 | AA63: 6879931.795 | AB63: 0.9999999227
B64: 1, 0.57 | C64: 1 | D64: 0.57 | E64: 30625.93715 | F64: 1772.900156 | G64: 0.9999988203 | I64: 1, 0.57 | J64: 1 | K64: 0.57 | L64: 67120.24854 | M64: -1120.508838 | N64: 0.99999993 | P64: 1, 0.57 | Q64: 1 | R64: 0.57 | S64: 5626390.146 | T64: 629314.8638 | U64: 0.9999988403 | W64: 1, 0.57 | X64: 1 | Y64: 0.57 | Z64: 13199128.57 | AA64: 6900232.816 | AB64: 0.9999999295
B65: 1, 0.58 | C65: 1 | D65: 0.58 | E65: 29567.37756 | F65: 1742.413631 | G65: 0.999998688 | I65: 1, 0.58 | J65: 1 | K65: 0.58 | L65: 65211.94954 | M65: -1011.129828 | N65: 0.9999999363 | P65: 1, 0.58 | Q65: 1 | R65: 0.58 | S65: 5425916.071 | T65: 623807.5608 | U65: 0.999998719 | W65: 1, 0.58 | X65: 1 | Y65: 0.58 | Z65: 12823870.29 | AA65: 6921880.842 | AB65: 0.9999999359
B66: 1, 0.59 | C66: 1 | D66: 0.59 | E66: 28549.46379 | F66: 1699.724696 | G66: 0.9999985431 | I66: 1, 0.59 | J66: 1 | K66: 0.59 | L66: 63344.19581 | M66: -895.2936439 | N66: 0.9999999423 | P66: 1, 0.59 | Q66: 1 | R66: 0.59 | S66: 5233796.445 | T66: 616010.3889 | U66: 0.9999985863 | W66: 1, 0.59 | X66: 1 | Y66: 0.59 | Z66: 12456604.42 | AA66: 6944804.282 | AB66: 0.999999942
B67: 1, 0.6 | C67: 1 | D67: 0.6 | E67: 27568.97245 | F67: 1644.474141 | G67: 0.9999983842 | I67: 1, 0.6 | J67: 1 | K67: 0.6 | L67: 61513.769 | M67: -773.3592326 | N67: 0.999999948 | P67: 1, 0.6 | Q67: 1 | R67: 0.6 | S67: 5049363.794 | T67: 605861.8238 | U67: 0.9999984409 | W67: 1, 0.6 | X67: 1 | Y67: 0.6 | Z67: 12096695.9 | AA67: 6968931.545 | AB67: 0.9999999479
B68: 1, 0.61 | C68: 1 | D68: 0.61 | E68: 26622.89155 | F68: 1576.302754 | G68: 0.99999821 | I68: 1, 0.61 | J68: 1 | K68: 0.61 | L68: 59717.66179 | M68: -645.685541 | N68: 0.9999999534 | P68: 1, 0.61 | Q68: 1 | R68: 0.61 | S68: 4871994.41 | T68: 593300.3411 | U68: 0.9999982816 | W68: 1, 0.61 | X68: 1 | Y68: 0.61 | Z68: 11743551.29 | AA68: 6994191.039 | AB68: 0.9999999534
B69: 1, 0.62 | C69: 1 | D69: 0.62 | E69: 25708.4034 | F69: 1494.851327 | G69: 0.9999980188 | I69: 1, 0.62 | J69: 1 | K69: 0.62 | L69: 57953.0609 | M69: -512.631516 | N69: 0.9999999585 | P69: 1, 0.62 | Q69: 1 | R69: 0.62 | S69: 4701104.824 | T69: 578264.4165 | U69: 0.9999981066 | W69: 1, 0.62 | X69: 1 | Y69: 0.62 | Z69: 11396615.44 | AA69: 7020511.173 | AB69: 0.9999999586
B70: 1, 0.63 | C70: 1 | D70: 0.63 | E70: 24822.8692 | F70: 1399.760648 | G70: 0.9999978088 | I70: 1, 0.63 | J70: 1 | K70: 0.63 | L70: 56217.33165 | M70: -374.5561045 | N70: 0.9999999633 | P70: 1, 0.63 | Q70: 1 | R70: 0.63 | S70: 4536148.614 | T70: 560692.5256 | U70: 0.9999979143 | W70: 1, 0.63 | X70: 1 | Y70: 0.63 | Z70: 11055368.47 | AA70: 7047820.355 | AB70: 0.9999999635
B71: 1, 0.64 | C71: 1 | D71: 0.64 | E71: 23963.8151 | F71: 1290.671509 | G71: 0.999997578 | I71: 1, 0.64 | J71: 1 | K71: 0.64 | L71: 54508.00404 | M71: -231.8182532 | N71: 0.9999999678 | P71: 1, 0.64 | Q71: 1 | R71: 0.64 | S71: 4376613.509 | T71: 540523.1439 | U71: 0.9999977026 | W71: 1, 0.64 | X71: 1 | Y71: 0.64 | Z71: 10719322.96 | AA71: 7076046.994 | AB71: 0.9999999681
B72: 1, 0.65 | C72: 1 | D72: 0.65 | E72: 23128.91948 | F72: 1167.224697 | G72: 0.9999973237 | I72: 1, 0.65 | J72: 1 | K72: 0.65 | L72: 52822.76008 | M72: -84.77690915 | N72: 0.9999999721 | P72: 1, 0.65 | Q72: 1 | R72: 0.65 | S72: 4222018.763 | T72: 517694.7473 | U72: 0.999997469 | W72: 1, 0.65 | X72: 1 | Y72: 0.65 | Z72: 10388021.5 | AA72: 7105119.499 | AB72: 0.9999999724
B73: 1, 0.66 | C73: 1 | D73: 0.66 | E73: 22316.00141 | F73: 1029.061005 | G73: 0.9999970433 | I73: 1, 0.66 | J73: 1 | K73: 0.66 | L73: 51159.42223 | M73: 66.20898087 | N73: 0.9999999761 | P73: 1, 0.66 | Q73: 1 | R73: 0.66 | S73: 4071912.764 | T73: 492145.8112 | U73: 0.9999972108 | W73: 1, 0.66 | X73: 1 | Y73: 0.66 | Z73: 10061034.41 | AA73: 7134966.278 | AB73: 0.9999999764
B74: 1, 0.67 | C74: 1 | D74: 0.67 | E74: 21523.01019 | F74: 875.8212199 | G74: 0.9999967334 | I74: 1, 0.67 | J74: 1 | K74: 0.67 | L74: 49515.94299 | M74: 220.78047 | N74: 0.9999999798 | P74: 1, 0.67 | Q74: 1 | R74: 0.67 | S74: 3925870.864 | T74: 463814.8114 | U74: 0.9999969247 | W74: 1, 0.67 | X74: 1 | Y74: 0.67 | Z74: 9737957.657 | AA74: 7165515.739 | AB74: 0.9999999801
B75: 1, 0.68 | C75: 1 | D75: 0.68 | E75: 20748.01572 | F75: 707.1461332 | G75: 0.9999963901 | I75: 1, 0.68 | J75: 1 | K75: 0.68 | L75: 47890.39528 | M75: 378.5786113 | N75: 0.9999999832 | P75: 1, 0.68 | Q75: 1 | R75: 0.68 | S75: 3783493.393 | T75: 432640.2234 | U75: 0.9999966067 | W75: 1, 0.68 | X75: 1 | Y75: 0.68 | Z75: 9418410.963 | AA75: 7196696.292 | AB75: 0.9999999835
B76: 1, 0.69 | C76: 1 | D76: 0.69 | E76: 19989.19981 | F76: 522.6765342 | G76: 0.9999960088 | I76: 1, 0.69 | J76: 1 | K76: 0.69 | L76: 46280.96374 | M76: 539.244458 | N76: 0.9999999863 | P76: 1, 0.69 | Q76: 1 | R76: 0.69 | S76: 3644403.852 | T76: 398560.5229 | U76: 0.9999962525 | W76: 1, 0.69 | X76: 1 | Y76: 0.69 | Z76: 9102036.109 | AA76: 7228436.345 | AB76: 0.9999999867
B77: =C77&", "&D77 -> 1, 0.7 | C77: 1 | D77: 0.7 | E77: 19244.84817 | F77: 322.0532128 | G77: 0.9999955841 | I77: =J77&", "&K77 -> 1, 0.7 | J77: 1 | K77: 0.7 | L77: 44685.93674 | M77: 702.4190633 | N77: 0.9999999891 | P77: =Q77&", "&R77 -> 1, 0.7 | Q77: 1 | R77: 0.7 | S77: 3508247.254 | T77: 361514.1855 | U77: 0.9999958564 | W77: =X77&", "&Y77 -> 1, 0.7 | X77: 1 | Y77: 0.7 | Z77: 8788495.34 | AA77: 7260664.306 | AB77: 0.9999999895
B78: 1, 0.71 | C78: 1 | D78: 0.71 | E78: 18513.34306 | F78: 104.9169587 | G78: 0.9999951094 | I78: 1, 0.71 | J78: 1 | K78: 0.71 | L78: 43103.69909 | M78: 867.7434801 | N78: 0.9999999917 | P78: 1, 0.71 | Q78: 1 | R78: 0.71 | S78: 3374688.612 | T78: 321439.6868 | U78: 0.9999954119 | W78: 1, 0.71 | X78: 1 | Y78: 0.71 | Z78: 8477469.93 | AA78: 7293308.584 | AB78: 0.999999992
B79: 1, 0.72 | C79: 1 | D79: 0.72 | E79: 17793.15666 | F79: -129.0914381 | G79: 0.999994577 | I79: 1, 0.72 | J79: 1 | K79: 0.72 | L79: 41532.72534 | M79: 1034.858762 | N79: 0.9999999939 | P79: 1, 0.72 | Q79: 1 | R79: 0.72 | S79: 3243411.551 | T79: 278275.5025 | U79: 0.9999949113 | W79: 1, 0.72 | X79: 1 | Y79: 0.72 | Z79: 8168658.862 | AA79: 7326297.587 | AB79: 0.9999999942
B80: 1, 0.73 | C80: 1 | D80: 0.73 | E80: 17082.84483 | F80: -380.3311879 | G80: 0.9999939774 | I80: 1, 0.73 | J80: 1 | K80: 0.73 | L80: 39971.57359 | M80: 1203.405961 | N80: 0.9999999958 | P80: 1, 0.73 | Q80: 1 | R80: 0.73 | S80: 3114117.03 | T80: 231960.1082 | U80: 0.999994345 | W80: 1, 0.73 | X80: 1 | Y80: 0.73 | Z80: 7861777.61 | AA80: 7359559.725 | AB80: 0.9999999961
B81: 1, 0.74 | C81: 1 | D81: 0.74 | E81: 16381.0415 | F81: -649.1615009 | G81: 0.9999932989 | I81: 1, 0.74 | J81: 1 | K81: 0.74 | L81: 38418.87991 | M81: 1373.026132 | N81: 0.9999999974 | P81: 1, 0.74 | Q81: 1 | R81: 0.74 | S81: 2986522.171 | T81: 182431.9796 | U81: 0.9999937012 | W81: 1, 0.74 | X81: 1 | Y81: 0.74 | Z81: 7556557.031 | AA81: 7393023.405 | AB81: 0.9999999977
B82: 1, 0.75 | C82: 1 | D82: 0.75 | E82: 15686.45346 | F82: -935.9415873 | G82: 0.9999925275 | I82: 1, 0.75 | J82: 1 | K82: 0.75 | L82: 36873.35312 | M82: 1543.360327 | N82: 0.9999999987 | P82: 1, 0.75 | Q82: 1 | R82: 0.75 | S82: 2860359.187 | T82: 129629.5922 | U82: 0.9999929656 | W82: 1, 0.75 | X82: 1 | Y82: 0.75 | Z82: 7252742.333 | AA82: 7426617.037 | AB82: 0.9999999989
B83: 1, 0.76 | C83: 1 | D83: 0.76 | E83: 14997.85557 | F83: -1241.030657 | G83: 0.9999916455 | I83: 1, 0.76 | J83: 1 | K83: 0.76 | L83: 35333.76998 | M83: 1714.049599 | N83: 0.9999999995 | P83: 1, 0.76 | Q83: 1 | R83: 0.76 | S83: 2735374.381 | T83: 73491.42171 | U83: 0.9999921204 | W83: 1, 0.76 | X83: 1 | Y83: 0.76 | Z83: 6950092.136 | AA83: 7460269.028 | AB83: 0.9999999996
B84: 1, 0.77 | C84: 1 | D84: 0.77 | E84: 14314.08633 | F84: -1564.787921 | G84: 0.9999906309 | I84: 1, 0.77 | J84: 1 | K84: 0.77 | L84: 33798.97079 | M84: 1884.735001 | N84: 1 | P84: 1, 0.77 | Q84: 1 | R84: 0.77 | S84: 2611327.238 | T84: 13955.94377 | U84: 0.9999911431 | W84: 1, 0.77 | X84: 1 | Y84: 0.77 | Z84: 6648377.599 | AA84: 7493907.788 | AB84: 1
B85: 1, 0.78 | C85: 1 | D85: 0.78 | E85: 13634.04379 | F85: -1907.572589 | G85: 0.9999894557 | I85: 1, 0.78 | J85: 1 | K85: 0.78 | L85: 32267.85534 | M85: 2055.057587 | N85: 0.9999999999 | P85: 1, 0.78 | Q85: 1 | R85: 0.78 | S85: 2487989.574 | T85: -49038.36601 | U85: 0.999990005 | W85: 1, 0.78 | X85: 1 | Y85: 0.78 | Z85: 6347381.617 | AA85: 7527461.725 | AB85: 0.9999999999
B86: 1, 0.79 | C86: 1 | D86: 0.79 | E86: 12956.68182 | F86: -2269.74387 | G86: 0.9999880844 | I86: 1, 0.79 | J86: 1 | K86: 0.79 | L86: 30739.37911 | M86: 2224.65841 | N86: 0.9999999993 | P86: 1, 0.79 | Q86: 1 | R86: 0.79 | S86: 2365144.761 | T86: -115553.032 | U86: 0.9999886698 | W86: 1, 0.79 | X86: 1 | Y86: 0.79 | Z86: 6046898.077 | AA86: 7560859.248 | AB86: 0.9999999992
B87: 1, 0.8 | C87: 1 | D87: 0.8 | E87: 12281.00657 | F87: -2651.660977 | G87: 0.9999864704 | I87: 1, 0.8 | J87: 1 | K87: 0.8 | L87: 29212.54981 | M87: 2393.178523 | N87: 0.9999999981 | P87: 1, 0.8 | Q87: 1 | R87: 0.8 | S87: 2242587.003 | T87: -185649.5786 | U87: 0.9999870897 | W87: 1, 0.8 | X87: 1 | Y87: 0.8 | Z87: 5746731.171 | AA87: 7594028.764 | AB87: 0.9999999979
B88: 1, 0.81 | C88: 1 | D88: 0.81 | E88: 11606.07329 | F88: -3053.683117 | G88: 0.9999845531 | I88: 1, 0.81 | J88: 1 | K88: 0.81 | L88: 27686.42418 | M88: 2560.258979 | N88: 0.9999999961 | P88: 1, 0.81 | Q88: 1 | R88: 0.81 | S88: 2120120.664 | T88: -259389.53 | U88: 0.999985202 | W88: 1, 0.81 | X88: 1 | Y88: 0.81 | Z88: 5446694.762 | AA88: 7626898.684 | AB88: 0.9999999958
B89: 1, 0.82 | C89: 1 | D89: 0.82 | E89: 10930.98331 | F89: -3476.169503 | G89: 0.9999822509 | I89: 1, 0.82 | J89: 1 | K89: 0.82 | L89: 26160.10492 | M89: 2725.540831 | N89: 0.9999999932 | P89: 1, 0.82 | Q89: 1 | R89: 0.82 | S89: 1997559.654 | T89: -336834.4109 | U89: 0.9999829226 | W89: 1, 0.82 | X89: 1 | Y89: 0.82 | Z89: 5146611.791 | AA89: 7659397.414 | AB89: 0.9999999928
B90: 1, 0.83 | C90: 1 | D90: 0.83 | E90: 10254.88126 | F90: -3919.479343 | G90: 0.9999794534 | I90: 1, 0.83 | J90: 1 | K90: 0.83 | L90: 24632.73801 | M90: 2888.665132 | N90: 0.9999999892 | P90: 1, 0.83 | Q90: 1 | R90: 0.83 | S90: 1874726.848 | T90: -418045.7453 | U90: 0.9999801366 | W90: 1, 0.83 | X90: 1 | Y90: 0.83 | Z90: 4846313.734 | AA90: 7691453.365 | AB90: 0.9999999887
B91: 1, 0.84 | C91: 1 | D91: 0.84 | E91: 9576.952517 | F91: -4383.971848 | G91: 0.9999760069 | I91: 1, 0.84 | J91: 1 | K91: 0.84 | L91: 23103.5101 | M91: 3049.272936 | N91: 0.9999999838 | P91: 1, 0.84 | Q91: 1 | R91: 0.84 | S91: 1751453.56 | T91: -503085.0579 | U91: 0.9999766841 | W91: 1, 0.84 | X91: 1 | Y91: 0.84 | Z91: 4545640.091 | AA91: 7722994.944 | AB91: 0.9999999833
B92: 1, 0.85 | C92: 1 | D92: 0.85 | E92: 8896.420777 | F92: -4870.006229 | G92: 0.9999716935 | I92: 1, 0.85 | J92: 1 | K92: 0.85 | L92: 21571.6461 | M92: 3207.005295 | N92: 0.9999999766 | P92: 1, 0.85 | Q92: 1 | R92: 0.85 | S92: 1627579.038 | T92: -592013.8728 | U92: 0.9999723372 | W92: 1, 0.85 | X92: 1 | Y92: 0.85 | Z92: 4244437.914 | AA92: 7753950.56 | AB92: 0.999999976
B93: 1, 0.86 | C93: 1 | D93: 0.86 | E93: 8212.545854 | F93: -5377.941695 | G93: 0.9999661952 | I93: 1, 0.86 | J93: 1 | K93: 0.86 | L93: 20036.40696 | M93: 3361.503263 | N93: 0.9999999669 | P93: 1, 0.86 | Q93: 1 | R93: 0.86 | S93: 1502950.009 | T93: -684893.7145 | U93: 0.9999667619 | W93: 1, 0.86 | X93: 1 | Y93: 0.86 | Z93: 3942561.37 | AA93: 7784248.622 | AB93: 0.9999999664
B94: 1, 0.87 | C94: 1 | D94: 0.87 | E94: 7524.621591 | F94: -5908.137457 | G94: 0.9999590334 | I94: 1, 0.87 | J94: 1 | K94: 0.87 | L94: 18497.08765 | M94: 3512.407892 | N94: 0.999999954 | P94: 1, 0.87 | Q94: 1 | R94: 0.87 | S94: 1377420.246 | T94: -781786.1074 | U94: 0.9999594539 | W94: 1, 0.87 | X94: 1 | Y94: 0.87 | Z94: 3639871.332 | AA94: 7813817.538 | AB94: 0.9999999536
B95: 1, 0.88 | C95: 1 | D95: 0.88 | E95: 6831.973929 | F95: -6460.952724 | G95: 0.9999494615 | I95: 1, 0.88 | J95: 1 | K95: 0.88 | L95: 16953.01514 | M95: 3659.360237 | N95: 0.9999999365 | P95: 1, 0.88 | Q95: 1 | R95: 0.88 | S95: 1250850.17 | T95: -882752.5758 | U95: 0.999949622 | W95: 1, 0.88 | X95: 1 | Y95: 0.88 | Z95: 3336234.994 | AA95: 7842585.717 | AB95: 0.9999999363
B96: 1, 0.89 | C96: 1 | D96: 0.89 | E96: 6133.959102 | F96: -7036.746708 | G96: 0.9999362612 | I96: 1, 0.89 | J96: 1 | K96: 0.89 | L96: 15403.54668 | M96: 3802.00135 | N96: 0.9999999125 | P96: 1, 0.89 | Q96: 1 | R96: 0.89 | S96: 1123106.475 | T96: -987854.6441 | U96: 0.9999359688 | W96: 1, 0.89 | X96: 1 | Y96: 0.89 | Z96: 3031525.522 | AA96: 7870481.567 | AB96: 0.9999999128
B97: 1, 0.9 | C97: 1 | D97: 0.9 | E97: 5429.96196 | F97: -7635.878618 | G97: 0.9999173352 | I97: 1, 0.9 | J97: 1 | K97: 0.9 | L97: 13848.06808 | M97: 3939.972284 | N97: 0.9999998786 | P97: 1, 0.9 | Q97: 1 | R97: 0.9 | S97: 994061.7768 | T97: -1097153.837 | U97: 0.999916247 | W97: 1, 0.9 | X97: 1 | Y97: 0.9 | Z97: 2725621.717 | AA97: 7897433.497 | AB97: 0.9999998797
B98: 1, 0.91 | C98: 1 | D98: 0.91 | E98: 4719.394388 | F98: -8258.707664 | G98: 0.999888819 | I98: 1, 0.91 | J98: 1 | K98: 0.91 | L98: 12285.99213 | M98: 4072.914092 | N98: 0.9999998293 | P98: 1, 0.91 | Q98: 1 | R98: 0.91 | S98: 863594.2947 | T98: -1210711.678 | U98: 0.999886287 | W98: 1, 0.91 | X98: 1 | Y98: 0.91 | Z98: 2418407.707 | AA98: 7923369.916 | AB98: 0.9999998317
B99: 1, 0.92 | C99: 1 | D99: 0.92 | E99: 4001.693844 | F99: -8905.593057 | G99: 0.9998429401 | I99: 1, 0.92 | J99: 1 | K99: 0.92 | L99: 10716.75718 | M99: 4200.467828 | N99: 0.9999997545 | P99: 1, 0.92 | Q99: 1 | R99: 0.92 | S99: 731587.5404 | T99: -1328589.692 | U99: 0.9998376302 | W99: 1, 0.92 | X99: 1 | Y99: 0.92 | Z99: 2109772.66 | AA99: 7948219.232 | AB99: 0.9999997593
B100: 1, 0.93 | C100: 1 | D100: 0.93 | E100: 3276.32198 | F100: -9576.894007 | G100: 0.9997621044 | I100: 1, 0.93 | J100: 1 | K100: 0.93 | L100: 9139.825713 | M100: 4322.274544 | N100: 0.9999996343 | P100: 1, 0.93 | Q100: 1 | R100: 0.93 | S100: 597930.0364 | T100: -1450849.403 | U100: 0.9997509182 | W100: 1, 0.93 | X100: 1 | Y100: 0.93 | Z100: 1799610.51 | AA100: 7971909.853 | AB100: 0.9999996434
B101: 1, 0.94 | C101: 1 | D101: 0.94 | E101: 2542.763357 | F101: -10272.96972 | G101: 0.9995991388 | I101: 1, 0.94 | J101: 1 | K101: 0.94 | L101: 7554.683097 | M101: 4437.975295 | N101: 0.999999425 | P101: 1, 0.94 | Q101: 1 | R101: 0.94 | S101: 462515.049 | T101: -1577552.337 | U101: 0.9995734507 | W101: 1, 0.94 | X101: 1 | Y101: 0.94 | Z101: 1487819.705 | AA101: 7994370.188 | AB101: 0.9999994425
B102: 1, 0.95 | C102: 1 | D102: 0.95 | E102: 1800.524239 | F102: -10994.17942 | G102: 0.999188991 | I102: 1, 0.95 | J102: 1 | K102: 0.95 | L102: 5960.836364 | M102: 4547.211132 | N102: 0.9999990154 | P102: 1, 0.95 | Q102: 1 | R102: 0.95 | S102: 325240.3383 | T102: -1708760.016 | U102: 0.9991163483 | W102: 1, 0.95 | X102: 1 | Y102: 0.95 | Z102: 1174302.966 | AA102: 8015528.647 | AB102: 0.9999990509
B103: 2, 0.05 | C103: 2 | D103: 0.05 | E103: 1182316.292 | F103: 900.666506 | G103: 0.9999998903 | I103: 2, 0.05 | J103: 2 | K103: 0.05 | L103: 1098315.259 | M103: 31917.12378 | N103: 0.9999946888 | P103: 2, 0.05 | Q103: 2 | R103: 0.05 | S103: 243480363.9 | T103: 438426.7244 | U103: 0.9999999076 | W103: 2, 0.05 | X103: 2 | Y103: 0.05 | Z103: 248510982.5 | AA103: 11855439.38 | AB103: 0.9999946472
B104: 2, 0.06 | C104: 2 | D104: 0.06 | E104: 979241.6171 | F104: 489.4818081 | G104: 0.9999999255 | I104: 2, 0.06 | J104: 2 | K104: 0.06 | L104: 885673.1216 | M104: 29785.4844 | N104: 0.9999943774 | P104: 2, 0.06 | Q104: 2 | R104: 0.06 | S104: 201439892.1 | T104: 357006.7251 | U104: 0.9999999374 | W104: 2, 0.06 | X104: 2 | Y104: 0.06 | Z104: 200376427.5 | AA104: 11371444.77 | AB104: 0.999994333
B105: 2, 0.07 | C105: 2 | D105: 0.07 | E105: 834419.7086 | F105: 120.0967938 | G105: 0.9999999525 | I105: 2, 0.07 | J105: 2 | K105: 0.07 | L105: 734471.2625 | M105: 27734.30902 | N105: 0.9999940585 | P105: 2, 0.07 | Q105: 2 | R105: 0.07 | S105: 171463922.4 | T105: 283967.9683 | U105: 0.9999999603 | W105: 2, 0.07 | X105: 2 | Y105: 0.07 | Z105: 166150255.4 | AA105: 10905726.34 | AB105: 0.9999940112
B106: 2, 0.08 | C106: 2 | D106: 0.08 | E106: 725996.6628 | F106: -208.8778723 | G106: 0.9999999724 | I106: 2, 0.08 | J106: 2 | K106: 0.08 | L106: 621660.4612 | M106: 25762.20821 | N106: 0.9999937328 | P106: 2, 0.08 | Q106: 2 | R106: 0.08 | S106: 149026356.1 | T106: 219031.2836 | U106: 0.9999999772 | W106: 2, 0.08 | X106: 2 | Y106: 0.08 | Z106: 140614754.5 | AA106: 10457968.36 | AB106: 0.9999936824
B107: 2, 0.09 | C107: 2 | D107: 0.09 | E107: 641831.4224 | F107: -498.8315258 | G107: 0.9999999862 | I107: 2, 0.09 | J107: 2 | K107: 0.09 | L107: 534435.5953 | M107: 23867.79256 | N107: 0.9999934011 | P107: 2, 0.09 | Q107: 2 | R107: 0.09 | S107: 131612693.8 | T107: 161917.5009 | U107: 0.9999999888 | W107: 2, 0.09 | X107: 2 | Y107: 0.09 | Z107: 120871196.1 | AA107: 10027855.07 | AB107: 0.9999933474
B108: 2, 0.1 | C108: 2 | D108: 0.1 | E108: 574639.3529 | F108: -751.1535021 | G108: 0.9999999949 | I108: 2, 0.1 | J108: 2 | K108: 0.1 | L108: 465113.5912 | M108: 22049.67263 | N108: 0.9999930642 | P108: 2, 0.1 | Q108: 2 | R108: 0.1 | S108: 117714235.9 | T108: 112347.4496 | U108: 0.999999996 | W108: 2, 0.1 | X108: 2 | Y108: 0.1 | Z108: 105180342.8 | AA108: 9615070.729 | AB108: 0.999993007
B109: 2, 0.11 | C109: 2 | D109: 0.11 | E109: 519784.7779 | F109: -967.2331365 | G109: 0.9999999991 | I109: 2, 0.11 | J109: 2 | K109: 0.11 | L109: 408805.2206 | M109: 20306.45902 | N109: 0.999992723 | P109: 2, 0.11 | Q109: 2 | R109: 0.11 | S109: 106370900.9 | T109: 70041.9594 | U109: 0.9999999994 | W109: 2, 0.11 | X109: 2 | Y109: 0.11 | Z109: 92435407.47 | AA109: 9219299.589 | AB109: 0.9999926621
B110: 2, 0.12 | C110: 2 | D110: 0.12 | E110: 474177.2464 | F110: -1148.459765 | G110: 0.9999999999 | I110: 2, 0.12 | J110: 2 | K110: 0.12 | L110: 362250.9977 | M110: 18636.7623 | N110: 0.9999923786 | P110: 2, 0.12 | Q110: 2 | R110: 0.12 | S110: 96942634.47 | T110: 34721.86002 | U110: 0.9999999998 | W110: 2, 0.12 | X110: 2 | Y110: 0.12 | Z110: 81898531.74 | AA110: 8840225.905 | AB110: 0.9999923138
B111: 2, 0.13 | C111: 2 | D111: 0.13 | E111: 435677.2155 | F111: -1296.222722 | G111: 0.9999999979 | I111: 2, 0.13 | J111: 2 | K111: 0.13 | L111: 323194.3554 | M111: 17039.19304 | N111: 0.9999920321 | P111: 2, 0.13 | Q111: 2 | R111: 0.13 | S111: 88986321.95 | T111: 6107.981062 | U111: 0.9999999978 | W111: 2, 0.13 | X111: 2 | Y111: 0.13 | Z111: 73058890.7 | AA111: 8477533.929 | AB111: 0.9999919632
B112: 2, 0.14 | C112: 2 | D112: 0.14 | E112: 402756.4401 | F112: -1411.911344 | G112: 0.9999999938 | I112: 2, 0.14 | J112: 2 | K112: 0.14 | L112: 290023.4602 | M112: 15512.36183 | N112: 0.999991685 | P112: 2, 0.14 | Q112: 2 | R112: 0.14 | S112: 82185452.97 | T112: -16078.84782 | U112: 0.9999999941 | W112: 2, 0.14 | X112: 2 | Y112: 0.14 | Z112: 65551609.42 | AA112: 8130907.916 | AB112: 0.9999916118
B113: 2, 0.15 | C113: 2 | D113: 0.15 | E113: 374294.2072 | F113: -1496.914966 | G113: 0.9999999883 | I113: 2, 0.15 | J113: 2 | K113: 0.15 | L113: 261556.3008 | M113: 14054.87925 | N113: 0.9999913386 | P113: 2, 0.15 | Q113: 2 | R113: 0.15 | S113: 76307919.91 | T113: -32117.79699 | U113: 0.999999989 | W113: 2, 0.15 | X113: 2 | Y113: 0.15 | Z113: 59109112.93 | AA113: 7800032.118 | AB113: 0.9999912609
B114: 2, 0.16 | C114: 2 | D114: 0.16 | E114: 349449.9821 | F114: -1552.622923 | G114: 0.9999999818 | I114: 2, 0.16 | J114: 2 | K114: 0.16 | L114: 236906.3686 | M114: 12665.35586 | N114: 0.9999909945 | P114: 2, 0.16 | Q114: 2 | R114: 0.16 | S114: 71179642.04 | T114: -42288.03679 | U114: 0.9999999832 | W114: 2, 0.16 | X114: 2 | Y114: 0.16 | Z114: 53530720 | AA114: 7484590.789 | AB114: 0.9999909121
B115: 2, 0.17 | C115: 2 | D115: 0.17 | E115: 327581.003 | F115: -1580.424552 | G115: 0.999999975 | I115: 2, 0.17 | J115: 2 | K115: 0.17 | L115: 215395.7456 | M115: 11342.40226 | N115: 0.9999906545 | P115: 2, 0.17 | Q115: 2 | R115: 0.17 | S115: 66667498.82 | T115: -46868.73758 | U115: 0.999999977 | W115: 2, 0.17 | X115: 2 | Y115: 0.17 | Z115: 48662968.53 | AA115: 7184268.182 | AB115: 0.9999905672
B116: 2, 0.18 | C116: 2 | D116: 0.18 | E116: 308187.3439 | F116: -1581.709186 | G116: 0.9999999682 | I116: 2, 0.18 | J116: 2 | K116: 0.18 | L116: 196497.1618 | M116: 10084.62902 | N116: 0.9999903204 | P116: 2, 0.18 | Q116: 2 | R116: 0.18 | S116: 62667952.02 | T116: -46139.06971 | U116: 0.9999999709 | W116: 2, 0.18 | X116: 2 | Y116: 0.18 | Z116: 44386499.1 | AA116: 6898748.552 | AB116: 0.999990228
B117: 2, 0.19 | C117: 2 | D117: 0.19 | E117: 290874.3266 | F117: -1557.866163 | G117: 0.9999999618 | I117: 2, 0.19 | J117: 2 | K117: 0.19 | L117: 179794.3518 | M117: 8890.646723 | N117: 0.9999899942 | P117: 2, 0.19 | Q117: 2 | R117: 0.19 | S117: 59099260.97 | T117: -40378.20354 | U117: 0.9999999652 | W117: 2, 0.19 | X117: 2 | Y117: 0.19 | Z117: 40607080.58 | AA117: 6627716.151 | AB117: 0.9999898966
B118: 2, 0.2 | C118: 2 | D118: 0.2 | E118: 275326.2083 | F118: -1510.284817 | G118: 0.9999999561 | I118: 2, 0.2 | J118: 2 | K118: 0.2 | L118: 164954.303 | M118: 7759.065939 | N118: 0.9999896782 | P118: 2, 0.2 | Q118: 2 | R118: 0.2 | S118: 55896033.11 | T118: -29865.30941 | U118: 0.9999999601 | W118: 2, 0.2 | X118: 2 | Y118: 0.2 | Z118: 37249328.08 | AA118: 6370855.233 | AB118: 0.9999895751
B119: 2, 0.21 | C119: 2 | D119: 0.21 | E119: 261287.3878 | F119: -1440.354483 | G119: 0.9999999513 | I119: 2, 0.21 | J119: 2 | K119: 0.21 | L119: 151707.4339 | M119: 6688.497251 | N119: 0.9999893745 | P119: 2, 0.21 | Q119: 2 | R119: 0.21 | S119: 53005331.61 | T119: -14879.55769 | U119: 0.9999999558 | W119: 2, 0.21 | X119: 2 | Y119: 0.21 | Z119: 34252215.74 | AA119: 6127850.051 | AB119: 0.9999892659
B120: 2, 0.22 | C120: 2 | D120: 0.22 | E120: 248548.737 | F120: -1349.464498 | G120: 0.9999999477 | I120: 2, 0.22 | J120: 2 | K120: 0.22 | L120: 139833.1779 | M120: 5677.551238 | N120: 0.9999890856 | P120: 2, 0.22 | Q120: 2 | R120: 0.22 | S120: 50383844.53 | T120: 4299.881283 | U120: 0.9999999526 | W120: 2, 0.22 | X120: 2 | Y120: 0.22 | Z120: 31565813.28 | AA120: 5898384.86 | AB120: 0.9999889714
B121: 2, 0.23 | C121: 2 | D121: 0.23 | E121: 236937.4975 | F121: -1239.004197 | G121: 0.9999999452 | I121: 2, 0.23 | J121: 2 | K121: 0.23 | L121: 129149.3276 | M121: 4724.838478 | N121: 0.9999888141 | P121: 2, 0.23 | Q121: 2 | R121: 0.23 | S121: 47995792.42 | T121: 27393.83714 | U121: 0.9999999505 | W121: 2, 0.23 | X121: 2 | Y121: 0.23 | Z121: 29148873.99 | AA121: 5682143.912 | AB121: 0.9999886941
B122: 2, 0.24 | C122: 2 | D122: 0.24 | E122: 226309.7044 | F122: -1110.362915 | G122: 0.9999999441 | I122: 2, 0.24 | J122: 2 | K122: 0.24 | L122: 119504.0437 | M122: 3828.969549 | N122: 0.9999885626 | P122: 2, 0.24 | Q122: 2 | R122: 0.24 | S122: 45811359.1 | T122: 54123.13954 | U122: 0.9999999496 | W122: 2, 0.24 | X122: 2 | Y122: 0.24 | Z122: 26967025.58 | AA122: 5478811.461 | AB122: 0.9999884369
B123: 2, 0.25 | C123: 2 | D123: 0.25 | E123: 216544.427 | F123: -964.9299867 | G123: 0.9999999443 | I123: 2, 0.25 | J123: 2 | K123: 0.25 | L123: 110769.781 | M123: 2988.555031 | N123: 0.9999883338 | P123: 2, 0.25 | Q123: 2 | R123: 0.25 | S123: 43805498.94 | T123: 84208.61812 | U123: 0.9999999499 | W123: 2, 0.25 | X123: 2 | Y123: 0.25 | Z123: 24991395.34 | AA123: 5288071.76 | AB123: 0.9999882024
B124: 2, 0.26 | C124: 2 | D124: 0.26 | E124: 207539.3392 | F124: -804.094749 | G124: 0.9999999459 | I124: 2, 0.26 | J124: 2 | K124: 0.26 | L124: 102838.6169 | M124: 2202.205502 | N124: 0.9999881306 | P124: 2, 0.26 | Q124: 2 | R124: 0.26 | S124: 41957019.53 | T124: 117371.1025 | U124: 0.9999999513 | W124: 2, 0.26 | X124: 2 | Y124: 0.26 | Z124: 23197552.52 | AA124: 5109609.063 | AB124: 0.9999879935
B125: 2, 0.27 | C125: 2 | D125: 0.27 | E125: 199207.2746 | F125: -629.2465367 | G125: 0.9999999486 | I125: 2, 0.27 | J125: 2 | K125: 0.27 | L125: 95618.61697 | M125: 1468.53154 | N125: 0.9999879558 | P125: 2, 0.27 | Q125: 2 | R125: 0.27 | S125: 40247868.04 | T125: 153331.4224 | U125: 0.9999999539 | W125: 2, 0.27 | X125: 2 | Y125: 0.27 | Z125: 21564685.72 | AA125: 4943107.623 | AB125: 0.9999878132
B126: 2, 0.28 | C126: 2 | D126: 0.28 | E126: 191473.5189 | F126: -441.7746853 | G126: 0.9999999524 | I126: 2, 0.28 | J126: 2 | K126: 0.28 | L126: 89030.98061 | M126: 786.1437239 | N126: 0.9999878123 | P126: 2, 0.28 | Q126: 2 | R126: 0.28 | S126: 38662570.62 | T126: 191810.4074 | U126: 0.9999999575 | W126: 2, 0.28 | X126: 2 | Y126: 0.28 | Z126: 20074956.61 | AA126: 4788251.694 | AB126: 0.9999876643
B127: 2, 0.29 | C127: 2 | D127: 0.29 | E127: 184273.6633 | F127: -243.0685303 | G127: 0.9999999572 | I127: 2, 0.29 | J127: 2 | K127: 0.29 | L127: 83007.77609 | M127: 153.6526326 | N127: 0.9999877029 | P127: 2, 0.29 | Q127: 2 | R127: 0.29 | S127: 37187787.77 | T127: 232528.8872 | U127: 0.9999999619 | W127: 2, 0.29 | X127: 2 | Y127: 0.29 | Z127: 18712987.33 | AA127: 4644725.53 | AB127: 0.9999875497
B128: 2, 0.3 | C128: 2 | D128: 0.3 | E128: 177551.8869 | F128: -34.51740714 | G128: 0.9999999627 | I128: 2, 0.3 | J128: 2 | K128: 0.3 | L128: 77490.12929 | M128: -430.3311557 | N128: 0.9999876305 | P128: 2, 0.3 | Q128: 2 | R128: 0.3 | S128: 35811958.57 | T128: 275207.6914 | U128: 0.999999967 | W128: 2, 0.3 | X128: 2 | Y128: 0.3 | Z128: 17465450.39 | AA128: 4512213.383 | AB128: 0.9999874724
B129: 2, 0.31 | C129: 2 | D129: 0.31 | E129: 171259.5714 | F129: 182.4893487 | G129: 0.9999999687 | I129: 2, 0.31 | J129: 2 | K129: 0.31 | L129: 72426.76274 | M129: -967.1970622 | N129: 0.9999875975 | P129: 2, 0.31 | Q129: 2 | R129: 0.31 | S129: 34525013.82 | T129: 319567.6497 | U129: 0.9999999725 | W129: 2, 0.31 | X129: 2 | Y129: 0.31 | Z129: 16320737.97 | AA129: 4390399.508 | AB129: 0.9999874351
B130: 2, 0.32 | C130: 2 | D130: 0.32 | E130: 165354.1758 | F130: 406.5624019 | G130: 0.999999975 | I130: 2, 0.32 | J130: 2 | K130: 0.32 | L130: 67772.80867 | M130: -1458.334509 | N130: 0.9999876067 | P130: 2, 0.32 | Q130: 2 | R130: 0.32 | S130: 33318143 | T130: 365329.5916 | U130: 0.9999999782 | W130: 2, 0.32 | X130: 2 | Y130: 0.32 | Z130: 15268693.24 | AA130: 4278968.157 | AB130: 0.9999874402
B131: 2, 0.33 | C131: 2 | D131: 0.33 | E131: 159798.3157 | F131: 636.3124169 | G131: 0.9999999812 | I131: 2, 0.33 | J131: 2 | K131: 0.33 | L131: 63488.8378 | M131: -1905.132916 | N131: 0.9999876601 | P131: 2, 0.33 | Q131: 2 | R131: 0.33 | S131: 32183603.5 | T131: 412214.347 | U131: 0.9999999839 | W131: 2, 0.33 | X131: 2 | Y131: 0.33 | Z131: 14300390.48 | AA131: 4177603.585 | AB131: 0.9999874903
B132: 2, 0.34 | C132: 2 | D132: 0.34 | E132: 154559.0048 | F132: 870.3500582 | G132: 0.9999999871 | I132: 2, 0.34 | J132: 2 | K132: 0.34 | L132: 59540.05961 | M132: -2308.981706 | N132: 0.9999877599 | P132: 2, 0.34 | Q132: 2 | R132: 0.34 | S132: 31114563.64 | T132: 459942.7453 | U132: 0.9999999891 | W132: 2, 0.34 | X132: 2 | Y132: 0.34 | Z132: 13407954.1 | AA132: 4085990.044 | AB132: 0.9999875873
B133: 2, 0.35 | C133: 2 | D133: 0.35 | E133: 149607.0266 | F133: 1107.28599 | G133: 0.9999999923 | I133: 2, 0.35 | J133: 2 | K133: 0.35 | L133: 55895.65965 | M133: -2671.2703 | N133: 0.9999879077 | P133: 2, 0.35 | Q133: 2 | R133: 0.35 | S133: 30104972.47 | T133: 508235.6163 | U133: 0.9999999937 | W133: 2, 0.35 | X133: 2 | Y133: 0.35 | Z133: 12584408.52 | AA133: 4003811.789 | AB133: 0.999987733
B134: 2, 0.36 | C134: 2 | D134: 0.36 | E134: 144916.4109 | F134: 1345.730878 | G134: 0.9999999964 | I134: 2, 0.36 | J134: 2 | K134: 0.36 | L134: 52528.24726 | M134: -2993.38812 | N134: 0.9999881047 | P134: 2, 0.36 | Q134: 2 | R134: 0.36 | S134: 29149451.39 | T134: 556813.7895 | U134: 0.9999999973 | W134: 2, 0.36 | X134: 2 | Y134: 0.36 | Z134: 11823553.26 | AA134: 3930753.072 | AB134: 0.9999879288
B135: 2, 0.37 | C135: 2 | D135: 0.37 | E135: 140463.9951 | F135: 1584.295386 | G135: 0.9999999991 | I135: 2, 0.37 | J135: 2 | K135: 0.37 | L135: 49413.39297 | M135: -3276.724586 | N135: 0.9999883516 | P135: 2, 0.37 | Q135: 2 | R135: 0.37 | S135: 28243203.26 | T135: 605398.0947 | U135: 0.9999999995 | W135: 2, 0.37 | X135: 2 | Y135: 0.37 | Z135: 11119858.16 | AA135: 3866498.147 | AB135: 0.9999881754
B136: 2, 0.38 | C136: 2 | D136: 0.38 | E136: 136229.0549 | F136: 1821.590178 | G136: 1 | I136: 2, 0.38 | J136: 2 | K136: 0.38 | L136: 46529.23881 | M136: -3522.669121 | N136: 0.9999886487 | P136: 2, 0.38 | Q136: 2 | R136: 0.38 | S136: 27381935.9 | T136: 653709.3615 | U136: 0.9999999999 | W136: 2, 0.38 | X136: 2 | Y136: 0.38 | Z136: 10468375.17 | AA136: 3810731.269 | AB136: 0.9999884732
B137: 2, 0.39 | C137: 2 | D137: 0.39 | E137: 132192.9913 | F137: 2056.225919 | G137: 0.9999999986 | I137: 2, 0.39 | J137: 2 | K137: 0.39 | L137: 43856.16867 | M137: -3732.611145 | N137: 0.9999889955 | P137: 2, 0.39 | Q137: 2 | R137: 0.39 | S137: 26561797.37 | T137: 701468.4196 | U137: 0.9999999982 | W137: 2, 0.39 | X137: 2 | Y137: 0.39 | Z137: 9864663.738 | AA137: 3763136.689 | AB137: 0.9999888217
B138: 2, 0.4 | C138: 2 | D138: 0.4 | E138: 128339.0655 | F138: 2286.813274 | G138: 0.9999999946 | I138: 2, 0.4 | J138: 2 | K138: 0.4 | L138: 41376.52803 | M138: -3907.940081 | N138: 0.9999893911 | P138: 2, 0.4 | Q138: 2 | R138: 0.4 | S138: 25779320.9 | T138: 748396.0985 | U138: 0.9999999938 | W138: 2, 0.4 | X138: 2 | Y138: 0.4 | Z138: 9304727.371 | AA138: 3723398.662 | AB138: 0.9999892201
B139: 2, 0.41 | C139: 2 | D139: 0.41 | E139: 124652.1715 | F139: 2511.962907 | G139: 0.9999999874 | I139: 2, 0.41 | J139: 2 | K139: 0.41 | L139: 39074.38478 | M139: -4050.045349 | N139: 0.9999898335 | P139: 2, 0.41 | Q139: 2 | R139: 0.41 | S139: 25031377.96 | T139: 794213.2279 | U139: 0.9999999865 | W139: 2, 0.41 | X139: 2 | Y139: 0.41 | Z139: 8784959.474 | AA139: 3691201.441 | AB139: 0.9999896664
B140: 2, 0.42 | C140: 2 | D140: 0.42 | E140: 121118.642 | F140: 2730.285483 | G140: 0.9999999767 | I140: 2, 0.42 | J140: 2 | K140: 0.42 | L140: 36935.32415 | M140: -4160.316372 | N140: 0.9999903203 | P140: 2, 0.42 | Q140: 2 | R140: 0.42 | S140: 24315137.97 | T140: 838640.6376 | U140: 0.9999999757 | W140: 2, 0.42 | X140: 2 | Y140: 0.42 | Z140: 8302096.936 | AA140: 3666229.279 | AB140: 0.9999901582
B141: =C141&", "&D141 -> 2, 0.43 | C141: 2 | D141: 0.43 | E141: 117726.0814 | F141: 2940.391666 | G141: 0.9999999619 | I141: =J141&", "&K141 -> 2, 0.43 | J141: 2 | K141: 0.43 | L141: 34946.27228 | M141: -4240.142569 | N141: 0.9999908481 | P141: =Q141&", "&R141 -> 2, 0.43 | Q141: 2 | R141: 0.43 | S141: 23628033.66 | T141: 881399.157 | U141: 0.999999961 | W141: =X141&", "&Y141 -> 2, 0.43 | X141: 2 | Y141: 0.43 | Z141: 7853180.194 | AA141: 3648166.431 | AB141: 0.9999906922
B142: 2, 0.44 | C142: 2 | D142: 0.44 | E142: 114463.2205 | F142: 3140.892122 | G142: 0.9999999426 | I142: 2, 0.44 | J142: 2 | K142: 0.44 | L142: 33095.34383 | M142: -4290.913364 | N142: 0.9999914127 | P142: 2, 0.44 | Q142: 2 | R142: 0.44 | S142: 22967731.14 | T142: 922209.6159 | U142: 0.9999999419 | W142: 2, 0.44 | X142: 2 | Y142: 0.44 | Z142: 7435518.734 | AA142: 3636697.149 | AB142: 0.9999912641
B143: 2, 0.45 | C143: 2 | D143: 0.45 | E143: 111319.7921 | F143: 3330.397513 | G143: 0.9999999182 | I143: 2, 0.45 | J143: 2 | K143: 0.45 | L143: 31371.70996 | M143: -4314.018177 | N143: 0.9999920092 | P143: 2, 0.45 | Q143: 2 | R143: 0.45 | S143: 22332104 | T143: 960792.8439 | U143: 0.999999918 | W143: 2, 0.45 | X143: 2 | Y143: 0.45 | Z143: 7046661.201 | AA143: 3631505.687 | AB143: 0.9999918689
B144: 2, 0.46 | C144: 2 | D144: 0.46 | E144: 108286.4217 | F144: 3507.518505 | G144: 0.9999998883 | I144: 2, 0.46 | J144: 2 | K144: 0.46 | L144: 29765.48343 | M144: -4310.84643 | N144: 0.9999926319 | P144: 2, 0.46 | Q144: 2 | R144: 0.46 | S144: 21719210.69 | T144: 996869.6707 | U144: 0.9999998886 | W144: 2, 0.46 | X144: 2 | Y144: 0.46 | Z144: 6684369.399 | AA144: 3632276.299 | AB144: 0.9999925009
B145: 2, 0.47 | C145: 2 | D145: 0.47 | E145: 105354.5327 | F145: 3670.865763 | G145: 0.9999998522 | I145: 2, 0.47 | J145: 2 | K145: 0.47 | L145: 28267.61851 | M145: -4282.787544 | N145: 0.9999932743 | P145: 2, 0.47 | Q145: 2 | R145: 0.47 | S145: 21127274.96 | T145: 1030160.926 | U145: 0.9999998533 | W145: 2, 0.47 | X145: 2 | Y145: 0.47 | Z145: 6346595.618 | AA145: 3638693.238 | AB145: 0.9999931534
B146: 2, 0.48 | C146: 2 | D146: 0.48 | E146: 102516.2631 | F146: 3819.049951 | G146: 0.9999998093 | I146: 2, 0.48 | J146: 2 | K146: 0.48 | L146: 26869.82325 | M146: -4231.230941 | N146: 0.9999939292 | P146: 2, 0.48 | Q146: 2 | R146: 0.48 | S146: 20554668.53 | T146: 1060387.439 | U146: 0.9999998115 | W146: 2, 0.48 | X146: 2 | Y146: 0.48 | Z146: 6031462.791 | AA146: 3650440.757 | AB146: 0.9999938193
B147: 2, 0.49 | C147: 2 | D147: 0.49 | E147: 99764.39291 | F147: 3950.681733 | G147: 0.9999997592 | I147: 2, 0.49 | J147: 2 | K147: 0.49 | L147: 25564.48261 | M147: -4157.566041 | N147: 0.9999945891 | P147: 2, 0.49 | Q147: 2 | R147: 0.49 | S147: 19999896.06 | T147: 1087270.04 | U147: 0.9999997626 | W147: 2, 0.49 | X147: 2 | Y147: 0.49 | Z147: 5737247.08 | AA147: 3667203.11 | AB147: 0.9999944905
B148: 2, 0.5 | C148: 2 | D148: 0.5 | E148: 97092.27948 | F148: 4064.371775 | G148: 0.9999997012 | I148: 2, 0.5 | J148: 2 | K148: 0.5 | L148: 24344.59074 | M148: -4063.182268 | N148: 0.9999952457 | P148: 2, 0.5 | Q148: 2 | R148: 0.5 | S148: 19461581.84 | T148: 1110529.558 | U148: 0.9999997061 | W148: 2, 0.5 | X148: 2 | Y148: 0.5 | Z148: 5462362.555 | AA148: 3688664.551 | AB148: 0.9999951589
B149: 2, 0.51 | C149: 2 | D149: 0.51 | E149: 94493.80131 | F149: 4158.73074 | G149: 0.9999996345 | I149: 2, 0.51 | J149: 2 | K149: 0.51 | L149: 23203.69129 | M149: -3949.469041 | N149: 0.9999958906 | P149: 2, 0.51 | Q149: 2 | R149: 0.51 | S149: 18938458.05 | T149: 1129886.824 | U149: 0.9999996411 | W149: 2, 0.51 | X149: 2 | Y149: 0.51 | Z149: 5205347.67 | AA149: 3714509.332 | AB149: 0.9999958158
B150: 2, 0.52 | C150: 2 | D150: 0.52 | E150: 91963.30773 | F150: 4232.369293 | G150: 0.9999995585 | I150: 2, 0.52 | J150: 2 | K150: 0.52 | L150: 22135.82452 | M150: -3817.815782 | N150: 0.9999965152 | P150: 2, 0.52 | Q150: 2 | R150: 0.52 | S150: 18429354.4 | T150: 1145062.666 | U150: 0.9999995671 | W150: 2, 0.52 | X150: 2 | Y150: 0.52 | Z150: 4964853.31 | AA150: 3744421.708 | AB150: 0.9999964522
B151: 2, 0.53 | C151: 2 | D151: 0.53 | E151: 89495.57457 | F151: 4283.898099 | G151: 0.9999994725 | I151: 2, 0.53 | J151: 2 | K151: 0.53 | L151: 21135.48052 | M151: -3669.611913 | N151: 0.9999971109 | P151: 2, 0.53 | Q151: 2 | R151: 0.53 | S151: 17933188.94 | T151: 1155777.914 | U151: 0.9999994834 | W151: 2, 0.53 | X151: 2 | Y151: 0.53 | Z151: 4739632.176 | AA151: 3778085.932 | AB151: 0.9999970594
B152: 2, 0.54 | C152: 2 | D152: 0.54 | E152: 87085.76461 | F152: 4311.927823 | G152: 0.9999993756 | I152: 2, 0.54 | J152: 2 | K152: 0.54 | L152: 20197.55749 | M152: -3506.246856 | N152: 0.9999976693 | P152: 2, 0.54 | Q152: 2 | R152: 0.54 | S152: 17448959.83 | T152: 1161753.398 | U152: 0.999999389 | W152: 2, 0.54 | X152: 2 | Y152: 0.54 | Z152: 4528529.365 | AA152: 3815186.257 | AB152: 0.9999976287
B153: 2, 0.55 | C153: 2 | D153: 0.55 | E153: 84729.39243 | F153: 4315.069128 | G153: 0.9999992669 | I153: 2, 0.55 | J153: 2 | K153: 0.55 | L153: 19317.32468 | M153: -3329.110031 | N153: 0.9999981824 | P153: 2, 0.55 | Q153: 2 | R153: 0.55 | S153: 16975738.11 | T153: 1162709.948 | U153: 0.9999992832 | W153: 2, 0.55 | X153: 2 | Y153: 0.55 | Z153: 4330473.963 | AA153: 3855406.937 | AB153: 0.9999981519
B154: 2, 0.56 | C154: 2 | D154: 0.56 | E154: 82422.293 | F154: 4291.93268 | G154: 0.9999991456 | I154: 2, 0.56 | J154: 2 | K154: 0.56 | L154: 18490.38925 | M154: -3139.59086 | N154: 0.9999986427 | P154: 2, 0.56 | Q154: 2 | R154: 0.56 | S154: 16512661.18 | T154: 1158368.393 | U154: 0.999999165 | W154: 2, 0.56 | X154: 2 | Y154: 0.56 | Z154: 4144471.553 | AA154: 3898432.226 | AB154: 0.9999986212
B155: 2, 0.57 | C155: 2 | D155: 0.57 | E155: 80160.59359 | F155: 4241.129142 | G155: 0.9999990105 | I155: 2, 0.57 | J155: 2 | K155: 0.57 | L155: 17712.66665 | M155: -2939.078765 | N155: 0.9999990435 | P155: 2, 0.57 | Q155: 2 | R155: 0.57 | S155: 16058926.96 | T155: 1148449.562 | U155: 0.9999990333 | W155: 2, 0.57 | X155: 2 | Y155: 0.57 | Z155: 3969597.501 | AA155: 3943946.376 | AB155: 0.9999990299
B156: 2, 0.58 | C156: 2 | D156: 0.58 | E156: 77940.68853 | F156: 4161.26918 | G156: 0.9999988605 | I156: 2, 0.58 | J156: 2 | K156: 0.58 | L156: 16980.35399 | M156: -2728.963166 | N156: 0.9999993793 | P156: 2, 0.58 | Q156: 2 | R156: 0.58 | S156: 15613788.7 | T156: 1132674.287 | U156: 0.9999988872 | W156: 2, 0.58 | X156: 2 | Y156: 0.58 | Z156: 3804990.94 | AA156: 3991633.642 | AB156: 0.9999993719
B157: 2, 0.59 | C157: 2 | D157: 0.59 | E157: 75759.21661 | F157: 4050.963459 | G157: 0.9999986945 | I157: 2, 0.59 | J157: 2 | K157: 0.59 | L157: 16289.90622 | M157: -2510.633486 | N157: 0.9999996455 | P157: 2, 0.59 | Q157: 2 | R157: 0.59 | S157: 15176550.27 | T157: 1110763.395 | U157: 0.9999987252 | W157: 2, 0.59 | X157: 2 | Y157: 0.59 | Z157: 3649849.367 | AA157: 4041178.276 | AB157: 0.9999996427
B158: 2, 0.6 | C158: 2 | D158: 0.6 | E158: 73613.0407 | F158: 3908.822641 | G158: 0.9999985109 | I158: 2, 0.6 | J158: 2 | K158: 0.6 | L158: 15638.01462 | M158: -2285.479146 | N158: 0.9999998386 | P158: 2, 0.6 | Q158: 2 | R158: 0.6 | S158: 14746561.94 | T158: 1082437.717 | U158: 0.9999985461 | W158: 2, 0.6 | X158: 2 | Y158: 0.6 | Z158: 3503423.781 | AA158: 4092264.533 | AB158: 0.9999998386
B159: 2, 0.61 | C159: 2 | D159: 0.61 | E159: 71499.2294 | F159: 3733.457393 | G159: 0.9999983083 | I159: 2, 0.61 | J159: 2 | K159: 0.61 | L159: 15021.58745 | M159: -2054.889567 | N159: 0.9999999569 | P159: 2, 0.61 | Q159: 2 | R159: 0.61 | S159: 14323216.6 | T159: 1047418.083 | U159: 0.9999983482 | W159: 2, 0.61 | X159: 2 | Y159: 0.61 | Z159: 3365014.292 | AA159: 4144576.665 | AB159: 0.9999999579
B160: 2, 0.62 | C160: 2 | D160: 0.62 | E160: 69415.04041 | F160: 3523.478379 | G160: 0.9999980848 | I160: 2, 0.62 | J160: 2 | K160: 0.62 | L160: 14437.73242 | M160: -1820.25417 | N160: 0.9999999998 | P160: 2, 0.62 | Q160: 2 | R160: 0.62 | S160: 13905946.3 | T160: 1005425.322 | U160: 0.9999981299 | W160: 2, 0.62 | X160: 2 | Y160: 0.62 | Z160: 3233966.169 | AA160: 4197798.927 | AB160: 0.9999999999
B161: 2, 0.63 | C161: 2 | D161: 0.63 | E161: 67357.90554 | F161: 3277.496263 | G161: 0.9999978386 | I161: 2, 0.63 | J161: 2 | K161: 0.63 | L161: 13883.74089 | M161: -1582.962378 | N161: 0.9999999685 | P161: 2, 0.63 | Q161: 2 | R161: 0.63 | S161: 13494219.15 | T161: 956180.2637 | U161: 0.9999978892 | W161: 2, 0.63 | X161: 2 | Y161: 0.63 | Z161: 3109666.247 | AA161: 4251615.571 | AB161: 0.9999999659
B162: 2, 0.64 | C162: 2 | D162: 0.64 | E162: 65325.41715 | F162: 2994.121709 | G162: 0.9999975673 | I162: 2, 0.64 | J162: 2 | K162: 0.64 | L162: 13357.0735 | M162: -1344.403611 | N162: 0.9999998658 | P162: 2, 0.64 | Q162: 2 | R162: 0.64 | S162: 13087536.51 | T162: 899403.7378 | U162: 0.9999976239 | W162: 2, 0.64 | X162: 2 | Y162: 0.64 | Z162: 2991539.686 | AA162: 4305710.851 | AB162: 0.9999998585
B163: 2, 0.65 | C163: 2 | D163: 0.65 | E163: 63315.31572 | F163: 2671.965383 | G163: 0.9999972685 | I163: 2, 0.65 | J163: 2 | K163: 0.65 | L163: 12855.34717 | M163: -1105.967291 | N163: 0.9999996957 | P163: 2, 0.65 | Q163: 2 | R163: 0.65 | S163: 12685430.42 | T163: 834816.5738 | U163: 0.9999973314 | W163: 2, 0.65 | X163: 2 | Y163: 0.65 | Z163: 2879047.021 | AA163: 4359769.022 | AB163: 0.9999996823
B164: 2, 0.66 | C164: 2 | D164: 0.66 | E164: 61325.47869 | F164: 2309.637949 | G164: 0.9999969392 | I164: 2, 0.66 | J164: 2 | K164: 0.66 | L164: 12376.32323 | M164: -869.0428399 | N164: 0.9999994643 | P164: 2, 0.66 | Q164: 2 | R164: 0.66 | S164: 12287461.28 | T164: 762139.6016 | U164: 0.9999970087 | W164: 2, 0.66 | X164: 2 | Y164: 0.66 | Z164: 2771681.481 | AA164: 4413474.335 | AB164: 0.9999994432
B165: 2, 0.67 | C165: 2 | D165: 0.67 | E165: 59353.91022 | F165: 1905.750071 | G165: 0.999996576 | I165: 2, 0.67 | J165: 2 | K165: 0.67 | L165: 11917.89668 | M165: -635.0196782 | N165: 0.9999991788 | P165: 2, 0.67 | Q165: 2 | R165: 0.67 | S165: 11893215.74 | T165: 681093.6507 | U165: 0.9999966526 | W165: 2, 0.67 | X165: 2 | Y165: 0.67 | Z165: 2668966.55 | AA165: 4466511.045 | AB165: 0.9999991486
B166: 2, 0.68 | C166: 2 | D166: 0.68 | E166: 57398.73187 | F166: 1458.912414 | G166: 0.999996175 | I166: 2, 0.68 | J166: 2 | K166: 0.68 | L166: 11478.08634 | M166: -405.2872277 | N166: 0.9999988478 | P166: 2, 0.68 | Q166: 2 | R166: 0.68 | S166: 11502304.76 | T166: 591399.5507 | U166: 0.9999962591 | W166: 2, 0.68 | X166: 2 | Y166: 0.68 | Z166: 2570453.743 | AA166: 4518563.405 | AB166: 0.9999988077
B167: 2, 0.69 | C167: 2 | D167: 0.69 | E167: 55458.1741 | F167: 967.7356427 | G167: 0.9999957317 | I167: 2, 0.69 | J167: 2 | K167: 0.69 | L167: 11055.02588 | M167: -181.23491 | N167: 0.9999984814 | P167: 2, 0.69 | Q167: 2 | R167: 0.69 | S167: 11114361.85 | T167: 492778.1314 | U167: 0.9999958236 | W167: 2, 0.69 | X167: 2 | Y167: 0.69 | Z167: 2475720.573 | AA167: 4569315.669 | AB167: 0.9999984307
B168: 2, 0.7 | C168: 2 | D168: 0.7 | E168: 53530.56847 | F168: 430.8304214 | G168: 0.9999952406 | I168: 2, 0.7 | J168: 2 | K168: 0.7 | L168: 10646.9556 | M168: 35.74785369 | N168: 0.9999980908 | P168: 2, 0.7 | Q168: 2 | R168: 0.7 | S168: 10729041.47 | T168: 384950.2224 | U168: 0.9999953408 | W168: 2, 0.7 | X168: 2 | Y168: 0.7 | Z168: 2384368.696 | AA168: 4618452.09 | AB168: 0.999998029
B169: 2, 0.71 | C169: 2 | D169: 0.71 | E169: 51614.34056 | F169: -153.1925853 | G169: 0.9999946955 | I169: 2, 0.71 | J169: 2 | K169: 0.71 | L169: 10252.21498 | M169: 244.2716418 | N169: 0.9999976881 | P169: 2, 0.71 | Q169: 2 | R169: 0.71 | S169: 10346017.55 | T169: 267636.6533 | U169: 0.9999948044 | W169: 2, 0.71 | X169: 2 | Y169: 0.71 | Z169: 2296022.209 | AA169: 4665656.921 | AB169: 0.9999976154
B170: 2, 0.72 | C170: 2 | D170: 0.72 | E170: 49708.0034 | F170: -785.7227128 | G170: 0.9999940888 | I170: 2, 0.72 | J170: 2 | K170: 0.72 | L170: 9869.235699 | M170: 442.947033 | N170: 0.9999972864 | P170: 2, 0.72 | Q170: 2 | R170: 0.72 | S170: 9964982.118 | T170: 140558.2538 | U170: 0.9999942067 | W170: 2, 0.72 | X170: 2 | Y170: 0.72 | Z170: 2210326.095 | AA170: 4710614.417 | AB170: 0.9999972031
B171: 2, 0.73 | C171: 2 | D171: 0.73 | E171: 47810.15151 | F171: -1468.149297 | G171: 0.9999934116 | I171: 2, 0.73 | J171: 2 | K171: 0.73 | L171: 9496.535413 | M171: 630.3846058 | N171: 0.9999968996 | P171: 2, 0.73 | Q171: 2 | R171: 0.73 | S171: 9585644.097 | T171: 3435.853444 | U171: 0.9999935389 | W171: 2, 0.73 | X171: 2 | Y171: 0.73 | Z171: 2126944.787 | AA171: 4753008.829 | AB171: 0.9999968065
B172: 2, 0.74 | C172: 2 | D172: 0.74 | E172: 45919.45537 | F172: -2201.861672 | G172: 0.9999926529 | I172: 2, 0.74 | J172: 2 | K172: 0.74 | L172: 9132.711884 | M172: 805.1949388 | N172: 0.999996542 | P172: 2, 0.74 | Q172: 2 | R172: 0.74 | S172: 9207728.132 | T172: -144009.718 | U172: 0.99999279 | W172: 2, 0.74 | X172: 2 | Y172: 0.74 | Z172: 2045560.858 | AA172: 4792524.414 | AB172: 0.9999964402
B173: 2, 0.75 | C173: 2 | D173: 0.75 | E173: 44034.65637 | F173: -2988.249175 | G173: 0.9999917997 | I173: 2, 0.75 | J173: 2 | K173: 0.75 | L173: 8776.437666 | M173: 965.9886105 | N173: 0.9999962282 | P173: 2, 0.75 | Q173: 2 | R173: 0.75 | S173: 8830973.558 | T173: -302057.631 | U173: 0.9999919469 | W173: 2, 0.75 | X173: 2 | Y173: 0.75 | Z173: 1965873.811 | AA173: 4828845.422 | AB173: 0.9999961194
B174: 2, 0.76 | C174: 2 | D174: 0.76 | E174: 42154.56215 | F174: -3828.70114 | G174: 0.9999908357 | I174: 2, 0.76 | J174: 2 | K174: 0.76 | L174: 8426.455178 | M174: 1111.376199 | N174: 0.9999959731 | P174: 2, 0.76 | Q174: 2 | R174: 0.76 | S174: 8455133.426 | T174: -470987.0558 | U174: 0.9999909933 | W174: 2, 0.76 | X174: 2 | Y174: 0.76 | Z174: 1887598.963 | AA174: 4861656.109 | AB174: 0.9999958592
B175: 2, 0.77 | C175: 2 | D175: 0.77 | E175: 40278.0423 | F175: -4724.606904 | G175: 0.9999897412 | I175: 2, 0.77 | J175: 2 | K175: 0.77 | L175: 8081.572167 | M175: 1239.968284 | N175: 0.9999957914 | P175: 2, 0.77 | Q175: 2 | R175: 0.77 | S175: 8079973.618 | T175: -651077.1627 | U175: 0.9999899093 | W175: 2, 0.77 | X175: 2 | Y175: 0.77 | Z175: 1810466.422 | AA175: 4890640.726 | AB175: 0.9999956747
B176: 2, 0.78 | C176: 2 | D176: 0.78 | E176: 38404.02434 | F176: -5677.355801 | G176: 0.9999884911 | I176: 2, 0.78 | J176: 2 | K176: 0.78 | L176: 7740.657521 | M176: 1350.375444 | N176: 0.9999956974 | P176: 2, 0.78 | Q176: 2 | R176: 0.78 | S176: 7705272.021 | T176: -842607.1223 | U176: 0.9999886699 | W176: 2, 0.78 | X176: 2 | Y176: 0.78 | Z176: 1734220.134 | AA176: 4915483.529 | AB176: 0.9999955804
B177: 2, 0.79 | C177: 2 | D177: 0.79 | E177: 36531.49014 | F177: -6688.337167 | G177: 0.9999870541 | I177: 2, 0.79 | J177: 2 | K177: 0.79 | L177: 7402.637402 | M177: 1441.208256 | N177: 0.9999957043 | P177: 2, 0.79 | Q177: 2 | R177: 0.79 | S177: 7330817.77 | T177: -1045856.105 | U177: 0.9999872436 | W177: 2, 0.79 | X177: 2 | Y177: 0.79 | Z177: 1658617.012 | AA177: 4935868.771 | AB177: 0.9999955899
B178: 2, 0.8 | C178: 2 | D178: 0.8 | E178: 34659.47246 | F178: -7758.940338 | G178: 0.9999853901 | I178: 2, 0.8 | J178: 2 | K178: 0.8 | L178: 7066.49166 | M178: 1511.0773 | N178: 0.9999958239 | P178: 2, 0.8 | Q178: 2 | R178: 0.8 | S178: 6956410.541 | T178: -1261103.28 | U178: 0.9999855901 | W178: 2, 0.8 | X178: 2 | Y178: 0.8 | Z178: 1583426.123 | AA178: 4951480.704 | AB178: 0.9999957152
B179: 2, 0.81 | C179: 2 | D179: 0.81 | E179: 32787.0518 | F179: -8890.554648 | G179: 0.9999834472 | I179: 2, 0.81 | J179: 2 | K179: 0.81 | L179: 6731.250527 | M179: 1558.593154 | N179: 0.9999960654 | P179: 2, 0.81 | Q179: 2 | R179: 0.81 | S179: 6581859.904 | T179: -1488627.82 | U179: 0.9999836574 | W179: 2, 0.81 | X179: 2 | Y179: 0.81 | Z179: 1508427.936 | AA179: 4962003.583 | AB179: 0.9999959654
B180: 2, 0.82 | C180: 2 | D180: 0.82 | E180: 30913.35355 | F180: -10084.56943 | G180: 0.9999811575 | I180: 2, 0.82 | J180: 2 | K180: 0.82 | L180: 6395.991537 | M180: 1582.366397 | N180: 0.9999964337 | P180: 2, 0.82 | Q180: 2 | R180: 0.82 | S180: 6206984.717 | T180: -1728708.893 | U180: 0.9999813769 | W180: 2, 0.82 | X180: 2 | Y180: 0.82 | Z180: 1433413.632 | AA180: 4967121.66 | AB180: 0.9999963457
B181: 2, 0.83 | C181: 2 | D181: 0.83 | E181: 29037.54523 | F181: -11342.37403 | G181: 0.9999784299 | I181: 2, 0.83 | J181: 2 | K181: 0.83 | L181: 6059.836683 | M181: 1581.007607 | N181: 0.9999969275 | P181: 2, 0.83 | Q181: 2 | R181: 0.83 | S181: 5831612.569 | T181: -1981625.671 | U181: 0.9999786574 | W181: 2, 0.83 | X181: 2 | Y181: 0.83 | Z181: 1358184.453 | AA181: 4966519.19 | AB181: 0.9999968543
B182: 2, 0.84 | C182: 2 | D182: 0.84 | E182: 27158.83401 | F182: -12665.35777 | G182: 0.9999751412 | I182: 2, 0.84 | J182: 2 | K182: 0.84 | L182: 5721.949766 | M182: 1553.127364 | N182: 0.9999975348 | P182: 2, 0.84 | Q182: 2 | R182: 0.84 | S182: 5455579.258 | T182: -2247657.323 | U182: 0.9999753748 | W182: 2, 0.84 | X182: 2 | Y182: 0.84 | Z182: 1282551.107 | AA182: 4959880.426 | AB182: 0.9999974787
B183: 2, 0.85 | C183: 2 | D183: 0.85 | E183: 25276.46437 | F183: -14054.91 | G183: 0.9999711197 | I183: 2, 0.85 | J183: 2 | K183: 0.85 | L183: 5381.533938 | M183: 1497.336244 | N183: 0.9999982269 | P183: 2, 0.85 | Q183: 2 | R183: 0.85 | S183: 5078728.31 | T183: -2527083.02 | U183: 0.9999713566 | W183: 2, 0.85 | X183: 2 | Y183: 0.85 | Z183: 1206333.209 | AA183: 4946889.621 | AB183: 0.9999981892
B184: 2, 0.86 | C184: 2 | D184: 0.86 | E184: 23389.71591 | F184: -15512.42004 | G184: 0.999966122 | I184: 2, 0.86 | J184: 2 | K184: 0.86 | L184: 5037.829414 | M184: 1412.244828 | N184: 0.9999989469 | P184: 2, 0.86 | Q184: 2 | R184: 0.86 | S184: 4700910.529 | T184: -2820181.933 | U184: 0.9999663578 | W184: 2, 0.86 | X184: 2 | Y184: 0.86 | Z184: 1129358.766 | AA184: 4927231.029 | AB184: 0.9999989274
B185: 2, 0.87 | C185: 2 | D185: 0.87 | E185: 21497.90138 | F185: -17039.27723 | G185: 0.9999597918 | I185: 2, 0.87 | J185: 2 | K185: 0.87 | L185: 4690.111343 | M185: 1296.463693 | N185: 0.9999995918 | P185: 2, 0.87 | Q185: 2 | R185: 0.87 | S185: 4321983.578 | T185: -3127233.231 | U185: 0.9999600202 | W185: 2, 0.87 | X185: 2 | Y185: 0.87 | Z185: 1051463.689 | AA185: 4900588.903 | AB185: 0.9999995869
B186: 2, 0.88 | C186: 2 | D186: 0.88 | E186: 19600.36476 | F186: -18636.87092 | G186: 0.9999515914 | I186: 2, 0.88 | J186: 2 | K186: 0.88 | L186: 4337.687818 | M186: 1148.603418 | N186: 0.9999999777 | P186: 2, 0.88 | Q186: 2 | R186: 0.88 | S186: 3941811.589 | T186: -3448516.086 | U186: 0.9999518028 | W186: 2, 0.88 | X186: 2 | Y186: 0.88 | Z186: 972491.3516 | AA186: 4866647.497 | AB186: 0.9999999786
B187: 2, 0.89 | C187: 2 | D187: 0.89 | E187: 17696.4795 | F187: -20306.59042 | G187: 0.9999406768 | I187: 2, 0.89 | J187: 2 | K187: 0.89 | L187: 3979.898034 | M187: 967.2745819 | N187: 0.999999778 | P187: 2, 0.89 | Q187: 2 | R187: 0.89 | S187: 3560264.802 | T187: -3784309.667 | U187: 0.999940857 | W187: 2, 0.89 | X187: 2 | Y187: 0.89 | Z187: 892292.1641 | AA187: 4825091.064 | AB187: 0.9999997668
B188: 2, 0.9 | C188: 2 | D188: 0.9 | E188: 15785.64692 | F188: -22049.82509 | G188: 0.9999256605 | I188: 2, 0.9 | J188: 2 | K188: 0.9 | L188: 3616.11055 | M188: 751.0877631 | N188: 0.9999984018 | P188: 2, 0.9 | Q188: 2 | R188: 0.9 | S188: 3177219.224 | T188: -4134893.145 | U188: 0.9999257881 | W188: 2, 0.9 | X188: 2 | Y188: 0.9 | Z188: 810723.1865 | AA188: 4775603.858 | AB188: 0.999998344
B189: 2, 0.91 | C189: 2 | D189: 0.91 | E189: 13867.29463 | F189: -23867.96425 | G189: 0.9999041264 | I189: 2, 0.91 | J189: 2 | K189: 0.91 | L189: 3245.721684 | M189: 498.6535403 | N189: 0.9999947464 | P189: 2, 0.91 | Q189: 2 | R189: 0.91 | S189: 2792556.311 | T189: -4500545.689 | U189: 0.9999041691 | W189: 2, 0.91 | X189: 2 | Y189: 0.91 | Z189: 727647.7614 | AA189: 4717870.132 | AB189: 0.999994576
B190: 2, 0.92 | C190: 2 | D190: 0.92 | E190: 11940.87515 | F190: -25762.39724 | G190: 0.999871551 | I190: 2, 0.92 | J190: 2 | K190: 0.92 | L190: 2868.154 | M190: 208.5824918 | N190: 0.9999866538 | P190: 2, 0.92 | Q190: 2 | R190: 0.92 | S190: 2406162.674 | T190: -4881546.472 | U190: 0.9998714608 | W190: 2, 0.92 | X190: 2 | Y190: 0.92 | Z190: 642935.1731 | AA190: 4651574.14 | AB190: 0.9999862425
B191: 2, 0.93 | C191: 2 | D191: 0.93 | E191: 10005.86454 | F191: -27734.51339 | G191: 0.9998186233 | I191: 2, 0.93 | J191: 2 | K191: 0.93 | L191: 2482.854898 | M191: -120.5148036 | N191: 0.9999696145 | P191: 2, 0.93 | Q191: 2 | R191: 0.93 | S191: 2017929.801 | T191: -5278174.662 | U191: 0.9998183339 | W191: 2, 0.93 | X191: 2 | Y191: 0.93 | Z191: 556460.3282 | AA191: 4576400.135 | AB191: 0.9999686994
B192: 2, 0.94 | C192: 2 | D192: 0.94 | E192: 8061.761146 | F192: -29785.70205 | G192: 0.9997235199 | I192: 2, 0.94 | J192: 2 | K192: 0.94 | L192: 2089.295293 | M192: -490.0277675 | N192: 0.9999333041 | P192: 2, 0.94 | Q192: 2 | R192: 0.94 | S192: 1627753.798 | T192: -5690709.431 | U192: 0.9997229781 | W192: 2, 0.94 | X192: 2 | Y192: 0.94 | Z192: 468103.4563 | AA192: 4492032.371 | AB192: 0.9999312994
B193: 2, 0.95 | C193: 2 | D193: 0.95 | E193: 6108.084444 | F193: -31917.35254 | G193: 0.9995243909 | I193: 2, 0.95 | J193: 2 | K193: 0.95 | L193: 1686.968378 | M193: -901.3458213 | N193: 0.9998507947 | P193: 2, 0.95 | Q193: 2 | R193: 0.95 | S193: 1235535.143 | T193: -6119429.948 | U193: 0.9995238379 | W193: 2, 0.95 | X193: 2 | Y193: 0.95 | Z193: 377749.8301 | AA193: 4398155.1 | AB193: 0.9998462158
B194: 3, 0.05 | C194: 3 | D194: 0.05 | E194: 1078037.752 | F194: 503.8674011 | G194: 0.9999993092 | I194: 3, 0.05 | J194: 3 | K194: 0.05 | L194: 1202475.387 | M194: 2957.121307 | N194: 0.9999999009 | P194: 3, 0.05 | Q194: 3 | R194: 0.05 | S194: 221877327.6 | T194: 399214.231 | U194: 0.9999992516 | W194: 3, 0.05 | X194: 3 | Y194: 0.05 | Z194: 204236560.4 | AA194: 11353703.43 | AB194: 0.9999998948
B195: 3, 0.06 | C195: 3 | D195: 0.06 | E195: 865802.1134 | F195: 530.7487732 | G195: 0.9999993516 | I195: 3, 0.06 | J195: 3 | K195: 0.06 | L195: 999018.5631 | M195: 2764.159671 | N195: 0.9999999138 | P195: 3, 0.06 | Q195: 3 | R195: 0.06 | S195: 178027678.9 | T195: 406234.2407 | U195: 0.9999992985 | W195: 3, 0.06 | X195: 3 | Y195: 0.06 | Z195: 169655610.4 | AA195: 11318977.34 | AB195: 0.9999999079
B196: 3, 0.07 | C196: 3 | D196: 0.07 | E196: 714947.8515 | F196: 558.1571208 | G196: 0.9999993935 | I196: 3, 0.07 | J196: 3 | K196: 0.07 | L196: 853866.3093 | M196: 2576.682563 | N196: 0.9999999252 | P196: 3, 0.07 | Q196: 3 | R196: 0.07 | S196: 146863629.6 | T196: 413208.0409 | U196: 0.9999993447 | W196: 3, 0.07 | X196: 3 | Y196: 0.07 | Z196: 144984698.3 | AA196: 11285254.78 | AB196: 0.9999999195
B197: 3, 0.08 | C197: 3 | D197: 0.08 | E197: 602447.8358 | F197: 586.0244445 | G197: 0.9999994349 | I197: 3, 0.08 | J197: 3 | K197: 0.08 | L197: 745145.2973 | M197: 2394.621318 | N197: 0.9999999352 | P197: 3, 0.08 | Q197: 3 | R197: 0.08 | S197: 123626170.5 | T197: 420126.7994 | U197: 0.9999993903 | W197: 3, 0.08 | X197: 3 | Y197: 0.08 | Z197: 126506019.1 | AA197: 11252522.88 | AB197: 0.9999999298
B198: 3, 0.09 | C198: 3 | D198: 0.09 | E198: 515509.2156 | F198: 614.2827447 | G198: 0.9999994755 | I198: 3, 0.09 | J198: 3 | K198: 0.09 | L198: 660703.678 | M198: 2217.907275 | N198: 0.999999944 | P198: 3, 0.09 | Q198: 3 | R198: 0.09 | S198: 105671407.5 | T198: 426981.684 | U198: 0.999999435 | W198: 3, 0.09 | X198: 3 | Y198: 0.09 | Z198: 112154125.5 | AA198: 11220768.77 | AB198: 0.9999999389
B199: 3, 0.1 | C199: 3 | D199: 0.1 | E199: 446456.2805 | F199: 642.8640219 | G199: 0.9999995154 | I199: 3, 0.1 | J199: 3 | K199: 0.1 | L199: 593250.3418 | M199: 2046.471769 | N199: 0.9999999517 | P199: 3, 0.1 | Q199: 3 | R199: 0.1 | S199: 91413004.14 | T199: 433763.8625 | U199: 0.9999994789 | W199: 3, 0.1 | X199: 3 | Y199: 0.1 | Z199: 100689749.2 | AA199: 11189979.6 | AB199: 0.9999999468
B200: 3, 0.11 | C200: 3 | D200: 0.11 | E200: 390404.4876 | F200: 671.7002765 | G200: 0.9999995545 | I200: 3, 0.11 | J200: 3 | K200: 0.11 | L200: 538145.4919 | M200: 1880.246137 | N200: 0.9999999584 | P200: 3, 0.11 | Q200: 3 | R200: 0.11 | S200: 79841473.61 | T200: 440464.5026 | U200: 0.9999995219 | W200: 3, 0.11 | X200: 3 | Y200: 0.11 | Z200: 91324264.97 | AA200: 11160142.5 | AB200: 0.9999999538
B201: 3, 0.12 | C201: 3 | D201: 0.12 | E201: 344097.4749 | F201: 700.723509 | G201: 0.9999995927 | I201: 3, 0.12 | J201: 3 | K201: 0.12 | L201: 492295.9302 | M201: 1719.161715 | N201: 0.9999999641 | P201: 3, 0.12 | Q201: 3 | R201: 0.12 | S201: 70283824.71 | T201: 447074.7721 | U201: 0.9999995638 | W201: 3, 0.12 | X201: 3 | Y201: 0.12 | Z201: 83531922.48 | AA201: 11131244.6 | AB201: 0.9999999598
B202: 3, 0.13 | C202: 3 | D202: 0.13 | E202: 305280.8379 | F202: 729.8657198 | G202: 0.9999996298 | I202: 3, 0.13 | J202: 3 | K202: 0.13 | L202: 453560.212 | M202: 1563.149841 | N202: 0.9999999691 | P202: 3, 0.13 | Q202: 3 | R202: 0.13 | S202: 62274140.42 | T202: 453585.8389 | U202: 0.9999996046 | W202: 3, 0.13 | X202: 3 | Y202: 0.13 | Z202: 76948740.89 | AA202: 11103273.04 | AB202: 0.9999999651
B203: 3, 0.14 | C203: 3 | D203: 0.14 | E203: 272344.2877 | F203: 759.0589093 | G203: 0.9999996659 | I203: 3, 0.14 | J203: 3 | K203: 0.14 | L203: 420408.7339 | M203: 1412.141851 | N203: 0.9999999734 | P203: 3, 0.14 | Q203: 3 | R203: 0.14 | S203: 55479622.9 | T203: 459988.8707 | U203: 0.9999996442 | W203: 3, 0.14 | X203: 3 | Y203: 0.14 | Z203: 71314733.81 | AA203: 11076214.96 | AB203: 0.9999999696
B204: 3, 0.15 | C204: 3 | D204: 0.15 | E204: 244106.9459 | F204: 788.2350781 | G204: 0.9999997008 | I204: 3, 0.15 | J204: 3 | K204: 0.15 | L204: 391719.7868 | M204: 1266.069081 | N204: 0.9999999771 | P204: 3, 0.15 | Q204: 3 | R204: 0.15 | S204: 49656220.39 | T204: 466275.0352 | U204: 0.9999996823 | W204: 3, 0.15 | X204: 3 | Y204: 0.15 | Z204: 66439244.59 | AA204: 11050057.5 | AB204: 0.9999999735
B205: =C205&", "&D205 -> 3, 0.16 | C205: 3 | D205: 0.16 | E205: 219683.1536 | F205: 817.3262266 | G205: 0.9999997344 | I205: =J205&", "&K205 -> 3, 0.16 | J205: 3 | K205: 0.16 | L205: 366652.0888 | M205: 1124.862869 | N205: 0.9999999802 | P205: =Q205&", "&R205 -> 3, 0.16 | Q205: 3 | R205: 0.16 | S205: 44620894.06 | T205: 472435.5003 | U205: 0.999999719 | W205: =X205&", "&Y205 -> 3, 0.16 | X205: 3 | Y205: 0.16 | Z205: 62179280.72 | AA205: 11024787.79 | AB205: 0.9999999769
B206: 3, 0.17 | C206: 3 | D206: 0.17 | E206: 198395.6421 | F206: 846.2643552 | G206: 0.9999997666 | I206: 3, 0.17 | J206: 3 | K206: 0.17 | L206: 344562.3066 | M206: 988.4545498 | N206: 0.9999999829 | P206: 3, 0.17 | Q206: 3 | R206: 0.17 | S206: 40233673.06 | T206: 478461.4337 | U206: 0.9999997541 | W206: 3, 0.17 | X206: 3 | Y206: 0.17 | Z206: 58425494.99 | AA206: 11000392.97 | AB206: 0.9999999798
B207: 3, 0.18 | C207: 3 | D207: 0.18 | E207: 179717.647 | F207: 874.9814645 | G207: 0.9999997972 | I207: 3, 0.18 | J207: 3 | K207: 0.18 | L207: 324950.0701 | M207: 856.7754613 | N207: 0.9999999851 | P207: 3, 0.18 | Q207: 3 | R207: 0.18 | S207: 36385691.16 | T207: 484344.0032 | U207: 0.9999997875 | W207: 3, 0.18 | X207: 3 | Y207: 0.18 | Z207: 55092839.59 | AA207: 10976860.17 | AB207: 0.9999999822
B208: 3, 0.19 | C208: 3 | D208: 0.19 | E208: 163233.3018 | F208: 903.4095547 | G208: 0.9999998263 | I208: 3, 0.19 | J208: 3 | K208: 0.19 | L208: 307420.3501 | M208: 729.7569397 | N208: 0.999999987 | P208: 3, 0.19 | Q208: 3 | R208: 0.19 | S208: 32991001.33 | T208: 490074.3766 | U208: 0.999999819 | W208: 3, 0.19 | X208: 3 | Y208: 0.19 | Z208: 52114171.48 | AA208: 10954176.53 | AB208: 0.9999999843
... 895 more rows

Sheet Back, Data Figures
B4: This sheet contains the data for the NHPC foe the technologies, data for the district heating demand profile and data for the emission graphs in the tool.
B10: Net Heat Production Cost | W10: District Heating Demand Profile | AB10: Emission Graphs
C12: [DKK/MWh] | D12: Heat Pump 1 | G12: Heat Pump 2 | J12: Heat Exchanger | M12: Straw Boiler | P12: Wood Chips Boiler | S12: Waste Boiler | W12: Hour | X12: Normalised Demand | Y12: Demand | Z12: Duration Profile | AB12: Year | AC12: Heat Pump 1 | AF12: Heat Pump 2 | AI12: Heat Exchanger | AL12: Straw Boiler | AO12: Wood Chips Boiler | AR12: Waste Boiler
D13: Variable O&M | E13: Fuel Cost | F13: Levy | G13: Variable O&M | H13: Fuel Cost | I13: Levy | J13: Variable O&M | K13: Fuel Cost | L13: Levy | M13: Variable O&M | N13: Fuel Cost | O13: Levy | P13: Variable O&M | Q13: Fuel Cost | R13: Levy | S13: Variable O&M | T13: Fuel Cost | U13: Levy | Y13: [MWh] | AC13: CO2 | AD13: SO2 | AE13: Nox | AF13: CO2 | AG13: SO2 | AH13: Nox | AI13: CO2 | AJ13: SO2 | AK13: Nox | AL13: CO2 | AM13: SO2 | AN13: Nox | AO13: CO2 | AP13: SO2 | AQ13: Nox | AR13: CO2 | AS13: SO2 | AT13: Nox
D14: 1 | E14: 1 | F14: 1 | G14: 2 | H14: 2 | I14: 2 | J14: 3 | K14: 3 | L14: 3 | M14: 4 | N14: 4 | O14: 4 | P14: 5 | Q14: 5 | R14: 5 | S14: 6 | T14: 6 | U14: 6 | W14: 1 | X14: 0.0002032321978 | Y14: =X14*'Back, Results'!$D$15 -> 20.32321978 | Z14: 0.0002648314993 | AC14: kg/tonnes | AD14: g/tonnes | AE14: g/tonnes | AF14: kg/tonnes | AG14: g/tonnes | AH14: g/tonnes | AI14: kg/tonnes | AJ14: g/tonnes | AK14: g/tonnes | AL14: kg/tonnes | AM14: g/tonnes | AN14: g/tonnes | AO14: kg/tonnes | AP14: g/tonnes | AQ14: g/tonnes | AR14: kg/tonnes | AS14: g/tonnes | AT14: g/tonnes
D15: =D13&D14 -> Variable O&M1 | E15: =E13&E14 -> Fuel Cost1 | F15: Levy1 | G15: Variable O&M2 | H15: Fuel Cost2 | I15: Levy2 | J15: Variable O&M3 | K15: Fuel Cost3 | L15: Levy3 | M15: Variable O&M4 | N15: Fuel Cost4 | O15: Levy4 | P15: Variable O&M5 | Q15: Fuel Cost5 | R15: Levy5 | S15: Variable O&M6 | T15: Fuel Cost6 | U15: Levy6 | W15: 2 | X15: 0.0002011322216 | Y15: =X15*'Back, Results'!$D$15 -> 20.11322216 | Z15: 0.0002634315152 | AB15: 2020 | AC15: 144 | AD15: 82 | AE15: 224 | AF15: 144 | AG15: 82 | AH15: 224 | AI15: 0 | AJ15: 0 | AK15: 0 | AL15: 0 | AM15: 1667.5 | AN15: 1044 | AO15: 0 | AP15: 102.3 | AQ15: 576.6 | AR15: 393.2 | AS15: 10.6 | AT15: 750.83
C16: 2020 | D16: 13.33 | E16: =631.34682818694/5.1 -> 123.7934957 | F16: =(1-((1/5.1)*3))*186 -> 76.58823529 | G16: 13.33 | H16: =631.34682818694/3.39 -> 186.2380024 | I16: 0 | J16: 7.69 | K16: 0 | L16: 186 | M16: 4.464 | N16: =((641.14/14.5)/0.91)*3.6 -> 174.9226222 | O16: 6.93 | P16: 7.44 | Q16: =((481.43/9.3)/0.91)*3.6 -> 204.7912088 | R16: 1.52 | S16: 40.92 | T16: =((-164/10.6)/0.95)*3.6 -> -58.62959285 | U16: 208.42 | W16: 3 | X16: 0.0001990322454 | Y16: =X16*'Back, Results'!$D$15 -> 19.90322454 | Z16: 0.000261331539 | AB16: 2021 | AC16: 133 | AD16: 74 | AE16: 206 | AF16: 133 | AG16: 74 | AH16: 206 | AI16: 0 | AJ16: 0 | AK16: 0 | AL16: 0 | AM16: 1667.5 | AN16: 1045.45 | AO16: 0 | AP16: 102.3 | AQ16: 566.37 | AR16: 393.2 | AS16: 10.6 | AT16: 726.98
C17: 2021 | D17: 13.27 | E17: =559.542626496254/5.1 -> 109.7142405 | F17: =(1-((1/5.1)*3))*186 -> 76.58823529 | G17: 13.27 | H17: =559.542626496254/3.39 -> 165.056822 | I17: 0 | J17: 7.84 | K17: 0 | L17: 186 | M17: 4.464 | N17: =((645.42/14.5)/0.91)*3.6 -> 176.0903372 | O17: 6.93 | P17: 7.44 | Q17: =((484.59/9.3)/0.91)*3.6 -> 206.135413 | R17: 1.52 | S17: 40.92 | T17: =((-170.2/10.6)/0.95)*3.6 -> -60.84607746 | U17: 208.42 | W17: 4 | X17: 0.0001955322851 | Y17: =X17*'Back, Results'!$D$15 -> 19.55322851 | Z17: 0.0002578315787 | AB17: 2022 | AC17: 126 | AD17: 72 | AE17: 201 | AF17: 126 | AG17: 72 | AH17: 201 | AI17: 0 | AJ17: 0 | AK17: 0 | AL17: 0 | AM17: 1667.5 | AN17: 1046.9 | AO17: 0 | AP17: 102.3 | AQ17: 556.14 | AR17: 393.2 | AS17: 10.6 | AT17: 703.13
C18: 2022 | D18: 13.22 | E18: =562.094116473742/5.1 -> 110.2145326 | F18: 76.58823529 | G18: 13.22 | H18: =562.094116473742/3.39 -> 165.8094739 | I18: 0 | J18: 7.99 | K18: 0 | L18: 186 | M18: 4.464 | N18: =((649.7/14.5)/0.91)*3.6 -> 177.2580523 | O18: 6.93 | P18: 7.44 | Q18: =((487.75/9.3)/0.91)*3.6 -> 207.4796172 | R18: 1.52 | S18: 40.92 | T18: =((-176.4/10.6)/0.95)*3.6 -> -63.06256207 | U18: 208.42 | W18: 5 | X18: 0.0001871323803 | Y18: =X18*'Back, Results'!$D$15 -> 18.71323803 | Z18: 0.0002571315866 | AB18: 2023 | AC18: 109 | AD18: 66 | AE18: 198 | AF18: 109 | AG18: 66 | AH18: 198 | AI18: 0 | AJ18: 0 | AK18: 0 | AL18: 0 | AM18: 1667.5 | AN18: 1048.35 | AO18: 0 | AP18: 102.3 | AQ18: 545.91 | AR18: 393.2 | AS18: 10.6 | AT18: 679.28
C19: 2023 | D19: 13.16 | E19: =576.836811121701/5.1 -> 113.1052571 | F19: 76.58823529 | G19: 13.16 | H19: =576.836811121701/3.39 -> 170.1583514 | I19: 0 | J19: 8.13 | K19: 0 | L19: 186 | M19: 4.464 | N19: =((653.97/14.5)/0.91)*3.6 -> 178.423039 | O19: 6.93 | P19: 7.44 | Q19: =((490.92/9.3)/0.91)*3.6 -> 208.8280752 | R19: 1.52 | S19: 40.92 | T19: =((-182.6/10.6)/0.95)*3.6 -> -65.27904667 | U19: 208.42 | W19: 6 | X19: 0.0001808324517 | Y19: =X19*'Back, Results'!$D$15 -> 18.08324517 | Z19: 0.0002550316104 | AB19: 2024 | AC19: 106 | AD19: 66 | AE19: 194 | AF19: 106 | AG19: 66 | AH19: 194 | AI19: 0 | AJ19: 0 | AK19: 0 | AL19: 0 | AM19: 1667.5 | AN19: 1049.8 | AO19: 0 | AP19: 102.3 | AQ19: 535.68 | AR19: 393.2 | AS19: 10.6 | AT19: 655.43
C20: 2024 | D20: 13.11 | E20: =583.906205494542/5.1 -> 114.4914128 | F20: 76.58823529 | G20: 13.11 | H20: =583.906205494542/3.39 -> 172.2437184 | I20: 0 | J20: 8.28 | K20: 0 | L20: 186 | M20: 4.464 | N20: =((658.25/14.5)/0.91)*3.6 -> 179.5907541 | O20: 6.93 | P20: 7.44 | Q20: =((494.08/9.3)/0.91)*3.6 -> 210.1722793 | R20: 1.52 | S20: 40.92 | T20: =((-188.8/10.6)/0.95)*3.6 -> -67.49553128 | U20: 208.42 | W20: 7 | X20: 0.0001752325152 | Y20: =X20*'Back, Results'!$D$15 -> 17.52325152 | Z20: 0.0002543316184 | AB20: 2025 | AC20: 97 | AD20: 63 | AE20: 184 | AF20: 97 | AG20: 63 | AH20: 184 | AI20: 0 | AJ20: 0 | AK20: 0 | AL20: 0 | AM20: 1667.5 | AN20: 1051.25 | AO20: 0 | AP20: 102.3 | AQ20: 525.45 | AR20: 393.2 | AS20: 10.6 | AT20: 631.58
C21: 2025 | D21: 13.05 | E21: =586.125954268513/5.1 -> 114.9266577 | F21: 76.58823529 | G21: 13.05 | H21: =586.125954268513/3.39 -> 172.8985116 | I21: 0 | J21: 8.43 | K21: 0 | L21: 186 | M21: 4.464 | N21: =((662.53/14.5)/0.91)*3.6 -> 180.7584691 | O21: 6.93 | P21: 7.44 | Q21: =((497.24/9.3)/0.91)*3.6 -> 211.5164835 | R21: 1.52 | S21: 40.92 | T21: =((-195/10.6)/0.95)*3.6 -> -69.71201589 | U21: 208.42 | W21: 8 | X21: 0.0001717325549 | Y21: =X21*'Back, Results'!$D$15 -> 17.17325549 | Z21: 0.0002536316263 | AB21: 2026 | AC21: 91 | AD21: 60 | AE21: 170 | AF21: 91 | AG21: 60 | AH21: 170 | AI21: 0 | AJ21: 0 | AK21: 0 | AL21: 0 | AM21: 1667.5 | AN21: 1052.7 | AO21: 0 | AP21: 102.3 | AQ21: 515.22 | AR21: 393.2 | AS21: 10.6 | AT21: 607.73
C22: 2026 | D22: 13 | E22: =592.82410410953/5.1 -> 116.2400204 | F22: 76.58823529 | G22: 13 | H22: =592.82410410953/3.39 -> 174.874367 | I22: 0 | J22: 8.58 | K22: 0 | L22: 186 | M22: 4.464 | N22: =((666.81/14.5)/0.91)*3.6 -> 181.9261842 | O22: 6.93 | P22: 7.44 | Q22: =((500.4/9.3)/0.91)*3.6 -> 212.8606877 | R22: 1.52 | S22: 40.92 | T22: =((-201.2/10.6)/0.95)*3.6 -> -71.9285005 | U22: 208.42 | W22: 9 | X22: 0.000173132539 | Y22: =X22*'Back, Results'!$D$15 -> 17.3132539 | Z22: 0.0002529316342 | AB22: 2027 | AC22: 84 | AD22: 56 | AE22: 159 | AF22: 84 | AG22: 56 | AH22: 159 | AI22: 0 | AJ22: 0 | AK22: 0 | AL22: 0 | AM22: 1667.5 | AN22: 1054.15 | AO22: 0 | AP22: 102.3 | AQ22: 504.99 | AR22: 393.2 | AS22: 10.6 | AT22: 583.88
C23: 2027 | D23: 12.94 | E23: =595.847082053091/5.1 -> 116.8327612 | F23: 76.58823529 | G23: 12.94 | H23: =595.847082053091/3.39 -> 175.7661009 | I23: 0 | J23: 8.73 | K23: 0 | L23: 186 | M23: 4.464 | N23: =((671.08/14.5)/0.91)*3.6 -> 183.0911709 | O23: 6.93 | P23: 7.44 | Q23: =((503.56/9.3)/0.91)*3.6 -> 214.2048919 | R23: 1.52 | S23: 40.92 | T23: =((-207.4/10.6)/0.95)*3.6 -> -74.1449851 | U23: 208.42 | W23: 10 | X23: 0.0001717325549 | Y23: =X23*'Back, Results'!$D$15 -> 17.17325549 | Z23: 0.0002529316342 | AB23: 2028 | AC23: 78 | AD23: 53 | AE23: 149 | AF23: 78 | AG23: 53 | AH23: 149 | AI23: 0 | AJ23: 0 | AK23: 0 | AL23: 0 | AM23: 1667.5 | AN23: 1055.6 | AO23: 0 | AP23: 102.3 | AQ23: 494.76 | AR23: 393.2 | AS23: 10.6 | AT23: 560.03
C24: 2028 | D24: 12.88 | E24: =601.685855598989/5.1 -> 117.9776187 | F24: 76.58823529 | G24: 12.88 | H24: =601.685855598989/3.39 -> 177.488453 | I24: 0 | J24: 8.88 | K24: 0 | L24: 186 | M24: 4.464 | N24: =((675.36/14.5)/0.91)*3.6 -> 184.2588859 | O24: 6.93 | P24: 7.44 | Q24: =((506.73/9.3)/0.91)*3.6 -> 215.5533499 | R24: 1.52 | S24: 40.92 | T24: =((-213.6/10.6)/0.95)*3.6 -> -76.36146971 | U24: 208.42 | W24: 11 | X24: 0.0001675326025 | Y24: =X24*'Back, Results'!$D$15 -> 16.75326025 | Z24: 0.0002522316422 | AB24: 2029 | AC24: 70 | AD24: 49 | AE24: 138 | AF24: 70 | AG24: 49 | AH24: 138 | AI24: 0 | AJ24: 0 | AK24: 0 | AL24: 0 | AM24: 1667.5 | AN24: 1057.05 | AO24: 0 | AP24: 102.3 | AQ24: 484.53 | AR24: 393.2 | AS24: 10.6 | AT24: 536.18
C25: 2029 | D25: 12.83 | E25: =605.336556906279/5.1 -> 118.6934425 | F25: 76.58823529 | G25: 12.83 | H25: =605.336556906279/3.39 -> 178.565356 | I25: 0 | J25: 9.03 | K25: 0 | L25: 186 | M25: 4.464 | N25: =((679.64/14.5)/0.91)*3.6 -> 185.426601 | O25: 6.93 | P25: 7.44 | Q25: =((509.89/9.3)/0.91)*3.6 -> 216.8975541 | R25: 1.52 | S25: 40.92 | T25: =((-219.8/10.6)/0.95)*3.6 -> -78.57795432 | U25: 208.42 | W25: 12 | X25: 0.000161232674 | Y25: =X25*'Back, Results'!$D$15 -> 16.1232674 | Z25: 0.0002515316501 | AB25: 2030 | AC25: 22 | AD25: 36 | AE25: 118 | AF25: 22 | AG25: 36 | AH25: 118 | AI25: 0 | AJ25: 0 | AK25: 0 | AL25: 0 | AM25: 1667.5 | AN25: 1058.5 | AO25: 0 | AP25: 102.3 | AQ25: 474.3 | AR25: 393.2 | AS25: 10.6 | AT25: 512.33
C26: 2030 | D26: 12.77 | E26: =615.098814987783/5.1 -> 120.6076108 | F26: 76.58823529 | G26: 12.77 | H26: =615.098814987783/3.39 -> 181.4450782 | I26: 0 | J26: 9.18 | K26: 0 | L26: 186 | M26: 4.464 | N26: =((683.92/14.5)/0.91)*3.6 -> 186.594316 | O26: 6.93 | P26: 7.44 | Q26: =((513.05/9.3)/0.91)*3.6 -> 218.2417582 | R26: 1.52 | S26: 40.92 | T26: =((-226/10.6)/0.95)*3.6 -> -80.79443893 | U26: 208.42 | W26: 13 | X26: 0.0001549327454 | Y26: =X26*'Back, Results'!$D$15 -> 15.49327454 | Z26: 0.0002515316501 | AB26: 2031 | AC26: 20 | AD26: 34 | AE26: 111 | AF26: 20 | AG26: 34 | AH26: 111 | AI26: 0 | AJ26: 0 | AK26: 0 | AL26: 0 | AM26: 1667.5 | AN26: 1058.5 | AO26: 0 | AP26: 102.3 | AQ26: 464.07 | AR26: 393.2 | AS26: 10.6 | AT26: 488.48
C27: 2031 | D27: 12.72 | E27: =615.494827584821/5.1 -> 120.6852603 | F27: 76.58823529 | G27: 12.72 | H27: =615.494827584821/3.39 -> 181.561896 | I27: 0 | J27: 9.32 | K27: 0 | L27: 186 | M27: 4.464 | N27: =((688.19/14.5)/0.91)*3.6 -> 187.7593028 | O27: 6.93 | P27: 7.44 | Q27: =((516.21/9.3)/0.91)*3.6 -> 219.5859624 | R27: 1.52 | S27: 40.92 | T27: =((-232.2/10.6)/0.95)*3.6 -> -83.01092354 | U27: 208.42 | W27: 14 | X27: 0.0001528327692 | Y27: =X27*'Back, Results'!$D$15 -> 15.28327692 | Z27: 0.0002515316501 | AB27: 2032 | AC27: 19 | AD27: 33 | AE27: 105 | AF27: 19 | AG27: 33 | AH27: 105 | AI27: 0 | AJ27: 0 | AK27: 0 | AL27: 0 | AM27: 1667.5 | AN27: 1058.5 | AO27: 0 | AP27: 102.3 | AQ27: 453.84 | AR27: 393.2 | AS27: 10.6 | AT27: 464.63
C28: 2032 | D28: 12.66 | E28: =615.772087233915/5.1 -> 120.7396249 | F28: 76.58823529 | G28: 12.66 | H28: =615.772087233915/3.39 -> 181.6436835 | I28: 0 | J28: 9.47 | K28: 0 | L28: 186 | M28: 4.464 | N28: =((692.47/14.5)/0.91)*3.6 -> 188.9270178 | O28: 6.93 | P28: 7.44 | Q28: =((519.37/9.3)/0.91)*3.6 -> 220.9301666 | R28: 1.52 | S28: 40.92 | T28: =((-238.4/10.6)/0.95)*3.6 -> -85.22740814 | U28: 208.42 | W28: 15 | X28: 0.0001528327692 | Y28: =X28*'Back, Results'!$D$15 -> 15.28327692 | Z28: 0.0002494316739 | AB28: 2033 | AC28: 18 | AD28: 31 | AE28: 101 | AF28: 18 | AG28: 31 | AH28: 101 | AI28: 0 | AJ28: 0 | AK28: 0 | AL28: 0 | AM28: 1667.5 | AN28: 1058.5 | AO28: 0 | AP28: 102.3 | AQ28: 443.61 | AR28: 393.2 | AS28: 10.6 | AT28: 440.78
C29: 2033 | D29: 12.6 | E29: =617.716407856565/5.1 -> 121.1208643 | F29: 76.58823529 | G29: 12.6 | H29: =617.716407856565/3.39 -> 182.2172295 | I29: 0 | J29: 9.62 | K29: 0 | L29: 186 | M29: 4.464 | N29: =((696.75/14.5)/0.91)*3.6 -> 190.0947329 | O29: 6.93 | P29: 7.44 | Q29: =((522.54/9.3)/0.91)*3.6 -> 222.2786246 | R29: 1.52 | S29: 40.92 | T29: =((-244.6/10.6)/0.95)*3.6 -> -87.44389275 | U29: 208.42 | W29: 16 | X29: 0.0001521327771 | Y29: =X29*'Back, Results'!$D$15 -> 15.21327771 | Z29: 0.0002494316739 | AB29: 2034 | AC29: 17 | AD29: 30 | AE29: 95 | AF29: 17 | AG29: 30 | AH29: 95 | AI29: 0 | AJ29: 0 | AK29: 0 | AL29: 0 | AM29: 1667.5 | AN29: 1058.5 | AO29: 0 | AP29: 102.3 | AQ29: 433.38 | AR29: 393.2 | AS29: 10.6 | AT29: 416.93
C30: 2034 | D30: 12.55 | E30: =613.215972920434/5.1 -> 120.2384261 | F30: 76.58823529 | G30: 12.55 | H30: =613.215972920434/3.39 -> 180.8896675 | I30: 0 | J30: 9.77 | K30: 0 | L30: 186 | M30: 4.464 | N30: =((701.03/14.5)/0.91)*3.6 -> 191.2624479 | O30: 6.93 | P30: 7.44 | Q30: =((525.7/9.3)/0.91)*3.6 -> 223.6228288 | R30: 1.52 | S30: 40.92 | T30: =((-250.8/10.6)/0.95)*3.6 -> -89.66037736 | U30: 208.42 | W30: 17 | X30: 0.0001514327851 | Y30: =X30*'Back, Results'!$D$15 -> 15.14327851 | Z30: 0.0002487316819 | AB30: 2035 | AC30: 15 | AD30: 29 | AE30: 94 | AF30: 15 | AG30: 29 | AH30: 94 | AI30: 0 | AJ30: 0 | AK30: 0 | AL30: 0 | AM30: 1667.5 | AN30: 1058.5 | AO30: 0 | AP30: 102.3 | AQ30: 423.15 | AR30: 393.2 | AS30: 10.6 | AT30: 393.08
C31: 2035 | D31: 12.49 | E31: =612.792087049774/5.1 -> 120.1553112 | F31: 76.58823529 | G31: 12.49 | H31: =612.792087049774/3.39 -> 180.7646274 | I31: 0 | J31: 9.92 | K31: 0 | L31: 186 | M31: 4.464 | N31: =((705.3/14.5)/0.91)*3.6 -> 192.4274346 | O31: 6.93 | P31: 7.44 | Q31: =((528.86/9.3)/0.91)*3.6 -> 224.967033 | R31: 1.52 | S31: 40.92 | T31: =((-257/10.6)/0.95)*3.6 -> -91.87686197 | U31: 208.42 | W31: 18 | X31: 0.000150032801 | Y31: =X31*'Back, Results'!$D$15 -> 15.0032801 | Z31: 0.0002473316977 | AB31: 2036 | AC31: 13 | AD31: 28 | AE31: 81 | AF31: 13 | AG31: 28 | AH31: 81 | AI31: 0 | AJ31: 0 | AK31: 0 | AL31: 0 | AM31: 1667.5 | AN31: 1058.5 | AO31: 0 | AP31: 102.3 | AQ31: 412.92 | AR31: 393.2 | AS31: 10.6 | AT31: 369.23
C32: 2036 | D32: 12.44 | E32: =625.939209672722/5.1 -> 122.7331784 | F32: 76.58823529 | G32: 12.44 | H32: =625.939209672722/3.39 -> 184.6428347 | I32: 0 | J32: 10.07 | K32: 0 | L32: 186 | M32: 4.464 | N32: =((709.58/14.5)/0.91)*3.6 -> 193.5951497 | O32: 6.93 | P32: 7.44 | Q32: =((532.02/9.3)/0.91)*3.6 -> 226.3112371 | R32: 1.52 | S32: 40.92 | T32: =((-263.2/10.6)/0.95)*3.6 -> -94.09334657 | U32: 208.42 | W32: 19 | X32: 0.000150032801 | Y32: =X32*'Back, Results'!$D$15 -> 15.0032801 | Z32: 0.0002473316977 | AB32: 2037 | AC32: 10 | AD32: 26 | AE32: 69 | AF32: 10 | AG32: 26 | AH32: 69 | AI32: 0 | AJ32: 0 | AK32: 0 | AL32: 0 | AM32: 1667.5 | AN32: 1058.5 | AO32: 0 | AP32: 102.3 | AQ32: 402.69 | AR32: 393.2 | AS32: 10.6 | AT32: 345.38
C33: 2037 | D33: 12.38 | E33: =626.000023835874/5.1 -> 122.7451027 | F33: 76.58823529 | G33: 12.38 | H33: =626.000023835874/3.39 -> 184.660774 | I33: 0 | J33: 10.22 | K33: 0 | L33: 186 | M33: 4.464 | N33: =((713.86/14.5)/0.91)*3.6 -> 194.7628647 | O33: 6.93 | P33: 7.44 | Q33: =((535.18/9.3)/0.91)*3.6 -> 227.6554413 | R33: 1.52 | S33: 40.92 | T33: =((-269.4/10.6)/0.95)*3.6 -> -96.30983118 | U33: 208.42 | W33: 20 | X33: 0.0001556327375 | Y33: =X33*'Back, Results'!$D$15 -> 15.56327375 | Z33: 0.0002459317136 | AB33: 2038 | AC33: 9 | AD33: 25 | AE33: 66 | AF33: 9 | AG33: 25 | AH33: 66 | AI33: 0 | AJ33: 0 | AK33: 0 | AL33: 0 | AM33: 1667.5 | AN33: 1058.5 | AO33: 0 | AP33: 102.3 | AQ33: 392.46 | AR33: 393.2 | AS33: 10.6 | AT33: 321.53
C34: 2038 | D34: 12.33 | E34: =624.723704414839/5.1 -> 122.494844 | F34: 76.58823529 | G34: 12.33 | H34: =624.723704414839/3.39 -> 184.2842786 | I34: 0 | J34: 10.37 | K34: 0 | L34: 186 | M34: 4.464 | N34: =((718.14/14.5)/0.91)*3.6 -> 195.9305798 | O34: 6.93 | P34: 7.44 | Q34: =((538.35/9.3)/0.91)*3.6 -> 229.0038993 | R34: 1.52 | S34: 40.92 | T34: =((-275.6/10.6)/0.95)*3.6 -> -98.52631579 | U34: 208.42 | W34: 21 | X34: 0.0001570327216 | Y34: =X34*'Back, Results'!$D$15 -> 15.70327216 | Z34: 0.0002445317295 | AB34: 2039 | AC34: 9 | AD34: 24 | AE34: 64 | AF34: 9 | AG34: 24 | AH34: 64 | AI34: 0 | AJ34: 0 | AK34: 0 | AL34: 0 | AM34: 1667.5 | AN34: 1058.5 | AO34: 0 | AP34: 102.3 | AQ34: 382.23 | AR34: 393.2 | AS34: 10.6 | AT34: 297.68
C35: 2039 | D35: 12.27 | E35: =626.729263254233/5.1 -> 122.8880908 | F35: 76.58823529 | G35: 12.27 | H35: =626.729263254233/3.39 -> 184.8758889 | I35: 0 | J35: 10.52 | K35: 0 | L35: 186 | M35: 4.464 | N35: =((722.41/14.5)/0.91)*3.6 -> 197.0955665 | O35: 6.93 | P35: 7.44 | Q35: =((541.51/9.3)/0.91)*3.6 -> 230.3481035 | R35: 1.52 | S35: 40.92 | T35: =((-281.8/10.6)/0.95)*3.6 -> -100.7428004 | U35: 208.42 | W35: 22 | X35: 0.0001528327692 | Y35: =X35*'Back, Results'!$D$15 -> 15.28327692 | Z35: 0.0002431317453
W36: 23 | X36: 0.0001451328565 | Y36: =X36*'Back, Results'!$D$15 -> 14.51328565 | Z36: 0.0002431317453 | AB36: Year | AC36: Heat Pump 1 | AF36: Heat Pump 2 | AI36: Heat Exchanger | AL36: Straw Boiler | AO36: Wood Chips Boiler | AR36: Waste Boiler
C37: [DKK/MWh] | D37: Heat Pump 1 | E37: Heat Pump 2 | F37: Heat Exchanger | G37: Straw Boiler | H37: Wood Chips Boiler | I37: Waste Boiler | K37: [DKK/MWh] | L37: Prod 1 | M37: Prod 2 | O37: [DKK/MWh] | P37: Prod 1 | S37: Prod 2 | W37: 24 | X37: 0.0001472328327 | Y37: =X37*'Back, Results'!$D$15 -> 14.72328327 | Z37: 0.0002424317533 | AC37: CO2 | AD37: SO2 | AE37: Nox | AF37: CO2 | AG37: SO2 | AH37: Nox | AI37: CO2 | AJ37: SO2 | AK37: Nox | AL37: CO2 | AM37: SO2 | AN37: Nox | AO37: CO2 | AP37: SO2 | AQ37: Nox | AR37: CO2 | AS37: SO2 | AT37: Nox
P38: Variable O&M | Q38: Fuel Cost | R38: Levy | S38: Variable O&M | T38: Fuel Cost | U38: Levy | W38: 25 | X38: 0.000150032801 | Y38: =X38*'Back, Results'!$D$15 -> 15.0032801 | Z38: 0.0002424317533 | AC38: kg/MWhheat | AD38: g/MWhheat | AE38: g/MWhheat | AF38: kg/MWhheat | AG38: g/MWhheat | AH38: g/MWhheat | AI38: kg/MWhheat | AJ38: g/MWhheat | AK38: g/MWhheat | AL38: kg/MWhheat | AM38: g/MWhheat | AN38: g/MWhheat | AO38: kg/MWhheat | AP38: g/MWhheat | AQ38: g/MWhheat | AR38: kg/MWhheat | AS38: g/MWhheat | AT38: g/MWhheat
D39: 1 | E39: 2 | F39: 3 | G39: 4 | H39: 5 | I39: 6 | K39: 2020 | L39: =HLOOKUP('Back, Results'!$D$12,'Back, Data Figures'!$D$39:$I$59,2,FALSE) ->  | M39: =HLOOKUP('Back, Results'!$D$13,'Back, Data Figures'!$D$39:$I$59,2,FALSE) ->  | N39: 2 | O39: 2020 | P39: =HLOOKUP(P$38&'Back, Results'!$D$12,'Back, Data Figures'!$D$15:$U$35,$N39,FALSE) ->  | Q39: =HLOOKUP(Q$38&'Back, Results'!$D$12,'Back, Data Figures'!$D$15:$U$35,$N39,FALSE) ->  | R39: =HLOOKUP(R$38&'Back, Results'!$D$12,'Back, Data Figures'!$D$15:$U$35,$N39,FALSE) ->  | S39: =HLOOKUP(S$38&'Back, Results'!$D$13,'Back, Data Figures'!$D$15:$U$35,$N39,FALSE) ->  | T39: =HLOOKUP(T$38&'Back, Results'!$D$13,'Back, Data Figures'!$D$15:$U$35,$N39,FALSE) ->  | U39: =HLOOKUP(U$38&'Back, Results'!$D$13,'Back, Data Figures'!$D$15:$U$35,$N39,FALSE) ->  | W39: 26 | X39: 0.0001542327533 | Y39: =X39*'Back, Results'!$D$15 -> 15.42327533 | Z39: 0.0002403317771 | AC39: 1 | AD39: 1 | AE39: 1 | AF39: 2 | AG39: 2 | AH39: 2 | AI39: 3 | AJ39: 3 | AK39: 3 | AL39: 4 | AM39: 4 | AN39: 4 | AO39: 5 | AP39: 5 | AQ39: 5 | AR39: 6 | AS39: 6 | AT39: 6
C40: 2020 | D40: =D16+E16+F16 -> 213.711731 | E40: =G16+H16+I16 -> 199.5680024 | F40: =J16+K16+L16 -> 193.69 | G40: =M16+N16+O16 -> 186.3166222 | H40: =P16+Q16+R16 -> 213.7512088 | I40: =S16+T16+U16 -> 190.7104071 | K40: 2021 | L40: =HLOOKUP('Back, Results'!$D$12,'Back, Data Figures'!$D$39:$I$59,3,FALSE) ->  | M40: =HLOOKUP('Back, Results'!$D$13,'Back, Data Figures'!$D$39:$I$59,3,FALSE) ->  | N40: 3 | O40: 2021 | P40: =HLOOKUP(P$38&'Back, Results'!$D$12,'Back, Data Figures'!$D$15:$U$35,$N40,FALSE) ->  | Q40: =HLOOKUP(Q$38&'Back, Results'!$D$12,'Back, Data Figures'!$D$15:$U$35,$N40,FALSE) ->  | R40: =HLOOKUP(R$38&'Back, Results'!$D$12,'Back, Data Figures'!$D$15:$U$35,$N40,FALSE) ->  | S40: =HLOOKUP(S$38&'Back, Results'!$D$13,'Back, Data Figures'!$D$15:$U$35,$N40,FALSE) ->  | T40: =HLOOKUP(T$38&'Back, Results'!$D$13,'Back, Data Figures'!$D$15:$U$35,$N40,FALSE) ->  | U40: =HLOOKUP(U$38&'Back, Results'!$D$13,'Back, Data Figures'!$D$15:$U$35,$N40,FALSE) ->  | W40: 27 | X40: 0.0001591326978 | Y40: =X40*'Back, Results'!$D$15 -> 15.91326978 | Z40: 0.0002403317771 | AC40: =AC37&AC39 -> CO21 | AD40: SO21 | AE40: Nox1 | AF40: CO22 | AG40: SO22 | AH40: Nox2 | AI40: CO23 | AJ40: SO23 | AK40: Nox3 | AL40: CO24 | AM40: SO24 | AN40: Nox4 | AO40: CO25 | AP40: SO25 | AQ40: Nox5 | AR40: CO26 | AS40: SO26 | AT40: Nox6
C41: 2021 | D41: =D17+E17+F17 -> 199.5724758 | E41: =G17+H17+I17 -> 178.326822 | F41: =J17+K17+L17 -> 193.84 | G41: =M17+N17+O17 -> 187.4843372 | H41: =P17+Q17+R17 -> 215.095413 | I41: =S17+T17+U17 -> 188.4939225 | K41: 2022 | L41: =HLOOKUP('Back, Results'!$D$12,'Back, Data Figures'!$D$39:$I$59,4,FALSE) ->  | M41: =HLOOKUP('Back, Results'!$D$13,'Back, Data Figures'!$D$39:$I$59,4,FALSE) ->  | N41: 4 | O41: 2022 | P41: =HLOOKUP(P$38&'Back, Results'!$D$12,'Back, Data Figures'!$D$15:$U$35,$N41,FALSE) ->  | Q41: =HLOOKUP(Q$38&'Back, Results'!$D$12,'Back, Data Figures'!$D$15:$U$35,$N41,FALSE) ->  | R41: =HLOOKUP(R$38&'Back, Results'!$D$12,'Back, Data Figures'!$D$15:$U$35,$N41,FALSE) ->  | S41: =HLOOKUP(S$38&'Back, Results'!$D$13,'Back, Data Figures'!$D$15:$U$35,$N41,FALSE) ->  | T41: =HLOOKUP(T$38&'Back, Results'!$D$13,'Back, Data Figures'!$D$15:$U$35,$N41,FALSE) ->  | U41: =HLOOKUP(U$38&'Back, Results'!$D$13,'Back, Data Figures'!$D$15:$U$35,$N41,FALSE) ->  | W41: 28 | X41: 0.000161232674 | Y41: =X41*'Back, Results'!$D$15 -> 16.1232674 | Z41: 0.000238931793 | AB41: 2020 | AC41: =AC15/5.1 -> 28.23529412 | AD41: 16.07843137 | AE41: 43.92156863 | AF41: =AF15/3.39 -> 42.47787611 | AG41: 24.18879056 | AH41: 66.07669617 | AI41: 0 | AJ41: 0 | AK41: 0 | AL41: =AL15/14.5/0.91/(1/3.6) -> 0 | AM41: 454.9450549 | AN41: 284.8351648 | AO41: =AO15/9.3/0.91/(1/3.6) -> 0 | AP41: 43.51648352 | AQ41: 245.2747253 | AR41: =AR15/10.6/0.95/(1/3.6) -> 140.5680238 | AS41: 3.789473684 | AT41: 268.419861
C42: 2022 | D42: 200.0227679 | E42: 179.0294739 | F42: 193.99 | G42: 188.6520523 | H42: 216.4396172 | I42: 186.2774379 | K42: 2023 | L42: =HLOOKUP('Back, Results'!$D$12,'Back, Data Figures'!$D$39:$I$59,5,FALSE) ->  | M42: =HLOOKUP('Back, Results'!$D$13,'Back, Data Figures'!$D$39:$I$59,5,FALSE) ->  | N42: 5 | O42: 2023 | P42: =HLOOKUP(P$38&'Back, Results'!$D$12,'Back, Data Figures'!$D$15:$U$35,$N42,FALSE) ->  | Q42: =HLOOKUP(Q$38&'Back, Results'!$D$12,'Back, Data Figures'!$D$15:$U$35,$N42,FALSE) ->  | R42: =HLOOKUP(R$38&'Back, Results'!$D$12,'Back, Data Figures'!$D$15:$U$35,$N42,FALSE) ->  | S42: =HLOOKUP(S$38&'Back, Results'!$D$13,'Back, Data Figures'!$D$15:$U$35,$N42,FALSE) ->  | T42: =HLOOKUP(T$38&'Back, Results'!$D$13,'Back, Data Figures'!$D$15:$U$35,$N42,FALSE) ->  | U42: =HLOOKUP(U$38&'Back, Results'!$D$13,'Back, Data Figures'!$D$15:$U$35,$N42,FALSE) ->  | W42: 29 | X42: 0.0001654326263 | Y42: =X42*'Back, Results'!$D$15 -> 16.54326263 | Z42: 0.0002382318009 | AB42: 2021 | AC42: 26.07843137 | AD42: 14.50980392 | AE42: 40.39215686 | AF42: 39.23303835 | AG42: 21.82890855 | AH42: 60.76696165 | AI42: 0 | AJ42: 0 | AK42: 0 | AL42: 0 | AM42: 454.9450549 | AN42: 285.2307692 | AO42: 0 | AP42: 43.51648352 | AQ42: 240.9230769 | AR42: 140.5680238 | AS42: 3.789473684 | AT42: 259.8935452
C43: 2023 | D43: 202.8534924 | E43: 183.3183514 | F43: 194.13 | G43: 189.817039 | H43: 217.7880752 | I43: 184.0609533 | K43: 2024 | L43: =HLOOKUP('Back, Results'!$D$12,'Back, Data Figures'!$D$39:$I$59,6,FALSE) ->  | M43: =HLOOKUP('Back, Results'!$D$13,'Back, Data Figures'!$D$39:$I$59,6,FALSE) ->  | N43: 6 | O43: 2024 | P43: =HLOOKUP(P$38&'Back, Results'!$D$12,'Back, Data Figures'!$D$15:$U$35,$N43,FALSE) ->  | Q43: =HLOOKUP(Q$38&'Back, Results'!$D$12,'Back, Data Figures'!$D$15:$U$35,$N43,FALSE) ->  | R43: =HLOOKUP(R$38&'Back, Results'!$D$12,'Back, Data Figures'!$D$15:$U$35,$N43,FALSE) ->  | S43: =HLOOKUP(S$38&'Back, Results'!$D$13,'Back, Data Figures'!$D$15:$U$35,$N43,FALSE) ->  | T43: =HLOOKUP(T$38&'Back, Results'!$D$13,'Back, Data Figures'!$D$15:$U$35,$N43,FALSE) ->  | U43: =HLOOKUP(U$38&'Back, Results'!$D$13,'Back, Data Figures'!$D$15:$U$35,$N43,FALSE) ->  | W43: 30 | X43: 0.000172432547 | Y43: =X43*'Back, Results'!$D$15 -> 17.2432547 | Z43: 0.0002382318009 | AB43: 2022 | AC43: 24.70588235 | AD43: 14.11764706 | AE43: 39.41176471 | AF43: 37.16814159 | AG43: 21.23893805 | AH43: 59.2920354 | AI43: 0 | AJ43: 0 | AK43: 0 | AL43: 0 | AM43: 454.9450549 | AN43: 285.6263736 | AO43: 0 | AP43: 43.51648352 | AQ43: 236.5714286 | AR43: 140.5680238 | AS43: 3.789473684 | AT43: 251.3672294
C44: 2024 | D44: 204.1896481 | E44: 185.3537184 | F44: 194.28 | G44: 190.9847541 | H44: 219.1322793 | I44: 181.8444687 | K44: 2025 | L44: =HLOOKUP('Back, Results'!$D$12,'Back, Data Figures'!$D$39:$I$59,7,FALSE) ->  | M44: =HLOOKUP('Back, Results'!$D$13,'Back, Data Figures'!$D$39:$I$59,7,FALSE) ->  | N44: 7 | O44: 2025 | P44: =HLOOKUP(P$38&'Back, Results'!$D$12,'Back, Data Figures'!$D$15:$U$35,$N44,FALSE) ->  | Q44: =HLOOKUP(Q$38&'Back, Results'!$D$12,'Back, Data Figures'!$D$15:$U$35,$N44,FALSE) ->  | R44: =HLOOKUP(R$38&'Back, Results'!$D$12,'Back, Data Figures'!$D$15:$U$35,$N44,FALSE) ->  | S44: =HLOOKUP(S$38&'Back, Results'!$D$13,'Back, Data Figures'!$D$15:$U$35,$N44,FALSE) ->  | T44: =HLOOKUP(T$38&'Back, Results'!$D$13,'Back, Data Figures'!$D$15:$U$35,$N44,FALSE) ->  | U44: =HLOOKUP(U$38&'Back, Results'!$D$13,'Back, Data Figures'!$D$15:$U$35,$N44,FALSE) ->  | W44: 31 | X44: 0.000173132539 | Y44: =X44*'Back, Results'!$D$15 -> 17.3132539 | Z44: 0.0002375318088 | AB44: 2023 | AC44: 21.37254902 | AD44: 12.94117647 | AE44: 38.82352941 | AF44: 32.15339233 | AG44: 19.46902655 | AH44: 58.40707965 | AI44: 0 | AJ44: 0 | AK44: 0 | AL44: 0 | AM44: 454.9450549 | AN44: 286.021978 | AO44: 0 | AP44: 43.51648352 | AQ44: 232.2197802 | AR44: 140.5680238 | AS44: 3.789473684 | AT44: 242.8409136
C45: 2025 | D45: 204.564893 | E45: 185.9485116 | F45: 194.43 | G45: 192.1524691 | H45: 220.4764835 | I45: 179.6279841 | K45: 2026 | L45: =HLOOKUP('Back, Results'!$D$12,'Back, Data Figures'!$D$39:$I$59,8,FALSE) ->  | M45: =HLOOKUP('Back, Results'!$D$13,'Back, Data Figures'!$D$39:$I$59,8,FALSE) ->  | N45: 8 | O45: 2026 | P45: =HLOOKUP(P$38&'Back, Results'!$D$12,'Back, Data Figures'!$D$15:$U$35,$N45,FALSE) ->  | Q45: =HLOOKUP(Q$38&'Back, Results'!$D$12,'Back, Data Figures'!$D$15:$U$35,$N45,FALSE) ->  | R45: =HLOOKUP(R$38&'Back, Results'!$D$12,'Back, Data Figures'!$D$15:$U$35,$N45,FALSE) ->  | S45: =HLOOKUP(S$38&'Back, Results'!$D$13,'Back, Data Figures'!$D$15:$U$35,$N45,FALSE) ->  | T45: =HLOOKUP(T$38&'Back, Results'!$D$13,'Back, Data Figures'!$D$15:$U$35,$N45,FALSE) ->  | U45: =HLOOKUP(U$38&'Back, Results'!$D$13,'Back, Data Figures'!$D$15:$U$35,$N45,FALSE) ->  | W45: 32 | X45: 0.0001773324914 | Y45: =X45*'Back, Results'!$D$15 -> 17.73324914 | Z45: 0.0002375318088 | AB45: 2024 | AC45: 20.78431373 | AD45: 12.94117647 | AE45: 38.03921569 | AF45: 31.26843658 | AG45: 19.46902655 | AH45: 57.22713864 | AI45: 0 | AJ45: 0 | AK45: 0 | AL45: 0 | AM45: 454.9450549 | AN45: 286.4175824 | AO45: 0 | AP45: 43.51648352 | AQ45: 227.8681319 | AR45: 140.5680238 | AS45: 3.789473684 | AT45: 234.3145978
C46: 2026 | D46: 205.8282557 | E46: 187.874367 | F46: 194.58 | G46: 193.3201842 | H46: 221.8206877 | I46: 177.4114995 | K46: 2027 | L46: =HLOOKUP('Back, Results'!$D$12,'Back, Data Figures'!$D$39:$I$59,9,FALSE) ->  | M46: =HLOOKUP('Back, Results'!$D$13,'Back, Data Figures'!$D$39:$I$59,9,FALSE) ->  | N46: 9 | O46: 2027 | P46: =HLOOKUP(P$38&'Back, Results'!$D$12,'Back, Data Figures'!$D$15:$U$35,$N46,FALSE) ->  | Q46: =HLOOKUP(Q$38&'Back, Results'!$D$12,'Back, Data Figures'!$D$15:$U$35,$N46,FALSE) ->  | R46: =HLOOKUP(R$38&'Back, Results'!$D$12,'Back, Data Figures'!$D$15:$U$35,$N46,FALSE) ->  | S46: =HLOOKUP(S$38&'Back, Results'!$D$13,'Back, Data Figures'!$D$15:$U$35,$N46,FALSE) ->  | T46: =HLOOKUP(T$38&'Back, Results'!$D$13,'Back, Data Figures'!$D$15:$U$35,$N46,FALSE) ->  | U46: =HLOOKUP(U$38&'Back, Results'!$D$13,'Back, Data Figures'!$D$15:$U$35,$N46,FALSE) ->  | W46: 33 | X46: 0.00018363242 | Y46: =X46*'Back, Results'!$D$15 -> 18.363242 | Z46: 0.0002375318088 | AB46: 2025 | AC46: 19.01960784 | AD46: 12.35294118 | AE46: 36.07843137 | AF46: 28.61356932 | AG46: 18.5840708 | AH46: 54.27728614 | AI46: 0 | AJ46: 0 | AK46: 0 | AL46: 0 | AM46: 454.9450549 | AN46: 286.8131868 | AO46: 0 | AP46: 43.51648352 | AQ46: 223.5164835 | AR46: 140.5680238 | AS46: 3.789473684 | AT46: 225.788282
C47: 2027 | D47: 206.3609965 | E47: 188.7061009 | F47: 194.73 | G47: 194.4851709 | H47: 223.1648919 | I47: 175.1950149 | K47: 2028 | L47: =HLOOKUP('Back, Results'!$D$12,'Back, Data Figures'!$D$39:$I$59,10,FALSE) ->  | M47: =HLOOKUP('Back, Results'!$D$13,'Back, Data Figures'!$D$39:$I$59,10,FALSE) ->  | N47: 10 | O47: 2028 | P47: =HLOOKUP(P$38&'Back, Results'!$D$12,'Back, Data Figures'!$D$15:$U$35,$N47,FALSE) ->  | Q47: =HLOOKUP(Q$38&'Back, Results'!$D$12,'Back, Data Figures'!$D$15:$U$35,$N47,FALSE) ->  | R47: =HLOOKUP(R$38&'Back, Results'!$D$12,'Back, Data Figures'!$D$15:$U$35,$N47,FALSE) ->  | S47: =HLOOKUP(S$38&'Back, Results'!$D$13,'Back, Data Figures'!$D$15:$U$35,$N47,FALSE) ->  | T47: =HLOOKUP(T$38&'Back, Results'!$D$13,'Back, Data Figures'!$D$15:$U$35,$N47,FALSE) ->  | U47: =HLOOKUP(U$38&'Back, Results'!$D$13,'Back, Data Figures'!$D$15:$U$35,$N47,FALSE) ->  | W47: 34 | X47: 0.0001829324279 | Y47: =X47*'Back, Results'!$D$15 -> 18.29324279 | Z47: 0.0002368318168 | AB47: 2026 | AC47: 17.84313725 | AD47: 11.76470588 | AE47: 33.33333333 | AF47: 26.84365782 | AG47: 17.69911504 | AH47: 50.14749263 | AI47: 0 | AJ47: 0 | AK47: 0 | AL47: 0 | AM47: 454.9450549 | AN47: 287.2087912 | AO47: 0 | AP47: 43.51648352 | AQ47: 219.1648352 | AR47: 140.5680238 | AS47: 3.789473684 | AT47: 217.2619662
C48: 2028 | D48: 207.445854 | E48: 190.368453 | F48: 194.88 | G48: 195.6528859 | H48: 224.5133499 | I48: 172.9785303 | K48: 2029 | L48: =HLOOKUP('Back, Results'!$D$12,'Back, Data Figures'!$D$39:$I$59,11,FALSE) ->  | M48: =HLOOKUP('Back, Results'!$D$13,'Back, Data Figures'!$D$39:$I$59,11,FALSE) ->  | N48: 11 | O48: 2029 | P48: =HLOOKUP(P$38&'Back, Results'!$D$12,'Back, Data Figures'!$D$15:$U$35,$N48,FALSE) ->  | Q48: =HLOOKUP(Q$38&'Back, Results'!$D$12,'Back, Data Figures'!$D$15:$U$35,$N48,FALSE) ->  | R48: =HLOOKUP(R$38&'Back, Results'!$D$12,'Back, Data Figures'!$D$15:$U$35,$N48,FALSE) ->  | S48: =HLOOKUP(S$38&'Back, Results'!$D$13,'Back, Data Figures'!$D$15:$U$35,$N48,FALSE) ->  | T48: =HLOOKUP(T$38&'Back, Results'!$D$13,'Back, Data Figures'!$D$15:$U$35,$N48,FALSE) ->  | U48: =HLOOKUP(U$38&'Back, Results'!$D$13,'Back, Data Figures'!$D$15:$U$35,$N48,FALSE) ->  | W48: 35 | X48: 0.0001738325311 | Y48: =X48*'Back, Results'!$D$15 -> 17.38325311 | Z48: 0.0002368318168 | AB48: 2027 | AC48: 16.47058824 | AD48: 10.98039216 | AE48: 31.17647059 | AF48: 24.77876106 | AG48: 16.51917404 | AH48: 46.90265487 | AI48: 0 | AJ48: 0 | AK48: 0 | AL48: 0 | AM48: 454.9450549 | AN48: 287.6043956 | AO48: 0 | AP48: 43.51648352 | AQ48: 214.8131868 | AR48: 140.5680238 | AS48: 3.789473684 | AT48: 208.7356504
C49: 2029 | D49: 208.1116778 | E49: 191.395356 | F49: 195.03 | G49: 196.820601 | H49: 225.8575541 | I49: 170.7620457 | K49: 2030 | L49: =HLOOKUP('Back, Results'!$D$12,'Back, Data Figures'!$D$39:$I$59,12,FALSE) ->  | M49: =HLOOKUP('Back, Results'!$D$13,'Back, Data Figures'!$D$39:$I$59,12,FALSE) ->  | N49: 12 | O49: 2030 | P49: =HLOOKUP(P$38&'Back, Results'!$D$12,'Back, Data Figures'!$D$15:$U$35,$N49,FALSE) ->  | Q49: =HLOOKUP(Q$38&'Back, Results'!$D$12,'Back, Data Figures'!$D$15:$U$35,$N49,FALSE) ->  | R49: =HLOOKUP(R$38&'Back, Results'!$D$12,'Back, Data Figures'!$D$15:$U$35,$N49,FALSE) ->  | S49: =HLOOKUP(S$38&'Back, Results'!$D$13,'Back, Data Figures'!$D$15:$U$35,$N49,FALSE) ->  | T49: =HLOOKUP(T$38&'Back, Results'!$D$13,'Back, Data Figures'!$D$15:$U$35,$N49,FALSE) ->  | U49: =HLOOKUP(U$38&'Back, Results'!$D$13,'Back, Data Figures'!$D$15:$U$35,$N49,FALSE) ->  | W49: 36 | X49: 0.0001654326263 | Y49: =X49*'Back, Results'!$D$15 -> 16.54326263 | Z49: 0.0002333318565 | AB49: 2028 | AC49: 15.29411765 | AD49: 10.39215686 | AE49: 29.21568627 | AF49: 23.00884956 | AG49: 15.63421829 | AH49: 43.95280236 | AI49: 0 | AJ49: 0 | AK49: 0 | AL49: 0 | AM49: 454.9450549 | AN49: 288 | AO49: 0 | AP49: 43.51648352 | AQ49: 210.4615385 | AR49: 140.5680238 | AS49: 3.789473684 | AT49: 200.2093347
